Workbook

Sheet Age profile chart

Sheet Forecast Ch1

Sheet Age profile summary
A1: Asset calcs | R1: Remaining life | W1: RC ($ millions) | AB1: RC (%)
R2: Very old | S2: Old | T2: moderate | U2: young | V2: new | W2: =R2 -> Very old | X2: =S2 -> Old | Y2: moderate | Z2: young | AA2: new | AB2: Very old | AC2: Old | AD2: moderate | AE2: young | AF2: new
M3: WARL | O3: WAL | Q3: WAA | R3: > | S3: > | T3: > | U3: > | V3: <=0.2 | W3: =R3 -> > | X3: > | Y3: > | Z3: > | AA3: <=0.2 | AB3: > | AC3: > | AD3: > | AE3: > | AF3: <=0.2
F4: Quantity | G4: Unit | H4: RC | I4: prop total | J4: Rank | K4: prop cat | L4: RC / unit | M4: (Rep life) | O4: Rep life | Q4: % Rep life | R4: =W4 -> 0.9 | S4: =X4 -> 0.8 | T4: =Y4 -> 0.4 | U4: =Z4 -> 0.2 | W4: 0.9 | X4: 0.8 | Y4: 0.4 | Z4: 0.2 | AA4: 0 | AB4: 0.9 | AC4: 0.8 | AD4: 0.4 | AE4: 0.2 | AF4: 0 | AG4: Std life | AH4: Std life | AI4: rep life
G5: Cost | H5: $ millions | I5: % | J5: total | K5: % | L5: $ ('000) | AG5: max | AH5: min
A6: 1 | D6: =VLOOKUP(A6,IDtable,2) -> POLES | F6: =SUMIF($A$21:$A$205,$A6,F$21:F$205) -> 169173 | H6: =SUMIF($A$21:$A$205,$A6,H$21:H$205)/1000 -> 1028.258271 | I6: =H6/($H$18) -> 0.1652316727 | J6: =RANK(I6,I$6:I$17) -> 3 | L6: =H6*1000/(F6+0.001) -> 6.078146421 | M6: =SUMIF($A$21:$A$205,$A6,N$21:N$205)/(H6*1000+0.000001) -> 34.50035479 | O6: =SUMIF($A$21:$A$205,$A6,P$21:P$205)/(H6*1000+0.000001) -> 65.14504656 | Q6: =(O6-M6)/(O6+0.000001) -> 0.4704070826 | R6: =$O6-R$4*$O6 -> 6.514504656 | S6: =$O6-S$4*$O6 -> 13.02900931 | T6: =$O6-T$4*$O6 -> 39.08702794 | U6: =$O6-U$4*$O6 -> 52.11603725 | V6: =$O6-V$4*$O6 -> 65.14504656 | W6: =SUMIF($A$21:$A$205,$A6,W$21:W$205)/1000 -> 34.37488363 | X6: 27.55499375 | Y6: 547.9368593 | Z6: 287.8369265 | AA6: 130.5546074 | AB6: =IF($H6=0,0,W6/$H6) -> 0.03343020388 | AC6: =IF($H6=0,0,X6/$H6) -> 0.02679773608 | AD6: =IF($H6=0,0,Y6/$H6) -> 0.5328786307 | AE6: =IF($H6=0,0,Z6/$H6) -> 0.2799266826 | AF6: =IF($H6=0,0,AA6/$H6) -> 0.1269667467 | AG6: =MAX(IF($A$21:$A$205=$A6,$O$21:$O$205)) -> 75.72253447 | AH6: =MIN(IF($A$21:$A$205=$A6,$O$21:$O$205)) -> 34.07046942 | AI6: =IF(H6=0,0,SUMIF($A$21:$A$205,$A6,$AJ$21:$AJ$205)/(H6*1000)) -> 65.14504656
A7: 2 | D7: OVERHEAD CONDUCTORS | F7: =SUMIF($A$21:$A$205,$A7,F$21:F$205) -> 10082.83145 | H7: =SUMIF($A$21:$A$205,$A7,H$21:H$205)/1000 -> 1551.221408 | I7: =H7/($H$18) -> 0.2492670522 | J7: 2 | L7: 153.847782 | M7: 52.98610648 | O7: 94.90706934 | Q7: 0.4417053725 | R7: =$O7-R$4*$O7 -> 9.490706934 | S7: 18.98141387 | T7: 56.9442416 | U7: 75.92565547 | V7: 94.90706934 | W7: 13.49690124 | X7: 76.58422035 | Y7: 846.1036057 | Z7: 418.594907 | AA7: 196.4417742 | AB7: =IF($H7=0,0,W7/$H7) -> 0.008700821921 | AC7: =IF($H7=0,0,X7/$H7) -> 0.04937027038 | AD7: =IF($H7=0,0,Y7/$H7) -> 0.5454434815 | AE7: =IF($H7=0,0,Z7/$H7) -> 0.2698485882 | AF7: =IF($H7=0,0,AA7/$H7) -> 0.126636838 | AG7: =MAX(IF($A$21:$A$205=$A7,$O$21:$O$205)) -> 111.7823363 | AH7: =MIN(IF($A$21:$A$205=$A7,$O$21:$O$205)) -> 57.5148321 | AI7: =IF(H7=0,0,SUMIF($A$21:$A$205,$A7,$AJ$21:$AJ$205)/(H7*1000)) -> 94.90706934
A8: 3 | D8: UNDERGROUND CABLES | F8: 3764.680293 | H8: 2279.697219 | I8: 0.3663264332 | J8: 1 | L8: 605.548529 | M8: 36.6750994 | O8: 57.28124879 | Q8: 0.3597363791 | R8: 5.728124879 | S8: 11.45624976 | T8: 34.36874927 | U8: 45.82499903 | V8: 57.28124879 | W8: 20.31854359 | X8: 40.35864272 | Y8: 873.5642247 | Z8: 616.8742286 | AA8: 728.5815799 | AB8: 0.008912825533 | AC8: 0.01770351009 | AD8: 0.3831930913 | AE8: 0.2705948068 | AF8: 0.3195957663 | AG8: =MAX(IF($A$21:$A$205=$A8,$O$21:$O$205)) -> 65.18377617 | AH8: =MIN(IF($A$21:$A$205=$A8,$O$21:$O$205)) -> 54.21077991 | AI8: 57.28124879
A9: 4 | D9: SERVICE LINES | F9: 368038 | H9: 177.6782192 | I9: 0.02855126012 | J9: 6 | L9: 0.4827713951 | M9: 28.87428286 | O9: 38.91786707 | Q9: 0.2580712848 | R9: 3.891786707 | S9: 7.783573415 | T9: 23.35072024 | U9: 31.13429366 | V9: 38.91786707 | W9: 11.28832885 | X9: 4.143918131 | Y9: 23.96313897 | Z9: 22.89494501 | AA9: 115.3878882 | AB9: 0.063532429 | AC9: 0.02332260054 | AD9: 0.1348681852 | AE9: 0.1288562274 | AF9: 0.6494205578 | AG9: =MAX(IF($A$21:$A$205=$A9,$O$21:$O$205)) -> 39.91980486 | AH9: =MIN(IF($A$21:$A$205=$A9,$O$21:$O$205)) -> 37.22015627 | AI9: 38.91786708
A10: 5 | D10: TRANSFORMERS | F10: 13889 | H10: 566.8661117 | I10: 0.09109018472 | J10: 5 | L10: 40.81403059 | M10: 27.77626023 | O10: 56.07888801 | Q10: 0.5046930901 | R10: 5.607888801 | S10: 11.2157776 | T10: 33.64733281 | U10: 44.86311041 | V10: 56.07888801 | W10: 29.16168935 | X10: 99.0116531 | Y10: 207.0612989 | Z10: 66.10091475 | AA10: 165.5305556 | AB10: 0.05144369851 | AC10: 0.1746649712 | AD10: 0.3652737298 | AE10: 0.1166076317 | AF10: 0.2920099688 | AG10: =MAX(IF($A$21:$A$205=$A10,$O$21:$O$205)) -> 70.14015825 | AH10: =MIN(IF($A$21:$A$205=$A10,$O$21:$O$205)) -> 32.69898997 | AI10: 56.07888801
A11: 6 | D11: SWITCHGEAR | F11: 94649 | H11: 619.4093247 | I11: 0.0995333971 | J11: 4 | L11: 6.544277469 | M11: 30.88625576 | O11: 54.63632329 | Q11: 0.4346937288 | R11: 5.463632329 | S11: 10.92726466 | T11: 32.78179398 | U11: 43.70905864 | V11: 54.63632329 | W11: 60.99540987 | X11: 46.71061945 | Y11: 198.1420506 | Z11: 110.6171612 | AA11: 202.9440836 | AB11: 0.09847350926 | AC11: 0.07541155353 | AD11: 0.3198887112 | AE11: 0.1785849144 | AF11: 0.3276413116 | AG11: =MAX(IF($A$21:$A$205=$A11,$O$21:$O$205)) -> 72.16416487 | AH11: =MIN(IF($A$21:$A$205=$A11,$O$21:$O$205)) -> 18.69722881 | AI11: 54.63632329
A12: 7 | D12: PUBLIC LIGHTING | F12: 0 | H12: 0 | I12: 0 | J12: 7 | L12: 0 | M12: 0 | O12: 0 | Q12: 0 | R12: 0 | S12: 0 | T12: 0 | U12: 0 | V12: 0 | W12: 0 | X12: 0 | Y12: 0 | Z12: 0 | AA12: 0 | AB12: 0 | AC12: 0 | AD12: 0 | AE12: 0 | AF12: 0 | AG12: =MAX(IF($A$21:$A$205=$A12,$O$21:$O$205)) -> 0 | AH12: =MIN(IF($A$21:$A$205=$A12,$O$21:$O$205)) -> 0 | AI12: 0
A13: 8 | D13: SCADA, NETWORK CONTROL AND PROTECTION | F13: 0 | H13: 0 | I13: 0 | J13: 7 | L13: 0 | M13: 0 | O13: 0 | Q13: 0 | R13: 0 | S13: 0 | T13: 0 | U13: 0 | V13: 0 | W13: 0 | X13: 0 | Y13: 0 | Z13: 0 | AA13: 0 | AB13: 0 | AC13: 0 | AD13: 0 | AE13: 0 | AF13: 0 | AG13: =MAX(IF($A$21:$A$205=$A13,$O$21:$O$205)) -> 0 | AH13: =MIN(IF($A$21:$A$205=$A13,$O$21:$O$205)) -> 0 | AI13: 0
A14: 9 | D14: =VLOOKUP(A14,IDtable,2) -> OTHER | F14: =SUMIF($A$21:$A$205,$A14,F$21:F$205) -> 0 | H14: =SUMIF($A$21:$A$205,$A14,H$21:H$205)/1000 -> 0 | I14: =H14/($H$18) -> 0 | J14: 7 | L14: 0 | M14: 0 | O14: 0 | Q14: 0 | R14: =$O14-R$4*$O14 -> 0 | S14: 0 | T14: 0 | U14: 0 | V14: 0 | W14: 0 | X14: 0 | Y14: 0 | Z14: 0 | AA14: 0 | AB14: 0 | AC14: 0 | AD14: 0 | AE14: 0 | AF14: 0 | AG14: =MAX(IF($A$21:$A$205=$A14,$O$21:$O$205)) -> 0 | AH14: =MIN(IF($A$21:$A$205=$A14,$O$21:$O$205)) -> 0 | AI14: 0
A15: 10 | D15: =VLOOKUP(A15,IDtable,2) -> unused | F15: =SUMIF($A$21:$A$205,$A15,F$21:F$205) -> 0 | H15: =SUMIF($A$21:$A$205,$A15,H$21:H$205)/1000 -> 0 | I15: =H15/($H$18) -> 0 | J15: 7 | L15: 0 | M15: 0 | O15: 0 | Q15: 0 | R15: 0 | S15: 0 | T15: 0 | U15: 0 | V15: 0 | W15: 0 | X15: 0 | Y15: 0 | Z15: 0 | AA15: 0 | AB15: 0 | AC15: 0 | AD15: 0 | AE15: 0 | AF15: 0 | AG15: =MAX(IF($A$21:$A$205=$A15,$O$21:$O$205)) -> 0 | AH15: =MIN(IF($A$21:$A$205=$A15,$O$21:$O$205)) -> 0 | AI15: 0
A16: 11 | D16: =VLOOKUP(A16,IDtable,2) -> unused | F16: =SUMIF($A$21:$A$205,$A16,F$21:F$205) -> 0 | H16: =SUMIF($A$21:$A$205,$A16,H$21:H$205)/1000 -> 0 | I16: =H16/($H$18) -> 0 | J16: 7 | L16: 0 | M16: 0 | O16: 0 | Q16: 0 | R16: 0 | S16: 0 | T16: 0 | U16: 0 | V16: 0 | W16: 0 | X16: 0 | Y16: 0 | Z16: 0 | AA16: 0 | AB16: 0 | AC16: 0 | AD16: 0 | AE16: 0 | AF16: 0 | AG16: =MAX(IF($A$21:$A$205=$A16,$O$21:$O$205)) -> 0 | AH16: =MIN(IF($A$21:$A$205=$A16,$O$21:$O$205)) -> 0 | AI16: 0
A17: 12 | D17: =VLOOKUP(A17,IDtable,2) -> unused | F17: =SUMIF($A$21:$A$205,$A17,F$21:F$205) -> 0 | H17: =SUMIF($A$21:$A$205,$A17,H$21:H$205)/1000 -> 0 | I17: =H17/($H$18) -> 0 | J17: =RANK(I17,I$6:I$17) -> 7 | L17: =H17*1000/(F17+0.001) -> 0 | M17: =SUMIF($A$21:$A$205,$A17,N$21:N$205)/(H17*1000+0.000001) -> 0 | O17: =SUMIF($A$21:$A$205,$A17,P$21:P$205)/(H17*1000+0.000001) -> 0 | Q17: =(O17-M17)/(O17+0.000001) -> 0 | R17: 0 | S17: 0 | T17: 0 | U17: 0 | V17: 0 | W17: 0 | X17: 0 | Y17: 0 | Z17: 0 | AA17: 0 | AB17: 0 | AC17: 0 | AD17: 0 | AE17: 0 | AF17: 0 | AG17: =MAX(IF($A$21:$A$205=$A17,$O$21:$O$205)) -> 0 | AH17: =MIN(IF($A$21:$A$205=$A17,$O$21:$O$205)) -> 0 | AI17: 0
D18: Total | H18: =SUM(H6:H17) -> 6223.130554 | M18: =SUMPRODUCT(M6:M17,$H6:$H17)/$H18 -> 38.77205604 | O18: =SUMPRODUCT(O6:O17,$H6:$H17)/$H18 -> 67.06239525 | Q18: =SUMPRODUCT(Q6:Q17,$H6:$H17)/$H18 -> 0.4162170806 | W18: =SUM(W6:W17) -> 169.6357565 | X18: =SUM(X6:X17) -> 294.3640475 | Y18: =SUM(Y6:Y17) -> 2696.771178 | Z18: =SUM(Z6:Z17) -> 1522.919083 | AA18: =SUM(AA6:AA17) -> 1539.440489 | AB18: =W18/$H18 -> 0.02725891013 | AC18: =X18/$H18 -> 0.04730160246 | AD18: =Y18/$H18 -> 0.4333463929 | AE18: =Z18/$H18 -> 0.2447191281 | AF18: =AA18/$H18 -> 0.2473739664
D20: EDB categories
A21: ='Asset data'!A21 -> 1 | B21: ='Asset data'!B21 -> 0 | C21: ='Asset data'!C21 -> 0 | D21: ='Asset data'!E21 -> STAKING OF A WOODEN POLE | E21: =IF(A21>0,VLOOKUP(A21,IDtable,2),0) -> POLES | F21: =IF(A21>0,SUM('Asset data'!J21:CV21),0) -> 15759 | G21: =IF(A21>0,'Asset data'!F21,0) -> 10.50700044 | H21: =IF(A21>0,SUM('Asset data'!CX21:GJ21),0) -> 165579.82 | I21: =H21/$H$18/1000 -> 0.02660715833 | J21: =IF(RANK(0,I$21:I$205)=RANK(I21,I$21:I$205),0,RANK(I21,I$21:I$205)) -> 11 | K21: =IF(A21>0,H21/(VLOOKUP(A21,$A$6:$H$17,8)*1000),0) -> 0.1610294074 | L21: =IF($A21>0,H21/F21,0) -> 10.50700044 | M21: =IF($A21>0,SUMPRODUCT('Age profile (years)'!$CT21:$GF21,'Asset data'!$CX21:$GJ21)/H21-0.5,0) -> 20.05092328 | N21: =IF($A21>0,M21*H21,0) -> 3320028.267 | O21: =IF($A21>0,'Asset data'!G21,0) -> 34.07046942 | P21: =IF($A21>0,H21*O21,0) -> 5641382.193 | Q21: =IF($A21>0,(O21-M21)/O21,0) -> 0.4114867326 | R21: =IF($A21>0,$O21-R$4*$O21,0) -> 3.407046942 | S21: 6.814093885 | T21: 20.44228165 | U21: 27.25637554 | W21: =IF($A21>0,SUMIF('Age profile (years)'!$CT21:$GF21,"<" & R21+0.5,'Asset data'!$CX21:$GJ21),0) -> 42.02800177 | X21: =IF($A21>0,SUMIF('Age profile (years)'!$CT21:$GF21,"<" & S21+0.5,'Asset data'!$CX21:$GJ21)-W21,0) -> 5621.245237 | Y21: =IF($A21>0,SUMIF('Age profile (years)'!$CT21:$GF21,"<" & T21+0.5,'Asset data'!$CX21:$GJ21)-X21-W21,0) -> 76375.38621 | Z21: =IF($A21>0,SUMIF('Age profile (years)'!$CT21:$GF21,"<" & U21+0.5,'Asset data'!$CX21:$GJ21)-Y21-X21-W21,0) -> 41176.93473 | AA21: =IF($A21>0,H21-Z21-Y21-X21-W21,0) -> 42364.22578 | AB21: =IF($A21>0,W21/$H21,0) -> 0.0002538232121 | AC21: 0.03394885462 | AD21: 0.4612602322 | AE21: 0.2486832921 | AF21: 0.2558537978 | AI21: =IF($A21>0,'RRR hist-forc'!K21,0) -> 34.07046942 | AJ21: =IF($A21>0,AI21*H21,0) -> 5641382.193
A22: ='Asset data'!A22 -> 1 | B22: ='Asset data'!B22 -> 0 | C22: ='Asset data'!C22 -> 0 | D22: ='Asset data'!E22 -> ˂ = 1 KV; WOOD | E22: POLES | F22: =IF(A22>0,SUM('Asset data'!J22:CV22),0) -> 62540 | G22: =IF(A22>0,'Asset data'!F22,0) -> 3.175330179 | H22: =IF(A22>0,SUM('Asset data'!CX22:GJ22),0) -> 198585.1494 | I22: 0.03191081204 | J22: 7 | K22: =IF(A22>0,H22/(VLOOKUP(A22,$A$6:$H$17,8)*1000),0) -> 0.1931276947 | L22: =IF($A22>0,H22/F22,0) -> 3.175330179 | M22: =IF($A22>0,SUMPRODUCT('Age profile (years)'!$CT22:$GF22,'Asset data'!$CX22:$GJ22)/H22-0.5,0) -> 34.22636713 | N22: =IF($A22>0,M22*H22,0) -> 6796848.229 | O22: =IF($A22>0,'Asset data'!G22,0) -> 75.54310141 | P22: =IF($A22>0,H22*O22,0) -> 15001738.08 | Q22: =IF($A22>0,(O22-M22)/O22,0) -> 0.5469292829 | R22: 7.554310141 | S22: 15.10862028 | T22: 45.32586084 | U22: 60.43448112 | W22: =IF($A22>0,SUMIF('Age profile (years)'!$CT22:$GF22,"<" & R22+0.5,'Asset data'!$CX22:$GJ22),0) -> 14127.04397 | X22: =IF($A22>0,SUMIF('Age profile (years)'!$CT22:$GF22,"<" & S22+0.5,'Asset data'!$CX22:$GJ22)-W22,0) -> 4702.663995 | Y22: =IF($A22>0,SUMIF('Age profile (years)'!$CT22:$GF22,"<" & T22+0.5,'Asset data'!$CX22:$GJ22)-X22-W22,0) -> 140117.7948 | Z22: =IF($A22>0,SUMIF('Age profile (years)'!$CT22:$GF22,"<" & U22+0.5,'Asset data'!$CX22:$GJ22)-Y22-X22-W22,0) -> 18597.90886 | AA22: =IF($A22>0,H22-Z22-Y22-X22-W22,0) -> 21039.73777 | AB22: 0.07113847138 | AC22: 0.02368084426 | AD22: 0.7055804285 | AE22: 0.09365206268 | AF22: 0.1059481932 | AI22: =IF($A22>0,'RRR hist-forc'!K22,0) -> 75.54310141 | AJ22: =IF($A22>0,AI22*H22,0) -> 15001738.08
A23: ='Asset data'!A23 -> 1 | B23: ='Asset data'!B23 -> 0 | C23: ='Asset data'!C23 -> 0 | D23: ='Asset data'!E23 -> > 1 KV & < = 11 KV; WOOD | E23: =IF(A23>0,VLOOKUP(A23,IDtable,2),0) -> POLES | F23: =IF(A23>0,SUM('Asset data'!J23:CV23),0) -> 14872 | G23: =IF(A23>0,'Asset data'!F23,0) -> 5.004184525 | H23: =IF(A23>0,SUM('Asset data'!CX23:GJ23),0) -> 74422.23226 | I23: =H23/$H$18/1000 -> 0.0119589701 | J23: =IF(RANK(0,I$21:I$205)=RANK(I23,I$21:I$205),0,RANK(I23,I$21:I$205)) -> 17 | K23: =IF(A23>0,H23/(VLOOKUP(A23,$A$6:$H$17,8)*1000),0) -> 0.07237698386 | L23: =IF($A23>0,H23/F23,0) -> 5.004184525 | M23: =IF($A23>0,SUMPRODUCT('Age profile (years)'!$CT23:$GF23,'Asset data'!$CX23:$GJ23)/H23-0.5,0) -> 40.65761162 | N23: =IF($A23>0,M23*H23,0) -> 3025830.215 | O23: =IF($A23>0,'Asset data'!G23,0) -> 75.72253447 | P23: =IF($A23>0,H23*O23,0) -> 5635440.047 | Q23: =IF($A23>0,(O23-M23)/O23,0) -> 0.4630711729 | R23: 7.572253447 | S23: 15.14450689 | T23: 45.43352068 | U23: 60.57802757 | W23: =IF($A23>0,SUMIF('Age profile (years)'!$CT23:$GF23,"<" & R23+0.5,'Asset data'!$CX23:$GJ23),0) -> 5014.192894 | X23: =IF($A23>0,SUMIF('Age profile (years)'!$CT23:$GF23,"<" & S23+0.5,'Asset data'!$CX23:$GJ23)-W23,0) -> 1150.962441 | Y23: =IF($A23>0,SUMIF('Age profile (years)'!$CT23:$GF23,"<" & T23+0.5,'Asset data'!$CX23:$GJ23)-X23-W23,0) -> 37616.45507 | Z23: =IF($A23>0,SUMIF('Age profile (years)'!$CT23:$GF23,"<" & U23+0.5,'Asset data'!$CX23:$GJ23)-Y23-X23-W23,0) -> 16749.00561 | AA23: =IF($A23>0,H23-Z23-Y23-X23-W23,0) -> 13891.61624 | AB23: =IF($A23>0,W23/$H23,0) -> 0.06737493276 | AC23: =IF($A23>0,X23/$H23,0) -> 0.01546530393 | AD23: =IF($A23>0,Y23/$H23,0) -> 0.5054464766 | AE23: =IF($A23>0,Z23/$H23,0) -> 0.2250537924 | AF23: =IF($A23>0,AA23/$H23,0) -> 0.1866594944 | AI23: =IF($A23>0,'RRR hist-forc'!K23,0) -> 75.72253447 | AJ23: =IF($A23>0,AI23*H23,0) -> 5635440.047
A24: ='Asset data'!A24 -> 1 | B24: ='Asset data'!B24 -> 0 | C24: ='Asset data'!C24 -> 0 | D24: ='Asset data'!E24 -> ˃ 11 KV & < = 22 KV; WOOD | E24: POLES | F24: =IF(A24>0,SUM('Asset data'!J24:CV24),0) -> 41308 | G24: =IF(A24>0,'Asset data'!F24,0) -> 5.57041678 | H24: =IF(A24>0,SUM('Asset data'!CX24:GJ24),0) -> 230102.7763 | I24: 0.0369754056 | J24: 6 | K24: 0.2237791642 | L24: 5.57041678 | M24: =IF($A24>0,SUMPRODUCT('Age profile (years)'!$CT24:$GF24,'Asset data'!$CX24:$GJ24)/H24-0.5,0) -> 32.7355718 | N24: 7532545.957 | O24: =IF($A24>0,'Asset data'!G24,0) -> 68.02359161 | P24: 15652417.29 | Q24: 0.518761491 | R24: 6.802359161 | S24: 13.60471832 | T24: 40.81415497 | U24: 54.41887329 | W24: =IF($A24>0,SUMIF('Age profile (years)'!$CT24:$GF24,"<" & R24+0.5,'Asset data'!$CX24:$GJ24),0) -> 11631.03024 | X24: =IF($A24>0,SUMIF('Age profile (years)'!$CT24:$GF24,"<" & S24+0.5,'Asset data'!$CX24:$GJ24)-W24,0) -> 10455.6723 | Y24: =IF($A24>0,SUMIF('Age profile (years)'!$CT24:$GF24,"<" & T24+0.5,'Asset data'!$CX24:$GJ24)-X24-W24,0) -> 145387.878 | Z24: =IF($A24>0,SUMIF('Age profile (years)'!$CT24:$GF24,"<" & U24+0.5,'Asset data'!$CX24:$GJ24)-Y24-X24-W24,0) -> 24470.84091 | AA24: 38157.35494 | AB24: 0.05054710952 | AC24: 0.04543914012 | AD24: 0.631838869 | AE24: 0.1063474388 | AF24: 0.1658274426 | AI24: =IF($A24>0,'RRR hist-forc'!K24,0) -> 68.02359161 | AJ24: 15652417.29
A25: ='Asset data'!A25 -> 1 | B25: ='Asset data'!B25 -> 0 | C25: ='Asset data'!C25 -> 0 | D25: ='Asset data'!E25 -> > 22 KV & < = 66 KV; WOOD | E25: POLES | F25: =IF(A25>0,SUM('Asset data'!J25:CV25),0) -> 8309 | G25: =IF(A25>0,'Asset data'!F25,0) -> 7.874646298 | H25: =IF(A25>0,SUM('Asset data'!CX25:GJ25),0) -> 65430.43609 | I25: 0.01051407094 | J25: 20 | K25: 0.06363229741 | L25: 7.874646298 | M25: =IF($A25>0,SUMPRODUCT('Age profile (years)'!$CT25:$GF25,'Asset data'!$CX25:$GJ25)/H25-0.5,0) -> 29.17300518 | N25: 1908802.451 | O25: =IF($A25>0,'Asset data'!G25,0) -> 62.22253582 | P25: 4071247.653 | Q25: 0.5311504941 | R25: 6.222253582 | S25: 12.44450716 | T25: 37.33352149 | U25: 49.77802865 | W25: =IF($A25>0,SUMIF('Age profile (years)'!$CT25:$GF25,"<" & R25+0.5,'Asset data'!$CX25:$GJ25),0) -> 2582.883986 | X25: =IF($A25>0,SUMIF('Age profile (years)'!$CT25:$GF25,"<" & S25+0.5,'Asset data'!$CX25:$GJ25)-W25,0) -> 5590.998871 | Y25: =IF($A25>0,SUMIF('Age profile (years)'!$CT25:$GF25,"<" & T25+0.5,'Asset data'!$CX25:$GJ25)-X25-W25,0) -> 36624.97993 | Z25: =IF($A25>0,SUMIF('Age profile (years)'!$CT25:$GF25,"<" & U25+0.5,'Asset data'!$CX25:$GJ25)-Y25-X25-W25,0) -> 9646.441715 | AA25: 10985.13159 | AB25: 0.03947526778 | AC25: 0.08544951258 | AD25: 0.5597544831 | AE25: 0.1474304971 | AF25: 0.1678902395 | AI25: =IF($A25>0,'RRR hist-forc'!K25,0) -> 62.22253582 | AJ25: 4071247.653
A26: ='Asset data'!A26 -> 0 | B26: ='Asset data'!B26 -> 0 | C26: ='Asset data'!C26 -> 0 | D26: ='Asset data'!E26 -> > 66 KV & < = 132 KV; WOOD | E26: 0 | F26: =IF(A26>0,SUM('Asset data'!J26:CV26),0) -> 0 | G26: =IF(A26>0,'Asset data'!F26,0) -> 0 | H26: =IF(A26>0,SUM('Asset data'!CX26:GJ26),0) -> 0 | I26: 0 | J26: 0 | K26: 0 | L26: 0 | M26: =IF($A26>0,SUMPRODUCT('Age profile (years)'!$CT26:$GF26,'Asset data'!$CX26:$GJ26)/H26-0.5,0) -> 0 | N26: 0 | O26: =IF($A26>0,'Asset data'!G26,0) -> 0 | P26: 0 | Q26: 0 | R26: 0 | S26: 0 | T26: 0 | U26: 0 | W26: =IF($A26>0,SUMIF('Age profile (years)'!$CT26:$GF26,"<" & R26+0.5,'Asset data'!$CX26:$GJ26),0) -> 0 | X26: =IF($A26>0,SUMIF('Age profile (years)'!$CT26:$GF26,"<" & S26+0.5,'Asset data'!$CX26:$GJ26)-W26,0) -> 0 | Y26: =IF($A26>0,SUMIF('Age profile (years)'!$CT26:$GF26,"<" & T26+0.5,'Asset data'!$CX26:$GJ26)-X26-W26,0) -> 0 | Z26: =IF($A26>0,SUMIF('Age profile (years)'!$CT26:$GF26,"<" & U26+0.5,'Asset data'!$CX26:$GJ26)-Y26-X26-W26,0) -> 0 | AA26: 0 | AB26: 0 | AC26: 0 | AD26: 0 | AE26: 0 | AF26: 0 | AI26: =IF($A26>0,'RRR hist-forc'!K26,0) -> 0 | AJ26: 0
A27: ='Asset data'!A27 -> 0 | B27: ='Asset data'!B27 -> 0 | C27: ='Asset data'!C27 -> 0 | D27: ='Asset data'!E27 -> > 132 KV; WOOD | E27: 0 | F27: =IF(A27>0,SUM('Asset data'!J27:CV27),0) -> 0 | G27: =IF(A27>0,'Asset data'!F27,0) -> 0 | H27: =IF(A27>0,SUM('Asset data'!CX27:GJ27),0) -> 0 | I27: 0 | J27: 0 | K27: 0 | L27: 0 | M27: =IF($A27>0,SUMPRODUCT('Age profile (years)'!$CT27:$GF27,'Asset data'!$CX27:$GJ27)/H27-0.5,0) -> 0 | N27: 0 | O27: =IF($A27>0,'Asset data'!G27,0) -> 0 | P27: 0 | Q27: 0 | R27: 0 | S27: 0 | T27: 0 | U27: 0 | W27: =IF($A27>0,SUMIF('Age profile (years)'!$CT27:$GF27,"<" & R27+0.5,'Asset data'!$CX27:$GJ27),0) -> 0 | X27: =IF($A27>0,SUMIF('Age profile (years)'!$CT27:$GF27,"<" & S27+0.5,'Asset data'!$CX27:$GJ27)-W27,0) -> 0 | Y27: =IF($A27>0,SUMIF('Age profile (years)'!$CT27:$GF27,"<" & T27+0.5,'Asset data'!$CX27:$GJ27)-X27-W27,0) -> 0 | Z27: =IF($A27>0,SUMIF('Age profile (years)'!$CT27:$GF27,"<" & U27+0.5,'Asset data'!$CX27:$GJ27)-Y27-X27-W27,0) -> 0 | AA27: 0 | AB27: 0 | AC27: 0 | AD27: 0 | AE27: 0 | AF27: 0 | AI27: =IF($A27>0,'RRR hist-forc'!K27,0) -> 0 | AJ27: 0
A28: ='Asset data'!A28 -> 1 | B28: ='Asset data'!B28 -> 0 | C28: ='Asset data'!C28 -> 0 | D28: ='Asset data'!E28 -> ˂ = 1 KV; CONCRETE | E28: POLES | F28: =IF(A28>0,SUM('Asset data'!J28:CV28),0) -> 15161 | G28: =IF(A28>0,'Asset data'!F28,0) -> 8.189000021 | H28: =IF(A28>0,SUM('Asset data'!CX28:GJ28),0) -> 124153.4293 | I28: 0.01995031733 | J28: 14 | K28: 0.1207414838 | L28: 8.189000021 | M28: =IF($A28>0,SUMPRODUCT('Age profile (years)'!$CT28:$GF28,'Asset data'!$CX28:$GJ28)/H28-0.5,0) -> 43.56107777 | N28: 5408257.189 | O28: =IF($A28>0,'Asset data'!G28,0) -> 71.33970411 | P28: 8857068.912 | Q28: 0.3893852195 | R28: 7.133970411 | S28: 14.26794082 | T28: 42.80382247 | U28: 57.07176329 | W28: =IF($A28>0,SUMIF('Age profile (years)'!$CT28:$GF28,"<" & R28+0.5,'Asset data'!$CX28:$GJ28),0) -> 155.5910004 | X28: =IF($A28>0,SUMIF('Age profile (years)'!$CT28:$GF28,"<" & S28+0.5,'Asset data'!$CX28:$GJ28)-W28,0) -> 24.56700006 | Y28: =IF($A28>0,SUMIF('Age profile (years)'!$CT28:$GF28,"<" & T28+0.5,'Asset data'!$CX28:$GJ28)-X28-W28,0) -> 46112.25912 | Z28: =IF($A28>0,SUMIF('Age profile (years)'!$CT28:$GF28,"<" & U28+0.5,'Asset data'!$CX28:$GJ28)-Y28-X28-W28,0) -> 77345.10519 | AA28: 515.9070013 | AB28: 0.001253215487 | AC28: 0.0001978761295 | AD28: 0.3714134952 | AE28: 0.6229800145 | AF28: 0.00415539872 | AI28: =IF($A28>0,'RRR hist-forc'!K28,0) -> 71.33970411 | AJ28: 8857068.912
A29: ='Asset data'!A29 -> 1 | B29: ='Asset data'!B29 -> 0 | C29: ='Asset data'!C29 -> 0 | D29: ='Asset data'!E29 -> > 1 KV & < = 11 KV; CONCRETE | E29: POLES | F29: =IF(A29>0,SUM('Asset data'!J29:CV29),0) -> 643 | G29: =IF(A29>0,'Asset data'!F29,0) -> 12.23133165 | H29: =IF(A29>0,SUM('Asset data'!CX29:GJ29),0) -> 7864.746252 | I29: 0.001263792585 | J29: 35 | K29: 0.007648609768 | L29: 12.23133165 | M29: =IF($A29>0,SUMPRODUCT('Age profile (years)'!$CT29:$GF29,'Asset data'!$CX29:$GJ29)/H29-0.5,0) -> 43.6399689 | N29: 343217.2818 | O29: =IF($A29>0,'Asset data'!G29,0) -> 71.33970411 | P29: 561068.6706 | Q29: 0.3882793679 | R29: 7.133970411 | S29: 14.26794082 | T29: 42.80382247 | U29: 57.07176329 | W29: =IF($A29>0,SUMIF('Age profile (years)'!$CT29:$GF29,"<" & R29+0.5,'Asset data'!$CX29:$GJ29),0) -> 73.38798991 | X29: =IF($A29>0,SUMIF('Age profile (years)'!$CT29:$GF29,"<" & S29+0.5,'Asset data'!$CX29:$GJ29)-W29,0) -> 0 | Y29: =IF($A29>0,SUMIF('Age profile (years)'!$CT29:$GF29,"<" & T29+0.5,'Asset data'!$CX29:$GJ29)-X29-W29,0) -> 3290.228214 | Z29: =IF($A29>0,SUMIF('Age profile (years)'!$CT29:$GF29,"<" & U29+0.5,'Asset data'!$CX29:$GJ29)-Y29-X29-W29,0) -> 4476.667385 | AA29: 24.4626633 | AB29: 0.00933125972 | AC29: 0 | AD29: 0.4183514774 | AE29: 0.5692068429 | AF29: 0.003110419907 | AI29: =IF($A29>0,'RRR hist-forc'!K29,0) -> 71.33970411 | AJ29: 561068.6706
A30: ='Asset data'!A30 -> 1 | B30: ='Asset data'!B30 -> 0 | C30: ='Asset data'!C30 -> 0 | D30: ='Asset data'!E30 -> ˃ 11 KV & < = 22 KV; CONCRETE | E30: POLES | F30: =IF(A30>0,SUM('Asset data'!J30:CV30),0) -> 8833 | G30: =IF(A30>0,'Asset data'!F30,0) -> 15.36887348 | H30: =IF(A30>0,SUM('Asset data'!CX30:GJ30),0) -> 135753.2595 | I30: 0.02181430364 | J30: 13 | K30: 0.1320225311 | L30: 15.36887348 | M30: =IF($A30>0,SUMPRODUCT('Age profile (years)'!$CT30:$GF30,'Asset data'!$CX30:$GJ30)/H30-0.5,0) -> 43.69800747 | N30: 5932146.947 | O30: =IF($A30>0,'Asset data'!G30,0) -> 71.33970411 | P30: 9684597.363 | Q30: 0.3874658156 | R30: 7.133970411 | S30: 14.26794082 | T30: 42.80382247 | U30: 57.07176329 | W30: =IF($A30>0,SUMIF('Age profile (years)'!$CT30:$GF30,"<" & R30+0.5,'Asset data'!$CX30:$GJ30),0) -> 553.2794454 | X30: =IF($A30>0,SUMIF('Age profile (years)'!$CT30:$GF30,"<" & S30+0.5,'Asset data'!$CX30:$GJ30)-W30,0) -> 0 | Y30: =IF($A30>0,SUMIF('Age profile (years)'!$CT30:$GF30,"<" & T30+0.5,'Asset data'!$CX30:$GJ30)-X30-W30,0) -> 50901.70898 | Z30: =IF($A30>0,SUMIF('Age profile (years)'!$CT30:$GF30,"<" & U30+0.5,'Asset data'!$CX30:$GJ30)-Y30-X30-W30,0) -> 83898.68035 | AA30: 399.5907106 | AB30: 0.004075625495 | AC30: 0 | AD30: 0.3749575456 | AE30: 0.6180233216 | AF30: 0.002943507302 | AI30: =IF($A30>0,'RRR hist-forc'!K30,0) -> 71.33970411 | AJ30: 9684597.363
A31: ='Asset data'!A31 -> 1 | B31: ='Asset data'!B31 -> 0 | C31: ='Asset data'!C31 -> 0 | D31: ='Asset data'!E31 -> > 22 KV & < = 66 KV; CONCRETE | E31: POLES | F31: =IF(A31>0,SUM('Asset data'!J31:CV31),0) -> 1093 | G31: =IF(A31>0,'Asset data'!F31,0) -> 18.49680874 | H31: =IF(A31>0,SUM('Asset data'!CX31:GJ31),0) -> 20217.01196 | I31: 0.003248688386 | J31: 26 | K31: 0.01966141439 | L31: 18.49680874 | M31: =IF($A31>0,SUMPRODUCT('Age profile (years)'!$CT31:$GF31,'Asset data'!$CX31:$GJ31)/H31-0.5,0) -> 44.4094236 | N31: 897825.8481 | O31: =IF($A31>0,'Asset data'!G31,0) -> 71.33970411 | P31: 1442275.651 | Q31: 0.3774935829 | R31: 7.133970411 | S31: 14.26794082 | T31: 42.80382247 | U31: 57.07176329 | W31: =IF($A31>0,SUMIF('Age profile (years)'!$CT31:$GF31,"<" & R31+0.5,'Asset data'!$CX31:$GJ31),0) -> 0 | X31: =IF($A31>0,SUMIF('Age profile (years)'!$CT31:$GF31,"<" & S31+0.5,'Asset data'!$CX31:$GJ31)-W31,0) -> 0 | Y31: =IF($A31>0,SUMIF('Age profile (years)'!$CT31:$GF31,"<" & T31+0.5,'Asset data'!$CX31:$GJ31)-X31-W31,0) -> 9507.359695 | Z31: =IF($A31>0,SUMIF('Age profile (years)'!$CT31:$GF31,"<" & U31+0.5,'Asset data'!$CX31:$GJ31)-Y31-X31-W31,0) -> 10228.73524 | AA31: 480.9170274 | AB31: 0 | AC31: 0 | AD31: 0.4702653248 | AE31: 0.505946935 | AF31: 0.02378774016 | AI31: =IF($A31>0,'RRR hist-forc'!K31,0) -> 71.33970411 | AJ31: 1442275.651
A32: ='Asset data'!A32 -> 0 | B32: ='Asset data'!B32 -> 0 | C32: ='Asset data'!C32 -> 0 | D32: ='Asset data'!E32 -> > 66 KV & < = 132 KV; CONCRETE | E32: 0 | F32: =IF(A32>0,SUM('Asset data'!J32:CV32),0) -> 0 | G32: =IF(A32>0,'Asset data'!F32,0) -> 0 | H32: =IF(A32>0,SUM('Asset data'!CX32:GJ32),0) -> 0 | I32: 0 | J32: 0 | K32: 0 | L32: 0 | M32: =IF($A32>0,SUMPRODUCT('Age profile (years)'!$CT32:$GF32,'Asset data'!$CX32:$GJ32)/H32-0.5,0) -> 0 | N32: 0 | O32: =IF($A32>0,'Asset data'!G32,0) -> 0 | P32: 0 | Q32: 0 | R32: 0 | S32: 0 | T32: 0 | U32: 0 | W32: =IF($A32>0,SUMIF('Age profile (years)'!$CT32:$GF32,"<" & R32+0.5,'Asset data'!$CX32:$GJ32),0) -> 0 | X32: =IF($A32>0,SUMIF('Age profile (years)'!$CT32:$GF32,"<" & S32+0.5,'Asset data'!$CX32:$GJ32)-W32,0) -> 0 | Y32: =IF($A32>0,SUMIF('Age profile (years)'!$CT32:$GF32,"<" & T32+0.5,'Asset data'!$CX32:$GJ32)-X32-W32,0) -> 0 | Z32: =IF($A32>0,SUMIF('Age profile (years)'!$CT32:$GF32,"<" & U32+0.5,'Asset data'!$CX32:$GJ32)-Y32-X32-W32,0) -> 0 | AA32: 0 | AB32: 0 | AC32: 0 | AD32: 0 | AE32: 0 | AF32: 0 | AI32: =IF($A32>0,'RRR hist-forc'!K32,0) -> 0 | AJ32: 0
A33: ='Asset data'!A33 -> 0 | B33: ='Asset data'!B33 -> 0 | C33: ='Asset data'!C33 -> 0 | D33: ='Asset data'!E33 -> > 132 KV; CONCRETE | E33: 0 | F33: =IF(A33>0,SUM('Asset data'!J33:CV33),0) -> 0 | G33: =IF(A33>0,'Asset data'!F33,0) -> 0 | H33: =IF(A33>0,SUM('Asset data'!CX33:GJ33),0) -> 0 | I33: 0 | J33: 0 | K33: 0 | L33: 0 | M33: =IF($A33>0,SUMPRODUCT('Age profile (years)'!$CT33:$GF33,'Asset data'!$CX33:$GJ33)/H33-0.5,0) -> 0 | N33: 0 | O33: =IF($A33>0,'Asset data'!G33,0) -> 0 | P33: 0 | Q33: 0 | R33: 0 | S33: 0 | T33: 0 | U33: 0 | W33: =IF($A33>0,SUMIF('Age profile (years)'!$CT33:$GF33,"<" & R33+0.5,'Asset data'!$CX33:$GJ33),0) -> 0 | X33: =IF($A33>0,SUMIF('Age profile (years)'!$CT33:$GF33,"<" & S33+0.5,'Asset data'!$CX33:$GJ33)-W33,0) -> 0 | Y33: =IF($A33>0,SUMIF('Age profile (years)'!$CT33:$GF33,"<" & T33+0.5,'Asset data'!$CX33:$GJ33)-X33-W33,0) -> 0 | Z33: =IF($A33>0,SUMIF('Age profile (years)'!$CT33:$GF33,"<" & U33+0.5,'Asset data'!$CX33:$GJ33)-Y33-X33-W33,0) -> 0 | AA33: 0 | AB33: 0 | AC33: 0 | AD33: 0 | AE33: 0 | AF33: 0 | AI33: =IF($A33>0,'RRR hist-forc'!K33,0) -> 0 | AJ33: 0
A34: ='Asset data'!A34 -> 1 | B34: ='Asset data'!B34 -> 0 | C34: ='Asset data'!C34 -> 0 | D34: ='Asset data'!E34 -> ˂ = 1 KV; STEEL | E34: POLES | F34: =IF(A34>0,SUM('Asset data'!J34:CV34),0) -> 609 | G34: =IF(A34>0,'Asset data'!F34,0) -> 8.88391411 | H34: =IF(A34>0,SUM('Asset data'!CX34:GJ34),0) -> 5410.303693 | I34: 0.0008693861789 | J34: 37 | K34: 0.005261619427 | L34: 8.88391411 | M34: =IF($A34>0,SUMPRODUCT('Age profile (years)'!$CT34:$GF34,'Asset data'!$CX34:$GJ34)/H34-0.5,0) -> 50.72988506 | N34: 274464.0845 | O34: =IF($A34>0,'Asset data'!G34,0) -> 71.33970411 | P34: 385969.4646 | Q34: 0.2888968957 | R34: 7.133970411 | S34: 14.26794082 | T34: 42.80382247 | U34: 57.07176329 | W34: =IF($A34>0,SUMIF('Age profile (years)'!$CT34:$GF34,"<" & R34+0.5,'Asset data'!$CX34:$GJ34),0) -> 195.4461104 | X34: =IF($A34>0,SUMIF('Age profile (years)'!$CT34:$GF34,"<" & S34+0.5,'Asset data'!$CX34:$GJ34)-W34,0) -> 8.88391411 | Y34: =IF($A34>0,SUMIF('Age profile (years)'!$CT34:$GF34,"<" & T34+0.5,'Asset data'!$CX34:$GJ34)-X34-W34,0) -> 1714.595423 | Z34: =IF($A34>0,SUMIF('Age profile (years)'!$CT34:$GF34,"<" & U34+0.5,'Asset data'!$CX34:$GJ34)-Y34-X34-W34,0) -> 977.2305521 | AA34: 2514.147693 | AB34: 0.03612479475 | AC34: 0.001642036125 | AD34: 0.3169129721 | AE34: 0.1806239737 | AF34: 0.4646962233 | AI34: =IF($A34>0,'RRR hist-forc'!K34,0) -> 71.33970411 | AJ34: 385969.4646
A35: ='Asset data'!A35 -> 1 | B35: ='Asset data'!B35 -> 0 | C35: ='Asset data'!C35 -> 0 | D35: ='Asset data'!E35 -> > 1 KV & < = 11 KV; STEEL | E35: POLES | F35: =IF(A35>0,SUM('Asset data'!J35:CV35),0) -> 6 | G35: =IF(A35>0,'Asset data'!F35,0) -> 9.221057903 | H35: =IF(A35>0,SUM('Asset data'!CX35:GJ35),0) -> 55.32634742 | I35: 8.890436563e-06 | J35: 54 | K35: 5.380588613e-05 | L35: 9.221057903 | M35: =IF($A35>0,SUMPRODUCT('Age profile (years)'!$CT35:$GF35,'Asset data'!$CX35:$GJ35)/H35-0.5,0) -> 51 | N35: 2821.643718 | O35: =IF($A35>0,'Asset data'!G35,0) -> 71.33970411 | P35: 3946.965254 | Q35: 0.2851105757 | R35: 7.133970411 | S35: 14.26794082 | T35: 42.80382247 | U35: 57.07176329 | W35: =IF($A35>0,SUMIF('Age profile (years)'!$CT35:$GF35,"<" & R35+0.5,'Asset data'!$CX35:$GJ35),0) -> 0 | X35: =IF($A35>0,SUMIF('Age profile (years)'!$CT35:$GF35,"<" & S35+0.5,'Asset data'!$CX35:$GJ35)-W35,0) -> 0 | Y35: =IF($A35>0,SUMIF('Age profile (years)'!$CT35:$GF35,"<" & T35+0.5,'Asset data'!$CX35:$GJ35)-X35-W35,0) -> 18.44211581 | Z35: =IF($A35>0,SUMIF('Age profile (years)'!$CT35:$GF35,"<" & U35+0.5,'Asset data'!$CX35:$GJ35)-Y35-X35-W35,0) -> 9.221057903 | AA35: 27.66317371 | AB35: 0 | AC35: 0 | AD35: 0.3333333333 | AE35: 0.1666666667 | AF35: 0.5 | AI35: =IF($A35>0,'RRR hist-forc'!K35,0) -> 71.33970411 | AJ35: 3946.965254
A36: ='Asset data'!A36 -> 1 | B36: ='Asset data'!B36 -> 0 | C36: ='Asset data'!C36 -> 0 | D36: ='Asset data'!E36 -> ˃ 11 KV & < = 22 KV; STEEL | E36: POLES | F36: =IF(A36>0,SUM('Asset data'!J36:CV36),0) -> 14 | G36: =IF(A36>0,'Asset data'!F36,0) -> 10.15017952 | H36: =IF(A36>0,SUM('Asset data'!CX36:GJ36),0) -> 142.1025133 | I36: 2.283457049e-05 | J36: 52 | K36: 0.0001381972967 | L36: 10.15017952 | M36: =IF($A36>0,SUMPRODUCT('Age profile (years)'!$CT36:$GF36,'Asset data'!$CX36:$GJ36)/H36-0.5,0) -> 53.85714286 | N36: 7653.235359 | O36: =IF($A36>0,'Asset data'!G36,0) -> 71.33970411 | P36: 10137.55125 | Q36: 0.245060748 | R36: 7.133970411 | S36: 14.26794082 | T36: 42.80382247 | U36: 57.07176329 | W36: =IF($A36>0,SUMIF('Age profile (years)'!$CT36:$GF36,"<" & R36+0.5,'Asset data'!$CX36:$GJ36),0) -> 0 | X36: =IF($A36>0,SUMIF('Age profile (years)'!$CT36:$GF36,"<" & S36+0.5,'Asset data'!$CX36:$GJ36)-W36,0) -> 0 | Y36: =IF($A36>0,SUMIF('Age profile (years)'!$CT36:$GF36,"<" & T36+0.5,'Asset data'!$CX36:$GJ36)-X36-W36,0) -> 40.60071808 | Z36: =IF($A36>0,SUMIF('Age profile (years)'!$CT36:$GF36,"<" & U36+0.5,'Asset data'!$CX36:$GJ36)-Y36-X36-W36,0) -> 10.15017952 | AA36: 91.35161569 | AB36: 0 | AC36: 0 | AD36: 0.2857142857 | AE36: 0.07142857143 | AF36: 0.6428571429 | AI36: =IF($A36>0,'RRR hist-forc'!K36,0) -> 71.33970411 | AJ36: 10137.55125
A37: ='Asset data'!A37 -> 1 | B37: ='Asset data'!B37 -> 0 | C37: ='Asset data'!C37 -> 0 | D37: ='Asset data'!E37 -> > 22 KV & < = 66 KV; STEEL | E37: POLES | F37: =IF(A37>0,SUM('Asset data'!J37:CV37),0) -> 26 | G37: =IF(A37>0,'Asset data'!F37,0) -> 20.83372953 | H37: =IF(A37>0,SUM('Asset data'!CX37:GJ37),0) -> 541.6769679 | I37: 8.704252035e-05 | J37: 45 | K37: 0.0005267907717 | L37: 20.83372953 | M37: =IF($A37>0,SUMPRODUCT('Age profile (years)'!$CT37:$GF37,'Asset data'!$CX37:$GJ37)/H37-0.5,0) -> 45.84615385 | N37: 24833.8056 | O37: =IF($A37>0,'Asset data'!G37,0) -> 71.33970411 | P37: 38643.07461 | Q37: 0.3573543034 | R37: =IF($A37>0,$O37-R$4*$O37,0) -> 7.133970411 | S37: 14.26794082 | T37: 42.80382247 | U37: 57.07176329 | W37: =IF($A37>0,SUMIF('Age profile (years)'!$CT37:$GF37,"<" & R37+0.5,'Asset data'!$CX37:$GJ37),0) -> 0 | X37: =IF($A37>0,SUMIF('Age profile (years)'!$CT37:$GF37,"<" & S37+0.5,'Asset data'!$CX37:$GJ37)-W37,0) -> 0 | Y37: =IF($A37>0,SUMIF('Age profile (years)'!$CT37:$GF37,"<" & T37+0.5,'Asset data'!$CX37:$GJ37)-X37-W37,0) -> 229.1710249 | Z37: =IF($A37>0,SUMIF('Age profile (years)'!$CT37:$GF37,"<" & U37+0.5,'Asset data'!$CX37:$GJ37)-Y37-X37-W37,0) -> 250.0047544 | AA37: 62.5011886 | AB37: 0 | AC37: 0 | AD37: 0.4230769231 | AE37: 0.4615384615 | AF37: 0.1153846154 | AI37: =IF($A37>0,'RRR hist-forc'!K37,0) -> 71.33970411 | AJ37: 38643.07461
A38: ='Asset data'!A38 -> 0 | B38: ='Asset data'!B38 -> 0 | C38: ='Asset data'!C38 -> 0 | D38: ='Asset data'!E38 -> > 66 KV & < = 132 KV; STEEL | E38: 0 | F38: =IF(A38>0,SUM('Asset data'!J38:CV38),0) -> 0 | G38: =IF(A38>0,'Asset data'!F38,0) -> 0 | H38: =IF(A38>0,SUM('Asset data'!CX38:GJ38),0) -> 0 | I38: 0 | J38: 0 | K38: 0 | L38: 0 | M38: =IF($A38>0,SUMPRODUCT('Age profile (years)'!$CT38:$GF38,'Asset data'!$CX38:$GJ38)/H38-0.5,0) -> 0 | N38: 0 | O38: =IF($A38>0,'Asset data'!G38,0) -> 0 | P38: 0 | Q38: 0 | R38: 0 | S38: 0 | T38: 0 | U38: 0 | W38: =IF($A38>0,SUMIF('Age profile (years)'!$CT38:$GF38,"<" & R38+0.5,'Asset data'!$CX38:$GJ38),0) -> 0 | X38: =IF($A38>0,SUMIF('Age profile (years)'!$CT38:$GF38,"<" & S38+0.5,'Asset data'!$CX38:$GJ38)-W38,0) -> 0 | Y38: =IF($A38>0,SUMIF('Age profile (years)'!$CT38:$GF38,"<" & T38+0.5,'Asset data'!$CX38:$GJ38)-X38-W38,0) -> 0 | Z38: =IF($A38>0,SUMIF('Age profile (years)'!$CT38:$GF38,"<" & U38+0.5,'Asset data'!$CX38:$GJ38)-Y38-X38-W38,0) -> 0 | AA38: 0 | AB38: 0 | AC38: 0 | AD38: 0 | AE38: 0 | AF38: 0 | AI38: =IF($A38>0,'RRR hist-forc'!K38,0) -> 0 | AJ38: 0
A39: ='Asset data'!A39 -> 0 | B39: ='Asset data'!B39 -> 0 | C39: ='Asset data'!C39 -> 0 | D39: ='Asset data'!E39 -> > 132 KV; STEEL | E39: 0 | F39: =IF(A39>0,SUM('Asset data'!J39:CV39),0) -> 0 | G39: =IF(A39>0,'Asset data'!F39,0) -> 0 | H39: =IF(A39>0,SUM('Asset data'!CX39:GJ39),0) -> 0 | I39: 0 | J39: 0 | K39: 0 | L39: 0 | M39: =IF($A39>0,SUMPRODUCT('Age profile (years)'!$CT39:$GF39,'Asset data'!$CX39:$GJ39)/H39-0.5,0) -> 0 | N39: 0 | O39: =IF($A39>0,'Asset data'!G39,0) -> 0 | P39: 0 | Q39: 0 | R39: 0 | S39: 0 | T39: 0 | U39: 0 | W39: =IF($A39>0,SUMIF('Age profile (years)'!$CT39:$GF39,"<" & R39+0.5,'Asset data'!$CX39:$GJ39),0) -> 0 | X39: =IF($A39>0,SUMIF('Age profile (years)'!$CT39:$GF39,"<" & S39+0.5,'Asset data'!$CX39:$GJ39)-W39,0) -> 0 | Y39: =IF($A39>0,SUMIF('Age profile (years)'!$CT39:$GF39,"<" & T39+0.5,'Asset data'!$CX39:$GJ39)-X39-W39,0) -> 0 | Z39: =IF($A39>0,SUMIF('Age profile (years)'!$CT39:$GF39,"<" & U39+0.5,'Asset data'!$CX39:$GJ39)-Y39-X39-W39,0) -> 0 | AA39: 0 | AB39: 0 | AC39: 0 | AD39: 0 | AE39: 0 | AF39: 0 | AI39: =IF($A39>0,'RRR hist-forc'!K39,0) -> 0 | AJ39: 0
A40: ='Asset data'!A40 -> 0 | B40: ='Asset data'!B40 -> 0 | C40: ='Asset data'!C40 -> 0 | D40: ='Asset data'!E40 -> STAKED ˂ = 1 KV; WOOD | E40: 0 | F40: =IF(A40>0,SUM('Asset data'!J40:CV40),0) -> 0 | G40: =IF(A40>0,'Asset data'!F40,0) -> 0 | H40: =IF(A40>0,SUM('Asset data'!CX40:GJ40),0) -> 0 | I40: 0 | J40: 0 | K40: 0 | L40: 0 | M40: =IF($A40>0,SUMPRODUCT('Age profile (years)'!$CT40:$GF40,'Asset data'!$CX40:$GJ40)/H40-0.5,0) -> 0 | N40: 0 | O40: =IF($A40>0,'Asset data'!G40,0) -> 0 | P40: 0 | Q40: 0 | R40: 0 | S40: 0 | T40: 0 | U40: 0 | W40: =IF($A40>0,SUMIF('Age profile (years)'!$CT40:$GF40,"<" & R40+0.5,'Asset data'!$CX40:$GJ40),0) -> 0 | X40: =IF($A40>0,SUMIF('Age profile (years)'!$CT40:$GF40,"<" & S40+0.5,'Asset data'!$CX40:$GJ40)-W40,0) -> 0 | Y40: =IF($A40>0,SUMIF('Age profile (years)'!$CT40:$GF40,"<" & T40+0.5,'Asset data'!$CX40:$GJ40)-X40-W40,0) -> 0 | Z40: =IF($A40>0,SUMIF('Age profile (years)'!$CT40:$GF40,"<" & U40+0.5,'Asset data'!$CX40:$GJ40)-Y40-X40-W40,0) -> 0 | AA40: 0 | AB40: 0 | AC40: 0 | AD40: 0 | AE40: 0 | AF40: 0 | AI40: =IF($A40>0,'RRR hist-forc'!K40,0) -> 0 | AJ40: 0
A41: ='Asset data'!A41 -> 0 | B41: ='Asset data'!B41 -> 0 | C41: ='Asset data'!C41 -> 0 | D41: ='Asset data'!E41 -> STAKED > 1 KV & < = 11 KV; WOOD | E41: 0 | F41: =IF(A41>0,SUM('Asset data'!J41:CV41),0) -> 0 | G41: =IF(A41>0,'Asset data'!F41,0) -> 0 | H41: =IF(A41>0,SUM('Asset data'!CX41:GJ41),0) -> 0 | I41: 0 | J41: 0 | K41: 0 | L41: 0 | M41: =IF($A41>0,SUMPRODUCT('Age profile (years)'!$CT41:$GF41,'Asset data'!$CX41:$GJ41)/H41-0.5,0) -> 0 | N41: 0 | O41: =IF($A41>0,'Asset data'!G41,0) -> 0 | P41: 0 | Q41: 0 | R41: 0 | S41: 0 | T41: 0 | U41: 0 | W41: =IF($A41>0,SUMIF('Age profile (years)'!$CT41:$GF41,"<" & R41+0.5,'Asset data'!$CX41:$GJ41),0) -> 0 | X41: =IF($A41>0,SUMIF('Age profile (years)'!$CT41:$GF41,"<" & S41+0.5,'Asset data'!$CX41:$GJ41)-W41,0) -> 0 | Y41: =IF($A41>0,SUMIF('Age profile (years)'!$CT41:$GF41,"<" & T41+0.5,'Asset data'!$CX41:$GJ41)-X41-W41,0) -> 0 | Z41: =IF($A41>0,SUMIF('Age profile (years)'!$CT41:$GF41,"<" & U41+0.5,'Asset data'!$CX41:$GJ41)-Y41-X41-W41,0) -> 0 | AA41: 0 | AB41: 0 | AC41: 0 | AD41: 0 | AE41: 0 | AF41: 0 | AI41: =IF($A41>0,'RRR hist-forc'!K41,0) -> 0 | AJ41: 0
A42: ='Asset data'!A42 -> 0 | B42: ='Asset data'!B42 -> 0 | C42: ='Asset data'!C42 -> 0 | D42: ='Asset data'!E42 -> STAKED ˃ 11 KV & < = 22 KV; WOOD | E42: 0 | F42: =IF(A42>0,SUM('Asset data'!J42:CV42),0) -> 0 | G42: =IF(A42>0,'Asset data'!F42,0) -> 0 | H42: =IF(A42>0,SUM('Asset data'!CX42:GJ42),0) -> 0 | I42: 0 | J42: 0 | K42: 0 | L42: 0 | M42: =IF($A42>0,SUMPRODUCT('Age profile (years)'!$CT42:$GF42,'Asset data'!$CX42:$GJ42)/H42-0.5,0) -> 0 | N42: 0 | O42: =IF($A42>0,'Asset data'!G42,0) -> 0 | P42: 0 | Q42: 0 | R42: 0 | S42: 0 | T42: 0 | U42: 0 | W42: =IF($A42>0,SUMIF('Age profile (years)'!$CT42:$GF42,"<" & R42+0.5,'Asset data'!$CX42:$GJ42),0) -> 0 | X42: =IF($A42>0,SUMIF('Age profile (years)'!$CT42:$GF42,"<" & S42+0.5,'Asset data'!$CX42:$GJ42)-W42,0) -> 0 | Y42: =IF($A42>0,SUMIF('Age profile (years)'!$CT42:$GF42,"<" & T42+0.5,'Asset data'!$CX42:$GJ42)-X42-W42,0) -> 0 | Z42: =IF($A42>0,SUMIF('Age profile (years)'!$CT42:$GF42,"<" & U42+0.5,'Asset data'!$CX42:$GJ42)-Y42-X42-W42,0) -> 0 | AA42: 0 | AB42: 0 | AC42: 0 | AD42: 0 | AE42: 0 | AF42: 0 | AI42: =IF($A42>0,'RRR hist-forc'!K42,0) -> 0 | AJ42: 0
A43: ='Asset data'!A43 -> 0 | B43: ='Asset data'!B43 -> 0 | C43: ='Asset data'!C43 -> 0 | D43: ='Asset data'!E43 -> STAKED > 22 KV & < = 66 KV; WOOD | E43: 0 | F43: =IF(A43>0,SUM('Asset data'!J43:CV43),0) -> 0 | G43: =IF(A43>0,'Asset data'!F43,0) -> 0 | H43: =IF(A43>0,SUM('Asset data'!CX43:GJ43),0) -> 0 | I43: 0 | J43: 0 | K43: 0 | L43: 0 | M43: =IF($A43>0,SUMPRODUCT('Age profile (years)'!$CT43:$GF43,'Asset data'!$CX43:$GJ43)/H43-0.5,0) -> 0 | N43: 0 | O43: =IF($A43>0,'Asset data'!G43,0) -> 0 | P43: 0 | Q43: 0 | R43: 0 | S43: 0 | T43: 0 | U43: 0 | W43: =IF($A43>0,SUMIF('Age profile (years)'!$CT43:$GF43,"<" & R43+0.5,'Asset data'!$CX43:$GJ43),0) -> 0 | X43: =IF($A43>0,SUMIF('Age profile (years)'!$CT43:$GF43,"<" & S43+0.5,'Asset data'!$CX43:$GJ43)-W43,0) -> 0 | Y43: =IF($A43>0,SUMIF('Age profile (years)'!$CT43:$GF43,"<" & T43+0.5,'Asset data'!$CX43:$GJ43)-X43-W43,0) -> 0 | Z43: =IF($A43>0,SUMIF('Age profile (years)'!$CT43:$GF43,"<" & U43+0.5,'Asset data'!$CX43:$GJ43)-Y43-X43-W43,0) -> 0 | AA43: 0 | AB43: 0 | AC43: 0 | AD43: 0 | AE43: 0 | AF43: 0 | AI43: =IF($A43>0,'RRR hist-forc'!K43,0) -> 0 | AJ43: 0
A44: ='Asset data'!A44 -> 0 | B44: ='Asset data'!B44 -> 0 | C44: ='Asset data'!C44 -> 0 | D44: ='Asset data'!E44 -> OTHER | E44: 0 | F44: =IF(A44>0,SUM('Asset data'!J44:CV44),0) -> 0 | G44: =IF(A44>0,'Asset data'!F44,0) -> 0 | H44: =IF(A44>0,SUM('Asset data'!CX44:GJ44),0) -> 0 | I44: 0 | J44: 0 | K44: 0 | L44: 0 | M44: =IF($A44>0,SUMPRODUCT('Age profile (years)'!$CT44:$GF44,'Asset data'!$CX44:$GJ44)/H44-0.5,0) -> 0 | N44: 0 | O44: =IF($A44>0,'Asset data'!G44,0) -> 0 | P44: 0 | Q44: 0 | R44: 0 | S44: 0 | T44: 0 | U44: 0 | W44: =IF($A44>0,SUMIF('Age profile (years)'!$CT44:$GF44,"<" & R44+0.5,'Asset data'!$CX44:$GJ44),0) -> 0 | X44: =IF($A44>0,SUMIF('Age profile (years)'!$CT44:$GF44,"<" & S44+0.5,'Asset data'!$CX44:$GJ44)-W44,0) -> 0 | Y44: =IF($A44>0,SUMIF('Age profile (years)'!$CT44:$GF44,"<" & T44+0.5,'Asset data'!$CX44:$GJ44)-X44-W44,0) -> 0 | Z44: =IF($A44>0,SUMIF('Age profile (years)'!$CT44:$GF44,"<" & U44+0.5,'Asset data'!$CX44:$GJ44)-Y44-X44-W44,0) -> 0 | AA44: 0 | AB44: 0 | AC44: 0 | AD44: 0 | AE44: 0 | AF44: 0 | AI44: =IF($A44>0,'RRR hist-forc'!K44,0) -> 0 | AJ44: 0
A45: ='Asset data'!A45 -> 2 | B45: ='Asset data'!B45 -> 0 | C45: ='Asset data'!C45 -> 0 | D45: ='Asset data'!E45 -> ˂ = 1 KV | E45: OVERHEAD CONDUCTORS | F45: =IF(A45>0,SUM('Asset data'!J45:CV45),0) -> 5766.173002 | G45: =IF(A45>0,'Asset data'!F45,0) -> 165.4435008 | H45: =IF(A45>0,SUM('Asset data'!CX45:GJ45),0) -> 953975.8477 | I45: 0.1532951686 | J45: 2 | K45: 0.6149836783 | L45: 165.4435008 | M45: =IF($A45>0,SUMPRODUCT('Age profile (years)'!$CT45:$GF45,'Asset data'!$CX45:$GJ45)/H45-0.5,0) -> 50.02663185 | N45: 47724198.52 | O45: =IF($A45>0,'Asset data'!G45,0) -> 94.0082969 | P45: 89681644.73 | Q45: 0.4678487591 | R45: 9.40082969 | S45: 18.80165938 | T45: 56.40497814 | U45: 75.20663752 | W45: =IF($A45>0,SUMIF('Age profile (years)'!$CT45:$GF45,"<" & R45+0.5,'Asset data'!$CX45:$GJ45),0) -> 5221.722158 | X45: =IF($A45>0,SUMIF('Age profile (years)'!$CT45:$GF45,"<" & S45+0.5,'Asset data'!$CX45:$GJ45)-W45,0) -> 66098.39978 | Y45: =IF($A45>0,SUMIF('Age profile (years)'!$CT45:$GF45,"<" & T45+0.5,'Asset data'!$CX45:$GJ45)-X45-W45,0) -> 555625.2102 | Z45: =IF($A45>0,SUMIF('Age profile (years)'!$CT45:$GF45,"<" & U45+0.5,'Asset data'!$CX45:$GJ45)-Y45-X45-W45,0) -> 247232.6081 | AA45: 79797.90747 | AB45: 0.005473641886 | AC45: 0.0692872885 | AD45: 0.5824311082 | AE45: 0.2591602384 | AF45: 0.08364772301 | AI45: =IF($A45>0,'RRR hist-forc'!K45,0) -> 94.0082969 | AJ45: 89681644.73
A46: ='Asset data'!A46 -> 2 | B46: ='Asset data'!B46 -> 0 | C46: ='Asset data'!C46 -> 0 | D46: ='Asset data'!E46 -> > 1 KV & < = 11 KV | E46: OVERHEAD CONDUCTORS | F46: =IF(A46>0,SUM('Asset data'!J46:CV46),0) -> 661.4421502 | G46: =IF(A46>0,'Asset data'!F46,0) -> 565.6242155 | H46: =IF(A46>0,SUM('Asset data'!CX46:GJ46),0) -> 374127.6973 | I46: 0.06011888937 | J46: 4 | K46: 0.2411826547 | L46: 565.6242155 | M46: =IF($A46>0,SUMPRODUCT('Age profile (years)'!$CT46:$GF46,'Asset data'!$CX46:$GJ46)/H46-0.5,0) -> 71.96234956 | N46: 26923108.13 | O46: =IF($A46>0,'Asset data'!G46,0) -> 111.7823363 | P46: 41820868.07 | Q46: 0.3562278982 | R46: 11.17823363 | S46: 22.35646725 | T46: 67.06940175 | U46: 89.42586901 | W46: =IF($A46>0,SUMIF('Age profile (years)'!$CT46:$GF46,"<" & R46+0.5,'Asset data'!$CX46:$GJ46),0) -> 0 | X46: =IF($A46>0,SUMIF('Age profile (years)'!$CT46:$GF46,"<" & S46+0.5,'Asset data'!$CX46:$GJ46)-W46,0) -> 1036.653436 | Y46: =IF($A46>0,SUMIF('Age profile (years)'!$CT46:$GF46,"<" & T46+0.5,'Asset data'!$CX46:$GJ46)-X46-W46,0) -> 144650.2375 | Z46: =IF($A46>0,SUMIF('Age profile (years)'!$CT46:$GF46,"<" & U46+0.5,'Asset data'!$CX46:$GJ46)-Y46-X46-W46,0) -> 140930.3273 | AA46: 87510.47903 | AB46: 0 | AC46: 0.00277085456 | AD46: 0.3866333302 | AE46: 0.3766904411 | AF46: 0.2339053742 | AI46: =IF($A46>0,'RRR hist-forc'!K46,0) -> 111.7823363 | AJ46: 41820868.07
A47: ='Asset data'!A47 -> 2 | B47: ='Asset data'!B47 -> 0 | C47: ='Asset data'!C47 -> 0 | D47: ='Asset data'!E47 -> ˃ 11 KV & < = 22 KV ; SWER | E47: OVERHEAD CONDUCTORS | F47: =IF(A47>0,SUM('Asset data'!J47:CV47),0) -> 40.84703381 | G47: =IF(A47>0,'Asset data'!F47,0) -> 89.50992128 | H47: =IF(A47>0,SUM('Asset data'!CX47:GJ47),0) -> 3656.214781 | I47: 0.0005875201796 | J47: 41 | K47: 0.002356990924 | L47: 89.50992128 | M47: =IF($A47>0,SUMPRODUCT('Age profile (years)'!$CT47:$GF47,'Asset data'!$CX47:$GJ47)/H47-0.5,0) -> 8.434080095 | N47: 30836.80831 | O47: =IF($A47>0,'Asset data'!G47,0) -> 57.5148321 | P47: 210286.5792 | Q47: 0.8533581724 | R47: 5.75148321 | S47: 11.50296642 | T47: 34.50889926 | U47: 46.01186568 | W47: =IF($A47>0,SUMIF('Age profile (years)'!$CT47:$GF47,"<" & R47+0.5,'Asset data'!$CX47:$GJ47),0) -> 1409.363766 | X47: =IF($A47>0,SUMIF('Age profile (years)'!$CT47:$GF47,"<" & S47+0.5,'Asset data'!$CX47:$GJ47)-W47,0) -> 1498.151834 | Y47: =IF($A47>0,SUMIF('Age profile (years)'!$CT47:$GF47,"<" & T47+0.5,'Asset data'!$CX47:$GJ47)-X47-W47,0) -> 748.6991805 | Z47: =IF($A47>0,SUMIF('Age profile (years)'!$CT47:$GF47,"<" & U47+0.5,'Asset data'!$CX47:$GJ47)-Y47-X47-W47,0) -> 0 | AA47: 0 | AB47: 0.3854707259 | AC47: 0.4097548761 | AD47: 0.204774398 | AE47: 0 | AF47: 0 | AI47: =IF($A47>0,'RRR hist-forc'!K47,0) -> 57.5148321 | AJ47: 210286.5792
A48: ='Asset data'!A48 -> 2 | B48: ='Asset data'!B48 -> 0 | C48: ='Asset data'!C48 -> 0 | D48: ='Asset data'!E48 -> ˃ 11 KV & < = 22 KV ; SINGLE-PHASE | E48: OVERHEAD CONDUCTORS | F48: =IF(A48>0,SUM('Asset data'!J48:CV48),0) -> 262.3663489 | G48: =IF(A48>0,'Asset data'!F48,0) -> 30.55047338 | H48: =IF(A48>0,SUM('Asset data'!CX48:GJ48),0) -> 8015.416159 | I48: 0.001288003857 | J48: 34 | K48: 0.005167164478 | L48: 30.55047338 | M48: =IF($A48>0,SUMPRODUCT('Age profile (years)'!$CT48:$GF48,'Asset data'!$CX48:$GJ48)/H48-0.5,0) -> 24.33696046 | N48: 195070.8661 | O48: =IF($A48>0,'Asset data'!G48,0) -> 66.96981386 | P48: 536790.9282 | Q48: 0.6365980573 | R48: 6.696981386 | S48: 13.39396277 | T48: 40.18188832 | U48: 53.57585109 | W48: =IF($A48>0,SUMIF('Age profile (years)'!$CT48:$GF48,"<" & R48+0.5,'Asset data'!$CX48:$GJ48),0) -> 65.44353184 | X48: =IF($A48>0,SUMIF('Age profile (years)'!$CT48:$GF48,"<" & S48+0.5,'Asset data'!$CX48:$GJ48)-W48,0) -> 677.4088729 | Y48: =IF($A48>0,SUMIF('Age profile (years)'!$CT48:$GF48,"<" & T48+0.5,'Asset data'!$CX48:$GJ48)-X48-W48,0) -> 6874.364956 | Z48: =IF($A48>0,SUMIF('Age profile (years)'!$CT48:$GF48,"<" & U48+0.5,'Asset data'!$CX48:$GJ48)-Y48-X48-W48,0) -> 318.987147 | AA48: 79.21165146 | AB48: 0.008164707925 | AC48: 0.0845132504 | AD48: 0.8576429245 | AE48: 0.03979670433 | AF48: 0.009882412826 | AI48: =IF($A48>0,'RRR hist-forc'!K48,0) -> 66.96981386 | AJ48: 536790.9282
A49: ='Asset data'!A49 -> 2 | B49: ='Asset data'!B49 -> 0 | C49: ='Asset data'!C49 -> 0 | D49: ='Asset data'!E49 -> ˃ 11 KV & < = 22 KV ; MULTIPLE-PHASE | E49: OVERHEAD CONDUCTORS | F49: =IF(A49>0,SUM('Asset data'!J49:CV49),0) -> 2661.687236 | G49: =IF(A49>0,'Asset data'!F49,0) -> 72.08292786 | H49: =IF(A49>0,SUM('Asset data'!CX49:GJ49),0) -> 191862.209 | I49: 0.03083049718 | J49: 9 | K49: 0.1236846062 | L49: 72.08292786 | M49: =IF($A49>0,SUMPRODUCT('Age profile (years)'!$CT49:$GF49,'Asset data'!$CX49:$GJ49)/H49-0.5,0) -> 32.366436 | N49: 6209895.907 | O49: =IF($A49>0,'Asset data'!G49,0) -> 70.02427271 | P49: 13435011.64 | Q49: 0.5377826181 | R49: 7.002427271 | S49: 14.00485454 | T49: 42.01456362 | U49: 56.01941817 | W49: =IF($A49>0,SUMIF('Age profile (years)'!$CT49:$GF49,"<" & R49+0.5,'Asset data'!$CX49:$GJ49),0) -> 6800.371779 | X49: =IF($A49>0,SUMIF('Age profile (years)'!$CT49:$GF49,"<" & S49+0.5,'Asset data'!$CX49:$GJ49)-W49,0) -> 7139.643626 | Y49: =IF($A49>0,SUMIF('Age profile (years)'!$CT49:$GF49,"<" & T49+0.5,'Asset data'!$CX49:$GJ49)-X49-W49,0) -> 131399.9971 | Z49: =IF($A49>0,SUMIF('Age profile (years)'!$CT49:$GF49,"<" & U49+0.5,'Asset data'!$CX49:$GJ49)-Y49-X49-W49,0) -> 25842.09793 | AA49: 20680.09856 | AB49: 0.03544403984 | AC49: 0.03721234976 | AD49: 0.6848664872 | AE49: 0.1346909226 | AF49: 0.1077862007 | AI49: =IF($A49>0,'RRR hist-forc'!K49,0) -> 70.02427271 | AJ49: 13435011.64
A50: ='Asset data'!A50 -> 2 | B50: ='Asset data'!B50 -> 0 | C50: ='Asset data'!C50 -> 0 | D50: ='Asset data'!E50 -> > 22 KV & < = 66 KV | E50: OVERHEAD CONDUCTORS | F50: =IF(A50>0,SUM('Asset data'!J50:CV50),0) -> 690.3156774 | G50: =IF(A50>0,'Asset data'!F50,0) -> 28.36966362 | H50: =IF(A50>0,SUM('Asset data'!CX50:GJ50),0) -> 19584.02356 | I50: 0.003146972957 | J50: 27 | K50: 0.01262490541 | L50: 28.36966362 | M50: =IF($A50>0,SUMPRODUCT('Age profile (years)'!$CT50:$GF50,'Asset data'!$CX50:$GJ50)/H50-0.5,0) -> 56.68255451 | N50: 1110072.483 | O50: =IF($A50>0,'Asset data'!G50,0) -> 78.49642493 | P50: 1537275.835 | Q50: 0.2778963557 | R50: 7.849642493 | S50: 15.69928499 | T50: 47.09785496 | U50: 62.79713995 | W50: =IF($A50>0,SUMIF('Age profile (years)'!$CT50:$GF50,"<" & R50+0.5,'Asset data'!$CX50:$GJ50),0) -> 0 | X50: =IF($A50>0,SUMIF('Age profile (years)'!$CT50:$GF50,"<" & S50+0.5,'Asset data'!$CX50:$GJ50)-W50,0) -> 133.9627974 | Y50: =IF($A50>0,SUMIF('Age profile (years)'!$CT50:$GF50,"<" & T50+0.5,'Asset data'!$CX50:$GJ50)-X50-W50,0) -> 6805.096724 | Z50: =IF($A50>0,SUMIF('Age profile (years)'!$CT50:$GF50,"<" & U50+0.5,'Asset data'!$CX50:$GJ50)-Y50-X50-W50,0) -> 4270.886532 | AA50: 8374.077506 | AB50: 0 | AC50: 0.006840412388 | AD50: 0.3474820536 | AE50: 0.2180801366 | AF50: 0.4275973975 | AI50: =IF($A50>0,'RRR hist-forc'!K50,0) -> 78.49642493 | AJ50: 1537275.835
A51: ='Asset data'!A51 -> 0 | B51: ='Asset data'!B51 -> 0 | C51: ='Asset data'!C51 -> 0 | D51: ='Asset data'!E51 -> > 66 KV & < = 132 KV | E51: 0 | F51: =IF(A51>0,SUM('Asset data'!J51:CV51),0) -> 0 | G51: =IF(A51>0,'Asset data'!F51,0) -> 0 | H51: =IF(A51>0,SUM('Asset data'!CX51:GJ51),0) -> 0 | I51: 0 | J51: 0 | K51: 0 | L51: 0 | M51: =IF($A51>0,SUMPRODUCT('Age profile (years)'!$CT51:$GF51,'Asset data'!$CX51:$GJ51)/H51-0.5,0) -> 0 | N51: 0 | O51: =IF($A51>0,'Asset data'!G51,0) -> 0 | P51: 0 | Q51: 0 | R51: 0 | S51: 0 | T51: 0 | U51: 0 | W51: =IF($A51>0,SUMIF('Age profile (years)'!$CT51:$GF51,"<" & R51+0.5,'Asset data'!$CX51:$GJ51),0) -> 0 | X51: =IF($A51>0,SUMIF('Age profile (years)'!$CT51:$GF51,"<" & S51+0.5,'Asset data'!$CX51:$GJ51)-W51,0) -> 0 | Y51: =IF($A51>0,SUMIF('Age profile (years)'!$CT51:$GF51,"<" & T51+0.5,'Asset data'!$CX51:$GJ51)-X51-W51,0) -> 0 | Z51: =IF($A51>0,SUMIF('Age profile (years)'!$CT51:$GF51,"<" & U51+0.5,'Asset data'!$CX51:$GJ51)-Y51-X51-W51,0) -> 0 | AA51: 0 | AB51: 0 | AC51: 0 | AD51: 0 | AE51: 0 | AF51: 0 | AI51: =IF($A51>0,'RRR hist-forc'!K51,0) -> 0 | AJ51: 0
A52: ='Asset data'!A52 -> 0 | B52: ='Asset data'!B52 -> 0 | C52: ='Asset data'!C52 -> 0 | D52: ='Asset data'!E52 -> > 132 KV | E52: 0 | F52: =IF(A52>0,SUM('Asset data'!J52:CV52),0) -> 0 | G52: =IF(A52>0,'Asset data'!F52,0) -> 0 | H52: =IF(A52>0,SUM('Asset data'!CX52:GJ52),0) -> 0 | I52: 0 | J52: 0 | K52: 0 | L52: 0 | M52: =IF($A52>0,SUMPRODUCT('Age profile (years)'!$CT52:$GF52,'Asset data'!$CX52:$GJ52)/H52-0.5,0) -> 0 | N52: 0 | O52: =IF($A52>0,'Asset data'!G52,0) -> 0 | P52: 0 | Q52: 0 | R52: 0 | S52: 0 | T52: 0 | U52: 0 | W52: =IF($A52>0,SUMIF('Age profile (years)'!$CT52:$GF52,"<" & R52+0.5,'Asset data'!$CX52:$GJ52),0) -> 0 | X52: =IF($A52>0,SUMIF('Age profile (years)'!$CT52:$GF52,"<" & S52+0.5,'Asset data'!$CX52:$GJ52)-W52,0) -> 0 | Y52: =IF($A52>0,SUMIF('Age profile (years)'!$CT52:$GF52,"<" & T52+0.5,'Asset data'!$CX52:$GJ52)-X52-W52,0) -> 0 | Z52: =IF($A52>0,SUMIF('Age profile (years)'!$CT52:$GF52,"<" & U52+0.5,'Asset data'!$CX52:$GJ52)-Y52-X52-W52,0) -> 0 | AA52: 0 | AB52: 0 | AC52: 0 | AD52: 0 | AE52: 0 | AF52: 0 | AI52: =IF($A52>0,'RRR hist-forc'!K52,0) -> 0 | AJ52: 0
A53: ='Asset data'!A53 -> 0 | B53: ='Asset data'!B53 -> 0 | C53: ='Asset data'!C53 -> 0 | D53: ='Asset data'!E53 -> OTHER | E53: 0 | F53: =IF(A53>0,SUM('Asset data'!J53:CV53),0) -> 0 | G53: =IF(A53>0,'Asset data'!F53,0) -> 0 | H53: =IF(A53>0,SUM('Asset data'!CX53:GJ53),0) -> 0 | I53: 0 | J53: 0 | K53: 0 | L53: 0 | M53: =IF($A53>0,SUMPRODUCT('Age profile (years)'!$CT53:$GF53,'Asset data'!$CX53:$GJ53)/H53-0.5,0) -> 0 | N53: 0 | O53: =IF($A53>0,'Asset data'!G53,0) -> 0 | P53: 0 | Q53: 0 | R53: 0 | S53: 0 | T53: 0 | U53: 0 | W53: =IF($A53>0,SUMIF('Age profile (years)'!$CT53:$GF53,"<" & R53+0.5,'Asset data'!$CX53:$GJ53),0) -> 0 | X53: =IF($A53>0,SUMIF('Age profile (years)'!$CT53:$GF53,"<" & S53+0.5,'Asset data'!$CX53:$GJ53)-W53,0) -> 0 | Y53: =IF($A53>0,SUMIF('Age profile (years)'!$CT53:$GF53,"<" & T53+0.5,'Asset data'!$CX53:$GJ53)-X53-W53,0) -> 0 | Z53: =IF($A53>0,SUMIF('Age profile (years)'!$CT53:$GF53,"<" & U53+0.5,'Asset data'!$CX53:$GJ53)-Y53-X53-W53,0) -> 0 | AA53: 0 | AB53: 0 | AC53: 0 | AD53: 0 | AE53: 0 | AF53: 0 | AI53: =IF($A53>0,'RRR hist-forc'!K53,0) -> 0 | AJ53: 0
A54: ='Asset data'!A54 -> 3 | B54: ='Asset data'!B54 -> 0 | C54: ='Asset data'!C54 -> 0 | D54: ='Asset data'!E54 -> ˂ = 1 KV | E54: UNDERGROUND CABLES | F54: =IF(A54>0,SUM('Asset data'!J54:CV54),0) -> 2543.119811 | G54: =IF(A54>0,'Asset data'!F54,0) -> 644.304876 | H54: =IF(A54>0,SUM('Asset data'!CX54:GJ54),0) -> 1638544.495 | I54: 0.2632990712 | J54: 1 | K54: 0.7187553158 | L54: 644.304876 | M54: =IF($A54>0,SUMPRODUCT('Age profile (years)'!$CT54:$GF54,'Asset data'!$CX54:$GJ54)/H54-0.5,0) -> 34.16811354 | N54: 55985974.33 | O54: =IF($A54>0,'Asset data'!G54,0) -> 54.21077991 | P54: 88826774.98 | Q54: 0.3697173589 | R54: 5.421077991 | S54: 10.84215598 | T54: 32.52646794 | U54: 43.36862393 | W54: =IF($A54>0,SUMIF('Age profile (years)'!$CT54:$GF54,"<" & R54+0.5,'Asset data'!$CX54:$GJ54),0) -> 2447.4407 | X54: =IF($A54>0,SUMIF('Age profile (years)'!$CT54:$GF54,"<" & S54+0.5,'Asset data'!$CX54:$GJ54)-W54,0) -> 13069.18627 | Y54: =IF($A54>0,SUMIF('Age profile (years)'!$CT54:$GF54,"<" & T54+0.5,'Asset data'!$CX54:$GJ54)-X54-W54,0) -> 674726.4586 | Z54: =IF($A54>0,SUMIF('Age profile (years)'!$CT54:$GF54,"<" & U54+0.5,'Asset data'!$CX54:$GJ54)-Y54-X54-W54,0) -> 525064.7657 | AA54: 423236.6436 | AB54: 0.001493667525 | AC54: 0.007976094828 | AD54: 0.4117840319 | AE54: 0.3204458392 | AF54: 0.2583003665 | AI54: =IF($A54>0,'RRR hist-forc'!K54,0) -> 54.21077991 | AJ54: 88826774.98
A55: ='Asset data'!A55 -> 3 | B55: ='Asset data'!B55 -> 0 | C55: ='Asset data'!C55 -> 0 | D55: ='Asset data'!E55 -> > 1 KV & < = 11 KV | E55: UNDERGROUND CABLES | F55: =IF(A55>0,SUM('Asset data'!J55:CV55),0) -> 177.1044668 | G55: =IF(A55>0,'Asset data'!F55,0) -> 418.1299263 | H55: =IF(A55>0,SUM('Asset data'!CX55:GJ55),0) -> 74052.67765 | I55: 0.01189958607 | J55: 18 | K55: 0.03248355835 | L55: 418.1299263 | M55: =IF($A55>0,SUMPRODUCT('Age profile (years)'!$CT55:$GF55,'Asset data'!$CX55:$GJ55)/H55-0.5,0) -> 39.14670339 | N55: 2898918.207 | O55: =IF($A55>0,'Asset data'!G55,0) -> 64.78594496 | P55: 4797572.698 | Q55: 0.3957531466 | R55: 6.478594496 | S55: 12.95718899 | T55: 38.87156698 | U55: 51.82875597 | W55: =IF($A55>0,SUMIF('Age profile (years)'!$CT55:$GF55,"<" & R55+0.5,'Asset data'!$CX55:$GJ55),0) -> 2671.483069 | X55: =IF($A55>0,SUMIF('Age profile (years)'!$CT55:$GF55,"<" & S55+0.5,'Asset data'!$CX55:$GJ55)-W55,0) -> 10375.93029 | Y55: =IF($A55>0,SUMIF('Age profile (years)'!$CT55:$GF55,"<" & T55+0.5,'Asset data'!$CX55:$GJ55)-X55-W55,0) -> 20134.68078 | Z55: =IF($A55>0,SUMIF('Age profile (years)'!$CT55:$GF55,"<" & U55+0.5,'Asset data'!$CX55:$GJ55)-Y55-X55-W55,0) -> 6554.795907 | AA55: 34315.7876 | AB55: 0.03607544189 | AC55: 0.1401155315 | AD55: 0.2718967284 | AE55: 0.08851531255 | AF55: 0.4633969856 | AI55: =IF($A55>0,'RRR hist-forc'!K55,0) -> 64.78594496 | AJ55: 4797572.698
A56: ='Asset data'!A56 -> 3 | B56: ='Asset data'!B56 -> 0 | C56: ='Asset data'!C56 -> 0 | D56: ='Asset data'!E56 -> > 11 KV & < = 22 KV | E56: UNDERGROUND CABLES | F56: =IF(A56>0,SUM('Asset data'!J56:CV56),0) -> 789.5549371 | G56: =IF(A56>0,'Asset data'!F56,0) -> 716.8420897 | H56: =IF(A56>0,SUM('Asset data'!CX56:GJ56),0) -> 565986.211 | I56: 0.09094879275 | J56: 3 | K56: 0.2482725365 | L56: 716.8420897 | M56: =IF($A56>0,SUMPRODUCT('Age profile (years)'!$CT56:$GF56,'Asset data'!$CX56:$GJ56)/H56-0.5,0) -> 43.5877603 | N56: 24670071.3 | O56: =IF($A56>0,'Asset data'!G56,0) -> 65.18377617 | P56: 36893118.49 | Q56: 0.3313096776 | R56: 6.518377617 | S56: 13.03675523 | T56: 39.1102657 | U56: 52.14702093 | W56: =IF($A56>0,SUMIF('Age profile (years)'!$CT56:$GF56,"<" & R56+0.5,'Asset data'!$CX56:$GJ56),0) -> 15198.08821 | X56: =IF($A56>0,SUMIF('Age profile (years)'!$CT56:$GF56,"<" & S56+0.5,'Asset data'!$CX56:$GJ56)-W56,0) -> 16911.0145 | Y56: =IF($A56>0,SUMIF('Age profile (years)'!$CT56:$GF56,"<" & T56+0.5,'Asset data'!$CX56:$GJ56)-X56-W56,0) -> 178575.1218 | Z56: =IF($A56>0,SUMIF('Age profile (years)'!$CT56:$GF56,"<" & U56+0.5,'Asset data'!$CX56:$GJ56)-Y56-X56-W56,0) -> 85001.38152 | AA56: 270300.605 | AB56: 0.02685240013 | AC56: 0.0298788454 | AD56: 0.3155114353 | AE56: 0.1501827781 | AF56: 0.4775745411 | AI56: =IF($A56>0,'RRR hist-forc'!K56,0) -> 65.18377617 | AJ56: 36893118.49
A57: ='Asset data'!A57 -> 0 | B57: ='Asset data'!B57 -> 0 | C57: ='Asset data'!C57 -> 0 | D57: ='Asset data'!E57 -> > 22 KV & < = 33 KV | E57: 0 | F57: =IF(A57>0,SUM('Asset data'!J57:CV57),0) -> 0 | G57: =IF(A57>0,'Asset data'!F57,0) -> 0 | H57: =IF(A57>0,SUM('Asset data'!CX57:GJ57),0) -> 0 | I57: 0 | J57: 0 | K57: 0 | L57: 0 | M57: =IF($A57>0,SUMPRODUCT('Age profile (years)'!$CT57:$GF57,'Asset data'!$CX57:$GJ57)/H57-0.5,0) -> 0 | N57: 0 | O57: =IF($A57>0,'Asset data'!G57,0) -> 0 | P57: 0 | Q57: 0 | R57: 0 | S57: 0 | T57: 0 | U57: 0 | W57: =IF($A57>0,SUMIF('Age profile (years)'!$CT57:$GF57,"<" & R57+0.5,'Asset data'!$CX57:$GJ57),0) -> 0 | X57: =IF($A57>0,SUMIF('Age profile (years)'!$CT57:$GF57,"<" & S57+0.5,'Asset data'!$CX57:$GJ57)-W57,0) -> 0 | Y57: =IF($A57>0,SUMIF('Age profile (years)'!$CT57:$GF57,"<" & T57+0.5,'Asset data'!$CX57:$GJ57)-X57-W57,0) -> 0 | Z57: =IF($A57>0,SUMIF('Age profile (years)'!$CT57:$GF57,"<" & U57+0.5,'Asset data'!$CX57:$GJ57)-Y57-X57-W57,0) -> 0 | AA57: 0 | AB57: 0 | AC57: 0 | AD57: 0 | AE57: 0 | AF57: 0 | AI57: =IF($A57>0,'RRR hist-forc'!K57,0) -> 0 | AJ57: 0
A58: ='Asset data'!A58 -> 3 | B58: ='Asset data'!B58 -> 0 | C58: ='Asset data'!C58 -> 0 | D58: ='Asset data'!E58 -> > 33 KV & < = 66 KV | E58: UNDERGROUND CABLES | F58: =IF(A58>0,SUM('Asset data'!J58:CV58),0) -> 3.701078 | G58: =IF(A58>0,'Asset data'!F58,0) -> 156.9692204 | H58: =IF(A58>0,SUM('Asset data'!CX58:GJ58),0) -> 580.9553282 | I58: 9.335419257e-05 | J58: 43 | K58: 0.0002548388107 | L58: 156.9692204 | M58: =IF($A58>0,SUMPRODUCT('Age profile (years)'!$CT58:$GF58,'Asset data'!$CX58:$GJ58)/H58-0.5,0) -> 51.31506847 | N58: 29811.76244 | O58: =IF($A58>0,'Asset data'!G58,0) -> 59.64740564 | P58: 34652.47812 | Q58: 0.1396932034 | R58: 5.964740564 | S58: 11.92948113 | T58: 35.78844339 | U58: 47.71792451 | W58: =IF($A58>0,SUMIF('Age profile (years)'!$CT58:$GF58,"<" & R58+0.5,'Asset data'!$CX58:$GJ58),0) -> 0 | X58: =IF($A58>0,SUMIF('Age profile (years)'!$CT58:$GF58,"<" & S58+0.5,'Asset data'!$CX58:$GJ58)-W58,0) -> 0 | Y58: =IF($A58>0,SUMIF('Age profile (years)'!$CT58:$GF58,"<" & T58+0.5,'Asset data'!$CX58:$GJ58)-X58-W58,0) -> 0 | Z58: =IF($A58>0,SUMIF('Age profile (years)'!$CT58:$GF58,"<" & U58+0.5,'Asset data'!$CX58:$GJ58)-Y58-X58-W58,0) -> 74.97415054 | AA58: 505.9811776 | AB58: 0 | AC58: 0 | AD58: 0 | AE58: 0.129053211 | AF58: 0.870946789 | AI58: =IF($A58>0,'RRR hist-forc'!K58,0) -> 59.64740564 | AJ58: 34652.47812
A59: ='Asset data'!A59 -> 0 | B59: ='Asset data'!B59 -> 0 | C59: ='Asset data'!C59 -> 0 | D59: ='Asset data'!E59 -> > 66 KV & < = 132 KV | E59: 0 | F59: =IF(A59>0,SUM('Asset data'!J59:CV59),0) -> 0 | G59: =IF(A59>0,'Asset data'!F59,0) -> 0 | H59: =IF(A59>0,SUM('Asset data'!CX59:GJ59),0) -> 0 | I59: 0 | J59: 0 | K59: 0 | L59: 0 | M59: =IF($A59>0,SUMPRODUCT('Age profile (years)'!$CT59:$GF59,'Asset data'!$CX59:$GJ59)/H59-0.5,0) -> 0 | N59: 0 | O59: =IF($A59>0,'Asset data'!G59,0) -> 0 | P59: 0 | Q59: 0 | R59: 0 | S59: 0 | T59: 0 | U59: 0 | W59: =IF($A59>0,SUMIF('Age profile (years)'!$CT59:$GF59,"<" & R59+0.5,'Asset data'!$CX59:$GJ59),0) -> 0 | X59: =IF($A59>0,SUMIF('Age profile (years)'!$CT59:$GF59,"<" & S59+0.5,'Asset data'!$CX59:$GJ59)-W59,0) -> 0 | Y59: =IF($A59>0,SUMIF('Age profile (years)'!$CT59:$GF59,"<" & T59+0.5,'Asset data'!$CX59:$GJ59)-X59-W59,0) -> 0 | Z59: =IF($A59>0,SUMIF('Age profile (years)'!$CT59:$GF59,"<" & U59+0.5,'Asset data'!$CX59:$GJ59)-Y59-X59-W59,0) -> 0 | AA59: 0 | AB59: 0 | AC59: 0 | AD59: 0 | AE59: 0 | AF59: 0 | AI59: =IF($A59>0,'RRR hist-forc'!K59,0) -> 0 | AJ59: 0
A60: ='Asset data'!A60 -> 0 | B60: ='Asset data'!B60 -> 0 | C60: ='Asset data'!C60 -> 0 | D60: ='Asset data'!E60 -> > 132 KV | E60: 0 | F60: =IF(A60>0,SUM('Asset data'!J60:CV60),0) -> 0 | G60: =IF(A60>0,'Asset data'!F60,0) -> 0 | H60: =IF(A60>0,SUM('Asset data'!CX60:GJ60),0) -> 0 | I60: 0 | J60: 0 | K60: 0 | L60: 0 | M60: =IF($A60>0,SUMPRODUCT('Age profile (years)'!$CT60:$GF60,'Asset data'!$CX60:$GJ60)/H60-0.5,0) -> 0 | N60: 0 | O60: =IF($A60>0,'Asset data'!G60,0) -> 0 | P60: 0 | Q60: 0 | R60: 0 | S60: 0 | T60: 0 | U60: 0 | W60: =IF($A60>0,SUMIF('Age profile (years)'!$CT60:$GF60,"<" & R60+0.5,'Asset data'!$CX60:$GJ60),0) -> 0 | X60: =IF($A60>0,SUMIF('Age profile (years)'!$CT60:$GF60,"<" & S60+0.5,'Asset data'!$CX60:$GJ60)-W60,0) -> 0 | Y60: =IF($A60>0,SUMIF('Age profile (years)'!$CT60:$GF60,"<" & T60+0.5,'Asset data'!$CX60:$GJ60)-X60-W60,0) -> 0 | Z60: =IF($A60>0,SUMIF('Age profile (years)'!$CT60:$GF60,"<" & U60+0.5,'Asset data'!$CX60:$GJ60)-Y60-X60-W60,0) -> 0 | AA60: 0 | AB60: 0 | AC60: 0 | AD60: 0 | AE60: 0 | AF60: 0 | AI60: =IF($A60>0,'RRR hist-forc'!K60,0) -> 0 | AJ60: 0
A61: ='Asset data'!A61 -> 3 | B61: ='Asset data'!B61 -> 0 | C61: ='Asset data'!C61 -> 0 | D61: ='Asset data'!E61 -> LV SERVICE PILLARS | E61: UNDERGROUND CABLES | F61: =IF(A61>0,SUM('Asset data'!J61:CV61),0) -> 8.686 | G61: =IF(A61>0,'Asset data'!F61,0) -> 1.68966496 | H61: =IF(A61>0,SUM('Asset data'!CX61:GJ61),0) -> 14.67642984 | I61: 2.35836766e-06 | J61: 58 | K61: 6.437885573e-06 | L61: 1.68966496 | M61: =IF($A61>0,SUMPRODUCT('Age profile (years)'!$CT61:$GF61,'Asset data'!$CX61:$GJ61)/H61-0.5,0) -> 34.92528206 | N61: 512.5784518 | O61: =IF($A61>0,'Asset data'!G61,0) -> 59.64740564 | P61: 875.410964 | Q61: 0.4144710623 | R61: 5.964740564 | S61: 11.92948113 | T61: 35.78844339 | U61: 47.71792451 | W61: =IF($A61>0,SUMIF('Age profile (years)'!$CT61:$GF61,"<" & R61+0.5,'Asset data'!$CX61:$GJ61),0) -> 0.003379329919 | X61: =IF($A61>0,SUMIF('Age profile (years)'!$CT61:$GF61,"<" & S61+0.5,'Asset data'!$CX61:$GJ61)-W61,0) -> 0.01520698464 | Y61: =IF($A61>0,SUMIF('Age profile (years)'!$CT61:$GF61,"<" & T61+0.5,'Asset data'!$CX61:$GJ61)-X61-W61,0) -> 8.194875055 | Z61: =IF($A61>0,SUMIF('Age profile (years)'!$CT61:$GF61,"<" & U61+0.5,'Asset data'!$CX61:$GJ61)-Y61-X61-W61,0) -> 3.519572111 | AA61: 2.94339636 | AB61: 0.0002302555837 | AC61: 0.001036150127 | AD61: 0.5583697905 | AE61: 0.2398111904 | AF61: 0.2005526134 | AI61: =IF($A61>0,'RRR hist-forc'!K61,0) -> 59.64740564 | AJ61: 875.410964
A62: ='Asset data'!A62 -> 3 | B62: ='Asset data'!B62 -> 0 | C62: ='Asset data'!C62 -> 0 | D62: ='Asset data'!E62 -> LV PARALLELING PILLARS | E62: UNDERGROUND CABLES | F62: =IF(A62>0,SUM('Asset data'!J62:CV62),0) -> 1.898 | G62: =IF(A62>0,'Asset data'!F62,0) -> 1.68966496 | H62: =IF(A62>0,SUM('Asset data'!CX62:GJ62),0) -> 3.206984094 | I62: 5.153329286e-07 | J62: 59 | K62: 1.406758786e-06 | L62: 1.68966496 | M62: =IF($A62>0,SUMPRODUCT('Age profile (years)'!$CT62:$GF62,'Asset data'!$CX62:$GJ62)/H62-0.5,0) -> 38.75079031 | N62: 124.2731681 | O62: =IF($A62>0,'Asset data'!G62,0) -> 59.64740564 | P62: 191.2882811 | Q62: 0.3503356954 | R62: 5.964740564 | S62: 11.92948113 | T62: 35.78844339 | U62: 47.71792451 | W62: =IF($A62>0,SUMIF('Age profile (years)'!$CT62:$GF62,"<" & R62+0.5,'Asset data'!$CX62:$GJ62),0) -> 0 | X62: =IF($A62>0,SUMIF('Age profile (years)'!$CT62:$GF62,"<" & S62+0.5,'Asset data'!$CX62:$GJ62)-W62,0) -> 0 | Y62: =IF($A62>0,SUMIF('Age profile (years)'!$CT62:$GF62,"<" & T62+0.5,'Asset data'!$CX62:$GJ62)-X62-W62,0) -> 1.400732252 | Z62: =IF($A62>0,SUMIF('Age profile (years)'!$CT62:$GF62,"<" & U62+0.5,'Asset data'!$CX62:$GJ62)-Y62-X62-W62,0) -> 0.9141087432 | AA62: 0.8921430987 | AB62: 0 | AC62: 0 | AD62: 0.4367755532 | AE62: 0.2850368809 | AF62: 0.2781875659 | AI62: =IF($A62>0,'RRR hist-forc'!K62,0) -> 59.64740564 | AJ62: 191.2882811
A63: ='Asset data'!A63 -> 3 | B63: ='Asset data'!B63 -> 0 | C63: ='Asset data'!C63 -> 0 | D63: ='Asset data'!E63 -> LV CABINETS | E63: UNDERGROUND CABLES | F63: =IF(A63>0,SUM('Asset data'!J63:CV63),0) -> 0.97 | G63: =IF(A63>0,'Asset data'!F63,0) -> 1.68966496 | H63: =IF(A63>0,SUM('Asset data'!CX63:GJ63),0) -> 1.638975011 | I63: 2.633682512e-07 | J63: 60 | K63: 7.189441637e-07 | L63: 1.68966496 | M63: =IF($A63>0,SUMPRODUCT('Age profile (years)'!$CT63:$GF63,'Asset data'!$CX63:$GJ63)/H63-0.5,0) -> 44.6742268 | N63: 73.21994136 | O63: =IF($A63>0,'Asset data'!G63,0) -> 59.64740564 | P63: 97.76060731 | Q63: 0.2510281659 | R63: 5.964740564 | S63: 11.92948113 | T63: 35.78844339 | U63: 47.71792451 | W63: =IF($A63>0,SUMIF('Age profile (years)'!$CT63:$GF63,"<" & R63+0.5,'Asset data'!$CX63:$GJ63),0) -> 0 | X63: =IF($A63>0,SUMIF('Age profile (years)'!$CT63:$GF63,"<" & S63+0.5,'Asset data'!$CX63:$GJ63)-W63,0) -> 0.00168966496 | Y63: =IF($A63>0,SUMIF('Age profile (years)'!$CT63:$GF63,"<" & T63+0.5,'Asset data'!$CX63:$GJ63)-X63-W63,0) -> 0.2686567286 | Z63: =IF($A63>0,SUMIF('Age profile (years)'!$CT63:$GF63,"<" & U63+0.5,'Asset data'!$CX63:$GJ63)-Y63-X63-W63,0) -> 0.711348948 | AA63: 0.6572796693 | AB63: 0 | AC63: 0.001030927835 | AD63: 0.1639175258 | AE63: 0.4340206186 | AF63: 0.4010309278 | AI63: =IF($A63>0,'RRR hist-forc'!K63,0) -> 59.64740564 | AJ63: 97.76060731
A64: ='Asset data'!A64 -> 3 | B64: ='Asset data'!B64 -> 0 | C64: ='Asset data'!C64 -> 0 | D64: ='Asset data'!E64 -> LV PITS | E64: UNDERGROUND CABLES | F64: =IF(A64>0,SUM('Asset data'!J64:CV64),0) -> 100.318 | G64: =IF(A64>0,'Asset data'!F64,0) -> 1.68966496 | H64: =IF(A64>0,SUM('Asset data'!CX64:GJ64),0) -> 169.5038094 | I64: 2.723770745e-05 | J64: 50 | K64: 7.435365012e-05 | L64: 1.68966496 | M64: =IF($A64>0,SUMPRODUCT('Age profile (years)'!$CT64:$GF64,'Asset data'!$CX64:$GJ64)/H64-0.5,0) -> 45.34945872 | N64: 7686.906009 | O64: =IF($A64>0,'Asset data'!G64,0) -> 59.64740564 | P64: 10110.46248 | Q64: 0.2397077755 | R64: 5.964740564 | S64: 11.92948113 | T64: 35.78844339 | U64: 47.71792451 | W64: =IF($A64>0,SUMIF('Age profile (years)'!$CT64:$GF64,"<" & R64+0.5,'Asset data'!$CX64:$GJ64),0) -> 0.005068994879 | X64: =IF($A64>0,SUMIF('Age profile (years)'!$CT64:$GF64,"<" & S64+0.5,'Asset data'!$CX64:$GJ64)-W64,0) -> 0.006758659839 | Y64: =IF($A64>0,SUMIF('Age profile (years)'!$CT64:$GF64,"<" & T64+0.5,'Asset data'!$CX64:$GJ64)-X64-W64,0) -> 32.57336109 | Z64: =IF($A64>0,SUMIF('Age profile (years)'!$CT64:$GF64,"<" & U64+0.5,'Asset data'!$CX64:$GJ64)-Y64-X64-W64,0) -> 62.0022557 | AA64: 74.91636498 | AB64: 2.990490241e-05 | AC64: 3.987320321e-05 | AD64: 0.1921689029 | AE64: 0.365786798 | AF64: 0.441974521 | AI64: =IF($A64>0,'RRR hist-forc'!K64,0) -> 59.64740564 | AJ64: 10110.46248
A65: ='Asset data'!A65 -> 3 | B65: ='Asset data'!B65 -> 0 | C65: ='Asset data'!C65 -> 0 | D65: ='Asset data'!E65 -> SURGE ARRESTOR - HV | E65: UNDERGROUND CABLES | F65: =IF(A65>0,SUM('Asset data'!J65:CV65),0) -> 13.728 | G65: =IF(A65>0,'Asset data'!F65,0) -> 1.68966496 | H65: =IF(A65>0,SUM('Asset data'!CX65:GJ65),0) -> 23.19572057 | I65: 3.727339538e-06 | J65: 57 | K65: 1.017491287e-05 | L65: 1.68966496 | M65: =IF($A65>0,SUMPRODUCT('Age profile (years)'!$CT65:$GF65,'Asset data'!$CX65:$GJ65)/H65-0.5,0) -> 38.83784965 | N65: 900.8719079 | O65: =IF($A65>0,'Asset data'!G65,0) -> 59.64740564 | P65: 1383.564554 | Q65: 0.3488761291 | R65: 5.964740564 | S65: 11.92948113 | T65: 35.78844339 | U65: 47.71792451 | W65: =IF($A65>0,SUMIF('Age profile (years)'!$CT65:$GF65,"<" & R65+0.5,'Asset data'!$CX65:$GJ65),0) -> 0.6015207257 | X65: =IF($A65>0,SUMIF('Age profile (years)'!$CT65:$GF65,"<" & S65+0.5,'Asset data'!$CX65:$GJ65)-W65,0) -> 0.9766263467 | Y65: =IF($A65>0,SUMIF('Age profile (years)'!$CT65:$GF65,"<" & T65+0.5,'Asset data'!$CX65:$GJ65)-X65-W65,0) -> 8.524359722 | Z65: =IF($A65>0,SUMIF('Age profile (years)'!$CT65:$GF65,"<" & U65+0.5,'Asset data'!$CX65:$GJ65)-Y65-X65-W65,0) -> 3.865953428 | AA65: 9.227260345 | AB65: 0.02593240093 | AC65: 0.0421037296 | AD65: 0.3674970862 | AE65: 0.1666666667 | AF65: 0.3978001166 | AI65: =IF($A65>0,'RRR hist-forc'!K65,0) -> 59.64740564 | AJ65: 1383.564554
A66: ='Asset data'!A66 -> 3 | B66: ='Asset data'!B66 -> 0 | C66: ='Asset data'!C66 -> 0 | D66: ='Asset data'!E66 -> OTHER | E66: UNDERGROUND CABLES | F66: =IF(A66>0,SUM('Asset data'!J66:CV66),0) -> 125.6 | G66: =IF(A66>0,'Asset data'!F66,0) -> 2.553015313 | H66: =IF(A66>0,SUM('Asset data'!CX66:GJ66),0) -> 320.6587233 | I66: 5.152691568e-05 | J66: 47 | K66: 0.0001406584702 | L66: 2.553015313 | M66: =IF($A66>0,SUMPRODUCT('Age profile (years)'!$CT66:$GF66,'Asset data'!$CX66:$GJ66)/H66-0.5,0) -> 43.81191879 | N66: 14048.67395 | O66: =IF($A66>0,'Asset data'!G66,0) -> 59.64740564 | P66: 19126.46094 | Q66: 0.2654849223 | R66: 5.964740564 | S66: 11.92948113 | T66: 35.78844339 | U66: 47.71792451 | W66: =IF($A66>0,SUMIF('Age profile (years)'!$CT66:$GF66,"<" & R66+0.5,'Asset data'!$CX66:$GJ66),0) -> 0.9216385281 | X66: =IF($A66>0,SUMIF('Age profile (years)'!$CT66:$GF66,"<" & S66+0.5,'Asset data'!$CX66:$GJ66)-W66,0) -> 1.511385065 | Y66: =IF($A66>0,SUMIF('Age profile (years)'!$CT66:$GF66,"<" & T66+0.5,'Asset data'!$CX66:$GJ66)-X66-W66,0) -> 77.00149486 | Z66: =IF($A66>0,SUMIF('Age profile (years)'!$CT66:$GF66,"<" & U66+0.5,'Asset data'!$CX66:$GJ66)-Y66-X66-W66,0) -> 107.2981276 | AA66: 133.9260773 | AB66: 0.002874203822 | AC66: 0.004713375796 | AD66: 0.2401353503 | AE66: 0.3346178344 | AF66: 0.4176592357 | AI66: =IF($A66>0,'RRR hist-forc'!K66,0) -> 59.64740564 | AJ66: 19126.46094
A67: ='Asset data'!A67 -> 4 | B67: ='Asset data'!B67 -> 0 | C67: ='Asset data'!C67 -> 0 | D67: ='Asset data'!E67 -> ˂ = 11 KV ; RESIDENTIAL ; SIMPLE TYPE | E67: SERVICE LINES | F67: =IF(A67>0,SUM('Asset data'!J67:CV67),0) -> 297982 | G67: =IF(A67>0,'Asset data'!F67,0) -> 0.4789500308 | H67: =IF(A67>0,SUM('Asset data'!CX67:GJ67),0) -> 142718.4881 | I67: 0.02293355199 | J67: 12 | K67: 0.8032413243 | L67: 0.4789500308 | M67: =IF($A67>0,SUMPRODUCT('Age profile (years)'!$CT67:$GF67,'Asset data'!$CX67:$GJ67)/H67-0.5,0) -> 30.00202697 | N67: 4281843.928 | O67: =IF($A67>0,'Asset data'!G67,0) -> 39.10736378 | P67: 5581343.831 | Q67: 0.232829215 | R67: 3.910736378 | S67: 7.821472756 | T67: 23.46441827 | U67: 31.28589102 | W67: =IF($A67>0,SUMIF('Age profile (years)'!$CT67:$GF67,"<" & R67+0.5,'Asset data'!$CX67:$GJ67),0) -> 7768.09055 | X67: =IF($A67>0,SUMIF('Age profile (years)'!$CT67:$GF67,"<" & S67+0.5,'Asset data'!$CX67:$GJ67)-W67,0) -> 2781.262829 | Y67: =IF($A67>0,SUMIF('Age profile (years)'!$CT67:$GF67,"<" & T67+0.5,'Asset data'!$CX67:$GJ67)-X67-W67,0) -> 16512.76021 | Z67: =IF($A67>0,SUMIF('Age profile (years)'!$CT67:$GF67,"<" & U67+0.5,'Asset data'!$CX67:$GJ67)-Y67-X67-W67,0) -> 16845.63048 | AA67: 98810.74401 | AB67: 0.05442946218 | AC67: 0.01948775429 | AD67: 0.1157016196 | AE67: 0.1180339752 | AF67: 0.6923471888 | AI67: =IF($A67>0,'RRR hist-forc'!K67,0) -> 39.10736378 | AJ67: 5581343.831
A68: ='Asset data'!A68 -> 4 | B68: ='Asset data'!B68 -> 0 | C68: ='Asset data'!C68 -> 0 | D68: ='Asset data'!E68 -> ˂ = 11 KV ; COMMERCIAL & INDUSTRIAL ; SIMPLE TYPE | E68: SERVICE LINES | F68: =IF(A68>0,SUM('Asset data'!J68:CV68),0) -> 22020 | G68: =IF(A68>0,'Asset data'!F68,0) -> 0.5565754645 | H68: =IF(A68>0,SUM('Asset data'!CX68:GJ68),0) -> 12255.79173 | I68: 0.001969393318 | J68: 30 | K68: 0.06897745702 | L68: 0.5565754645 | M68: =IF($A68>0,SUMPRODUCT('Age profile (years)'!$CT68:$GF68,'Asset data'!$CX68:$GJ68)/H68-0.5,0) -> 24.84950045 | N68: 304550.3021 | O68: =IF($A68>0,'Asset data'!G68,0) -> 39.03529994 | P68: 478408.5061 | Q68: 0.3634095167 | R68: 3.903529994 | S68: 7.807059988 | T68: 23.42117996 | U68: 31.22823995 | W68: =IF($A68>0,SUMIF('Age profile (years)'!$CT68:$GF68,"<" & R68+0.5,'Asset data'!$CX68:$GJ68),0) -> 1165.469023 | X68: =IF($A68>0,SUMIF('Age profile (years)'!$CT68:$GF68,"<" & S68+0.5,'Asset data'!$CX68:$GJ68)-W68,0) -> 510.3797009 | Y68: =IF($A68>0,SUMIF('Age profile (years)'!$CT68:$GF68,"<" & T68+0.5,'Asset data'!$CX68:$GJ68)-X68-W68,0) -> 2813.488973 | Z68: =IF($A68>0,SUMIF('Age profile (years)'!$CT68:$GF68,"<" & U68+0.5,'Asset data'!$CX68:$GJ68)-Y68-X68-W68,0) -> 1877.329042 | AA68: 5889.12499 | AB68: 0.09509536785 | AC68: 0.04164396004 | AD68: 0.2295640327 | AE68: 0.1531789282 | AF68: 0.4805177112 | AI68: =IF($A68>0,'RRR hist-forc'!K68,0) -> 39.03529994 | AJ68: 478408.5061
A69: ='Asset data'!A69 -> 4 | B69: ='Asset data'!B69 -> 0 | C69: ='Asset data'!C69 -> 0 | D69: ='Asset data'!E69 -> ˂ = 11 KV ; RESIDENTIAL ; COMPLEX TYPE | E69: SERVICE LINES | F69: =IF(A69>0,SUM('Asset data'!J69:CV69),0) -> 39790 | G69: =IF(A69>0,'Asset data'!F69,0) -> 0.4769346398 | H69: =IF(A69>0,SUM('Asset data'!CX69:GJ69),0) -> 18977.22932 | I69: 0.003049466688 | J69: 28 | K69: 0.1068067285 | L69: 0.4769346398 | M69: =IF($A69>0,SUMPRODUCT('Age profile (years)'!$CT69:$GF69,'Asset data'!$CX69:$GJ69)/H69-0.5,0) -> 24.04458407 | N69: 456299.5857 | O69: =IF($A69>0,'Asset data'!G69,0) -> 37.22015627 | P69: 706335.4407 | Q69: 0.3539902441 | R69: 3.722015627 | S69: 7.444031253 | T69: 22.33209376 | U69: 29.77612501 | W69: =IF($A69>0,SUMIF('Age profile (years)'!$CT69:$GF69,"<" & R69+0.5,'Asset data'!$CX69:$GJ69),0) -> 1969.263128 | X69: =IF($A69>0,SUMIF('Age profile (years)'!$CT69:$GF69,"<" & S69+0.5,'Asset data'!$CX69:$GJ69)-W69,0) -> 671.0470382 | Y69: =IF($A69>0,SUMIF('Age profile (years)'!$CT69:$GF69,"<" & T69+0.5,'Asset data'!$CX69:$GJ69)-X69-W69,0) -> 3569.855779 | Z69: =IF($A69>0,SUMIF('Age profile (years)'!$CT69:$GF69,"<" & U69+0.5,'Asset data'!$CX69:$GJ69)-Y69-X69-W69,0) -> 3494.97704 | AA69: 9272.086332 | AB69: 0.1037697914 | AC69: 0.03536064338 | AD69: 0.1881125911 | AE69: 0.1841668761 | AF69: 0.488590098 | AI69: =IF($A69>0,'RRR hist-forc'!K69,0) -> 37.22015627 | AJ69: 706335.4407
A70: ='Asset data'!A70 -> 4 | B70: ='Asset data'!B70 -> 0 | C70: ='Asset data'!C70 -> 0 | D70: ='Asset data'!E70 -> ˂ = 11 KV ; COMMERCIAL & INDUSTRIAL ; COMPLEX TYPE | E70: SERVICE LINES | F70: =IF(A70>0,SUM('Asset data'!J70:CV70),0) -> 8246 | G70: =IF(A70>0,'Asset data'!F70,0) -> 0.4519415542 | H70: =IF(A70>0,SUM('Asset data'!CX70:GJ70),0) -> 3726.710056 | I70: 0.0005988481237 | J70: 40 | K70: 0.02097449014 | L70: 0.4519415542 | M70: =IF($A70>0,SUMPRODUCT('Age profile (years)'!$CT70:$GF70,'Asset data'!$CX70:$GJ70)/H70-0.5,0) -> 23.51600776 | N70: 87637.3426 | O70: =IF($A70>0,'Asset data'!G70,0) -> 39.91980486 | P70: 148769.5382 | Q70: 0.4109187697 | R70: 3.991980486 | S70: 7.983960972 | T70: 23.95188292 | U70: 31.93584389 | W70: =IF($A70>0,SUMIF('Age profile (years)'!$CT70:$GF70,"<" & R70+0.5,'Asset data'!$CX70:$GJ70),0) -> 385.5061457 | X70: =IF($A70>0,SUMIF('Age profile (years)'!$CT70:$GF70,"<" & S70+0.5,'Asset data'!$CX70:$GJ70)-W70,0) -> 181.2285632 | Y70: =IF($A70>0,SUMIF('Age profile (years)'!$CT70:$GF70,"<" & T70+0.5,'Asset data'!$CX70:$GJ70)-X70-W70,0) -> 1067.034009 | Z70: =IF($A70>0,SUMIF('Age profile (years)'!$CT70:$GF70,"<" & U70+0.5,'Asset data'!$CX70:$GJ70)-Y70-X70-W70,0) -> 677.0084482 | AA70: 1415.932889 | AB70: 0.1034440941 | AC70: 0.04862963861 | AD70: 0.2863206403 | AE70: 0.181663837 | AF70: 0.37994179 | AI70: =IF($A70>0,'RRR hist-forc'!K70,0) -> 39.91980486 | AJ70: 148769.5382
A71: ='Asset data'!A71 -> 0 | B71: ='Asset data'!B71 -> 0 | C71: ='Asset data'!C71 -> 0 | D71: ='Asset data'!E71 -> ˂ = 11 KV ; SUBDIVISION ; COMPLEX TYPE | E71: 0 | F71: =IF(A71>0,SUM('Asset data'!J71:CV71),0) -> 0 | G71: =IF(A71>0,'Asset data'!F71,0) -> 0 | H71: =IF(A71>0,SUM('Asset data'!CX71:GJ71),0) -> 0 | I71: 0 | J71: 0 | K71: 0 | L71: 0 | M71: =IF($A71>0,SUMPRODUCT('Age profile (years)'!$CT71:$GF71,'Asset data'!$CX71:$GJ71)/H71-0.5,0) -> 0 | N71: 0 | O71: =IF($A71>0,'Asset data'!G71,0) -> 0 | P71: 0 | Q71: 0 | R71: 0 | S71: 0 | T71: 0 | U71: 0 | W71: =IF($A71>0,SUMIF('Age profile (years)'!$CT71:$GF71,"<" & R71+0.5,'Asset data'!$CX71:$GJ71),0) -> 0 | X71: =IF($A71>0,SUMIF('Age profile (years)'!$CT71:$GF71,"<" & S71+0.5,'Asset data'!$CX71:$GJ71)-W71,0) -> 0 | Y71: =IF($A71>0,SUMIF('Age profile (years)'!$CT71:$GF71,"<" & T71+0.5,'Asset data'!$CX71:$GJ71)-X71-W71,0) -> 0 | Z71: =IF($A71>0,SUMIF('Age profile (years)'!$CT71:$GF71,"<" & U71+0.5,'Asset data'!$CX71:$GJ71)-Y71-X71-W71,0) -> 0 | AA71: 0 | AB71: 0 | AC71: 0 | AD71: 0 | AE71: 0 | AF71: 0 | AI71: =IF($A71>0,'RRR hist-forc'!K71,0) -> 0 | AJ71: 0
A72: ='Asset data'!A72 -> 0 | B72: ='Asset data'!B72 -> 0 | C72: ='Asset data'!C72 -> 0 | D72: ='Asset data'!E72 -> > 11 KV & < = 22 KV ; COMMERCIAL & INDUSTRIAL | E72: 0 | F72: =IF(A72>0,SUM('Asset data'!J72:CV72),0) -> 0 | G72: =IF(A72>0,'Asset data'!F72,0) -> 0 | H72: =IF(A72>0,SUM('Asset data'!CX72:GJ72),0) -> 0 | I72: 0 | J72: 0 | K72: 0 | L72: 0 | M72: =IF($A72>0,SUMPRODUCT('Age profile (years)'!$CT72:$GF72,'Asset data'!$CX72:$GJ72)/H72-0.5,0) -> 0 | N72: 0 | O72: =IF($A72>0,'Asset data'!G72,0) -> 0 | P72: 0 | Q72: 0 | R72: 0 | S72: 0 | T72: 0 | U72: 0 | W72: =IF($A72>0,SUMIF('Age profile (years)'!$CT72:$GF72,"<" & R72+0.5,'Asset data'!$CX72:$GJ72),0) -> 0 | X72: =IF($A72>0,SUMIF('Age profile (years)'!$CT72:$GF72,"<" & S72+0.5,'Asset data'!$CX72:$GJ72)-W72,0) -> 0 | Y72: =IF($A72>0,SUMIF('Age profile (years)'!$CT72:$GF72,"<" & T72+0.5,'Asset data'!$CX72:$GJ72)-X72-W72,0) -> 0 | Z72: =IF($A72>0,SUMIF('Age profile (years)'!$CT72:$GF72,"<" & U72+0.5,'Asset data'!$CX72:$GJ72)-Y72-X72-W72,0) -> 0 | AA72: 0 | AB72: 0 | AC72: 0 | AD72: 0 | AE72: 0 | AF72: 0 | AI72: =IF($A72>0,'RRR hist-forc'!K72,0) -> 0 | AJ72: 0
A73: ='Asset data'!A73 -> 0 | B73: ='Asset data'!B73 -> 0 | C73: ='Asset data'!C73 -> 0 | D73: ='Asset data'!E73 -> > 11 KV & < = 22 KV ; SUBDIVISION | E73: 0 | F73: =IF(A73>0,SUM('Asset data'!J73:CV73),0) -> 0 | G73: =IF(A73>0,'Asset data'!F73,0) -> 0 | H73: =IF(A73>0,SUM('Asset data'!CX73:GJ73),0) -> 0 | I73: 0 | J73: 0 | K73: 0 | L73: 0 | M73: =IF($A73>0,SUMPRODUCT('Age profile (years)'!$CT73:$GF73,'Asset data'!$CX73:$GJ73)/H73-0.5,0) -> 0 | N73: 0 | O73: =IF($A73>0,'Asset data'!G73,0) -> 0 | P73: 0 | Q73: 0 | R73: 0 | S73: 0 | T73: 0 | U73: 0 | W73: =IF($A73>0,SUMIF('Age profile (years)'!$CT73:$GF73,"<" & R73+0.5,'Asset data'!$CX73:$GJ73),0) -> 0 | X73: =IF($A73>0,SUMIF('Age profile (years)'!$CT73:$GF73,"<" & S73+0.5,'Asset data'!$CX73:$GJ73)-W73,0) -> 0 | Y73: =IF($A73>0,SUMIF('Age profile (years)'!$CT73:$GF73,"<" & T73+0.5,'Asset data'!$CX73:$GJ73)-X73-W73,0) -> 0 | Z73: =IF($A73>0,SUMIF('Age profile (years)'!$CT73:$GF73,"<" & U73+0.5,'Asset data'!$CX73:$GJ73)-Y73-X73-W73,0) -> 0 | AA73: 0 | AB73: 0 | AC73: 0 | AD73: 0 | AE73: 0 | AF73: 0 | AI73: =IF($A73>0,'RRR hist-forc'!K73,0) -> 0 | AJ73: 0
A74: ='Asset data'!A74 -> 0 | B74: ='Asset data'!B74 -> 0 | C74: ='Asset data'!C74 -> 0 | D74: ='Asset data'!E74 -> > 22 KV & < = 33 KV ; COMMERCIAL & INDUSTRIAL | E74: 0 | F74: =IF(A74>0,SUM('Asset data'!J74:CV74),0) -> 0 | G74: =IF(A74>0,'Asset data'!F74,0) -> 0 | H74: =IF(A74>0,SUM('Asset data'!CX74:GJ74),0) -> 0 | I74: 0 | J74: 0 | K74: 0 | L74: 0 | M74: =IF($A74>0,SUMPRODUCT('Age profile (years)'!$CT74:$GF74,'Asset data'!$CX74:$GJ74)/H74-0.5,0) -> 0 | N74: 0 | O74: =IF($A74>0,'Asset data'!G74,0) -> 0 | P74: 0 | Q74: 0 | R74: 0 | S74: 0 | T74: 0 | U74: 0 | W74: =IF($A74>0,SUMIF('Age profile (years)'!$CT74:$GF74,"<" & R74+0.5,'Asset data'!$CX74:$GJ74),0) -> 0 | X74: =IF($A74>0,SUMIF('Age profile (years)'!$CT74:$GF74,"<" & S74+0.5,'Asset data'!$CX74:$GJ74)-W74,0) -> 0 | Y74: =IF($A74>0,SUMIF('Age profile (years)'!$CT74:$GF74,"<" & T74+0.5,'Asset data'!$CX74:$GJ74)-X74-W74,0) -> 0 | Z74: =IF($A74>0,SUMIF('Age profile (years)'!$CT74:$GF74,"<" & U74+0.5,'Asset data'!$CX74:$GJ74)-Y74-X74-W74,0) -> 0 | AA74: 0 | AB74: 0 | AC74: 0 | AD74: 0 | AE74: 0 | AF74: 0 | AI74: =IF($A74>0,'RRR hist-forc'!K74,0) -> 0 | AJ74: 0
A75: ='Asset data'!A75 -> 0 | B75: ='Asset data'!B75 -> 0 | C75: ='Asset data'!C75 -> 0 | D75: ='Asset data'!E75 -> > 22 KV & < = 33 KV ; SUBDIVISION | E75: 0 | F75: =IF(A75>0,SUM('Asset data'!J75:CV75),0) -> 0 | G75: =IF(A75>0,'Asset data'!F75,0) -> 0 | H75: =IF(A75>0,SUM('Asset data'!CX75:GJ75),0) -> 0 | I75: 0 | J75: 0 | K75: 0 | L75: 0 | M75: =IF($A75>0,SUMPRODUCT('Age profile (years)'!$CT75:$GF75,'Asset data'!$CX75:$GJ75)/H75-0.5,0) -> 0 | N75: 0 | O75: =IF($A75>0,'Asset data'!G75,0) -> 0 | P75: 0 | Q75: 0 | R75: 0 | S75: 0 | T75: 0 | U75: 0 | W75: =IF($A75>0,SUMIF('Age profile (years)'!$CT75:$GF75,"<" & R75+0.5,'Asset data'!$CX75:$GJ75),0) -> 0 | X75: =IF($A75>0,SUMIF('Age profile (years)'!$CT75:$GF75,"<" & S75+0.5,'Asset data'!$CX75:$GJ75)-W75,0) -> 0 | Y75: =IF($A75>0,SUMIF('Age profile (years)'!$CT75:$GF75,"<" & T75+0.5,'Asset data'!$CX75:$GJ75)-X75-W75,0) -> 0 | Z75: =IF($A75>0,SUMIF('Age profile (years)'!$CT75:$GF75,"<" & U75+0.5,'Asset data'!$CX75:$GJ75)-Y75-X75-W75,0) -> 0 | AA75: 0 | AB75: 0 | AC75: 0 | AD75: 0 | AE75: 0 | AF75: 0 | AI75: =IF($A75>0,'RRR hist-forc'!K75,0) -> 0 | AJ75: 0
A76: ='Asset data'!A76 -> 0 | B76: ='Asset data'!B76 -> 0 | C76: ='Asset data'!C76 -> 0 | D76: ='Asset data'!E76 -> > 33 KV & < = 66 KV ; COMMERCIAL & INDUSTRIAL | E76: 0 | F76: =IF(A76>0,SUM('Asset data'!J76:CV76),0) -> 0 | G76: =IF(A76>0,'Asset data'!F76,0) -> 0 | H76: =IF(A76>0,SUM('Asset data'!CX76:GJ76),0) -> 0 | I76: 0 | J76: 0 | K76: 0 | L76: 0 | M76: =IF($A76>0,SUMPRODUCT('Age profile (years)'!$CT76:$GF76,'Asset data'!$CX76:$GJ76)/H76-0.5,0) -> 0 | N76: 0 | O76: =IF($A76>0,'Asset data'!G76,0) -> 0 | P76: 0 | Q76: 0 | R76: 0 | S76: 0 | T76: 0 | U76: 0 | W76: =IF($A76>0,SUMIF('Age profile (years)'!$CT76:$GF76,"<" & R76+0.5,'Asset data'!$CX76:$GJ76),0) -> 0 | X76: =IF($A76>0,SUMIF('Age profile (years)'!$CT76:$GF76,"<" & S76+0.5,'Asset data'!$CX76:$GJ76)-W76,0) -> 0 | Y76: =IF($A76>0,SUMIF('Age profile (years)'!$CT76:$GF76,"<" & T76+0.5,'Asset data'!$CX76:$GJ76)-X76-W76,0) -> 0 | Z76: =IF($A76>0,SUMIF('Age profile (years)'!$CT76:$GF76,"<" & U76+0.5,'Asset data'!$CX76:$GJ76)-Y76-X76-W76,0) -> 0 | AA76: 0 | AB76: 0 | AC76: 0 | AD76: 0 | AE76: 0 | AF76: 0 | AI76: =IF($A76>0,'RRR hist-forc'!K76,0) -> 0 | AJ76: 0
A77: ='Asset data'!A77 -> 0 | B77: ='Asset data'!B77 -> 0 | C77: ='Asset data'!C77 -> 0 | D77: ='Asset data'!E77 -> > 33 KV & < = 66 KV ; SUBDIVISION | E77: 0 | F77: =IF(A77>0,SUM('Asset data'!J77:CV77),0) -> 0 | G77: =IF(A77>0,'Asset data'!F77,0) -> 0 | H77: =IF(A77>0,SUM('Asset data'!CX77:GJ77),0) -> 0 | I77: 0 | J77: 0 | K77: 0 | L77: 0 | M77: =IF($A77>0,SUMPRODUCT('Age profile (years)'!$CT77:$GF77,'Asset data'!$CX77:$GJ77)/H77-0.5,0) -> 0 | N77: 0 | O77: =IF($A77>0,'Asset data'!G77,0) -> 0 | P77: 0 | Q77: 0 | R77: 0 | S77: 0 | T77: 0 | U77: 0 | W77: =IF($A77>0,SUMIF('Age profile (years)'!$CT77:$GF77,"<" & R77+0.5,'Asset data'!$CX77:$GJ77),0) -> 0 | X77: =IF($A77>0,SUMIF('Age profile (years)'!$CT77:$GF77,"<" & S77+0.5,'Asset data'!$CX77:$GJ77)-W77,0) -> 0 | Y77: =IF($A77>0,SUMIF('Age profile (years)'!$CT77:$GF77,"<" & T77+0.5,'Asset data'!$CX77:$GJ77)-X77-W77,0) -> 0 | Z77: =IF($A77>0,SUMIF('Age profile (years)'!$CT77:$GF77,"<" & U77+0.5,'Asset data'!$CX77:$GJ77)-Y77-X77-W77,0) -> 0 | AA77: 0 | AB77: 0 | AC77: 0 | AD77: 0 | AE77: 0 | AF77: 0 | AI77: =IF($A77>0,'RRR hist-forc'!K77,0) -> 0 | AJ77: 0
A78: ='Asset data'!A78 -> 0 | B78: ='Asset data'!B78 -> 0 | C78: ='Asset data'!C78 -> 0 | D78: ='Asset data'!E78 -> > 66 KV & < = 132 KV ; COMMERCIAL & INDUSTRIAL | E78: 0 | F78: =IF(A78>0,SUM('Asset data'!J78:CV78),0) -> 0 | G78: =IF(A78>0,'Asset data'!F78,0) -> 0 | H78: =IF(A78>0,SUM('Asset data'!CX78:GJ78),0) -> 0 | I78: 0 | J78: 0 | K78: 0 | L78: 0 | M78: =IF($A78>0,SUMPRODUCT('Age profile (years)'!$CT78:$GF78,'Asset data'!$CX78:$GJ78)/H78-0.5,0) -> 0 | N78: 0 | O78: =IF($A78>0,'Asset data'!G78,0) -> 0 | P78: 0 | Q78: 0 | R78: 0 | S78: 0 | T78: 0 | U78: 0 | W78: =IF($A78>0,SUMIF('Age profile (years)'!$CT78:$GF78,"<" & R78+0.5,'Asset data'!$CX78:$GJ78),0) -> 0 | X78: =IF($A78>0,SUMIF('Age profile (years)'!$CT78:$GF78,"<" & S78+0.5,'Asset data'!$CX78:$GJ78)-W78,0) -> 0 | Y78: =IF($A78>0,SUMIF('Age profile (years)'!$CT78:$GF78,"<" & T78+0.5,'Asset data'!$CX78:$GJ78)-X78-W78,0) -> 0 | Z78: =IF($A78>0,SUMIF('Age profile (years)'!$CT78:$GF78,"<" & U78+0.5,'Asset data'!$CX78:$GJ78)-Y78-X78-W78,0) -> 0 | AA78: 0 | AB78: 0 | AC78: 0 | AD78: 0 | AE78: 0 | AF78: 0 | AI78: =IF($A78>0,'RRR hist-forc'!K78,0) -> 0 | AJ78: 0
A79: ='Asset data'!A79 -> 0 | B79: ='Asset data'!B79 -> 0 | C79: ='Asset data'!C79 -> 0 | D79: ='Asset data'!E79 -> > 66 KV & < = 132 KV ; SUBDIVISION | E79: 0 | F79: =IF(A79>0,SUM('Asset data'!J79:CV79),0) -> 0 | G79: =IF(A79>0,'Asset data'!F79,0) -> 0 | H79: =IF(A79>0,SUM('Asset data'!CX79:GJ79),0) -> 0 | I79: 0 | J79: 0 | K79: 0 | L79: 0 | M79: =IF($A79>0,SUMPRODUCT('Age profile (years)'!$CT79:$GF79,'Asset data'!$CX79:$GJ79)/H79-0.5,0) -> 0 | N79: 0 | O79: =IF($A79>0,'Asset data'!G79,0) -> 0 | P79: 0 | Q79: 0 | R79: 0 | S79: 0 | T79: 0 | U79: 0 | W79: =IF($A79>0,SUMIF('Age profile (years)'!$CT79:$GF79,"<" & R79+0.5,'Asset data'!$CX79:$GJ79),0) -> 0 | X79: =IF($A79>0,SUMIF('Age profile (years)'!$CT79:$GF79,"<" & S79+0.5,'Asset data'!$CX79:$GJ79)-W79,0) -> 0 | Y79: =IF($A79>0,SUMIF('Age profile (years)'!$CT79:$GF79,"<" & T79+0.5,'Asset data'!$CX79:$GJ79)-X79-W79,0) -> 0 | Z79: =IF($A79>0,SUMIF('Age profile (years)'!$CT79:$GF79,"<" & U79+0.5,'Asset data'!$CX79:$GJ79)-Y79-X79-W79,0) -> 0 | AA79: 0 | AB79: 0 | AC79: 0 | AD79: 0 | AE79: 0 | AF79: 0 | AI79: =IF($A79>0,'RRR hist-forc'!K79,0) -> 0 | AJ79: 0
A80: ='Asset data'!A80 -> 0 | B80: ='Asset data'!B80 -> 0 | C80: ='Asset data'!C80 -> 0 | D80: ='Asset data'!E80 -> > 132 KV ; COMMERCIAL & INDUSTRIAL | E80: 0 | F80: =IF(A80>0,SUM('Asset data'!J80:CV80),0) -> 0 | G80: =IF(A80>0,'Asset data'!F80,0) -> 0 | H80: =IF(A80>0,SUM('Asset data'!CX80:GJ80),0) -> 0 | I80: 0 | J80: 0 | K80: 0 | L80: 0 | M80: =IF($A80>0,SUMPRODUCT('Age profile (years)'!$CT80:$GF80,'Asset data'!$CX80:$GJ80)/H80-0.5,0) -> 0 | N80: 0 | O80: =IF($A80>0,'Asset data'!G80,0) -> 0 | P80: 0 | Q80: 0 | R80: 0 | S80: 0 | T80: 0 | U80: 0 | W80: =IF($A80>0,SUMIF('Age profile (years)'!$CT80:$GF80,"<" & R80+0.5,'Asset data'!$CX80:$GJ80),0) -> 0 | X80: =IF($A80>0,SUMIF('Age profile (years)'!$CT80:$GF80,"<" & S80+0.5,'Asset data'!$CX80:$GJ80)-W80,0) -> 0 | Y80: =IF($A80>0,SUMIF('Age profile (years)'!$CT80:$GF80,"<" & T80+0.5,'Asset data'!$CX80:$GJ80)-X80-W80,0) -> 0 | Z80: =IF($A80>0,SUMIF('Age profile (years)'!$CT80:$GF80,"<" & U80+0.5,'Asset data'!$CX80:$GJ80)-Y80-X80-W80,0) -> 0 | AA80: 0 | AB80: 0 | AC80: 0 | AD80: 0 | AE80: 0 | AF80: 0 | AI80: =IF($A80>0,'RRR hist-forc'!K80,0) -> 0 | AJ80: 0
A81: ='Asset data'!A81 -> 0 | B81: ='Asset data'!B81 -> 0 | C81: ='Asset data'!C81 -> 0 | D81: ='Asset data'!E81 -> > 132 KV ; SUBDIVISION | E81: 0 | F81: =IF(A81>0,SUM('Asset data'!J81:CV81),0) -> 0 | G81: =IF(A81>0,'Asset data'!F81,0) -> 0 | H81: =IF(A81>0,SUM('Asset data'!CX81:GJ81),0) -> 0 | I81: 0 | J81: 0 | K81: 0 | L81: 0 | M81: =IF($A81>0,SUMPRODUCT('Age profile (years)'!$CT81:$GF81,'Asset data'!$CX81:$GJ81)/H81-0.5,0) -> 0 | N81: 0 | O81: =IF($A81>0,'Asset data'!G81,0) -> 0 | P81: 0 | Q81: 0 | R81: 0 | S81: 0 | T81: 0 | U81: 0 | W81: =IF($A81>0,SUMIF('Age profile (years)'!$CT81:$GF81,"<" & R81+0.5,'Asset data'!$CX81:$GJ81),0) -> 0 | X81: =IF($A81>0,SUMIF('Age profile (years)'!$CT81:$GF81,"<" & S81+0.5,'Asset data'!$CX81:$GJ81)-W81,0) -> 0 | Y81: =IF($A81>0,SUMIF('Age profile (years)'!$CT81:$GF81,"<" & T81+0.5,'Asset data'!$CX81:$GJ81)-X81-W81,0) -> 0 | Z81: =IF($A81>0,SUMIF('Age profile (years)'!$CT81:$GF81,"<" & U81+0.5,'Asset data'!$CX81:$GJ81)-Y81-X81-W81,0) -> 0 | AA81: 0 | AB81: 0 | AC81: 0 | AD81: 0 | AE81: 0 | AF81: 0 | AI81: =IF($A81>0,'RRR hist-forc'!K81,0) -> 0 | AJ81: 0
A82: ='Asset data'!A82 -> 0 | B82: ='Asset data'!B82 -> 0 | C82: ='Asset data'!C82 -> 0 | D82: ='Asset data'!E82 -> OTHER | E82: 0 | F82: =IF(A82>0,SUM('Asset data'!J82:CV82),0) -> 0 | G82: =IF(A82>0,'Asset data'!F82,0) -> 0 | H82: =IF(A82>0,SUM('Asset data'!CX82:GJ82),0) -> 0 | I82: 0 | J82: 0 | K82: 0 | L82: 0 | M82: =IF($A82>0,SUMPRODUCT('Age profile (years)'!$CT82:$GF82,'Asset data'!$CX82:$GJ82)/H82-0.5,0) -> 0 | N82: 0 | O82: =IF($A82>0,'Asset data'!G82,0) -> 0 | P82: 0 | Q82: 0 | R82: 0 | S82: 0 | T82: 0 | U82: 0 | W82: =IF($A82>0,SUMIF('Age profile (years)'!$CT82:$GF82,"<" & R82+0.5,'Asset data'!$CX82:$GJ82),0) -> 0 | X82: =IF($A82>0,SUMIF('Age profile (years)'!$CT82:$GF82,"<" & S82+0.5,'Asset data'!$CX82:$GJ82)-W82,0) -> 0 | Y82: =IF($A82>0,SUMIF('Age profile (years)'!$CT82:$GF82,"<" & T82+0.5,'Asset data'!$CX82:$GJ82)-X82-W82,0) -> 0 | Z82: =IF($A82>0,SUMIF('Age profile (years)'!$CT82:$GF82,"<" & U82+0.5,'Asset data'!$CX82:$GJ82)-Y82-X82-W82,0) -> 0 | AA82: 0 | AB82: 0 | AC82: 0 | AD82: 0 | AE82: 0 | AF82: 0 | AI82: =IF($A82>0,'RRR hist-forc'!K82,0) -> 0 | AJ82: 0
A83: ='Asset data'!A83 -> 5 | B83: ='Asset data'!B83 -> 0 | C83: ='Asset data'!C83 -> 0 | D83: ='Asset data'!E83 -> POLE MOUNTED ; < = 22KV ; < = 60 KVA ; SINGLE PHASE | E83: TRANSFORMERS | F83: =IF(A83>0,SUM('Asset data'!J83:CV83),0) -> 1362 | G83: =IF(A83>0,'Asset data'!F83,0) -> 6.267732106 | H83: =IF(A83>0,SUM('Asset data'!CX83:GJ83),0) -> 8536.651128 | I83: 0.001371761536 | J83: 33 | K83: 0.01505937814 | L83: 6.267732106 | M83: =IF($A83>0,SUMPRODUCT('Age profile (years)'!$CT83:$GF83,'Asset data'!$CX83:$GJ83)/H83-0.5,0) -> 19.98825257 | N83: 170632.7389 | O83: =IF($A83>0,'Asset data'!G83,0) -> 44.34438882 | P83: 378552.5768 | Q83: 0.5492495645 | R83: 4.434438882 | S83: 8.868877764 | T83: 26.60663329 | U83: 35.47551105 | W83: =IF($A83>0,SUMIF('Age profile (years)'!$CT83:$GF83,"<" & R83+0.5,'Asset data'!$CX83:$GJ83),0) -> 557.8281574 | X83: =IF($A83>0,SUMIF('Age profile (years)'!$CT83:$GF83,"<" & S83+0.5,'Asset data'!$CX83:$GJ83)-W83,0) -> 695.7182638 | Y83: =IF($A83>0,SUMIF('Age profile (years)'!$CT83:$GF83,"<" & T83+0.5,'Asset data'!$CX83:$GJ83)-X83-W83,0) -> 4838.689186 | Z83: =IF($A83>0,SUMIF('Age profile (years)'!$CT83:$GF83,"<" & U83+0.5,'Asset data'!$CX83:$GJ83)-Y83-X83-W83,0) -> 1153.262708 | AA83: 1291.152814 | AB83: 0.06534508076 | AC83: 0.08149779736 | AD83: 0.5668135095 | AE83: 0.1350954479 | AF83: 0.1512481645 | AI83: =IF($A83>0,'RRR hist-forc'!K83,0) -> 44.34438882 | AJ83: 378552.5768
A84: ='Asset data'!A84 -> 5 | B84: ='Asset data'!B84 -> 0 | C84: ='Asset data'!C84 -> 0 | D84: ='Asset data'!E84 -> POLE MOUNTED ; < = 22KV ; > 60 KVA AND < = 600 KVA ; SINGLE PHASE | E84: TRANSFORMERS | F84: =IF(A84>0,SUM('Asset data'!J84:CV84),0) -> 98 | G84: =IF(A84>0,'Asset data'!F84,0) -> 5.562309359 | H84: =IF(A84>0,SUM('Asset data'!CX84:GJ84),0) -> 545.1063171 | I84: 8.759358532e-05 | J84: 44 | K84: 0.000961613873 | L84: 5.562309359 | M84: =IF($A84>0,SUMPRODUCT('Age profile (years)'!$CT84:$GF84,'Asset data'!$CX84:$GJ84)/H84-0.5,0) -> 17.91836735 | N84: 9767.415234 | O84: =IF($A84>0,'Asset data'!G84,0) -> 32.69898997 | P84: 17824.42599 | Q84: 0.4520207699 | R84: 3.269898997 | S84: 6.539797993 | T84: 19.61939398 | U84: 26.15919197 | W84: =IF($A84>0,SUMIF('Age profile (years)'!$CT84:$GF84,"<" & R84+0.5,'Asset data'!$CX84:$GJ84),0) -> 44.49847487 | X84: =IF($A84>0,SUMIF('Age profile (years)'!$CT84:$GF84,"<" & S84+0.5,'Asset data'!$CX84:$GJ84)-W84,0) -> 50.06078423 | Y84: =IF($A84>0,SUMIF('Age profile (years)'!$CT84:$GF84,"<" & T84+0.5,'Asset data'!$CX84:$GJ84)-X84-W84,0) -> 189.1185182 | Z84: =IF($A84>0,SUMIF('Age profile (years)'!$CT84:$GF84,"<" & U84+0.5,'Asset data'!$CX84:$GJ84)-Y84-X84-W84,0) -> 127.9331152 | AA84: 133.4954246 | AB84: 0.08163265306 | AC84: 0.09183673469 | AD84: 0.3469387755 | AE84: 0.2346938776 | AF84: 0.2448979592 | AI84: =IF($A84>0,'RRR hist-forc'!K84,0) -> 32.69898997 | AJ84: 17824.42599
A85: ='Asset data'!A85 -> 0 | B85: ='Asset data'!B85 -> 0 | C85: ='Asset data'!C85 -> 0 | D85: ='Asset data'!E85 -> POLE MOUNTED ; < = 22KV ; > 600 KVA ; SINGLE PHASE | E85: 0 | F85: =IF(A85>0,SUM('Asset data'!J85:CV85),0) -> 0 | G85: =IF(A85>0,'Asset data'!F85,0) -> 0 | H85: =IF(A85>0,SUM('Asset data'!CX85:GJ85),0) -> 0 | I85: 0 | J85: 0 | K85: 0 | L85: 0 | M85: =IF($A85>0,SUMPRODUCT('Age profile (years)'!$CT85:$GF85,'Asset data'!$CX85:$GJ85)/H85-0.5,0) -> 0 | N85: 0 | O85: =IF($A85>0,'Asset data'!G85,0) -> 0 | P85: 0 | Q85: 0 | R85: 0 | S85: 0 | T85: 0 | U85: 0 | W85: =IF($A85>0,SUMIF('Age profile (years)'!$CT85:$GF85,"<" & R85+0.5,'Asset data'!$CX85:$GJ85),0) -> 0 | X85: =IF($A85>0,SUMIF('Age profile (years)'!$CT85:$GF85,"<" & S85+0.5,'Asset data'!$CX85:$GJ85)-W85,0) -> 0 | Y85: =IF($A85>0,SUMIF('Age profile (years)'!$CT85:$GF85,"<" & T85+0.5,'Asset data'!$CX85:$GJ85)-X85-W85,0) -> 0 | Z85: =IF($A85>0,SUMIF('Age profile (years)'!$CT85:$GF85,"<" & U85+0.5,'Asset data'!$CX85:$GJ85)-Y85-X85-W85,0) -> 0 | AA85: 0 | AB85: 0 | AC85: 0 | AD85: 0 | AE85: 0 | AF85: 0 | AI85: =IF($A85>0,'RRR hist-forc'!K85,0) -> 0 | AJ85: 0
A86: ='Asset data'!A86 -> 5 | B86: ='Asset data'!B86 -> 0 | C86: ='Asset data'!C86 -> 0 | D86: ='Asset data'!E86 -> POLE MOUNTED ; < = 22KV ; < = 60 KVA ; MULTIPLE PHASE | E86: TRANSFORMERS | F86: =IF(A86>0,SUM('Asset data'!J86:CV86),0) -> 684 | G86: =IF(A86>0,'Asset data'!F86,0) -> 8.41713362 | H86: =IF(A86>0,SUM('Asset data'!CX86:GJ86),0) -> 5757.319396 | I86: 0.0009251484194 | J86: 36 | K86: 0.01015640074 | L86: 8.41713362 | M86: =IF($A86>0,SUMPRODUCT('Age profile (years)'!$CT86:$GF86,'Asset data'!$CX86:$GJ86)/H86-0.5,0) -> 24.25438596 | N86: 139640.2468 | O86: =IF($A86>0,'Asset data'!G86,0) -> 48.8810485 | P86: 281423.8086 | Q86: 0.5038079847 | R86: 4.88810485 | S86: 9.7762097 | T86: 29.3286291 | U86: 39.1048388 | W86: =IF($A86>0,SUMIF('Age profile (years)'!$CT86:$GF86,"<" & R86+0.5,'Asset data'!$CX86:$GJ86),0) -> 387.1881465 | X86: =IF($A86>0,SUMIF('Age profile (years)'!$CT86:$GF86,"<" & S86+0.5,'Asset data'!$CX86:$GJ86)-W86,0) -> 260.9311422 | Y86: =IF($A86>0,SUMIF('Age profile (years)'!$CT86:$GF86,"<" & T86+0.5,'Asset data'!$CX86:$GJ86)-X86-W86,0) -> 3131.173707 | Z86: =IF($A86>0,SUMIF('Age profile (years)'!$CT86:$GF86,"<" & U86+0.5,'Asset data'!$CX86:$GJ86)-Y86-X86-W86,0) -> 1346.741379 | AA86: 631.2850215 | AB86: 0.06725146199 | AC86: 0.04532163743 | AD86: 0.5438596491 | AE86: 0.2339181287 | AF86: 0.1096491228 | AI86: =IF($A86>0,'RRR hist-forc'!K86,0) -> 48.8810485 | AJ86: 281423.8086
A87: ='Asset data'!A87 -> 5 | B87: ='Asset data'!B87 -> 0 | C87: ='Asset data'!C87 -> 0 | D87: ='Asset data'!E87 -> POLE MOUNTED ; < = 22KV ; > 60 KVA AND < = 600 KVA ; MULTIPLE PHASE | E87: =IF(A87>0,VLOOKUP(A87,IDtable,2),0) -> TRANSFORMERS | F87: =IF(A87>0,SUM('Asset data'!J87:CV87),0) -> 7114 | G87: =IF(A87>0,'Asset data'!F87,0) -> 12.24567959 | H87: =IF(A87>0,SUM('Asset data'!CX87:GJ87),0) -> 87115.76459 | I87: =H87/$H$18/1000 -> 0.01399870432 | J87: =IF(RANK(0,I$21:I$205)=RANK(I87,I$21:I$205),0,RANK(I87,I$21:I$205)) -> 15 | K87: =IF(A87>0,H87/(VLOOKUP(A87,$A$6:$H$17,8)*1000),0) -> 0.1536796129 | L87: =IF($A87>0,H87/F87,0) -> 12.24567959 | M87: =IF($A87>0,SUMPRODUCT('Age profile (years)'!$CT87:$GF87,'Asset data'!$CX87:$GJ87)/H87-0.5,0) -> 30.11020523 | N87: =IF($A87>0,M87*H87,0) -> 2623073.55 | O87: =IF($A87>0,'Asset data'!G87,0) -> 48.74079052 | P87: =IF($A87>0,H87*O87,0) -> 4246091.233 | Q87: =IF($A87>0,(O87-M87)/O87,0) -> 0.3822380616 | R87: 4.874079052 | S87: 9.748158104 | T87: 29.24447431 | U87: 38.99263242 | W87: =IF($A87>0,SUMIF('Age profile (years)'!$CT87:$GF87,"<" & R87+0.5,'Asset data'!$CX87:$GJ87),0) -> 6012.628678 | X87: =IF($A87>0,SUMIF('Age profile (years)'!$CT87:$GF87,"<" & S87+0.5,'Asset data'!$CX87:$GJ87)-W87,0) -> 4151.28538 | Y87: =IF($A87>0,SUMIF('Age profile (years)'!$CT87:$GF87,"<" & T87+0.5,'Asset data'!$CX87:$GJ87)-X87-W87,0) -> 26634.3531 | Z87: =IF($A87>0,SUMIF('Age profile (years)'!$CT87:$GF87,"<" & U87+0.5,'Asset data'!$CX87:$GJ87)-Y87-X87-W87,0) -> 15796.92667 | AA87: =IF($A87>0,H87-Z87-Y87-X87-W87,0) -> 34520.57076 | AB87: =IF($A87>0,W87/$H87,0) -> 0.0690188361 | AC87: =IF($A87>0,X87/$H87,0) -> 0.04765251617 | AD87: =IF($A87>0,Y87/$H87,0) -> 0.3057351701 | AE87: =IF($A87>0,Z87/$H87,0) -> 0.1813325836 | AF87: =IF($A87>0,AA87/$H87,0) -> 0.396260894 | AI87: =IF($A87>0,'RRR hist-forc'!K87,0) -> 48.74079052 | AJ87: =IF($A87>0,AI87*H87,0) -> 4246091.233
A88: ='Asset data'!A88 -> 5 | B88: ='Asset data'!B88 -> 0 | C88: ='Asset data'!C88 -> 0 | D88: ='Asset data'!E88 -> POLE MOUNTED ; < = 22KV ; > 600 KVA ; MULTIPLE PHASE | E88: TRANSFORMERS | F88: =IF(A88>0,SUM('Asset data'!J88:CV88),0) -> 4 | G88: =IF(A88>0,'Asset data'!F88,0) -> 46.04419824 | H88: =IF(A88>0,SUM('Asset data'!CX88:GJ88),0) -> 184.176793 | I88: 2.959552132e-05 | J88: 48 | K88: 0.0003249035163 | L88: 46.04419824 | M88: =IF($A88>0,SUMPRODUCT('Age profile (years)'!$CT88:$GF88,'Asset data'!$CX88:$GJ88)/H88-0.5,0) -> 7.25 | N88: 1335.281749 | O88: =IF($A88>0,'Asset data'!G88,0) -> 42.42280992 | P88: 7813.29708 | Q88: 0.8291013723 | R88: 4.242280992 | S88: 8.484561985 | T88: 25.45368595 | U88: 33.93824794 | W88: =IF($A88>0,SUMIF('Age profile (years)'!$CT88:$GF88,"<" & R88+0.5,'Asset data'!$CX88:$GJ88),0) -> 138.1325947 | X88: =IF($A88>0,SUMIF('Age profile (years)'!$CT88:$GF88,"<" & S88+0.5,'Asset data'!$CX88:$GJ88)-W88,0) -> 0 | Y88: =IF($A88>0,SUMIF('Age profile (years)'!$CT88:$GF88,"<" & T88+0.5,'Asset data'!$CX88:$GJ88)-X88-W88,0) -> 0 | Z88: =IF($A88>0,SUMIF('Age profile (years)'!$CT88:$GF88,"<" & U88+0.5,'Asset data'!$CX88:$GJ88)-Y88-X88-W88,0) -> 46.04419824 | AA88: 0 | AB88: 0.75 | AC88: 0 | AD88: 0 | AE88: 0.25 | AF88: 0 | AI88: =IF($A88>0,'RRR hist-forc'!K88,0) -> 42.42280992 | AJ88: 7813.29708
A89: ='Asset data'!A89 -> 5 | B89: ='Asset data'!B89 -> 0 | C89: ='Asset data'!C89 -> 0 | D89: ='Asset data'!E89 -> KIOSK MOUNTED ; < = 22KV ; < = 60 KVA ; SINGLE PHASE | E89: TRANSFORMERS | F89: =IF(A89>0,SUM('Asset data'!J89:CV89),0) -> 1 | G89: =IF(A89>0,'Asset data'!F89,0) -> 30.08150727 | H89: =IF(A89>0,SUM('Asset data'!CX89:GJ89),0) -> 30.08150727 | I89: 4.833822303e-06 | J89: 56 | K89: 5.30663355e-05 | L89: 30.08150727 | M89: =IF($A89>0,SUMPRODUCT('Age profile (years)'!$CT89:$GF89,'Asset data'!$CX89:$GJ89)/H89-0.5,0) -> 40.5 | N89: 1218.301044 | O89: =IF($A89>0,'Asset data'!G89,0) -> 54.71187854 | P89: 1645.815772 | Q89: 0.2597585556 | R89: 5.471187854 | S89: 10.94237571 | T89: 32.82712713 | U89: 43.76950283 | W89: =IF($A89>0,SUMIF('Age profile (years)'!$CT89:$GF89,"<" & R89+0.5,'Asset data'!$CX89:$GJ89),0) -> 0 | X89: =IF($A89>0,SUMIF('Age profile (years)'!$CT89:$GF89,"<" & S89+0.5,'Asset data'!$CX89:$GJ89)-W89,0) -> 0 | Y89: =IF($A89>0,SUMIF('Age profile (years)'!$CT89:$GF89,"<" & T89+0.5,'Asset data'!$CX89:$GJ89)-X89-W89,0) -> 0 | Z89: =IF($A89>0,SUMIF('Age profile (years)'!$CT89:$GF89,"<" & U89+0.5,'Asset data'!$CX89:$GJ89)-Y89-X89-W89,0) -> 30.08150727 | AA89: 0 | AB89: 0 | AC89: 0 | AD89: 0 | AE89: 1 | AF89: 0 | AI89: =IF($A89>0,'RRR hist-forc'!K89,0) -> 54.71187854 | AJ89: 1645.815772
A90: ='Asset data'!A90 -> 5 | B90: ='Asset data'!B90 -> 0 | C90: ='Asset data'!C90 -> 0 | D90: ='Asset data'!E90 -> KIOSK MOUNTED ; < = 22KV ; > 60 KVA AND < = 600 KVA ; SINGLE PHASE | E90: TRANSFORMERS | F90: =IF(A90>0,SUM('Asset data'!J90:CV90),0) -> 5 | G90: =IF(A90>0,'Asset data'!F90,0) -> 65.99544495 | H90: =IF(A90>0,SUM('Asset data'!CX90:GJ90),0) -> 329.9772248 | I90: 5.302431339e-05 | J90: 46 | K90: 0.0005821078698 | L90: 65.99544495 | M90: =IF($A90>0,SUMPRODUCT('Age profile (years)'!$CT90:$GF90,'Asset data'!$CX90:$GJ90)/H90-0.5,0) -> 39.7 | N90: 13100.09582 | O90: =IF($A90>0,'Asset data'!G90,0) -> 54.71187854 | P90: 18053.67384 | Q90: 0.2743806088 | R90: 5.471187854 | S90: 10.94237571 | T90: 32.82712713 | U90: 43.76950283 | W90: =IF($A90>0,SUMIF('Age profile (years)'!$CT90:$GF90,"<" & R90+0.5,'Asset data'!$CX90:$GJ90),0) -> 0 | X90: =IF($A90>0,SUMIF('Age profile (years)'!$CT90:$GF90,"<" & S90+0.5,'Asset data'!$CX90:$GJ90)-W90,0) -> 0 | Y90: =IF($A90>0,SUMIF('Age profile (years)'!$CT90:$GF90,"<" & T90+0.5,'Asset data'!$CX90:$GJ90)-X90-W90,0) -> 65.99544495 | Z90: =IF($A90>0,SUMIF('Age profile (years)'!$CT90:$GF90,"<" & U90+0.5,'Asset data'!$CX90:$GJ90)-Y90-X90-W90,0) -> 197.9863349 | AA90: 65.99544495 | AB90: 0 | AC90: 0 | AD90: 0.2 | AE90: 0.6 | AF90: 0.2 | AI90: =IF($A90>0,'RRR hist-forc'!K90,0) -> 54.71187854 | AJ90: 18053.67384
A91: ='Asset data'!A91 -> 0 | B91: ='Asset data'!B91 -> 0 | C91: ='Asset data'!C91 -> 0 | D91: ='Asset data'!E91 -> KIOSK MOUNTED ; < = 22KV ; > 600 KVA ; SINGLE PHASE | E91: 0 | F91: =IF(A91>0,SUM('Asset data'!J91:CV91),0) -> 0 | G91: =IF(A91>0,'Asset data'!F91,0) -> 0 | H91: =IF(A91>0,SUM('Asset data'!CX91:GJ91),0) -> 0 | I91: 0 | J91: 0 | K91: 0 | L91: 0 | M91: =IF($A91>0,SUMPRODUCT('Age profile (years)'!$CT91:$GF91,'Asset data'!$CX91:$GJ91)/H91-0.5,0) -> 0 | N91: 0 | O91: =IF($A91>0,'Asset data'!G91,0) -> 0 | P91: 0 | Q91: 0 | R91: 0 | S91: 0 | T91: 0 | U91: 0 | W91: =IF($A91>0,SUMIF('Age profile (years)'!$CT91:$GF91,"<" & R91+0.5,'Asset data'!$CX91:$GJ91),0) -> 0 | X91: =IF($A91>0,SUMIF('Age profile (years)'!$CT91:$GF91,"<" & S91+0.5,'Asset data'!$CX91:$GJ91)-W91,0) -> 0 | Y91: =IF($A91>0,SUMIF('Age profile (years)'!$CT91:$GF91,"<" & T91+0.5,'Asset data'!$CX91:$GJ91)-X91-W91,0) -> 0 | Z91: =IF($A91>0,SUMIF('Age profile (years)'!$CT91:$GF91,"<" & U91+0.5,'Asset data'!$CX91:$GJ91)-Y91-X91-W91,0) -> 0 | AA91: 0 | AB91: 0 | AC91: 0 | AD91: 0 | AE91: 0 | AF91: 0 | AI91: =IF($A91>0,'RRR hist-forc'!K91,0) -> 0 | AJ91: 0
A92: ='Asset data'!A92 -> 5 | B92: ='Asset data'!B92 -> 0 | C92: ='Asset data'!C92 -> 0 | D92: ='Asset data'!E92 -> KIOSK MOUNTED ; < = 22KV ; < = 60 KVA ; MULTIPLE PHASE | E92: TRANSFORMERS | F92: =IF(A92>0,SUM('Asset data'!J92:CV92),0) -> 3 | G92: =IF(A92>0,'Asset data'!F92,0) -> 61.27796189 | H92: =IF(A92>0,SUM('Asset data'!CX92:GJ92),0) -> 183.8338857 | I92: 2.954041926e-05 | J92: 49 | K92: 0.0003242985987 | L92: 61.27796189 | M92: =IF($A92>0,SUMPRODUCT('Age profile (years)'!$CT92:$GF92,'Asset data'!$CX92:$GJ92)/H92-0.5,0) -> 38.5 | N92: 7077.604598 | O92: =IF($A92>0,'Asset data'!G92,0) -> 54.71187854 | P92: 10057.89722 | Q92: 0.2963136886 | R92: 5.471187854 | S92: 10.94237571 | T92: 32.82712713 | U92: 43.76950283 | W92: =IF($A92>0,SUMIF('Age profile (years)'!$CT92:$GF92,"<" & R92+0.5,'Asset data'!$CX92:$GJ92),0) -> 0 | X92: =IF($A92>0,SUMIF('Age profile (years)'!$CT92:$GF92,"<" & S92+0.5,'Asset data'!$CX92:$GJ92)-W92,0) -> 0 | Y92: =IF($A92>0,SUMIF('Age profile (years)'!$CT92:$GF92,"<" & T92+0.5,'Asset data'!$CX92:$GJ92)-X92-W92,0) -> 0 | Z92: =IF($A92>0,SUMIF('Age profile (years)'!$CT92:$GF92,"<" & U92+0.5,'Asset data'!$CX92:$GJ92)-Y92-X92-W92,0) -> 183.8338857 | AA92: 0 | AB92: 0 | AC92: 0 | AD92: 0 | AE92: 1 | AF92: 0 | AI92: =IF($A92>0,'RRR hist-forc'!K92,0) -> 54.71187854 | AJ92: 10057.89722
A93: ='Asset data'!A93 -> 5 | B93: ='Asset data'!B93 -> 0 | C93: ='Asset data'!C93 -> 0 | D93: ='Asset data'!E93 -> KIOSK MOUNTED ; < = 22KV ; > 60 KVA AND < = 600 KVA ; MULTIPLE PHASE | E93: TRANSFORMERS | F93: =IF(A93>0,SUM('Asset data'!J93:CV93),0) -> 1585 | G93: =IF(A93>0,'Asset data'!F93,0) -> 27.29548835 | H93: =IF(A93>0,SUM('Asset data'!CX93:GJ93),0) -> 43263.34904 | I93: 0.006952023369 | J93: 22 | K93: 0.07632022473 | L93: 27.29548835 | M93: =IF($A93>0,SUMPRODUCT('Age profile (years)'!$CT93:$GF93,'Asset data'!$CX93:$GJ93)/H93-0.5,0) -> 22.54164038 | N93: 975226.8556 | O93: =IF($A93>0,'Asset data'!G93,0) -> 37.55928921 | P93: 1624940.639 | Q93: 0.3998384727 | R93: 3.755928921 | S93: 7.511857843 | T93: 22.53557353 | U93: 30.04743137 | W93: =IF($A93>0,SUMIF('Age profile (years)'!$CT93:$GF93,"<" & R93+0.5,'Asset data'!$CX93:$GJ93),0) -> 3603.004463 | X93: =IF($A93>0,SUMIF('Age profile (years)'!$CT93:$GF93,"<" & S93+0.5,'Asset data'!$CX93:$GJ93)-W93,0) -> 1992.57065 | Y93: =IF($A93>0,SUMIF('Age profile (years)'!$CT93:$GF93,"<" & T93+0.5,'Asset data'!$CX93:$GJ93)-X93-W93,0) -> 12501.33367 | Z93: =IF($A93>0,SUMIF('Age profile (years)'!$CT93:$GF93,"<" & U93+0.5,'Asset data'!$CX93:$GJ93)-Y93-X93-W93,0) -> 11491.4006 | AA93: 13675.03966 | AB93: 0.0832807571 | AC93: 0.04605678233 | AD93: 0.2889589905 | AE93: 0.265615142 | AF93: 0.3160883281 | AI93: =IF($A93>0,'RRR hist-forc'!K93,0) -> 37.55928921 | AJ93: 1624940.639
A94: ='Asset data'!A94 -> 5 | B94: ='Asset data'!B94 -> 0 | C94: ='Asset data'!C94 -> 0 | D94: ='Asset data'!E94 -> KIOSK MOUNTED ; < = 22KV ; > 600 KVA ; MULTIPLE PHASE | E94: TRANSFORMERS | F94: =IF(A94>0,SUM('Asset data'!J94:CV94),0) -> 487 | G94: =IF(A94>0,'Asset data'!F94,0) -> 21.50071424 | H94: =IF(A94>0,SUM('Asset data'!CX94:GJ94),0) -> 10470.84784 | I94: 0.001682569206 | J94: 32 | K94: 0.01847146552 | L94: 21.50071424 | M94: =IF($A94>0,SUMPRODUCT('Age profile (years)'!$CT94:$GF94,'Asset data'!$CX94:$GJ94)/H94-0.5,0) -> 25.93942505 | N94: 271607.7727 | O94: =IF($A94>0,'Asset data'!G94,0) -> 35.15272099 | P94: 368078.7925 | Q94: 0.2620933935 | R94: 3.515272099 | S94: 7.030544197 | T94: 21.09163259 | U94: 28.12217679 | W94: =IF($A94>0,SUMIF('Age profile (years)'!$CT94:$GF94,"<" & R94+0.5,'Asset data'!$CX94:$GJ94),0) -> 150.5049997 | X94: =IF($A94>0,SUMIF('Age profile (years)'!$CT94:$GF94,"<" & S94+0.5,'Asset data'!$CX94:$GJ94)-W94,0) -> 107.5035712 | Y94: =IF($A94>0,SUMIF('Age profile (years)'!$CT94:$GF94,"<" & T94+0.5,'Asset data'!$CX94:$GJ94)-X94-W94,0) -> 1440.547854 | Z94: =IF($A94>0,SUMIF('Age profile (years)'!$CT94:$GF94,"<" & U94+0.5,'Asset data'!$CX94:$GJ94)-Y94-X94-W94,0) -> 3956.13142 | AA94: 4816.15999 | AB94: 0.01437371663 | AC94: 0.01026694045 | AD94: 0.1375770021 | AE94: 0.3778234086 | AF94: 0.4599589322 | AI94: =IF($A94>0,'RRR hist-forc'!K94,0) -> 35.15272099 | AJ94: 368078.7925
A95: ='Asset data'!A95 -> 0 | B95: ='Asset data'!B95 -> 0 | C95: ='Asset data'!C95 -> 0 | D95: ='Asset data'!E95 -> GROUND OUTDOOR / INDOOR CHAMBER MOUNTED; ˂ 22 KV ; < = 60 KVA ; SINGLE PHASE | E95: 0 | F95: =IF(A95>0,SUM('Asset data'!J95:CV95),0) -> 0 | G95: =IF(A95>0,'Asset data'!F95,0) -> 0 | H95: =IF(A95>0,SUM('Asset data'!CX95:GJ95),0) -> 0 | I95: 0 | J95: 0 | K95: 0 | L95: 0 | M95: =IF($A95>0,SUMPRODUCT('Age profile (years)'!$CT95:$GF95,'Asset data'!$CX95:$GJ95)/H95-0.5,0) -> 0 | N95: 0 | O95: =IF($A95>0,'Asset data'!G95,0) -> 0 | P95: 0 | Q95: 0 | R95: 0 | S95: 0 | T95: 0 | U95: 0 | W95: =IF($A95>0,SUMIF('Age profile (years)'!$CT95:$GF95,"<" & R95+0.5,'Asset data'!$CX95:$GJ95),0) -> 0 | X95: =IF($A95>0,SUMIF('Age profile (years)'!$CT95:$GF95,"<" & S95+0.5,'Asset data'!$CX95:$GJ95)-W95,0) -> 0 | Y95: =IF($A95>0,SUMIF('Age profile (years)'!$CT95:$GF95,"<" & T95+0.5,'Asset data'!$CX95:$GJ95)-X95-W95,0) -> 0 | Z95: =IF($A95>0,SUMIF('Age profile (years)'!$CT95:$GF95,"<" & U95+0.5,'Asset data'!$CX95:$GJ95)-Y95-X95-W95,0) -> 0 | AA95: 0 | AB95: 0 | AC95: 0 | AD95: 0 | AE95: 0 | AF95: 0 | AI95: =IF($A95>0,'RRR hist-forc'!K95,0) -> 0 | AJ95: 0
A96: ='Asset data'!A96 -> 0 | B96: ='Asset data'!B96 -> 0 | C96: ='Asset data'!C96 -> 0 | D96: ='Asset data'!E96 -> GROUND OUTDOOR / INDOOR CHAMBER MOUNTED; ˂ 22 KV ; > 60 KVA AND < = 600 KVA ; SINGLE PHASE | E96: 0 | F96: =IF(A96>0,SUM('Asset data'!J96:CV96),0) -> 0 | G96: =IF(A96>0,'Asset data'!F96,0) -> 0 | H96: =IF(A96>0,SUM('Asset data'!CX96:GJ96),0) -> 0 | I96: 0 | J96: 0 | K96: 0 | L96: 0 | M96: =IF($A96>0,SUMPRODUCT('Age profile (years)'!$CT96:$GF96,'Asset data'!$CX96:$GJ96)/H96-0.5,0) -> 0 | N96: 0 | O96: =IF($A96>0,'Asset data'!G96,0) -> 0 | P96: 0 | Q96: 0 | R96: 0 | S96: 0 | T96: 0 | U96: 0 | W96: =IF($A96>0,SUMIF('Age profile (years)'!$CT96:$GF96,"<" & R96+0.5,'Asset data'!$CX96:$GJ96),0) -> 0 | X96: =IF($A96>0,SUMIF('Age profile (years)'!$CT96:$GF96,"<" & S96+0.5,'Asset data'!$CX96:$GJ96)-W96,0) -> 0 | Y96: =IF($A96>0,SUMIF('Age profile (years)'!$CT96:$GF96,"<" & T96+0.5,'Asset data'!$CX96:$GJ96)-X96-W96,0) -> 0 | Z96: =IF($A96>0,SUMIF('Age profile (years)'!$CT96:$GF96,"<" & U96+0.5,'Asset data'!$CX96:$GJ96)-Y96-X96-W96,0) -> 0 | AA96: 0 | AB96: 0 | AC96: 0 | AD96: 0 | AE96: 0 | AF96: 0 | AI96: =IF($A96>0,'RRR hist-forc'!K96,0) -> 0 | AJ96: 0
A97: ='Asset data'!A97 -> 5 | B97: ='Asset data'!B97 -> 0 | C97: ='Asset data'!C97 -> 0 | D97: ='Asset data'!E97 -> GROUND OUTDOOR / INDOOR CHAMBER MOUNTED; ˂ 22 KV ; > 600 KVA ; SINGLE PHASE | E97: TRANSFORMERS | F97: =IF(A97>0,SUM('Asset data'!J97:CV97),0) -> 1 | G97: =IF(A97>0,'Asset data'!F97,0) -> 147.2963158 | H97: =IF(A97>0,SUM('Asset data'!CX97:GJ97),0) -> 147.2963158 | I97: 2.366916691e-05 | J97: 51 | K97: 0.00025984322 | L97: 147.2963158 | M97: =IF($A97>0,SUMPRODUCT('Age profile (years)'!$CT97:$GF97,'Asset data'!$CX97:$GJ97)/H97-0.5,0) -> 52.5 | N97: 7733.056577 | O97: =IF($A97>0,'Asset data'!G97,0) -> 54.71187854 | P97: 8058.858137 | Q97: 0.0404277572 | R97: 5.471187854 | S97: 10.94237571 | T97: 32.82712713 | U97: 43.76950283 | W97: =IF($A97>0,SUMIF('Age profile (years)'!$CT97:$GF97,"<" & R97+0.5,'Asset data'!$CX97:$GJ97),0) -> 0 | X97: =IF($A97>0,SUMIF('Age profile (years)'!$CT97:$GF97,"<" & S97+0.5,'Asset data'!$CX97:$GJ97)-W97,0) -> 0 | Y97: =IF($A97>0,SUMIF('Age profile (years)'!$CT97:$GF97,"<" & T97+0.5,'Asset data'!$CX97:$GJ97)-X97-W97,0) -> 0 | Z97: =IF($A97>0,SUMIF('Age profile (years)'!$CT97:$GF97,"<" & U97+0.5,'Asset data'!$CX97:$GJ97)-Y97-X97-W97,0) -> 0 | AA97: 147.2963158 | AB97: 0 | AC97: 0 | AD97: 0 | AE97: 0 | AF97: 1 | AI97: =IF($A97>0,'RRR hist-forc'!K97,0) -> 54.71187854 | AJ97: 8058.858137
A98: ='Asset data'!A98 -> 5 | B98: ='Asset data'!B98 -> 0 | C98: ='Asset data'!C98 -> 0 | D98: ='Asset data'!E98 -> GROUND OUTDOOR / INDOOR CHAMBER MOUNTED; ˂ 22 KV ; < = 60 KVA ; MULTIPLE PHASE | E98: TRANSFORMERS | F98: =IF(A98>0,SUM('Asset data'!J98:CV98),0) -> 1 | G98: =IF(A98>0,'Asset data'!F98,0) -> 108.9735123 | H98: =IF(A98>0,SUM('Asset data'!CX98:GJ98),0) -> 108.9735123 | I98: 1.751104389e-05 | J98: 53 | K98: 0.0001922385375 | L98: 108.9735123 | M98: =IF($A98>0,SUMPRODUCT('Age profile (years)'!$CT98:$GF98,'Asset data'!$CX98:$GJ98)/H98-0.5,0) -> 22.5 | N98: 2451.904026 | O98: =IF($A98>0,'Asset data'!G98,0) -> 54.71187854 | P98: 5962.145568 | Q98: 0.5887547531 | R98: 5.471187854 | S98: 10.94237571 | T98: 32.82712713 | U98: 43.76950283 | W98: =IF($A98>0,SUMIF('Age profile (years)'!$CT98:$GF98,"<" & R98+0.5,'Asset data'!$CX98:$GJ98),0) -> 0 | X98: =IF($A98>0,SUMIF('Age profile (years)'!$CT98:$GF98,"<" & S98+0.5,'Asset data'!$CX98:$GJ98)-W98,0) -> 0 | Y98: =IF($A98>0,SUMIF('Age profile (years)'!$CT98:$GF98,"<" & T98+0.5,'Asset data'!$CX98:$GJ98)-X98-W98,0) -> 108.9735123 | Z98: =IF($A98>0,SUMIF('Age profile (years)'!$CT98:$GF98,"<" & U98+0.5,'Asset data'!$CX98:$GJ98)-Y98-X98-W98,0) -> 0 | AA98: 0 | AB98: 0 | AC98: 0 | AD98: 1 | AE98: 0 | AF98: 0 | AI98: =IF($A98>0,'RRR hist-forc'!K98,0) -> 54.71187854 | AJ98: 5962.145568
A99: ='Asset data'!A99 -> 5 | B99: ='Asset data'!B99 -> 0 | C99: ='Asset data'!C99 -> 0 | D99: ='Asset data'!E99 -> GROUND OUTDOOR / INDOOR CHAMBER MOUNTED; ˂ 22 KV ; > 60 KVA AND < = 600 KVA ; MULTIPLE PHASE | E99: TRANSFORMERS | F99: =IF(A99>0,SUM('Asset data'!J99:CV99),0) -> 868 | G99: =IF(A99>0,'Asset data'!F99,0) -> 21.65765738 | H99: =IF(A99>0,SUM('Asset data'!CX99:GJ99),0) -> 18798.84661 | I99: 0.003020802223 | J99: 29 | K99: 0.03316276317 | L99: 21.65765738 | M99: =IF($A99>0,SUMPRODUCT('Age profile (years)'!$CT99:$GF99,'Asset data'!$CX99:$GJ99)/H99-0.5,0) -> 26.30760369 | N99: 494552.6064 | O99: =IF($A99>0,'Asset data'!G99,0) -> 54.85025921 | P99: 1031121.609 | Q99: 0.5203741228 | R99: 5.485025921 | S99: 10.97005184 | T99: 32.91015553 | U99: 43.88020737 | W99: =IF($A99>0,SUMIF('Age profile (years)'!$CT99:$GF99,"<" & R99+0.5,'Asset data'!$CX99:$GJ99),0) -> 584.7567494 | X99: =IF($A99>0,SUMIF('Age profile (years)'!$CT99:$GF99,"<" & S99+0.5,'Asset data'!$CX99:$GJ99)-W99,0) -> 1212.828814 | Y99: =IF($A99>0,SUMIF('Age profile (years)'!$CT99:$GF99,"<" & T99+0.5,'Asset data'!$CX99:$GJ99)-X99-W99,0) -> 12366.52237 | Z99: =IF($A99>0,SUMIF('Age profile (years)'!$CT99:$GF99,"<" & U99+0.5,'Asset data'!$CX99:$GJ99)-Y99-X99-W99,0) -> 2598.918886 | AA99: 2035.819794 | AB99: 0.03110599078 | AC99: 0.06451612903 | AD99: 0.6578341014 | AE99: 0.1382488479 | AF99: 0.1082949309 | AI99: =IF($A99>0,'RRR hist-forc'!K99,0) -> 54.85025921 | AJ99: 1031121.609
A100: ='Asset data'!A100 -> 5 | B100: ='Asset data'!B100 -> 0 | C100: ='Asset data'!C100 -> 0 | D100: ='Asset data'!E100 -> GROUND OUTDOOR / INDOOR CHAMBER MOUNTED; ˂ 22 KV ; > 600 KVA ; MULTIPLE PHASE | E100: TRANSFORMERS | F100: =IF(A100>0,SUM('Asset data'!J100:CV100),0) -> 1139 | G100: =IF(A100>0,'Asset data'!F100,0) -> 24.78023683 | H100: =IF(A100>0,SUM('Asset data'!CX100:GJ100),0) -> 28224.68975 | I100: 0.004535448758 | J100: 23 | K100: 0.04979075158 | L100: 24.78023683 | M100: =IF($A100>0,SUMPRODUCT('Age profile (years)'!$CT100:$GF100,'Asset data'!$CX100:$GJ100)/H100-0.5,0) -> 38.64310799 | N100: 1090689.734 | O100: =IF($A100>0,'Asset data'!G100,0) -> 59.61174565 | P100: 1682523.026 | Q100: 0.3517534578 | R100: 5.961174565 | S100: 11.92234913 | T100: 35.76704739 | U100: =IF($A100>0,$O100-U$4*$O100,0) -> 47.68939652 | W100: =IF($A100>0,SUMIF('Age profile (years)'!$CT100:$GF100,"<" & R100+0.5,'Asset data'!$CX100:$GJ100),0) -> 247.8023683 | X100: =IF($A100>0,SUMIF('Age profile (years)'!$CT100:$GF100,"<" & S100+0.5,'Asset data'!$CX100:$GJ100)-W100,0) -> 371.7035524 | Y100: =IF($A100>0,SUMIF('Age profile (years)'!$CT100:$GF100,"<" & T100+0.5,'Asset data'!$CX100:$GJ100)-X100-W100,0) -> 12191.87652 | Z100: =IF($A100>0,SUMIF('Age profile (years)'!$CT100:$GF100,"<" & U100+0.5,'Asset data'!$CX100:$GJ100)-Y100-X100-W100,0) -> 7880.115311 | AA100: 7533.191995 | AB100: 0.008779631255 | AC100: 0.01316944688 | AD100: 0.4319578578 | AE100: 0.2791922739 | AF100: 0.2669007902 | AI100: =IF($A100>0,'RRR hist-forc'!K100,0) -> 59.61174565 | AJ100: 1682523.026
A101: ='Asset data'!A101 -> 5 | B101: ='Asset data'!B101 -> 0 | C101: ='Asset data'!C101 -> 0 | D101: ='Asset data'!E101 -> GROUND OUTDOOR / INDOOR CHAMBER MOUNTED; > = 22 KV & < = 33 KV ; < = 15 MVA | E101: TRANSFORMERS | F101: =IF(A101>0,SUM('Asset data'!J101:CV101),0) -> 5 | G101: =IF(A101>0,'Asset data'!F101,0) -> 268.008536 | H101: =IF(A101>0,SUM('Asset data'!CX101:GJ101),0) -> 1340.04268 | I101: 0.0002153325675 | J101: 42 | K101: 0.00236394918 | L101: 268.008536 | M101: =IF($A101>0,SUMPRODUCT('Age profile (years)'!$CT101:$GF101,'Asset data'!$CX101:$GJ101)/H101-0.5,0) -> 23.1 | N101: 30954.98591 | O101: =IF($A101>0,'Asset data'!G101,0) -> 70.14015825 | P101: 93990.80564 | Q101: 0.6706594257 | R101: 7.014015825 | S101: 14.02803165 | T101: 42.08409495 | U101: 56.1121266 | W101: =IF($A101>0,SUMIF('Age profile (years)'!$CT101:$GF101,"<" & R101+0.5,'Asset data'!$CX101:$GJ101),0) -> 268.008536 | X101: =IF($A101>0,SUMIF('Age profile (years)'!$CT101:$GF101,"<" & S101+0.5,'Asset data'!$CX101:$GJ101)-W101,0) -> 536.017072 | Y101: =IF($A101>0,SUMIF('Age profile (years)'!$CT101:$GF101,"<" & T101+0.5,'Asset data'!$CX101:$GJ101)-X101-W101,0) -> 268.008536 | Z101: =IF($A101>0,SUMIF('Age profile (years)'!$CT101:$GF101,"<" & U101+0.5,'Asset data'!$CX101:$GJ101)-Y101-X101-W101,0) -> -5.684341886e-14 | AA101: 268.008536 | AB101: 0.2 | AC101: 0.4 | AD101: 0.2 | AE101: -4.241911075e-17 | AF101: 0.2 | AI101: =IF($A101>0,'RRR hist-forc'!K101,0) -> 70.14015825 | AJ101: 93990.80564
A102: ='Asset data'!A102 -> 0 | B102: ='Asset data'!B102 -> 0 | C102: ='Asset data'!C102 -> 0 | D102: ='Asset data'!E102 -> GROUND OUTDOOR / INDOOR CHAMBER MOUNTED; > = 22 KV & < = 33 KV ; > 15 MVA AND < = 40 MVA | E102: 0 | F102: =IF(A102>0,SUM('Asset data'!J102:CV102),0) -> 0 | G102: =IF(A102>0,'Asset data'!F102,0) -> 0 | H102: =IF(A102>0,SUM('Asset data'!CX102:GJ102),0) -> 0 | I102: 0 | J102: 0 | K102: 0 | L102: 0 | M102: =IF($A102>0,SUMPRODUCT('Age profile (years)'!$CT102:$GF102,'Asset data'!$CX102:$GJ102)/H102-0.5,0) -> 0 | N102: 0 | O102: =IF($A102>0,'Asset data'!G102,0) -> 0 | P102: 0 | Q102: 0 | R102: 0 | S102: 0 | T102: 0 | U102: 0 | W102: =IF($A102>0,SUMIF('Age profile (years)'!$CT102:$GF102,"<" & R102+0.5,'Asset data'!$CX102:$GJ102),0) -> 0 | X102: =IF($A102>0,SUMIF('Age profile (years)'!$CT102:$GF102,"<" & S102+0.5,'Asset data'!$CX102:$GJ102)-W102,0) -> 0 | Y102: =IF($A102>0,SUMIF('Age profile (years)'!$CT102:$GF102,"<" & T102+0.5,'Asset data'!$CX102:$GJ102)-X102-W102,0) -> 0 | Z102: =IF($A102>0,SUMIF('Age profile (years)'!$CT102:$GF102,"<" & U102+0.5,'Asset data'!$CX102:$GJ102)-Y102-X102-W102,0) -> 0 | AA102: 0 | AB102: 0 | AC102: 0 | AD102: 0 | AE102: 0 | AF102: 0 | AI102: =IF($A102>0,'RRR hist-forc'!K102,0) -> 0 | AJ102: 0
A103: ='Asset data'!A103 -> 0 | B103: ='Asset data'!B103 -> 0 | C103: ='Asset data'!C103 -> 0 | D103: ='Asset data'!E103 -> GROUND OUTDOOR / INDOOR CHAMBER MOUNTED; > = 22 KV & < = 33 KV ; > 40 MVA | E103: 0 | F103: =IF(A103>0,SUM('Asset data'!J103:CV103),0) -> 0 | G103: =IF(A103>0,'Asset data'!F103,0) -> 0 | H103: =IF(A103>0,SUM('Asset data'!CX103:GJ103),0) -> 0 | I103: 0 | J103: 0 | K103: 0 | L103: 0 | M103: =IF($A103>0,SUMPRODUCT('Age profile (years)'!$CT103:$GF103,'Asset data'!$CX103:$GJ103)/H103-0.5,0) -> 0 | N103: 0 | O103: =IF($A103>0,'Asset data'!G103,0) -> 0 | P103: 0 | Q103: 0 | R103: 0 | S103: 0 | T103: 0 | U103: 0 | W103: =IF($A103>0,SUMIF('Age profile (years)'!$CT103:$GF103,"<" & R103+0.5,'Asset data'!$CX103:$GJ103),0) -> 0 | X103: =IF($A103>0,SUMIF('Age profile (years)'!$CT103:$GF103,"<" & S103+0.5,'Asset data'!$CX103:$GJ103)-W103,0) -> 0 | Y103: =IF($A103>0,SUMIF('Age profile (years)'!$CT103:$GF103,"<" & T103+0.5,'Asset data'!$CX103:$GJ103)-X103-W103,0) -> 0 | Z103: =IF($A103>0,SUMIF('Age profile (years)'!$CT103:$GF103,"<" & U103+0.5,'Asset data'!$CX103:$GJ103)-Y103-X103-W103,0) -> 0 | AA103: 0 | AB103: 0 | AC103: 0 | AD103: 0 | AE103: 0 | AF103: 0 | AI103: =IF($A103>0,'RRR hist-forc'!K103,0) -> 0 | AJ103: 0
A104: ='Asset data'!A104 -> 0 | B104: ='Asset data'!B104 -> 0 | C104: ='Asset data'!C104 -> 0 | D104: ='Asset data'!E104 -> GROUND OUTDOOR / INDOOR CHAMBER MOUNTED; > 33 KV & < = 66 KV ; < = 15 MVA | E104: 0 | F104: =IF(A104>0,SUM('Asset data'!J104:CV104),0) -> 0 | G104: =IF(A104>0,'Asset data'!F104,0) -> 0 | H104: =IF(A104>0,SUM('Asset data'!CX104:GJ104),0) -> 0 | I104: 0 | J104: 0 | K104: 0 | L104: 0 | M104: =IF($A104>0,SUMPRODUCT('Age profile (years)'!$CT104:$GF104,'Asset data'!$CX104:$GJ104)/H104-0.5,0) -> 0 | N104: 0 | O104: =IF($A104>0,'Asset data'!G104,0) -> 0 | P104: 0 | Q104: 0 | R104: 0 | S104: 0 | T104: 0 | U104: 0 | W104: =IF($A104>0,SUMIF('Age profile (years)'!$CT104:$GF104,"<" & R104+0.5,'Asset data'!$CX104:$GJ104),0) -> 0 | X104: =IF($A104>0,SUMIF('Age profile (years)'!$CT104:$GF104,"<" & S104+0.5,'Asset data'!$CX104:$GJ104)-W104,0) -> 0 | Y104: =IF($A104>0,SUMIF('Age profile (years)'!$CT104:$GF104,"<" & T104+0.5,'Asset data'!$CX104:$GJ104)-X104-W104,0) -> 0 | Z104: =IF($A104>0,SUMIF('Age profile (years)'!$CT104:$GF104,"<" & U104+0.5,'Asset data'!$CX104:$GJ104)-Y104-X104-W104,0) -> 0 | AA104: 0 | AB104: 0 | AC104: 0 | AD104: 0 | AE104: 0 | AF104: 0 | AI104: =IF($A104>0,'RRR hist-forc'!K104,0) -> 0 | AJ104: 0
A105: ='Asset data'!A105 -> 5 | B105: ='Asset data'!B105 -> 0 | C105: ='Asset data'!C105 -> 0 | D105: ='Asset data'!E105 -> GROUND OUTDOOR / INDOOR CHAMBER MOUNTED; > 33 KV & < = 66 KV ; > 15 MVA AND < = 40 MVA | E105: TRANSFORMERS | F105: =IF(A105>0,SUM('Asset data'!J105:CV105),0) -> 105 | G105: =IF(A105>0,'Asset data'!F105,0) -> 3133.03287 | H105: =IF(A105>0,SUM('Asset data'!CX105:GJ105),0) -> 328968.4514 | I105: 0.05286221276 | J105: 5 | K105: 0.5803283079 | L105: 3133.03287 | M105: =IF($A105>0,SUMPRODUCT('Age profile (years)'!$CT105:$GF105,'Asset data'!$CX105:$GJ105)/H105-0.5,0) -> 27.85238095 | N105: 9162554.63 | O105: =IF($A105>0,'Asset data'!G105,0) -> 61.49063402 | P105: 20228478.65 | Q105: 0.5470467756 | R105: 6.149063402 | S105: 12.2981268 | T105: 36.89438041 | U105: 49.19250722 | W105: =IF($A105>0,SUMIF('Age profile (years)'!$CT105:$GF105,"<" & R105+0.5,'Asset data'!$CX105:$GJ105),0) -> 9399.098611 | X105: =IF($A105>0,SUMIF('Age profile (years)'!$CT105:$GF105,"<" & S105+0.5,'Asset data'!$CX105:$GJ105)-W105,0) -> 81458.85463 | Y105: =IF($A105>0,SUMIF('Age profile (years)'!$CT105:$GF105,"<" & T105+0.5,'Asset data'!$CX105:$GJ105)-X105-W105,0) -> 128454.3477 | Z105: =IF($A105>0,SUMIF('Age profile (years)'!$CT105:$GF105,"<" & U105+0.5,'Asset data'!$CX105:$GJ105)-Y105-X105-W105,0) -> 18798.19722 | AA105: 90857.95324 | AB105: 0.02857142857 | AC105: 0.2476190476 | AD105: 0.3904761905 | AE105: 0.05714285714 | AF105: 0.2761904762 | AI105: =IF($A105>0,'RRR hist-forc'!K105,0) -> 61.49063402 | AJ105: 20228478.65
A106: ='Asset data'!A106 -> 0 | B106: ='Asset data'!B106 -> 0 | C106: ='Asset data'!C106 -> 0 | D106: ='Asset data'!E106 -> GROUND OUTDOOR / INDOOR CHAMBER MOUNTED; > 33 KV & < = 66 KV ; > 40 MVA | E106: 0 | F106: =IF(A106>0,SUM('Asset data'!J106:CV106),0) -> 0 | G106: =IF(A106>0,'Asset data'!F106,0) -> 0 | H106: =IF(A106>0,SUM('Asset data'!CX106:GJ106),0) -> 0 | I106: 0 | J106: 0 | K106: 0 | L106: 0 | M106: =IF($A106>0,SUMPRODUCT('Age profile (years)'!$CT106:$GF106,'Asset data'!$CX106:$GJ106)/H106-0.5,0) -> 0 | N106: 0 | O106: =IF($A106>0,'Asset data'!G106,0) -> 0 | P106: 0 | Q106: 0 | R106: 0 | S106: 0 | T106: 0 | U106: 0 | W106: =IF($A106>0,SUMIF('Age profile (years)'!$CT106:$GF106,"<" & R106+0.5,'Asset data'!$CX106:$GJ106),0) -> 0 | X106: =IF($A106>0,SUMIF('Age profile (years)'!$CT106:$GF106,"<" & S106+0.5,'Asset data'!$CX106:$GJ106)-W106,0) -> 0 | Y106: =IF($A106>0,SUMIF('Age profile (years)'!$CT106:$GF106,"<" & T106+0.5,'Asset data'!$CX106:$GJ106)-X106-W106,0) -> 0 | Z106: =IF($A106>0,SUMIF('Age profile (years)'!$CT106:$GF106,"<" & U106+0.5,'Asset data'!$CX106:$GJ106)-Y106-X106-W106,0) -> 0 | AA106: 0 | AB106: 0 | AC106: 0 | AD106: 0 | AE106: 0 | AF106: 0 | AI106: =IF($A106>0,'RRR hist-forc'!K106,0) -> 0 | AJ106: 0
A107: ='Asset data'!A107 -> 0 | B107: ='Asset data'!B107 -> 0 | C107: ='Asset data'!C107 -> 0 | D107: ='Asset data'!E107 -> GROUND OUTDOOR / INDOOR CHAMBER MOUNTED; > 66 KV & < = 132 KV ; < = 100 MVA | E107: 0 | F107: =IF(A107>0,SUM('Asset data'!J107:CV107),0) -> 0 | G107: =IF(A107>0,'Asset data'!F107,0) -> 0 | H107: =IF(A107>0,SUM('Asset data'!CX107:GJ107),0) -> 0 | I107: 0 | J107: 0 | K107: 0 | L107: 0 | M107: =IF($A107>0,SUMPRODUCT('Age profile (years)'!$CT107:$GF107,'Asset data'!$CX107:$GJ107)/H107-0.5,0) -> 0 | N107: 0 | O107: =IF($A107>0,'Asset data'!G107,0) -> 0 | P107: 0 | Q107: 0 | R107: 0 | S107: 0 | T107: 0 | U107: 0 | W107: =IF($A107>0,SUMIF('Age profile (years)'!$CT107:$GF107,"<" & R107+0.5,'Asset data'!$CX107:$GJ107),0) -> 0 | X107: =IF($A107>0,SUMIF('Age profile (years)'!$CT107:$GF107,"<" & S107+0.5,'Asset data'!$CX107:$GJ107)-W107,0) -> 0 | Y107: =IF($A107>0,SUMIF('Age profile (years)'!$CT107:$GF107,"<" & T107+0.5,'Asset data'!$CX107:$GJ107)-X107-W107,0) -> 0 | Z107: =IF($A107>0,SUMIF('Age profile (years)'!$CT107:$GF107,"<" & U107+0.5,'Asset data'!$CX107:$GJ107)-Y107-X107-W107,0) -> 0 | AA107: 0 | AB107: 0 | AC107: 0 | AD107: 0 | AE107: 0 | AF107: 0 | AI107: =IF($A107>0,'RRR hist-forc'!K107,0) -> 0 | AJ107: 0
A108: ='Asset data'!A108 -> 0 | B108: ='Asset data'!B108 -> 0 | C108: ='Asset data'!C108 -> 0 | D108: ='Asset data'!E108 -> GROUND OUTDOOR / INDOOR CHAMBER MOUNTED; > 66 KV & < = 132 KV ; > 100 MVA | E108: 0 | F108: =IF(A108>0,SUM('Asset data'!J108:CV108),0) -> 0 | G108: =IF(A108>0,'Asset data'!F108,0) -> 0 | H108: =IF(A108>0,SUM('Asset data'!CX108:GJ108),0) -> 0 | I108: 0 | J108: 0 | K108: 0 | L108: 0 | M108: =IF($A108>0,SUMPRODUCT('Age profile (years)'!$CT108:$GF108,'Asset data'!$CX108:$GJ108)/H108-0.5,0) -> 0 | N108: 0 | O108: =IF($A108>0,'Asset data'!G108,0) -> 0 | P108: 0 | Q108: 0 | R108: 0 | S108: 0 | T108: 0 | U108: 0 | W108: =IF($A108>0,SUMIF('Age profile (years)'!$CT108:$GF108,"<" & R108+0.5,'Asset data'!$CX108:$GJ108),0) -> 0 | X108: =IF($A108>0,SUMIF('Age profile (years)'!$CT108:$GF108,"<" & S108+0.5,'Asset data'!$CX108:$GJ108)-W108,0) -> 0 | Y108: =IF($A108>0,SUMIF('Age profile (years)'!$CT108:$GF108,"<" & T108+0.5,'Asset data'!$CX108:$GJ108)-X108-W108,0) -> 0 | Z108: =IF($A108>0,SUMIF('Age profile (years)'!$CT108:$GF108,"<" & U108+0.5,'Asset data'!$CX108:$GJ108)-Y108-X108-W108,0) -> 0 | AA108: 0 | AB108: 0 | AC108: 0 | AD108: 0 | AE108: 0 | AF108: 0 | AI108: =IF($A108>0,'RRR hist-forc'!K108,0) -> 0 | AJ108: 0
A109: ='Asset data'!A109 -> 0 | B109: ='Asset data'!B109 -> 0 | C109: ='Asset data'!C109 -> 0 | D109: ='Asset data'!E109 -> GROUND OUTDOOR / INDOOR CHAMBER MOUNTED; > 132 KV ; < = 100 MVA | E109: 0 | F109: =IF(A109>0,SUM('Asset data'!J109:CV109),0) -> 0 | G109: =IF(A109>0,'Asset data'!F109,0) -> 0 | H109: =IF(A109>0,SUM('Asset data'!CX109:GJ109),0) -> 0 | I109: 0 | J109: 0 | K109: 0 | L109: 0 | M109: =IF($A109>0,SUMPRODUCT('Age profile (years)'!$CT109:$GF109,'Asset data'!$CX109:$GJ109)/H109-0.5,0) -> 0 | N109: 0 | O109: =IF($A109>0,'Asset data'!G109,0) -> 0 | P109: 0 | Q109: 0 | R109: 0 | S109: 0 | T109: 0 | U109: 0 | W109: =IF($A109>0,SUMIF('Age profile (years)'!$CT109:$GF109,"<" & R109+0.5,'Asset data'!$CX109:$GJ109),0) -> 0 | X109: =IF($A109>0,SUMIF('Age profile (years)'!$CT109:$GF109,"<" & S109+0.5,'Asset data'!$CX109:$GJ109)-W109,0) -> 0 | Y109: =IF($A109>0,SUMIF('Age profile (years)'!$CT109:$GF109,"<" & T109+0.5,'Asset data'!$CX109:$GJ109)-X109-W109,0) -> 0 | Z109: =IF($A109>0,SUMIF('Age profile (years)'!$CT109:$GF109,"<" & U109+0.5,'Asset data'!$CX109:$GJ109)-Y109-X109-W109,0) -> 0 | AA109: 0 | AB109: 0 | AC109: 0 | AD109: 0 | AE109: 0 | AF109: 0 | AI109: =IF($A109>0,'RRR hist-forc'!K109,0) -> 0 | AJ109: 0
A110: ='Asset data'!A110 -> 0 | B110: ='Asset data'!B110 -> 0 | C110: ='Asset data'!C110 -> 0 | D110: ='Asset data'!E110 -> GROUND OUTDOOR / INDOOR CHAMBER MOUNTED; > 132 KV ; > 100 MVA | E110: 0 | F110: =IF(A110>0,SUM('Asset data'!J110:CV110),0) -> 0 | G110: =IF(A110>0,'Asset data'!F110,0) -> 0 | H110: =IF(A110>0,SUM('Asset data'!CX110:GJ110),0) -> 0 | I110: 0 | J110: 0 | K110: 0 | L110: 0 | M110: =IF($A110>0,SUMPRODUCT('Age profile (years)'!$CT110:$GF110,'Asset data'!$CX110:$GJ110)/H110-0.5,0) -> 0 | N110: 0 | O110: =IF($A110>0,'Asset data'!G110,0) -> 0 | P110: 0 | Q110: 0 | R110: 0 | S110: 0 | T110: 0 | U110: 0 | W110: =IF($A110>0,SUMIF('Age profile (years)'!$CT110:$GF110,"<" & R110+0.5,'Asset data'!$CX110:$GJ110),0) -> 0 | X110: =IF($A110>0,SUMIF('Age profile (years)'!$CT110:$GF110,"<" & S110+0.5,'Asset data'!$CX110:$GJ110)-W110,0) -> 0 | Y110: =IF($A110>0,SUMIF('Age profile (years)'!$CT110:$GF110,"<" & T110+0.5,'Asset data'!$CX110:$GJ110)-X110-W110,0) -> 0 | Z110: =IF($A110>0,SUMIF('Age profile (years)'!$CT110:$GF110,"<" & U110+0.5,'Asset data'!$CX110:$GJ110)-Y110-X110-W110,0) -> 0 | AA110: 0 | AB110: 0 | AC110: 0 | AD110: 0 | AE110: 0 | AF110: 0 | AI110: =IF($A110>0,'RRR hist-forc'!K110,0) -> 0 | AJ110: 0
A111: ='Asset data'!A111 -> 5 | B111: ='Asset data'!B111 -> 0 | C111: ='Asset data'!C111 -> 0 | D111: ='Asset data'!E111 -> POWER TRANSFORMER - BUSHING | E111: TRANSFORMERS | F111: =IF(A111>0,SUM('Asset data'!J111:CV111),0) -> 315 | G111: =IF(A111>0,'Asset data'!F111,0) -> 34.49546995 | H111: =IF(A111>0,SUM('Asset data'!CX111:GJ111),0) -> 10866.07303 | I111: 0.00174607827 | J111: 31 | K111: 0.01916867636 | L111: 34.49546995 | M111: =IF($A111>0,SUMPRODUCT('Age profile (years)'!$CT111:$GF111,'Asset data'!$CX111:$GJ111)/H111-0.5,0) -> 25.52539683 | N111: 277360.8261 | O111: =IF($A111>0,'Asset data'!G111,0) -> 53.49093264 | P111: 581236.3807 | Q111: 0.522808903 | R111: 5.349093264 | S111: 10.69818653 | T111: 32.09455958 | U111: 42.79274611 | W111: =IF($A111>0,SUMIF('Age profile (years)'!$CT111:$GF111,"<" & R111+0.5,'Asset data'!$CX111:$GJ111),0) -> 2380.187426 | X111: =IF($A111>0,SUMIF('Age profile (years)'!$CT111:$GF111,"<" & S111+0.5,'Asset data'!$CX111:$GJ111)-W111,0) -> 1966.241787 | Y111: =IF($A111>0,SUMIF('Age profile (years)'!$CT111:$GF111,"<" & T111+0.5,'Asset data'!$CX111:$GJ111)-X111-W111,0) -> 1655.782557 | Z111: =IF($A111>0,SUMIF('Age profile (years)'!$CT111:$GF111,"<" & U111+0.5,'Asset data'!$CX111:$GJ111)-Y111-X111-W111,0) -> 896.8822186 | AA111: 3966.979044 | AB111: 0.219047619 | AC111: 0.180952381 | AD111: 0.1523809524 | AE111: 0.08253968254 | AF111: 0.3650793651 | AI111: =IF($A111>0,'RRR hist-forc'!K111,0) -> 53.49093264 | AJ111: 581236.3807
A112: ='Asset data'!A112 -> 5 | B112: ='Asset data'!B112 -> 0 | C112: ='Asset data'!C112 -> 0 | D112: ='Asset data'!E112 -> OTHER - POWER TRANSFORMER - ON LOAD TAP CHANGER | E112: TRANSFORMERS | F112: =IF(A112>0,SUM('Asset data'!J112:CV112),0) -> 110 | G112: =IF(A112>0,'Asset data'!F112,0) -> 199.5574126 | H112: =IF(A112>0,SUM('Asset data'!CX112:GJ112),0) -> 21951.31539 | I112: 0.00352737504 | J112: 25 | K112: 0.03872398602 | L112: 199.5574126 | M112: =IF($A112>0,SUMPRODUCT('Age profile (years)'!$CT112:$GF112,'Asset data'!$CX112:$GJ112)/H112-0.5,0) -> 21.22727273 | N112: 465966.5585 | O112: =IF($A112>0,'Asset data'!G112,0) -> 54.71187854 | P112: 1200997.701 | Q112: 0.6120171105 | R112: 5.471187854 | S112: 10.94237571 | T112: 32.82712713 | U112: 43.76950283 | W112: =IF($A112>0,SUMIF('Age profile (years)'!$CT112:$GF112,"<" & R112+0.5,'Asset data'!$CX112:$GJ112),0) -> 5388.050141 | X112: =IF($A112>0,SUMIF('Age profile (years)'!$CT112:$GF112,"<" & S112+0.5,'Asset data'!$CX112:$GJ112)-W112,0) -> 6186.279791 | Y112: =IF($A112>0,SUMIF('Age profile (years)'!$CT112:$GF112,"<" & T112+0.5,'Asset data'!$CX112:$GJ112)-X112-W112,0) -> 3192.918602 | Z112: =IF($A112>0,SUMIF('Age profile (years)'!$CT112:$GF112,"<" & U112+0.5,'Asset data'!$CX112:$GJ112)-Y112-X112-W112,0) -> 1596.459301 | AA112: 5587.607553 | AB112: 0.2454545455 | AC112: 0.2818181818 | AD112: 0.1454545455 | AE112: 0.07272727273 | AF112: 0.2545454545 | AI112: =IF($A112>0,'RRR hist-forc'!K112,0) -> 54.71187854 | AJ112: 1200997.701
A113: ='Asset data'!A113 -> 5 | B113: ='Asset data'!B113 -> 0 | C113: ='Asset data'!C113 -> 0 | D113: ='Asset data'!E113 -> UNDERGROUND; 11KV; > 60 KVA AND < = 600 KVA; MULTI PHASE | E113: TRANSFORMERS | F113: =IF(A113>0,SUM('Asset data'!J113:CV113),0) -> 2 | G113: =IF(A113>0,'Asset data'!F113,0) -> 21.65765738 | H113: =IF(A113>0,SUM('Asset data'!CX113:GJ113),0) -> 43.31531477 | I113: 6.960373785e-06 | J113: 55 | K113: 7.64118967e-05 | L113: 21.65765738 | M113: =IF($A113>0,SUMPRODUCT('Age profile (years)'!$CT113:$GF113,'Asset data'!$CX113:$GJ113)/H113-0.5,0) -> 11 | N113: 476.4684625 | O113: =IF($A113>0,'Asset data'!G113,0) -> 54.71187854 | P113: 2369.862241 | Q113: 0.7989467682 | R113: 5.471187854 | S113: 10.94237571 | T113: 32.82712713 | U113: 43.76950283 | W113: =IF($A113>0,SUMIF('Age profile (years)'!$CT113:$GF113,"<" & R113+0.5,'Asset data'!$CX113:$GJ113),0) -> 0 | X113: =IF($A113>0,SUMIF('Age profile (years)'!$CT113:$GF113,"<" & S113+0.5,'Asset data'!$CX113:$GJ113)-W113,0) -> 21.65765738 | Y113: =IF($A113>0,SUMIF('Age profile (years)'!$CT113:$GF113,"<" & T113+0.5,'Asset data'!$CX113:$GJ113)-X113-W113,0) -> 21.65765738 | Z113: =IF($A113>0,SUMIF('Age profile (years)'!$CT113:$GF113,"<" & U113+0.5,'Asset data'!$CX113:$GJ113)-Y113-X113-W113,0) -> 0 | AA113: 0 | AB113: 0 | AC113: 0.5 | AD113: 0.5 | AE113: 0 | AF113: 0 | AI113: =IF($A113>0,'RRR hist-forc'!K113,0) -> 54.71187854 | AJ113: 2369.862241
A114: ='Asset data'!A114 -> 0 | B114: ='Asset data'!B114 -> 0 | C114: ='Asset data'!C114 -> 0 | D114: ='Asset data'!E114 -> OTHER | E114: 0 | F114: =IF(A114>0,SUM('Asset data'!J114:CV114),0) -> 0 | G114: =IF(A114>0,'Asset data'!F114,0) -> 0 | H114: =IF(A114>0,SUM('Asset data'!CX114:GJ114),0) -> 0 | I114: 0 | J114: 0 | K114: 0 | L114: 0 | M114: =IF($A114>0,SUMPRODUCT('Age profile (years)'!$CT114:$GF114,'Asset data'!$CX114:$GJ114)/H114-0.5,0) -> 0 | N114: 0 | O114: =IF($A114>0,'Asset data'!G114,0) -> 0 | P114: 0 | Q114: 0 | R114: 0 | S114: 0 | T114: 0 | U114: 0 | W114: =IF($A114>0,SUMIF('Age profile (years)'!$CT114:$GF114,"<" & R114+0.5,'Asset data'!$CX114:$GJ114),0) -> 0 | X114: =IF($A114>0,SUMIF('Age profile (years)'!$CT114:$GF114,"<" & S114+0.5,'Asset data'!$CX114:$GJ114)-W114,0) -> 0 | Y114: =IF($A114>0,SUMIF('Age profile (years)'!$CT114:$GF114,"<" & T114+0.5,'Asset data'!$CX114:$GJ114)-X114-W114,0) -> 0 | Z114: =IF($A114>0,SUMIF('Age profile (years)'!$CT114:$GF114,"<" & U114+0.5,'Asset data'!$CX114:$GJ114)-Y114-X114-W114,0) -> 0 | AA114: 0 | AB114: 0 | AC114: 0 | AD114: 0 | AE114: 0 | AF114: 0 | AI114: =IF($A114>0,'RRR hist-forc'!K114,0) -> 0 | AJ114: 0
A115: ='Asset data'!A115 -> 6 | B115: ='Asset data'!B115 -> 0 | C115: ='Asset data'!C115 -> 0 | D115: ='Asset data'!E115 -> ˂ = 11 KV ; FUSE | E115: SWITCHGEAR | F115: =IF(A115>0,SUM('Asset data'!J115:CV115),0) -> 1918 | G115: =IF(A115>0,'Asset data'!F115,0) -> 2.714780625 | H115: =IF(A115>0,SUM('Asset data'!CX115:GJ115),0) -> 5206.949239 | I115: 0.0008367089834 | J115: 38 | K115: 0.008406313938 | L115: 2.714780625 | M115: =IF($A115>0,SUMPRODUCT('Age profile (years)'!$CT115:$GF115,'Asset data'!$CX115:$GJ115)/H115-0.5,0) -> 34.10375391 | N115: 177576.5155 | O115: =IF($A115>0,'Asset data'!G115,0) -> 54.69367644 | P115: 284787.1969 | Q115: 0.376458923 | R115: 5.469367644 | S115: 10.93873529 | T115: 32.81620586 | U115: 43.75494115 | W115: =IF($A115>0,SUMIF('Age profile (years)'!$CT115:$GF115,"<" & R115+0.5,'Asset data'!$CX115:$GJ115),0) -> 323.0588944 | X115: =IF($A115>0,SUMIF('Age profile (years)'!$CT115:$GF115,"<" & S115+0.5,'Asset data'!$CX115:$GJ115)-W115,0) -> 342.0623588 | Y115: =IF($A115>0,SUMIF('Age profile (years)'!$CT115:$GF115,"<" & T115+0.5,'Asset data'!$CX115:$GJ115)-X115-W115,0) -> 1574.572763 | Z115: =IF($A115>0,SUMIF('Age profile (years)'!$CT115:$GF115,"<" & U115+0.5,'Asset data'!$CX115:$GJ115)-Y115-X115-W115,0) -> 971.8914638 | AA115: 1995.36376 | AB115: 0.06204379562 | AC115: 0.06569343066 | AD115: 0.3023983316 | AE115: 0.1866527633 | AF115: 0.3832116788 | AI115: =IF($A115>0,'RRR hist-forc'!K115,0) -> 54.69367644 | AJ115: 284787.1969
A116: ='Asset data'!A116 -> 6 | B116: ='Asset data'!B116 -> 0 | C116: ='Asset data'!C116 -> 0 | D116: ='Asset data'!E116 -> ˂ = 11 KV ; SWITCH | E116: SWITCHGEAR | F116: =IF(A116>0,SUM('Asset data'!J116:CV116),0) -> 68982 | G116: =IF(A116>0,'Asset data'!F116,0) -> 2.643058693 | H116: =IF(A116>0,SUM('Asset data'!CX116:GJ116),0) -> 182323.4747 | I116: 0.02929771008 | J116: 10 | K116: 0.294350549 | L116: 2.643058693 | M116: =IF($A116>0,SUMPRODUCT('Age profile (years)'!$CT116:$GF116,'Asset data'!$CX116:$GJ116)/H116-0.5,0) -> 36.2054449 | N116: 6601102.519 | O116: =IF($A116>0,'Asset data'!G116,0) -> 61.38445004 | P116: 11191826.23 | Q116: 0.4101853992 | R116: 6.138445004 | S116: 12.27689001 | T116: 36.83067002 | U116: 49.10756003 | W116: =IF($A116>0,SUMIF('Age profile (years)'!$CT116:$GF116,"<" & R116+0.5,'Asset data'!$CX116:$GJ116),0) -> 7884.24408 | X116: =IF($A116>0,SUMIF('Age profile (years)'!$CT116:$GF116,"<" & S116+0.5,'Asset data'!$CX116:$GJ116)-W116,0) -> 9623.3767 | Y116: =IF($A116>0,SUMIF('Age profile (years)'!$CT116:$GF116,"<" & T116+0.5,'Asset data'!$CX116:$GJ116)-X116-W116,0) -> 74198.58668 | Z116: =IF($A116>0,SUMIF('Age profile (years)'!$CT116:$GF116,"<" & U116+0.5,'Asset data'!$CX116:$GJ116)-Y116-X116-W116,0) -> 36675.08242 | AA116: 53942.18486 | AB116: 0.04324316488 | AC116: 0.05278188513 | AD116: 0.4069612363 | AE116: 0.2011539242 | AF116: 0.2958597895 | AI116: =IF($A116>0,'RRR hist-forc'!K116,0) -> 61.38445004 | AJ116: 11191826.23
A117: ='Asset data'!A117 -> 6 | B117: ='Asset data'!B117 -> 0 | C117: ='Asset data'!C117 -> 0 | D117: ='Asset data'!E117 -> ˂ = 11 KV ; CIRCUIT BREAKER | E117: SWITCHGEAR | F117: =IF(A117>0,SUM('Asset data'!J117:CV117),0) -> 366 | G117: =IF(A117>0,'Asset data'!F117,0) -> 195.9478266 | H117: =IF(A117>0,SUM('Asset data'!CX117:GJ117),0) -> 71716.90452 | I117: 0.01152424875 | J117: 19 | K117: 0.1157827331 | L117: 195.9478266 | M117: =IF($A117>0,SUMPRODUCT('Age profile (years)'!$CT117:$GF117,'Asset data'!$CX117:$GJ117)/H117-0.5,0) -> 28.60655738 | N117: 2051573.744 | O117: =IF($A117>0,'Asset data'!G117,0) -> 53.8694107 | P117: 3863347.384 | Q117: 0.4689647241 | R117: 5.38694107 | S117: 10.77388214 | T117: 32.32164642 | U117: 43.09552856 | W117: =IF($A117>0,SUMIF('Age profile (years)'!$CT117:$GF117,"<" & R117+0.5,'Asset data'!$CX117:$GJ117),0) -> 19006.93918 | X117: =IF($A117>0,SUMIF('Age profile (years)'!$CT117:$GF117,"<" & S117+0.5,'Asset data'!$CX117:$GJ117)-W117,0) -> 11756.86959 | Y117: =IF($A117>0,SUMIF('Age profile (years)'!$CT117:$GF117,"<" & T117+0.5,'Asset data'!$CX117:$GJ117)-X117-W117,0) -> 0 | Z117: =IF($A117>0,SUMIF('Age profile (years)'!$CT117:$GF117,"<" & U117+0.5,'Asset data'!$CX117:$GJ117)-Y117-X117-W117,0) -> 3918.956531 | AA117: 37034.13922 | AB117: 0.2650273224 | AC117: 0.1639344262 | AD117: 0 | AE117: 0.05464480874 | AF117: 0.5163934426 | AI117: =IF($A117>0,'RRR hist-forc'!K117,0) -> 53.8694107 | AJ117: 3863347.384
A118: ='Asset data'!A118 -> 6 | B118: ='Asset data'!B118 -> 0 | C118: ='Asset data'!C118 -> 0 | D118: ='Asset data'!E118 -> > 11 KV & < = 22 KV ; SWITCH | E118: SWITCHGEAR | F118: =IF(A118>0,SUM('Asset data'!J118:CV118),0) -> 18807 | G118: =IF(A118>0,'Asset data'!F118,0) -> 10.23635164 | H118: =IF(A118>0,SUM('Asset data'!CX118:GJ118),0) -> 192515.0652 | I118: 0.03093540519 | J118: 8 | K118: 0.3108042736 | L118: 10.23635164 | M118: =IF($A118>0,SUMPRODUCT('Age profile (years)'!$CT118:$GF118,'Asset data'!$CX118:$GJ118)/H118-0.5,0) -> 28.25556973 | N118: 5439622.85 | O118: =IF($A118>0,'Asset data'!G118,0) -> 49.5951765 | P118: 9547818.638 | Q118: 0.4302758508 | R118: 4.95951765 | S118: 9.9190353 | T118: 29.7571059 | U118: 39.6761412 | W118: =IF($A118>0,SUMIF('Age profile (years)'!$CT118:$GF118,"<" & R118+0.5,'Asset data'!$CX118:$GJ118),0) -> 15282.87299 | X118: =IF($A118>0,SUMIF('Age profile (years)'!$CT118:$GF118,"<" & S118+0.5,'Asset data'!$CX118:$GJ118)-W118,0) -> 9734.770406 | Y118: =IF($A118>0,SUMIF('Age profile (years)'!$CT118:$GF118,"<" & T118+0.5,'Asset data'!$CX118:$GJ118)-X118-W118,0) -> 66700.06726 | Z118: =IF($A118>0,SUMIF('Age profile (years)'!$CT118:$GF118,"<" & U118+0.5,'Asset data'!$CX118:$GJ118)-Y118-X118-W118,0) -> 49206.14231 | AA118: 51591.21224 | AB118: 0.07938533525 | AC118: 0.05056627851 | AD118: 0.3464667411 | AE118: 0.2555963205 | AF118: 0.2679853246 | AI118: =IF($A118>0,'RRR hist-forc'!K118,0) -> 49.5951765 | AJ118: 9547818.638
A119: ='Asset data'!A119 -> 6 | B119: ='Asset data'!B119 -> 0 | C119: ='Asset data'!C119 -> 0 | D119: ='Asset data'!E119 -> > 11 KV & < = 22 KV ; CIRCUIT BREAKER | E119: SWITCHGEAR | F119: =IF(A119>0,SUM('Asset data'!J119:CV119),0) -> 585 | G119: =IF(A119>0,'Asset data'!F119,0) -> 145.6754331 | H119: =IF(A119>0,SUM('Asset data'!CX119:GJ119),0) -> 85220.12837 | I119: 0.01369409297 | J119: 16 | K119: 0.1375828955 | L119: 145.6754331 | M119: =IF($A119>0,SUMPRODUCT('Age profile (years)'!$CT119:$GF119,'Asset data'!$CX119:$GJ119)/H119-0.5,0) -> 30.00940171 | N119: 2557405.066 | O119: =IF($A119>0,'Asset data'!G119,0) -> 52.49661623 | P119: 4473768.374 | Q119: 0.4283555043 | R119: 5.249661623 | S119: 10.49932325 | T119: 31.49796974 | U119: 41.99729298 | W119: =IF($A119>0,SUMIF('Age profile (years)'!$CT119:$GF119,"<" & R119+0.5,'Asset data'!$CX119:$GJ119),0) -> 16752.67481 | X119: =IF($A119>0,SUMIF('Age profile (years)'!$CT119:$GF119,"<" & S119+0.5,'Asset data'!$CX119:$GJ119)-W119,0) -> 3350.534961 | Y119: =IF($A119>0,SUMIF('Age profile (years)'!$CT119:$GF119,"<" & T119+0.5,'Asset data'!$CX119:$GJ119)-X119-W119,0) -> 11654.03465 | Z119: =IF($A119>0,SUMIF('Age profile (years)'!$CT119:$GF119,"<" & U119+0.5,'Asset data'!$CX119:$GJ119)-Y119-X119-W119,0) -> 16024.29764 | AA119: 37438.58631 | AB119: 0.1965811966 | AC119: 0.03931623932 | AD119: 0.1367521368 | AE119: 0.188034188 | AF119: 0.4393162393 | AI119: =IF($A119>0,'RRR hist-forc'!K119,0) -> 52.49661623 | AJ119: 4473768.374
A120: ='Asset data'!A120 -> 0 | B120: ='Asset data'!B120 -> 0 | C120: ='Asset data'!C120 -> 0 | D120: ='Asset data'!E120 -> > 22 KV & < = 33 KV ; SWITCH | E120: 0 | F120: =IF(A120>0,SUM('Asset data'!J120:CV120),0) -> 0 | G120: =IF(A120>0,'Asset data'!F120,0) -> 0 | H120: =IF(A120>0,SUM('Asset data'!CX120:GJ120),0) -> 0 | I120: 0 | J120: 0 | K120: 0 | L120: 0 | M120: =IF($A120>0,SUMPRODUCT('Age profile (years)'!$CT120:$GF120,'Asset data'!$CX120:$GJ120)/H120-0.5,0) -> 0 | N120: 0 | O120: =IF($A120>0,'Asset data'!G120,0) -> 0 | P120: 0 | Q120: 0 | R120: 0 | S120: 0 | T120: 0 | U120: 0 | W120: =IF($A120>0,SUMIF('Age profile (years)'!$CT120:$GF120,"<" & R120+0.5,'Asset data'!$CX120:$GJ120),0) -> 0 | X120: =IF($A120>0,SUMIF('Age profile (years)'!$CT120:$GF120,"<" & S120+0.5,'Asset data'!$CX120:$GJ120)-W120,0) -> 0 | Y120: =IF($A120>0,SUMIF('Age profile (years)'!$CT120:$GF120,"<" & T120+0.5,'Asset data'!$CX120:$GJ120)-X120-W120,0) -> 0 | Z120: =IF($A120>0,SUMIF('Age profile (years)'!$CT120:$GF120,"<" & U120+0.5,'Asset data'!$CX120:$GJ120)-Y120-X120-W120,0) -> 0 | AA120: 0 | AB120: 0 | AC120: 0 | AD120: 0 | AE120: 0 | AF120: 0 | AI120: =IF($A120>0,'RRR hist-forc'!K120,0) -> 0 | AJ120: 0
A121: ='Asset data'!A121 -> 0 | B121: ='Asset data'!B121 -> 0 | C121: ='Asset data'!C121 -> 0 | D121: ='Asset data'!E121 -> > 22 KV & < = 33 KV ; CIRCUIT BREAKER | E121: 0 | F121: =IF(A121>0,SUM('Asset data'!J121:CV121),0) -> 0 | G121: =IF(A121>0,'Asset data'!F121,0) -> 0 | H121: =IF(A121>0,SUM('Asset data'!CX121:GJ121),0) -> 0 | I121: 0 | J121: 0 | K121: 0 | L121: 0 | M121: =IF($A121>0,SUMPRODUCT('Age profile (years)'!$CT121:$GF121,'Asset data'!$CX121:$GJ121)/H121-0.5,0) -> 0 | N121: 0 | O121: =IF($A121>0,'Asset data'!G121,0) -> 0 | P121: 0 | Q121: 0 | R121: 0 | S121: 0 | T121: 0 | U121: 0 | W121: =IF($A121>0,SUMIF('Age profile (years)'!$CT121:$GF121,"<" & R121+0.5,'Asset data'!$CX121:$GJ121),0) -> 0 | X121: =IF($A121>0,SUMIF('Age profile (years)'!$CT121:$GF121,"<" & S121+0.5,'Asset data'!$CX121:$GJ121)-W121,0) -> 0 | Y121: =IF($A121>0,SUMIF('Age profile (years)'!$CT121:$GF121,"<" & T121+0.5,'Asset data'!$CX121:$GJ121)-X121-W121,0) -> 0 | Z121: =IF($A121>0,SUMIF('Age profile (years)'!$CT121:$GF121,"<" & U121+0.5,'Asset data'!$CX121:$GJ121)-Y121-X121-W121,0) -> 0 | AA121: 0 | AB121: 0 | AC121: 0 | AD121: 0 | AE121: 0 | AF121: 0 | AI121: =IF($A121>0,'RRR hist-forc'!K121,0) -> 0 | AJ121: 0
A122: ='Asset data'!A122 -> 6 | B122: ='Asset data'!B122 -> 0 | C122: ='Asset data'!C122 -> 0 | D122: ='Asset data'!E122 -> > 33 KV & < = 66 KV ; SWITCH | E122: SWITCHGEAR | F122: =IF(A122>0,SUM('Asset data'!J122:CV122),0) -> 525 | G122: =IF(A122>0,'Asset data'!F122,0) -> 99.22564522 | H122: =IF(A122>0,SUM('Asset data'!CX122:GJ122),0) -> 52093.46374 | I122: 0.00837094181 | J122: 21 | K122: 0.08410183972 | L122: 99.22564522 | M122: =IF($A122>0,SUMPRODUCT('Age profile (years)'!$CT122:$GF122,'Asset data'!$CX122:$GJ122)/H122-0.5,0) -> 38.55714286 | N122: 2008575.123 | O122: =IF($A122>0,'Asset data'!G122,0) -> 72.16416487 | P122: 3759281.306 | Q122: 0.4657023617 | R122: 7.216416487 | S122: 14.43283297 | T122: 43.29849892 | U122: 57.73133189 | W122: =IF($A122>0,SUMIF('Age profile (years)'!$CT122:$GF122,"<" & R122+0.5,'Asset data'!$CX122:$GJ122),0) -> 694.5795166 | X122: =IF($A122>0,SUMIF('Age profile (years)'!$CT122:$GF122,"<" & S122+0.5,'Asset data'!$CX122:$GJ122)-W122,0) -> 1786.061614 | Y122: =IF($A122>0,SUMIF('Age profile (years)'!$CT122:$GF122,"<" & T122+0.5,'Asset data'!$CX122:$GJ122)-X122-W122,0) -> 30164.59615 | Z122: =IF($A122>0,SUMIF('Age profile (years)'!$CT122:$GF122,"<" & U122+0.5,'Asset data'!$CX122:$GJ122)-Y122-X122-W122,0) -> 1885.287259 | AA122: 17562.9392 | AB122: 0.01333333333 | AC122: 0.03428571429 | AD122: 0.579047619 | AE122: 0.03619047619 | AF122: 0.3371428571 | AI122: =IF($A122>0,'RRR hist-forc'!K122,0) -> 72.16416487 | AJ122: 3759281.306
A123: ='Asset data'!A123 -> 6 | B123: ='Asset data'!B123 -> 0 | C123: ='Asset data'!C123 -> 0 | D123: ='Asset data'!E123 -> > 33 KV & < = 66 KV ; CIRCUIT BREAKER | E123: SWITCHGEAR | F123: =IF(A123>0,SUM('Asset data'!J123:CV123),0) -> 92 | G123: =IF(A123>0,'Asset data'!F123,0) -> 55.31791589 | H123: =IF(A123>0,SUM('Asset data'!CX123:GJ123),0) -> 5089.248261 | I123: 0.0008177955158 | J123: 39 | K123: 0.008216292617 | L123: 55.31791589 | M123: =IF($A123>0,SUMPRODUCT('Age profile (years)'!$CT123:$GF123,'Asset data'!$CX123:$GJ123)/H123-0.5,0) -> 29.35869565 | N123: 149413.6908 | O123: =IF($A123>0,'Asset data'!G123,0) -> 49.01007739 | P123: 249424.4511 | Q123: 0.4009661438 | R123: 4.901007739 | S123: 9.802015478 | T123: 29.40604643 | U123: 39.20806191 | W123: =IF($A123>0,SUMIF('Age profile (years)'!$CT123:$GF123,"<" & R123+0.5,'Asset data'!$CX123:$GJ123),0) -> 1051.040402 | X123: =IF($A123>0,SUMIF('Age profile (years)'!$CT123:$GF123,"<" & S123+0.5,'Asset data'!$CX123:$GJ123)-W123,0) -> 165.9537477 | Y123: =IF($A123>0,SUMIF('Age profile (years)'!$CT123:$GF123,"<" & T123+0.5,'Asset data'!$CX123:$GJ123)-X123-W123,0) -> 442.5433271 | Z123: =IF($A123>0,SUMIF('Age profile (years)'!$CT123:$GF123,"<" & U123+0.5,'Asset data'!$CX123:$GJ123)-Y123-X123-W123,0) -> 940.4045701 | AA123: 2489.306215 | AB123: 0.2065217391 | AC123: 0.03260869565 | AD123: 0.08695652174 | AE123: 0.1847826087 | AF123: 0.4891304348 | AI123: =IF($A123>0,'RRR hist-forc'!K123,0) -> 49.01007739 | AJ123: 249424.4511
A124: ='Asset data'!A124 -> 0 | B124: ='Asset data'!B124 -> 0 | C124: ='Asset data'!C124 -> 0 | D124: ='Asset data'!E124 -> > 66 KV & < = 132 KV ; SWITCH | E124: 0 | F124: =IF(A124>0,SUM('Asset data'!J124:CV124),0) -> 0 | G124: =IF(A124>0,'Asset data'!F124,0) -> 0 | H124: =IF(A124>0,SUM('Asset data'!CX124:GJ124),0) -> 0 | I124: 0 | J124: 0 | K124: 0 | L124: 0 | M124: =IF($A124>0,SUMPRODUCT('Age profile (years)'!$CT124:$GF124,'Asset data'!$CX124:$GJ124)/H124-0.5,0) -> 0 | N124: 0 | O124: =IF($A124>0,'Asset data'!G124,0) -> 0 | P124: 0 | Q124: 0 | R124: 0 | S124: 0 | T124: 0 | U124: 0 | W124: =IF($A124>0,SUMIF('Age profile (years)'!$CT124:$GF124,"<" & R124+0.5,'Asset data'!$CX124:$GJ124),0) -> 0 | X124: =IF($A124>0,SUMIF('Age profile (years)'!$CT124:$GF124,"<" & S124+0.5,'Asset data'!$CX124:$GJ124)-W124,0) -> 0 | Y124: =IF($A124>0,SUMIF('Age profile (years)'!$CT124:$GF124,"<" & T124+0.5,'Asset data'!$CX124:$GJ124)-X124-W124,0) -> 0 | Z124: =IF($A124>0,SUMIF('Age profile (years)'!$CT124:$GF124,"<" & U124+0.5,'Asset data'!$CX124:$GJ124)-Y124-X124-W124,0) -> 0 | AA124: 0 | AB124: 0 | AC124: 0 | AD124: 0 | AE124: 0 | AF124: 0 | AI124: =IF($A124>0,'RRR hist-forc'!K124,0) -> 0 | AJ124: 0
A125: ='Asset data'!A125 -> 0 | B125: ='Asset data'!B125 -> 0 | C125: ='Asset data'!C125 -> 0 | D125: ='Asset data'!E125 -> > 66 KV & < = 132 KV ; CIRCUIT BREAKER | E125: 0 | F125: =IF(A125>0,SUM('Asset data'!J125:CV125),0) -> 0 | G125: =IF(A125>0,'Asset data'!F125,0) -> 0 | H125: =IF(A125>0,SUM('Asset data'!CX125:GJ125),0) -> 0 | I125: 0 | J125: 0 | K125: 0 | L125: 0 | M125: =IF($A125>0,SUMPRODUCT('Age profile (years)'!$CT125:$GF125,'Asset data'!$CX125:$GJ125)/H125-0.5,0) -> 0 | N125: 0 | O125: =IF($A125>0,'Asset data'!G125,0) -> 0 | P125: 0 | Q125: 0 | R125: 0 | S125: 0 | T125: 0 | U125: 0 | W125: =IF($A125>0,SUMIF('Age profile (years)'!$CT125:$GF125,"<" & R125+0.5,'Asset data'!$CX125:$GJ125),0) -> 0 | X125: =IF($A125>0,SUMIF('Age profile (years)'!$CT125:$GF125,"<" & S125+0.5,'Asset data'!$CX125:$GJ125)-W125,0) -> 0 | Y125: =IF($A125>0,SUMIF('Age profile (years)'!$CT125:$GF125,"<" & T125+0.5,'Asset data'!$CX125:$GJ125)-X125-W125,0) -> 0 | Z125: =IF($A125>0,SUMIF('Age profile (years)'!$CT125:$GF125,"<" & U125+0.5,'Asset data'!$CX125:$GJ125)-Y125-X125-W125,0) -> 0 | AA125: 0 | AB125: 0 | AC125: 0 | AD125: 0 | AE125: 0 | AF125: 0 | AI125: =IF($A125>0,'RRR hist-forc'!K125,0) -> 0 | AJ125: 0
A126: ='Asset data'!A126 -> 0 | B126: ='Asset data'!B126 -> 0 | C126: ='Asset data'!C126 -> 0 | D126: ='Asset data'!E126 -> > 132 KV ; SWITCH | E126: 0 | F126: =IF(A126>0,SUM('Asset data'!J126:CV126),0) -> 0 | G126: =IF(A126>0,'Asset data'!F126,0) -> 0 | H126: =IF(A126>0,SUM('Asset data'!CX126:GJ126),0) -> 0 | I126: 0 | J126: 0 | K126: 0 | L126: 0 | M126: =IF($A126>0,SUMPRODUCT('Age profile (years)'!$CT126:$GF126,'Asset data'!$CX126:$GJ126)/H126-0.5,0) -> 0 | N126: 0 | O126: =IF($A126>0,'Asset data'!G126,0) -> 0 | P126: 0 | Q126: 0 | R126: 0 | S126: 0 | T126: 0 | U126: 0 | W126: =IF($A126>0,SUMIF('Age profile (years)'!$CT126:$GF126,"<" & R126+0.5,'Asset data'!$CX126:$GJ126),0) -> 0 | X126: =IF($A126>0,SUMIF('Age profile (years)'!$CT126:$GF126,"<" & S126+0.5,'Asset data'!$CX126:$GJ126)-W126,0) -> 0 | Y126: =IF($A126>0,SUMIF('Age profile (years)'!$CT126:$GF126,"<" & T126+0.5,'Asset data'!$CX126:$GJ126)-X126-W126,0) -> 0 | Z126: =IF($A126>0,SUMIF('Age profile (years)'!$CT126:$GF126,"<" & U126+0.5,'Asset data'!$CX126:$GJ126)-Y126-X126-W126,0) -> 0 | AA126: 0 | AB126: 0 | AC126: 0 | AD126: 0 | AE126: 0 | AF126: 0 | AI126: =IF($A126>0,'RRR hist-forc'!K126,0) -> 0 | AJ126: 0
A127: ='Asset data'!A127 -> 0 | B127: ='Asset data'!B127 -> 0 | C127: ='Asset data'!C127 -> 0 | D127: ='Asset data'!E127 -> > 132 KV ; CIRCUIT BREAKER | E127: 0 | F127: =IF(A127>0,SUM('Asset data'!J127:CV127),0) -> 0 | G127: =IF(A127>0,'Asset data'!F127,0) -> 0 | H127: =IF(A127>0,SUM('Asset data'!CX127:GJ127),0) -> 0 | I127: 0 | J127: 0 | K127: 0 | L127: 0 | M127: =IF($A127>0,SUMPRODUCT('Age profile (years)'!$CT127:$GF127,'Asset data'!$CX127:$GJ127)/H127-0.5,0) -> 0 | N127: 0 | O127: =IF($A127>0,'Asset data'!G127,0) -> 0 | P127: 0 | Q127: 0 | R127: 0 | S127: 0 | T127: 0 | U127: 0 | W127: =IF($A127>0,SUMIF('Age profile (years)'!$CT127:$GF127,"<" & R127+0.5,'Asset data'!$CX127:$GJ127),0) -> 0 | X127: =IF($A127>0,SUMIF('Age profile (years)'!$CT127:$GF127,"<" & S127+0.5,'Asset data'!$CX127:$GJ127)-W127,0) -> 0 | Y127: =IF($A127>0,SUMIF('Age profile (years)'!$CT127:$GF127,"<" & T127+0.5,'Asset data'!$CX127:$GJ127)-X127-W127,0) -> 0 | Z127: =IF($A127>0,SUMIF('Age profile (years)'!$CT127:$GF127,"<" & U127+0.5,'Asset data'!$CX127:$GJ127)-Y127-X127-W127,0) -> 0 | AA127: 0 | AB127: 0 | AC127: 0 | AD127: 0 | AE127: 0 | AF127: 0 | AI127: =IF($A127>0,'RRR hist-forc'!K127,0) -> 0 | AJ127: 0
A128: ='Asset data'!A128 -> 6 | B128: ='Asset data'!B128 -> 0 | C128: ='Asset data'!C128 -> 0 | D128: ='Asset data'!E128 -> >= 11 KV & < = 22 KV ; LINE CAPACITORS; CONTROLLERS AND VACUUM SWITCHES | E128: SWITCHGEAR | F128: =IF(A128>0,SUM('Asset data'!J128:CV128),0) -> 3374 | G128: =IF(A128>0,'Asset data'!F128,0) -> 7.481947417 | H128: =IF(A128>0,SUM('Asset data'!CX128:GJ128),0) -> 25244.09058 | I128: 0.004056493812 | J128: 24 | K128: 0.04075510261 | L128: 7.481947417 | M128: =IF($A128>0,SUMPRODUCT('Age profile (years)'!$CT128:$GF128,'Asset data'!$CX128:$GJ128)/H128-0.5,0) -> 5.782157676 | N128: 145965.3122 | O128: =IF($A128>0,'Asset data'!G128,0) -> 18.69722881 | P128: 471994.5376 | Q128: 0.6907478784 | R128: 1.869722881 | S128: 3.739445761 | T128: 11.21833728 | U128: 14.95778304 | W128: =IF($A128>0,SUMIF('Age profile (years)'!$CT128:$GF128,"<" & R128+0.5,'Asset data'!$CX128:$GJ128),0) -> 0 | X128: =IF($A128>0,SUMIF('Age profile (years)'!$CT128:$GF128,"<" & S128+0.5,'Asset data'!$CX128:$GJ128)-W128,0) -> 9950.990064 | Y128: =IF($A128>0,SUMIF('Age profile (years)'!$CT128:$GF128,"<" & T128+0.5,'Asset data'!$CX128:$GJ128)-X128-W128,0) -> 13407.64977 | Z128: =IF($A128>0,SUMIF('Age profile (years)'!$CT128:$GF128,"<" & U128+0.5,'Asset data'!$CX128:$GJ128)-Y128-X128-W128,0) -> 995.0990064 | AA128: 890.3517426 | AB128: 0 | AC128: 0.3941908714 | AD128: 0.531120332 | AE128: 0.03941908714 | AF128: 0.03526970954 | AI128: =IF($A128>0,'RRR hist-forc'!K128,0) -> 18.69722881 | AJ128: 471994.5376
A129: ='Asset data'!A129 -> 0 | B129: ='Asset data'!B129 -> 0 | C129: ='Asset data'!C129 -> 0 | D129: ='Asset data'!E129 -> 0 | E129: 0 | F129: =IF(A129>0,SUM('Asset data'!J129:CV129),0) -> 0 | G129: =IF(A129>0,'Asset data'!F129,0) -> 0 | H129: =IF(A129>0,SUM('Asset data'!CX129:GJ129),0) -> 0 | I129: 0 | J129: 0 | K129: 0 | L129: 0 | M129: =IF($A129>0,SUMPRODUCT('Age profile (years)'!$CT129:$GF129,'Asset data'!$CX129:$GJ129)/H129-0.5,0) -> 0 | N129: 0 | O129: =IF($A129>0,'Asset data'!G129,0) -> 0 | P129: 0 | Q129: 0 | R129: 0 | S129: 0 | T129: 0 | U129: 0 | W129: =IF($A129>0,SUMIF('Age profile (years)'!$CT129:$GF129,"<" & R129+0.5,'Asset data'!$CX129:$GJ129),0) -> 0 | X129: =IF($A129>0,SUMIF('Age profile (years)'!$CT129:$GF129,"<" & S129+0.5,'Asset data'!$CX129:$GJ129)-W129,0) -> 0 | Y129: =IF($A129>0,SUMIF('Age profile (years)'!$CT129:$GF129,"<" & T129+0.5,'Asset data'!$CX129:$GJ129)-X129-W129,0) -> 0 | Z129: =IF($A129>0,SUMIF('Age profile (years)'!$CT129:$GF129,"<" & U129+0.5,'Asset data'!$CX129:$GJ129)-Y129-X129-W129,0) -> 0 | AA129: 0 | AB129: 0 | AC129: 0 | AD129: 0 | AE129: 0 | AF129: 0 | AI129: =IF($A129>0,'RRR hist-forc'!K129,0) -> 0 | AJ129: 0
A130: ='Asset data'!A130 -> 0 | B130: ='Asset data'!B130 -> 0 | C130: ='Asset data'!C130 -> 0 | D130: ='Asset data'!E130 -> 0 | E130: 0 | F130: =IF(A130>0,SUM('Asset data'!J130:CV130),0) -> 0 | G130: =IF(A130>0,'Asset data'!F130,0) -> 0 | H130: =IF(A130>0,SUM('Asset data'!CX130:GJ130),0) -> 0 | I130: 0 | J130: 0 | K130: 0 | L130: 0 | M130: =IF($A130>0,SUMPRODUCT('Age profile (years)'!$CT130:$GF130,'Asset data'!$CX130:$GJ130)/H130-0.5,0) -> 0 | N130: 0 | O130: =IF($A130>0,'Asset data'!G130,0) -> 0 | P130: 0 | Q130: 0 | R130: 0 | S130: 0 | T130: 0 | U130: 0 | W130: =IF($A130>0,SUMIF('Age profile (years)'!$CT130:$GF130,"<" & R130+0.5,'Asset data'!$CX130:$GJ130),0) -> 0 | X130: =IF($A130>0,SUMIF('Age profile (years)'!$CT130:$GF130,"<" & S130+0.5,'Asset data'!$CX130:$GJ130)-W130,0) -> 0 | Y130: =IF($A130>0,SUMIF('Age profile (years)'!$CT130:$GF130,"<" & T130+0.5,'Asset data'!$CX130:$GJ130)-X130-W130,0) -> 0 | Z130: =IF($A130>0,SUMIF('Age profile (years)'!$CT130:$GF130,"<" & U130+0.5,'Asset data'!$CX130:$GJ130)-Y130-X130-W130,0) -> 0 | AA130: 0 | AB130: 0 | AC130: 0 | AD130: 0 | AE130: 0 | AF130: 0 | AI130: =IF($A130>0,'RRR hist-forc'!K130,0) -> 0 | AJ130: 0
A131: ='Asset data'!A131 -> 0 | B131: ='Asset data'!B131 -> 0 | C131: ='Asset data'!C131 -> 0 | D131: ='Asset data'!E131 -> 0 | E131: 0 | F131: =IF(A131>0,SUM('Asset data'!J131:CV131),0) -> 0 | G131: =IF(A131>0,'Asset data'!F131,0) -> 0 | H131: =IF(A131>0,SUM('Asset data'!CX131:GJ131),0) -> 0 | I131: 0 | J131: 0 | K131: 0 | L131: 0 | M131: =IF($A131>0,SUMPRODUCT('Age profile (years)'!$CT131:$GF131,'Asset data'!$CX131:$GJ131)/H131-0.5,0) -> 0 | N131: 0 | O131: =IF($A131>0,'Asset data'!G131,0) -> 0 | P131: 0 | Q131: 0 | R131: 0 | S131: 0 | T131: 0 | U131: 0 | W131: =IF($A131>0,SUMIF('Age profile (years)'!$CT131:$GF131,"<" & R131+0.5,'Asset data'!$CX131:$GJ131),0) -> 0 | X131: =IF($A131>0,SUMIF('Age profile (years)'!$CT131:$GF131,"<" & S131+0.5,'Asset data'!$CX131:$GJ131)-W131,0) -> 0 | Y131: =IF($A131>0,SUMIF('Age profile (years)'!$CT131:$GF131,"<" & T131+0.5,'Asset data'!$CX131:$GJ131)-X131-W131,0) -> 0 | Z131: =IF($A131>0,SUMIF('Age profile (years)'!$CT131:$GF131,"<" & U131+0.5,'Asset data'!$CX131:$GJ131)-Y131-X131-W131,0) -> 0 | AA131: 0 | AB131: 0 | AC131: 0 | AD131: 0 | AE131: 0 | AF131: 0 | AI131: =IF($A131>0,'RRR hist-forc'!K131,0) -> 0 | AJ131: 0
A132: ='Asset data'!A132 -> 0 | B132: ='Asset data'!B132 -> 0 | C132: ='Asset data'!C132 -> 0 | D132: ='Asset data'!E132 -> 0 | E132: 0 | F132: =IF(A132>0,SUM('Asset data'!J132:CV132),0) -> 0 | G132: =IF(A132>0,'Asset data'!F132,0) -> 0 | H132: =IF(A132>0,SUM('Asset data'!CX132:GJ132),0) -> 0 | I132: 0 | J132: 0 | K132: 0 | L132: 0 | M132: =IF($A132>0,SUMPRODUCT('Age profile (years)'!$CT132:$GF132,'Asset data'!$CX132:$GJ132)/H132-0.5,0) -> 0 | N132: 0 | O132: =IF($A132>0,'Asset data'!G132,0) -> 0 | P132: 0 | Q132: 0 | R132: 0 | S132: 0 | T132: 0 | U132: 0 | W132: =IF($A132>0,SUMIF('Age profile (years)'!$CT132:$GF132,"<" & R132+0.5,'Asset data'!$CX132:$GJ132),0) -> 0 | X132: =IF($A132>0,SUMIF('Age profile (years)'!$CT132:$GF132,"<" & S132+0.5,'Asset data'!$CX132:$GJ132)-W132,0) -> 0 | Y132: =IF($A132>0,SUMIF('Age profile (years)'!$CT132:$GF132,"<" & T132+0.5,'Asset data'!$CX132:$GJ132)-X132-W132,0) -> 0 | Z132: =IF($A132>0,SUMIF('Age profile (years)'!$CT132:$GF132,"<" & U132+0.5,'Asset data'!$CX132:$GJ132)-Y132-X132-W132,0) -> 0 | AA132: 0 | AB132: 0 | AC132: 0 | AD132: 0 | AE132: 0 | AF132: 0 | AI132: =IF($A132>0,'RRR hist-forc'!K132,0) -> 0 | AJ132: 0
A133: ='Asset data'!A133 -> 0 | B133: ='Asset data'!B133 -> 0 | C133: ='Asset data'!C133 -> 0 | D133: ='Asset data'!E133 -> 0 | E133: 0 | F133: =IF(A133>0,SUM('Asset data'!J133:CV133),0) -> 0 | G133: =IF(A133>0,'Asset data'!F133,0) -> 0 | H133: =IF(A133>0,SUM('Asset data'!CX133:GJ133),0) -> 0 | I133: 0 | J133: 0 | K133: 0 | L133: 0 | M133: =IF($A133>0,SUMPRODUCT('Age profile (years)'!$CT133:$GF133,'Asset data'!$CX133:$GJ133)/H133-0.5,0) -> 0 | N133: 0 | O133: =IF($A133>0,'Asset data'!G133,0) -> 0 | P133: 0 | Q133: 0 | R133: 0 | S133: 0 | T133: 0 | U133: 0 | W133: =IF($A133>0,SUMIF('Age profile (years)'!$CT133:$GF133,"<" & R133+0.5,'Asset data'!$CX133:$GJ133),0) -> 0 | X133: =IF($A133>0,SUMIF('Age profile (years)'!$CT133:$GF133,"<" & S133+0.5,'Asset data'!$CX133:$GJ133)-W133,0) -> 0 | Y133: =IF($A133>0,SUMIF('Age profile (years)'!$CT133:$GF133,"<" & T133+0.5,'Asset data'!$CX133:$GJ133)-X133-W133,0) -> 0 | Z133: =IF($A133>0,SUMIF('Age profile (years)'!$CT133:$GF133,"<" & U133+0.5,'Asset data'!$CX133:$GJ133)-Y133-X133-W133,0) -> 0 | AA133: 0 | AB133: 0 | AC133: 0 | AD133: 0 | AE133: 0 | AF133: 0 | AI133: =IF($A133>0,'RRR hist-forc'!K133,0) -> 0 | AJ133: 0
A134: ='Asset data'!A134 -> 0 | B134: ='Asset data'!B134 -> 0 | C134: ='Asset data'!C134 -> 0 | D134: ='Asset data'!E134 -> 0 | E134: 0 | F134: =IF(A134>0,SUM('Asset data'!J134:CV134),0) -> 0 | G134: =IF(A134>0,'Asset data'!F134,0) -> 0 | H134: =IF(A134>0,SUM('Asset data'!CX134:GJ134),0) -> 0 | I134: 0 | J134: 0 | K134: 0 | L134: 0 | M134: =IF($A134>0,SUMPRODUCT('Age profile (years)'!$CT134:$GF134,'Asset data'!$CX134:$GJ134)/H134-0.5,0) -> 0 | N134: 0 | O134: =IF($A134>0,'Asset data'!G134,0) -> 0 | P134: 0 | Q134: 0 | R134: 0 | S134: 0 | T134: 0 | U134: 0 | W134: =IF($A134>0,SUMIF('Age profile (years)'!$CT134:$GF134,"<" & R134+0.5,'Asset data'!$CX134:$GJ134),0) -> 0 | X134: =IF($A134>0,SUMIF('Age profile (years)'!$CT134:$GF134,"<" & S134+0.5,'Asset data'!$CX134:$GJ134)-W134,0) -> 0 | Y134: =IF($A134>0,SUMIF('Age profile (years)'!$CT134:$GF134,"<" & T134+0.5,'Asset data'!$CX134:$GJ134)-X134-W134,0) -> 0 | Z134: =IF($A134>0,SUMIF('Age profile (years)'!$CT134:$GF134,"<" & U134+0.5,'Asset data'!$CX134:$GJ134)-Y134-X134-W134,0) -> 0 | AA134: 0 | AB134: 0 | AC134: 0 | AD134: 0 | AE134: 0 | AF134: 0 | AI134: =IF($A134>0,'RRR hist-forc'!K134,0) -> 0 | AJ134: 0
A135: ='Asset data'!A135 -> 0 | B135: ='Asset data'!B135 -> 0 | C135: ='Asset data'!C135 -> 0 | D135: ='Asset data'!E135 -> 0 | E135: 0 | F135: =IF(A135>0,SUM('Asset data'!J135:CV135),0) -> 0 | G135: =IF(A135>0,'Asset data'!F135,0) -> 0 | H135: =IF(A135>0,SUM('Asset data'!CX135:GJ135),0) -> 0 | I135: 0 | J135: 0 | K135: 0 | L135: 0 | M135: =IF($A135>0,SUMPRODUCT('Age profile (years)'!$CT135:$GF135,'Asset data'!$CX135:$GJ135)/H135-0.5,0) -> 0 | N135: 0 | O135: =IF($A135>0,'Asset data'!G135,0) -> 0 | P135: 0 | Q135: 0 | R135: 0 | S135: 0 | T135: 0 | U135: 0 | W135: =IF($A135>0,SUMIF('Age profile (years)'!$CT135:$GF135,"<" & R135+0.5,'Asset data'!$CX135:$GJ135),0) -> 0 | X135: =IF($A135>0,SUMIF('Age profile (years)'!$CT135:$GF135,"<" & S135+0.5,'Asset data'!$CX135:$GJ135)-W135,0) -> 0 | Y135: =IF($A135>0,SUMIF('Age profile (years)'!$CT135:$GF135,"<" & T135+0.5,'Asset data'!$CX135:$GJ135)-X135-W135,0) -> 0 | Z135: =IF($A135>0,SUMIF('Age profile (years)'!$CT135:$GF135,"<" & U135+0.5,'Asset data'!$CX135:$GJ135)-Y135-X135-W135,0) -> 0 | AA135: 0 | AB135: 0 | AC135: 0 | AD135: 0 | AE135: 0 | AF135: 0 | AI135: =IF($A135>0,'RRR hist-forc'!K135,0) -> 0 | AJ135: 0
A136: ='Asset data'!A136 -> 0 | B136: ='Asset data'!B136 -> 0 | C136: ='Asset data'!C136 -> 0 | D136: ='Asset data'!E136 -> 0 | E136: 0 | F136: =IF(A136>0,SUM('Asset data'!J136:CV136),0) -> 0 | G136: =IF(A136>0,'Asset data'!F136,0) -> 0 | H136: =IF(A136>0,SUM('Asset data'!CX136:GJ136),0) -> 0 | I136: 0 | J136: 0 | K136: 0 | L136: 0 | M136: =IF($A136>0,SUMPRODUCT('Age profile (years)'!$CT136:$GF136,'Asset data'!$CX136:$GJ136)/H136-0.5,0) -> 0 | N136: 0 | O136: =IF($A136>0,'Asset data'!G136,0) -> 0 | P136: 0 | Q136: 0 | R136: 0 | S136: 0 | T136: 0 | U136: 0 | W136: =IF($A136>0,SUMIF('Age profile (years)'!$CT136:$GF136,"<" & R136+0.5,'Asset data'!$CX136:$GJ136),0) -> 0 | X136: =IF($A136>0,SUMIF('Age profile (years)'!$CT136:$GF136,"<" & S136+0.5,'Asset data'!$CX136:$GJ136)-W136,0) -> 0 | Y136: =IF($A136>0,SUMIF('Age profile (years)'!$CT136:$GF136,"<" & T136+0.5,'Asset data'!$CX136:$GJ136)-X136-W136,0) -> 0 | Z136: =IF($A136>0,SUMIF('Age profile (years)'!$CT136:$GF136,"<" & U136+0.5,'Asset data'!$CX136:$GJ136)-Y136-X136-W136,0) -> 0 | AA136: 0 | AB136: 0 | AC136: 0 | AD136: 0 | AE136: 0 | AF136: 0 | AI136: =IF($A136>0,'RRR hist-forc'!K136,0) -> 0 | AJ136: 0
A137: ='Asset data'!A137 -> 0 | B137: ='Asset data'!B137 -> 0 | C137: ='Asset data'!C137 -> 0 | D137: ='Asset data'!E137 -> 0 | E137: 0 | F137: =IF(A137>0,SUM('Asset data'!J137:CV137),0) -> 0 | G137: =IF(A137>0,'Asset data'!F137,0) -> 0 | H137: =IF(A137>0,SUM('Asset data'!CX137:GJ137),0) -> 0 | I137: 0 | J137: 0 | K137: 0 | L137: 0 | M137: =IF($A137>0,SUMPRODUCT('Age profile (years)'!$CT137:$GF137,'Asset data'!$CX137:$GJ137)/H137-0.5,0) -> 0 | N137: 0 | O137: =IF($A137>0,'Asset data'!G137,0) -> 0 | P137: 0 | Q137: 0 | R137: 0 | S137: 0 | T137: 0 | U137: 0 | W137: =IF($A137>0,SUMIF('Age profile (years)'!$CT137:$GF137,"<" & R137+0.5,'Asset data'!$CX137:$GJ137),0) -> 0 | X137: =IF($A137>0,SUMIF('Age profile (years)'!$CT137:$GF137,"<" & S137+0.5,'Asset data'!$CX137:$GJ137)-W137,0) -> 0 | Y137: =IF($A137>0,SUMIF('Age profile (years)'!$CT137:$GF137,"<" & T137+0.5,'Asset data'!$CX137:$GJ137)-X137-W137,0) -> 0 | Z137: =IF($A137>0,SUMIF('Age profile (years)'!$CT137:$GF137,"<" & U137+0.5,'Asset data'!$CX137:$GJ137)-Y137-X137-W137,0) -> 0 | AA137: 0 | AB137: 0 | AC137: 0 | AD137: 0 | AE137: 0 | AF137: 0 | AI137: =IF($A137>0,'RRR hist-forc'!K137,0) -> 0 | AJ137: 0
A138: ='Asset data'!A138 -> 0 | B138: ='Asset data'!B138 -> 0 | C138: ='Asset data'!C138 -> 0 | D138: ='Asset data'!E138 -> 0 | E138: 0 | F138: =IF(A138>0,SUM('Asset data'!J138:CV138),0) -> 0 | G138: =IF(A138>0,'Asset data'!F138,0) -> 0 | H138: =IF(A138>0,SUM('Asset data'!CX138:GJ138),0) -> 0 | I138: 0 | J138: 0 | K138: 0 | L138: 0 | M138: =IF($A138>0,SUMPRODUCT('Age profile (years)'!$CT138:$GF138,'Asset data'!$CX138:$GJ138)/H138-0.5,0) -> 0 | N138: 0 | O138: =IF($A138>0,'Asset data'!G138,0) -> 0 | P138: 0 | Q138: 0 | R138: 0 | S138: 0 | T138: 0 | U138: 0 | W138: =IF($A138>0,SUMIF('Age profile (years)'!$CT138:$GF138,"<" & R138+0.5,'Asset data'!$CX138:$GJ138),0) -> 0 | X138: =IF($A138>0,SUMIF('Age profile (years)'!$CT138:$GF138,"<" & S138+0.5,'Asset data'!$CX138:$GJ138)-W138,0) -> 0 | Y138: =IF($A138>0,SUMIF('Age profile (years)'!$CT138:$GF138,"<" & T138+0.5,'Asset data'!$CX138:$GJ138)-X138-W138,0) -> 0 | Z138: =IF($A138>0,SUMIF('Age profile (years)'!$CT138:$GF138,"<" & U138+0.5,'Asset data'!$CX138:$GJ138)-Y138-X138-W138,0) -> 0 | AA138: 0 | AB138: 0 | AC138: 0 | AD138: 0 | AE138: 0 | AF138: 0 | AI138: =IF($A138>0,'RRR hist-forc'!K138,0) -> 0 | AJ138: 0
A139: ='Asset data'!A139 -> 0 | B139: ='Asset data'!B139 -> 0 | C139: ='Asset data'!C139 -> 0 | D139: ='Asset data'!E139 -> 0 | E139: 0 | F139: =IF(A139>0,SUM('Asset data'!J139:CV139),0) -> 0 | G139: =IF(A139>0,'Asset data'!F139,0) -> 0 | H139: =IF(A139>0,SUM('Asset data'!CX139:GJ139),0) -> 0 | I139: 0 | J139: 0 | K139: 0 | L139: 0 | M139: =IF($A139>0,SUMPRODUCT('Age profile (years)'!$CT139:$GF139,'Asset data'!$CX139:$GJ139)/H139-0.5,0) -> 0 | N139: 0 | O139: =IF($A139>0,'Asset data'!G139,0) -> 0 | P139: 0 | Q139: 0 | R139: 0 | S139: 0 | T139: 0 | U139: 0 | W139: =IF($A139>0,SUMIF('Age profile (years)'!$CT139:$GF139,"<" & R139+0.5,'Asset data'!$CX139:$GJ139),0) -> 0 | X139: =IF($A139>0,SUMIF('Age profile (years)'!$CT139:$GF139,"<" & S139+0.5,'Asset data'!$CX139:$GJ139)-W139,0) -> 0 | Y139: =IF($A139>0,SUMIF('Age profile (years)'!$CT139:$GF139,"<" & T139+0.5,'Asset data'!$CX139:$GJ139)-X139-W139,0) -> 0 | Z139: =IF($A139>0,SUMIF('Age profile (years)'!$CT139:$GF139,"<" & U139+0.5,'Asset data'!$CX139:$GJ139)-Y139-X139-W139,0) -> 0 | AA139: 0 | AB139: 0 | AC139: 0 | AD139: 0 | AE139: 0 | AF139: 0 | AI139: =IF($A139>0,'RRR hist-forc'!K139,0) -> 0 | AJ139: 0
A140: ='Asset data'!A140 -> 0 | B140: ='Asset data'!B140 -> 0 | C140: ='Asset data'!C140 -> 0 | D140: ='Asset data'!E140 -> 0 | E140: 0 | F140: =IF(A140>0,SUM('Asset data'!J140:CV140),0) -> 0 | G140: =IF(A140>0,'Asset data'!F140,0) -> 0 | H140: =IF(A140>0,SUM('Asset data'!CX140:GJ140),0) -> 0 | I140: 0 | J140: 0 | K140: 0 | L140: 0 | M140: =IF($A140>0,SUMPRODUCT('Age profile (years)'!$CT140:$GF140,'Asset data'!$CX140:$GJ140)/H140-0.5,0) -> 0 | N140: 0 | O140: =IF($A140>0,'Asset data'!G140,0) -> 0 | P140: 0 | Q140: 0 | R140: 0 | S140: 0 | T140: 0 | U140: 0 | W140: =IF($A140>0,SUMIF('Age profile (years)'!$CT140:$GF140,"<" & R140+0.5,'Asset data'!$CX140:$GJ140),0) -> 0 | X140: =IF($A140>0,SUMIF('Age profile (years)'!$CT140:$GF140,"<" & S140+0.5,'Asset data'!$CX140:$GJ140)-W140,0) -> 0 | Y140: =IF($A140>0,SUMIF('Age profile (years)'!$CT140:$GF140,"<" & T140+0.5,'Asset data'!$CX140:$GJ140)-X140-W140,0) -> 0 | Z140: =IF($A140>0,SUMIF('Age profile (years)'!$CT140:$GF140,"<" & U140+0.5,'Asset data'!$CX140:$GJ140)-Y140-X140-W140,0) -> 0 | AA140: 0 | AB140: 0 | AC140: 0 | AD140: 0 | AE140: 0 | AF140: 0 | AI140: =IF($A140>0,'RRR hist-forc'!K140,0) -> 0 | AJ140: 0
A141: ='Asset data'!A141 -> 0 | B141: ='Asset data'!B141 -> 0 | C141: ='Asset data'!C141 -> 0 | D141: ='Asset data'!E141 -> 0 | E141: 0 | F141: =IF(A141>0,SUM('Asset data'!J141:CV141),0) -> 0 | G141: =IF(A141>0,'Asset data'!F141,0) -> 0 | H141: =IF(A141>0,SUM('Asset data'!CX141:GJ141),0) -> 0 | I141: 0 | J141: 0 | K141: 0 | L141: 0 | M141: =IF($A141>0,SUMPRODUCT('Age profile (years)'!$CT141:$GF141,'Asset data'!$CX141:$GJ141)/H141-0.5,0) -> 0 | N141: 0 | O141: =IF($A141>0,'Asset data'!G141,0) -> 0 | P141: 0 | Q141: 0 | R141: 0 | S141: 0 | T141: 0 | U141: 0 | W141: =IF($A141>0,SUMIF('Age profile (years)'!$CT141:$GF141,"<" & R141+0.5,'Asset data'!$CX141:$GJ141),0) -> 0 | X141: =IF($A141>0,SUMIF('Age profile (years)'!$CT141:$GF141,"<" & S141+0.5,'Asset data'!$CX141:$GJ141)-W141,0) -> 0 | Y141: =IF($A141>0,SUMIF('Age profile (years)'!$CT141:$GF141,"<" & T141+0.5,'Asset data'!$CX141:$GJ141)-X141-W141,0) -> 0 | Z141: =IF($A141>0,SUMIF('Age profile (years)'!$CT141:$GF141,"<" & U141+0.5,'Asset data'!$CX141:$GJ141)-Y141-X141-W141,0) -> 0 | AA141: 0 | AB141: 0 | AC141: 0 | AD141: 0 | AE141: 0 | AF141: 0 | AI141: =IF($A141>0,'RRR hist-forc'!K141,0) -> 0 | AJ141: 0
A142: ='Asset data'!A142 -> 0 | B142: ='Asset data'!B142 -> 0 | C142: ='Asset data'!C142 -> 0 | D142: ='Asset data'!E142 -> 0 | E142: 0 | F142: =IF(A142>0,SUM('Asset data'!J142:CV142),0) -> 0 | G142: =IF(A142>0,'Asset data'!F142,0) -> 0 | H142: =IF(A142>0,SUM('Asset data'!CX142:GJ142),0) -> 0 | I142: 0 | J142: 0 | K142: 0 | L142: 0 | M142: =IF($A142>0,SUMPRODUCT('Age profile (years)'!$CT142:$GF142,'Asset data'!$CX142:$GJ142)/H142-0.5,0) -> 0 | N142: 0 | O142: =IF($A142>0,'Asset data'!G142,0) -> 0 | P142: 0 | Q142: 0 | R142: 0 | S142: 0 | T142: 0 | U142: 0 | W142: =IF($A142>0,SUMIF('Age profile (years)'!$CT142:$GF142,"<" & R142+0.5,'Asset data'!$CX142:$GJ142),0) -> 0 | X142: =IF($A142>0,SUMIF('Age profile (years)'!$CT142:$GF142,"<" & S142+0.5,'Asset data'!$CX142:$GJ142)-W142,0) -> 0 | Y142: =IF($A142>0,SUMIF('Age profile (years)'!$CT142:$GF142,"<" & T142+0.5,'Asset data'!$CX142:$GJ142)-X142-W142,0) -> 0 | Z142: =IF($A142>0,SUMIF('Age profile (years)'!$CT142:$GF142,"<" & U142+0.5,'Asset data'!$CX142:$GJ142)-Y142-X142-W142,0) -> 0 | AA142: 0 | AB142: 0 | AC142: 0 | AD142: 0 | AE142: 0 | AF142: 0 | AI142: =IF($A142>0,'RRR hist-forc'!K142,0) -> 0 | AJ142: 0
AI206: =IF($A206>0,'RRR hist-forc'!K206,0) -> 0 | AJ206: =IF($A206>0,AI206*H206,0) -> 0

Sheet Asset data
A1: Meth all | D1: 3 | E1: =IF(D1=2,"all normal",IF(D1=1,"all deterministic","individual")) -> individual | L1: Profile type: | M1: 3 | N1: =VLOOKUP(APtype,IDtable,4) -> Installation date
F3: Unit | J3: Quantities | CX3: Replacement Cost (NOT depreciated)
F4: Cost | G4: Replacement life | I4: Rep | J4: =VLOOKUP(APtype,IDtable,4) -> Installation date | CX4: =VLOOKUP(APtype,IDtable,4) -> Installation date
A5: ID | B5: ID | C5: ID | D5: Asset category | E5: Asset ID | F5: $ ('000) | G5: mean | H5: SD | I5: Meth | J5: =IF(OR(APtype=1,APtype=2),0,IF(APtype=3,Now,9999)) -> 2014 | K5: =IF(OR(APtype=1,APtype=2),J5+1,IF(APtype=3,J5-1,9999)) -> 2013 | L5: 2012 | M5: 2011 | N5: 2010 | O5: 2009 | P5: 2008 | Q5: 2007 | R5: 2006 | S5: 2005 | T5: 2004 | U5: 2003 | V5: 2002 | W5: 2001 | X5: 2000 | Y5: 1999 | Z5: 1998 | AA5: 1997 | AB5: 1996 | AC5: 1995 | AD5: 1994 | AE5: 1993 | AF5: 1992 | AG5: 1991 | AH5: 1990 | AI5: 1989 | AJ5: 1988 | AK5: 1987 | AL5: 1986 | AM5: 1985 | AN5: 1984 | AO5: 1983 | AP5: 1982 | AQ5: =IF(OR(APtype=1,APtype=2),AP5+1,IF(APtype=3,AP5-1,9999)) -> 1981 | AR5: 1980 | AS5: 1979 | AT5: 1978 | AU5: 1977 | AV5: 1976 | AW5: 1975 | AX5: 1974 | AY5: 1973 | AZ5: 1972 | BA5: 1971 | BB5: 1970 | BC5: 1969 | BD5: 1968 | BE5: 1967 | BF5: 1966 | BG5: 1965 | BH5: 1964 | BI5: 1963 | BJ5: 1962 | BK5: 1961 | BL5: 1960 | BM5: 1959 | BN5: 1958 | BO5: 1957 | BP5: 1956 | BQ5: 1955 | BR5: 1954 | BS5: 1953 | BT5: 1952 | BU5: 1951 | BV5: 1950 | BW5: =IF(OR(APtype=1,APtype=2),BV5+1,IF(APtype=3,BV5-1,9999)) -> 1949 | BX5: 1948 | BY5: 1947 | BZ5: 1946 | CA5: 1945 | CB5: 1944 | CC5: 1943 | CD5: 1942 | CE5: 1941 | CF5: 1940 | CG5: 1939 | CH5: 1938 | CI5: 1937 | CJ5: 1936 | CK5: 1935 | CL5: 1934 | CM5: 1933 | CN5: 1932 | CO5: 1931 | CP5: 1930 | CQ5: 1929 | CR5: 1928 | CS5: 1927 | CT5: 1926 | CU5: 1925 | CV5: 1924 | CX5: =J5 -> 2014 | CY5: =K5 -> 2013 | CZ5: 2012 | DA5: 2011 | DB5: 2010 | DC5: 2009 | DD5: 2008 | DE5: 2007 | DF5: 2006 | DG5: 2005 | DH5: 2004 | DI5: 2003 | DJ5: 2002 | DK5: 2001 | DL5: 2000 | DM5: 1999 | DN5: 1998 | DO5: 1997 | DP5: 1996 | DQ5: 1995 | DR5: 1994 | DS5: 1993 | DT5: 1992 | DU5: 1991 | DV5: 1990 | DW5: 1989 | DX5: 1988 | DY5: 1987 | DZ5: 1986 | EA5: 1985 | EB5: 1984 | EC5: 1983 | ED5: 1982 | EE5: 1981 | EF5: 1980 | EG5: 1979 | EH5: 1978 | EI5: 1977 | EJ5: 1976 | EK5: 1975 | EL5: 1974 | EM5: 1973 | EN5: 1972 | EO5: 1971 | EP5: 1970 | EQ5: 1969 | ER5: 1968 | ES5: 1967 | ET5: 1966 | EU5: 1965 | EV5: 1964 | EW5: 1963 | EX5: 1962 | EY5: 1961 | EZ5: 1960 | FA5: 1959 | FB5: 1958 | FC5: 1957 | FD5: 1956 | FE5: 1955 | FF5: 1954 | FG5: 1953 | FH5: 1952 | FI5: 1951 | FJ5: 1950 | FK5: =BW5 -> 1949 | FL5: 1948 | FM5: 1947 | FN5: 1946 | FO5: 1945 | FP5: 1944 | FQ5: 1943 | FR5: 1942 | FS5: 1941 | FT5: 1940 | FU5: 1939 | FV5: 1938 | FW5: 1937 | FX5: 1936 | FY5: 1935 | FZ5: 1934 | GA5: 1933 | GB5: 1932 | GC5: 1931 | GD5: 1930 | GE5: 1929 | GF5: 1928 | GG5: 1927 | GH5: 1926 | GI5: 1925 | GJ5: 1924
A21: 1 | D21: POLES | E21: STAKING OF A WOODEN POLE | F21: 10.50700044 | G21: 34.07046942 | H21: 5.83699147 | I21: 2 | J21: 901 | K21: 904 | L21: 388 | M21: 504 | N21: 386 | O21: 373 | P21: 576 | Q21: 660 | R21: 520 | S21: 580 | T21: 761 | U21: 474 | V21: 502 | W21: 422 | X21: 432 | Y21: 463 | Z21: 590 | AA21: 572 | AB21: 350 | AC21: 290 | AD21: 317 | AE21: 799 | AF21: 861 | AG21: 644 | AH21: 1234 | AI21: 671 | AJ21: 46 | AK21: 67 | AL21: 423 | AM21: 45 | AN21: 0 | AO21: 0 | AP21: 0 | AQ21: 0 | AR21: 0 | AS21: 0 | AT21: 1 | AU21: 0 | AV21: 0 | AW21: 0 | AX21: 0 | AY21: 0 | AZ21: 0 | BA21: 0 | BB21: 3 | BC21: 0 | BD21: 0 | BE21: 0 | BF21: 0 | BG21: 0 | BH21: 0 | BI21: 0 | BJ21: 0 | BK21: 0 | BL21: 0 | BM21: 0 | BN21: 0 | BO21: 0 | BP21: 0 | BQ21: 0 | BR21: 0 | BS21: 0 | BT21: 0 | BU21: 0 | BV21: 0 | BW21: 0 | BX21: 0 | BY21: 0 | BZ21: 0 | CA21: 0 | CB21: 0 | CC21: 0 | CD21: 0 | CE21: 0 | CF21: 0 | CG21: 0 | CH21: 0 | CI21: 0 | CJ21: 0 | CK21: 0 | CL21: 0 | CM21: 0 | CN21: 0 | CO21: 0 | CP21: 0 | CQ21: 0 | CR21: 0 | CS21: 0 | CT21: 0 | CU21: 0 | CV21: 0 | CX21: =$F21*J21 -> 9466.807398 | CY21: =$F21*K21 -> 9498.3284 | CZ21: 4076.716172 | DA21: 5295.528223 | DB21: 4055.702171 | DC21: 3919.111165 | DD21: 6052.032255 | DE21: 6934.620292 | DF21: 5463.64023 | DG21: 6094.060257 | DH21: 7995.827337 | DI21: 4980.31821 | DJ21: 5274.514222 | DK21: 4433.954187 | DL21: 4539.024191 | DM21: 4864.741205 | DN21: 6199.130261 | DO21: 6010.004253 | DP21: 3677.450155 | DQ21: 3047.030128 | DR21: 3330.71914 | DS21: 8395.093353 | DT21: 9046.527381 | DU21: 6766.508285 | DV21: 12965.63855 | DW21: 7050.197297 | DX21: 483.3220203 | DY21: 703.9690296 | DZ21: 4444.461187 | EA21: 472.8150199 | EB21: 0 | EC21: 0 | ED21: 0 | EE21: 0 | EF21: 0 | EG21: 0 | EH21: 10.50700044 | EI21: 0 | EJ21: 0 | EK21: 0 | EL21: 0 | EM21: 0 | EN21: 0 | EO21: 0 | EP21: 31.52100133 | EQ21: 0 | ER21: 0 | ES21: 0 | ET21: 0 | EU21: 0 | EV21: 0 | EW21: 0 | EX21: 0 | EY21: 0 | EZ21: 0 | FA21: 0 | FB21: 0 | FC21: 0 | FD21: 0 | FE21: 0 | FF21: 0 | FG21: 0 | FH21: 0 | FI21: 0 | FJ21: 0 | FK21: =$F21*BW21 -> 0 | FL21: 0 | FM21: 0 | FN21: 0 | FO21: 0 | FP21: 0 | FQ21: 0 | FR21: 0 | FS21: 0 | FT21: 0 | FU21: 0 | FV21: 0 | FW21: 0 | FX21: 0 | FY21: 0 | FZ21: 0 | GA21: 0 | GB21: 0 | GC21: 0 | GD21: 0 | GE21: 0 | GF21: 0 | GG21: 0 | GH21: 0 | GI21: 0 | GJ21: 0
A22: 1 | D22: POLES | E22: ˂ = 1 KV; WOOD | F22: 3.175330179 | G22: 75.54310141 | H22: 8.691553452 | I22: 2 | J22: 317 | K22: 401 | L22: 458 | M22: 271 | N22: 447 | O22: 437 | P22: 310 | Q22: 319 | R22: 269 | S22: 303 | T22: 576 | U22: 868 | V22: 364 | W22: 472 | X22: 322 | Y22: 492 | Z22: 258 | AA22: 511 | AB22: 117 | AC22: 18 | AD22: 17 | AE22: 55 | AF22: 61 | AG22: 75 | AH22: 123 | AI22: 406 | AJ22: 603 | AK22: 527 | AL22: 1155 | AM22: 851 | AN22: 1080 | AO22: 1130 | AP22: 1466 | AQ22: 1537 | AR22: 1830 | AS22: 1232 | AT22: 1236 | AU22: 868 | AV22: 1322 | AW22: 1678 | AX22: 1602 | AY22: 2029 | AZ22: 2499 | BA22: 2078 | BB22: 2238 | BC22: 2405 | BD22: 2479 | BE22: 2550 | BF22: 1573 | BG22: 2097 | BH22: 1752 | BI22: 1334 | BJ22: 1359 | BK22: 1214 | BL22: 1273 | BM22: 1077 | BN22: 833 | BO22: 585 | BP22: 313 | BQ22: 246 | BR22: 292 | BS22: 161 | BT22: 138 | BU22: 108 | BV22: 602 | BW22: 157 | BX22: 144 | BY22: 171 | BZ22: 137 | CA22: 50 | CB22: 33 | CC22: 62 | CD22: 140 | CE22: 361 | CF22: 418 | CG22: 425 | CH22: 510 | CI22: 433 | CJ22: 329 | CK22: 492 | CL22: 448 | CM22: 292 | CN22: 94 | CO22: 29 | CP22: 42 | CQ22: 38 | CR22: 46 | CS22: 43 | CT22: 2 | CU22: 1 | CV22: 24 | CX22: =$F22*J22 -> 1006.579667 | CY22: =$F22*K22 -> 1273.307402 | CZ22: =$F22*L22 -> 1454.301222 | DA22: =$F22*M22 -> 860.5144785 | DB22: =$F22*N22 -> 1419.37259 | DC22: =$F22*O22 -> 1387.619288 | DD22: =$F22*P22 -> 984.3523555 | DE22: =$F22*Q22 -> 1012.930327 | DF22: =$F22*R22 -> 854.1638181 | DG22: =$F22*S22 -> 962.1250442 | DH22: =$F22*T22 -> 1828.990183 | DI22: =$F22*U22 -> 2756.186595 | DJ22: =$F22*V22 -> 1155.820185 | DK22: =$F22*W22 -> 1498.755844 | DL22: =$F22*X22 -> 1022.456318 | DM22: =$F22*Y22 -> 1562.262448 | DN22: =$F22*Z22 -> 819.2351862 | DO22: =$F22*AA22 -> 1622.593721 | DP22: =$F22*AB22 -> 371.5136309 | DQ22: =$F22*AC22 -> 57.15594322 | DR22: =$F22*AD22 -> 53.98061304 | DS22: =$F22*AE22 -> 174.6431598 | DT22: =$F22*AF22 -> 193.6951409 | DU22: =$F22*AG22 -> 238.1497634 | DV22: =$F22*AH22 -> 390.565612 | DW22: =$F22*AI22 -> 1289.184053 | DX22: =$F22*AJ22 -> 1914.724098 | DY22: =$F22*AK22 -> 1673.399004 | DZ22: =$F22*AL22 -> 3667.506357 | EA22: =$F22*AM22 -> 2702.205982 | EB22: =$F22*AN22 -> 3429.356593 | EC22: =$F22*AO22 -> 3588.123102 | ED22: =$F22*AP22 -> 4655.034042 | EE22: =$F22*AQ22 -> 4880.482485 | EF22: =$F22*AR22 -> 5810.854227 | EG22: =$F22*AS22 -> 3912.00678 | EH22: =$F22*AT22 -> 3924.708101 | EI22: =$F22*AU22 -> 2756.186595 | EJ22: =$F22*AV22 -> 4197.786497 | EK22: =$F22*AW22 -> 5328.20404 | EL22: =$F22*AX22 -> 5086.878947 | EM22: =$F22*AY22 -> 6442.744933 | EN22: =$F22*AZ22 -> 7935.150117 | EO22: =$F22*BA22 -> 6598.336112 | EP22: =$F22*BB22 -> 7106.388941 | EQ22: =$F22*BC22 -> 7636.66908 | ER22: =$F22*BD22 -> 7871.643514 | ES22: =$F22*BE22 -> 8097.091956 | ET22: =$F22*BF22 -> 4994.794371 | EU22: =$F22*BG22 -> 6658.667385 | EV22: =$F22*BH22 -> 5563.178474 | EW22: =$F22*BI22 -> 4235.890459 | EX22: =$F22*BJ22 -> 4315.273713 | EY22: =$F22*BK22 -> 3854.850837 | EZ22: =$F22*BL22 -> 4042.195318 | FA22: =$F22*BM22 -> 3419.830603 | FB22: =$F22*BN22 -> 2645.050039 | FC22: =$F22*BO22 -> 1857.568155 | FD22: =$F22*BP22 -> 993.878346 | FE22: =$F22*BQ22 -> 781.131224 | FF22: =$F22*BR22 -> 927.1964123 | FG22: =$F22*BS22 -> 511.2281588 | FH22: =$F22*BT22 -> 438.1955647 | FI22: =$F22*BU22 -> 342.9356593 | FJ22: =$F22*BV22 -> 1911.548768 | FK22: =$F22*BW22 -> 498.5268381 | FL22: =$F22*BX22 -> 457.2475458 | FM22: =$F22*BY22 -> 542.9814606 | FN22: =$F22*BZ22 -> 435.0202345 | FO22: =$F22*CA22 -> 158.7665089 | FP22: =$F22*CB22 -> 104.7858959 | FQ22: =$F22*CC22 -> 196.8704711 | FR22: =$F22*CD22 -> 444.5462251 | FS22: =$F22*CE22 -> 1146.294195 | FT22: =$F22*CF22 -> 1327.288015 | FU22: =$F22*CG22 -> 1349.515326 | FV22: =$F22*CH22 -> 1619.418391 | FW22: =$F22*CI22 -> 1374.917967 | FX22: =$F22*CJ22 -> 1044.683629 | FY22: =$F22*CK22 -> 1562.262448 | FZ22: =$F22*CL22 -> 1422.54792 | GA22: =$F22*CM22 -> 927.1964123 | GB22: =$F22*CN22 -> 298.4810368 | GC22: =$F22*CO22 -> 92.08457519 | GD22: =$F22*CP22 -> 133.3638675 | GE22: =$F22*CQ22 -> 120.6625468 | GF22: =$F22*CR22 -> 146.0651882 | GG22: =$F22*CS22 -> 136.5391977 | GH22: =$F22*CT22 -> 6.350660358 | GI22: =$F22*CU22 -> 3.175330179 | GJ22: =$F22*CV22 -> 76.20792429
A23: 1 | D23: POLES | E23: > 1 KV & < = 11 KV; WOOD | F23: 5.004184525 | G23: 75.72253447 | H23: 8.701869596 | I23: 2 | J23: 160 | K23: 226 | L23: 307 | M23: 188 | N23: 254 | O23: 265 | P23: 173 | Q23: 187 | R23: 185 | S23: 125 | T23: 129 | U23: 142 | V23: 138 | W23: 178 | X23: 119 | Y23: 175 | Z23: 106 | AA23: 122 | AB23: 91 | AC23: 84 | AD23: 177 | AE23: 192 | AF23: 80 | AG23: 224 | AH23: 366 | AI23: 200 | AJ23: 270 | AK23: 239 | AL23: 431 | AM23: 317 | AN23: 273 | AO23: 229 | AP23: 362 | AQ23: 312 | AR23: 301 | AS23: 272 | AT23: 224 | AU23: 181 | AV23: 185 | AW23: 203 | AX23: 240 | AY23: 306 | AZ23: 329 | BA23: 203 | BB23: 325 | BC23: 399 | BD23: 508 | BE23: 398 | BF23: 373 | BG23: 466 | BH23: 338 | BI23: 231 | BJ23: 264 | BK23: 256 | BL23: 165 | BM23: 149 | BN23: 139 | BO23: 40 | BP23: 34 | BQ23: 35 | BR23: 50 | BS23: 44 | BT23: 13 | BU23: 20 | BV23: 115 | BW23: 12 | BX23: 14 | BY23: 12 | BZ23: 15 | CA23: 8 | CB23: 7 | CC23: 13 | CD23: 61 | CE23: 75 | CF23: 93 | CG23: 86 | CH23: 159 | CI23: 69 | CJ23: 58 | CK23: 80 | CL23: 114 | CM23: 71 | CN23: 25 | CO23: 5 | CP23: 20 | CQ23: 17 | CR23: 11 | CS23: 4 | CT23: 1 | CU23: 0 | CV23: 10 | CX23: 800.669524 | CY23: 1130.945703 | CZ23: 1536.284649 | DA23: 940.7866907 | DB23: 1271.062869 | DC23: 1326.108899 | DD23: 865.7239228 | DE23: 935.7825062 | DF23: 925.7741371 | DG23: 625.5230656 | DH23: 645.5398037 | DI23: 710.5942025 | DJ23: 690.5774644 | DK23: 890.7448454 | DL23: 595.4979585 | DM23: 875.7322919 | DN23: 530.4435596 | DO23: 610.510512 | DP23: 455.3807918 | DQ23: 420.3515001 | DR23: 885.7406609 | DS23: 960.8034288 | DT23: 400.334762 | DU23: 1120.937334 | DV23: 1831.531536 | DW23: 1000.836905 | DX23: 1351.129822 | DY23: 1196.000101 | DZ23: 2156.80353 | EA23: 1586.326494 | EB23: 1366.142375 | EC23: 1145.958256 | ED23: 1811.514798 | EE23: 1561.305572 | EF23: 1506.259542 | EG23: 1361.138191 | EH23: 1120.937334 | EI23: 905.757399 | EJ23: 925.7741371 | EK23: 1015.849459 | EL23: 1201.004286 | EM23: 1531.280465 | EN23: 1646.376709 | EO23: 1015.849459 | EP23: 1626.359971 | EQ23: 1996.669625 | ER23: 2542.125739 | ES23: 1991.665441 | ET23: 1866.560828 | EU23: 2331.949989 | EV23: 1691.414369 | EW23: 1155.966625 | EX23: 1321.104715 | EY23: 1281.071238 | EZ23: 825.6904466 | FA23: 745.6234942 | FB23: 695.581649 | FC23: 200.167381 | FD23: 170.1422738 | FE23: 175.1464584 | FF23: 250.2092262 | FG23: 220.1841191 | FH23: 65.05439882 | FI23: 100.0836905 | FJ23: 575.4812204 | FK23: 60.0502143 | FL23: 70.05858335 | FM23: 60.0502143 | FN23: 75.06276787 | FO23: 40.0334762 | FP23: 35.02929167 | FQ23: 65.05439882 | FR23: 305.255256 | FS23: 375.3138394 | FT23: 465.3891608 | FU23: 430.3598691 | FV23: 795.6653395 | FW23: 345.2887322 | FX23: 290.2427024 | FY23: 400.334762 | FZ23: 570.4770358 | GA23: 355.2971013 | GB23: 125.1046131 | GC23: 25.02092262 | GD23: 100.0836905 | GE23: 85.07113692 | GF23: 55.04602977 | GG23: 20.0167381 | GH23: 5.004184525 | GI23: 0 | GJ23: 50.04184525
A24: 1 | D24: POLES | E24: ˃ 11 KV & < = 22 KV; WOOD | F24: 5.57041678 | G24: 68.02359161 | H24: 8.247641579 | I24: 2 | J24: 363 | K24: 454 | L24: 427 | M24: 461 | N24: 622 | O24: 739 | P24: 527 | Q24: 500 | R24: 488 | S24: 502 | T24: 376 | U24: 485 | V24: 377 | W24: 529 | X24: 465 | Y24: 448 | Z24: 238 | AA24: 313 | AB24: 154 | AC24: 107 | AD24: 141 | AE24: 278 | AF24: 243 | AG24: 330 | AH24: 442 | AI24: 505 | AJ24: 729 | AK24: 532 | AL24: 1078 | AM24: 1078 | AN24: 875 | AO24: 1051 | AP24: 849 | AQ24: 989 | AR24: 959 | AS24: 588 | AT24: 736 | AU24: 972 | AV24: 1201 | AW24: 933 | AX24: 1127 | AY24: 1000 | AZ24: 1007 | BA24: 1175 | BB24: 1082 | BC24: 1436 | BD24: 1034 | BE24: 1150 | BF24: 1098 | BG24: 1415 | BH24: 1046 | BI24: 683 | BJ24: 485 | BK24: 521 | BL24: 477 | BM24: 431 | BN24: 402 | BO24: 270 | BP24: 126 | BQ24: 76 | BR24: 95 | BS24: 82 | BT24: 157 | BU24: 47 | BV24: 311 | BW24: 91 | BX24: 81 | BY24: 49 | BZ24: 31 | CA24: 22 | CB24: 24 | CC24: 17 | CD24: 60 | CE24: 44 | CF24: 253 | CG24: 66 | CH24: 183 | CI24: 235 | CJ24: 53 | CK24: 123 | CL24: 33 | CM24: 34 | CN24: 22 | CO24: 3 | CP24: 6 | CQ24: 21 | CR24: 7 | CS24: 28 | CT24: 5 | CU24: 0 | CV24: 0 | CX24: 2022.061291 | CY24: 2528.969218 | CZ24: 2378.567965 | DA24: 2567.962136 | DB24: 3464.799237 | DC24: 4116.538 | DD24: 2935.609643 | DE24: 2785.20839 | DF24: 2718.363389 | DG24: 2796.349224 | DH24: 2094.476709 | DI24: 2701.652138 | DJ24: 2100.047126 | DK24: 2946.750477 | DL24: 2590.243803 | DM24: 2495.546717 | DN24: 1325.759194 | DO24: 1743.540452 | DP24: 857.8441841 | DQ24: 596.0345955 | DR24: 785.428766 | DS24: 1548.575865 | DT24: 1353.611278 | DU24: 1838.237537 | DV24: 2462.124217 | DW24: 2813.060474 | DX24: 4060.833833 | DY24: 2963.461727 | DZ24: 6004.909289 | EA24: 6004.909289 | EB24: 4874.114683 | EC24: 5854.508036 | ED24: 4729.283846 | EE24: 5509.142195 | EF24: 5342.029692 | EG24: 3275.405067 | EH24: 4099.82675 | EI24: 5414.44511 | EJ24: 6690.070553 | EK24: 5197.198856 | EL24: 6277.859711 | EM24: 5570.41678 | EN24: 5609.409697 | EO24: 6545.239717 | EP24: 6027.190956 | EQ24: 7999.118496 | ER24: 5759.810951 | ES24: 6405.979297 | ET24: 6116.317624 | EU24: 7882.139744 | EV24: 5826.655952 | EW24: 3804.594661 | EX24: 2701.652138 | EY24: 2902.187142 | EZ24: 2657.088804 | FA24: 2400.849632 | FB24: 2239.307546 | FC24: 1504.012531 | FD24: 701.8725143 | FE24: 423.3516753 | FF24: 529.1895941 | FG24: 456.774176 | FH24: 874.5554345 | FI24: 261.8095887 | FJ24: 1732.399619 | FK24: 506.907927 | FL24: 451.2037592 | FM24: 272.9504222 | FN24: 172.6829202 | FO24: 122.5491692 | FP24: 133.6900027 | FQ24: 94.69708526 | FR24: 334.2250068 | FS24: 245.0983383 | FT24: 1409.315445 | FU24: 367.6475075 | FV24: 1019.386271 | FW24: 1309.047943 | FX24: 295.2320893 | FY24: 685.1612639 | FZ24: 183.8237537 | GA24: 189.3941705 | GB24: 122.5491692 | GC24: 16.71125034 | GD24: 33.42250068 | GE24: 116.9787524 | GF24: 38.99291746 | GG24: 155.9716698 | GH24: 27.8520839 | GI24: 0 | GJ24: 0
A25: 1 | D25: POLES | E25: > 22 KV & < = 66 KV; WOOD | F25: 7.874646298 | G25: 62.22253582 | H25: 7.888126255 | I25: 2 | J25: 63 | K25: 73 | L25: 169 | M25: 78 | N25: 125 | O25: 165 | P25: 73 | Q25: 148 | R25: 102 | S25: 160 | T25: 103 | U25: 136 | V25: 177 | W25: 193 | X25: 206 | Y25: 62 | Z25: 81 | AA25: 47 | AB25: 64 | AC25: 73 | AD25: 26 | AE25: 84 | AF25: 29 | AG25: 64 | AH25: 119 | AI25: 67 | AJ25: 84 | AK25: 45 | AL25: 147 | AM25: 93 | AN25: 217 | AO25: 369 | AP25: 254 | AQ25: 208 | AR25: 94 | AS25: 61 | AT25: 83 | AU25: 130 | AV25: 321 | AW25: 122 | AX25: 68 | AY25: 58 | AZ25: 102 | BA25: 96 | BB25: 216 | BC25: 409 | BD25: 353 | BE25: 318 | BF25: 233 | BG25: 503 | BH25: 277 | BI25: 233 | BJ25: 49 | BK25: 103 | BL25: 29 | BM25: 19 | BN25: 20 | BO25: 33 | BP25: 59 | BQ25: 36 | BR25: 32 | BS25: 16 | BT25: 36 | BU25: 8 | BV25: 9 | BW25: 25 | BX25: 4 | BY25: 3 | BZ25: 3 | CA25: 0 | CB25: 2 | CC25: 3 | CD25: 6 | CE25: 6 | CF25: 4 | CG25: 3 | CH25: 3 | CI25: 10 | CJ25: 2 | CK25: 3 | CL25: 1 | CM25: 0 | CN25: 0 | CO25: 0 | CP25: 0 | CQ25: 0 | CR25: 1 | CS25: 0 | CT25: 0 | CU25: 0 | CV25: 0 | CX25: 496.1027168 | CY25: 574.8491797 | CZ25: 1330.815224 | DA25: 614.2224112 | DB25: 984.3307872 | DC25: 1299.316639 | DD25: 574.8491797 | DE25: 1165.447652 | DF25: 803.2139224 | DG25: 1259.943408 | DH25: 811.0885687 | DI25: 1070.951896 | DJ25: 1393.812395 | DK25: 1519.806735 | DL25: 1622.177137 | DM25: 488.2280705 | DN25: 637.8463501 | DO25: 370.108376 | DP25: 503.9773631 | DQ25: 574.8491797 | DR25: 204.7408037 | DS25: 661.470289 | DT25: 228.3647426 | DU25: 503.9773631 | DV25: 937.0829094 | DW25: 527.601302 | DX25: 661.470289 | DY25: 354.3590834 | DZ25: 1157.573006 | EA25: 732.3421057 | EB25: 1708.798247 | EC25: 2905.744484 | ED25: 2000.16016 | EE25: 1637.92643 | EF25: 740.216752 | EG25: 480.3534242 | EH25: 653.5956427 | EI25: 1023.704019 | EJ25: 2527.761462 | EK25: 960.7068483 | EL25: 535.4759482 | EM25: 456.7294853 | EN25: 803.2139224 | EO25: 755.9660446 | EP25: 1700.9236 | EQ25: 3220.730336 | ER25: 2779.750143 | ES25: 2504.137523 | ET25: 1834.792587 | EU25: 3960.947088 | EV25: 2181.277024 | EW25: 1834.792587 | EX25: 385.8576686 | EY25: 811.0885687 | EZ25: 228.3647426 | FA25: 149.6182797 | FB25: 157.492926 | FC25: 259.8633278 | FD25: 464.6041316 | FE25: 283.4872667 | FF25: 251.9886815 | FG25: 125.9943408 | FH25: 283.4872667 | FI25: 62.99717038 | FJ25: 70.87181668 | FK25: 196.8661574 | FL25: 31.49858519 | FM25: 23.62393889 | FN25: 23.62393889 | FO25: 0 | FP25: 15.7492926 | FQ25: 23.62393889 | FR25: 47.24787779 | FS25: 47.24787779 | FT25: 31.49858519 | FU25: 23.62393889 | FV25: 23.62393889 | FW25: 78.74646298 | FX25: 15.7492926 | FY25: 23.62393889 | FZ25: 7.874646298 | GA25: 0 | GB25: 0 | GC25: 0 | GD25: 0 | GE25: 0 | GF25: 7.874646298 | GG25: 0 | GH25: 0 | GI25: 0 | GJ25: 0
E26: > 66 KV & < = 132 KV; WOOD | F26: 20.01666628 | G26: 0 | H26: 0 | I26: 2
E27: > 132 KV; WOOD | F27: 0.0001 | G27: 0 | H27: 0 | I27: 2
A28: 1 | D28: POLES | E28: ˂ = 1 KV; CONCRETE | F28: 8.189000021 | G28: 71.33970411 | H28: 8.44628345 | I28: 2 | J28: 5 | K28: 4 | L28: 7 | M28: 3 | N28: 6 | O28: 5 | P28: 3 | Q28: 3 | R28: 4 | S28: 3 | T28: 2 | U28: 5 | V28: 7 | W28: 6 | X28: 9 | Y28: 73 | Z28: 38 | AA28: 160 | AB28: 134 | AC28: 356 | AD28: 752 | AE28: 1226 | AF28: 1096 | AG28: 777 | AH28: 1009 | AI28: 1164 | AJ28: 1550 | AK28: 1101 | AL28: 962 | AM28: 1113 | AN28: 589 | AO28: 202 | AP28: 108 | AQ28: 180 | AR28: 378 | AS28: 14 | AT28: 460 | AU28: 511 | AV28: 184 | AW28: 109 | AX28: 16 | AY28: 498 | AZ28: 270 | BA28: 10 | BB28: 3 | BC28: 3 | BD28: 2 | BE28: 2 | BF28: 1 | BG28: 0 | BH28: 5 | BI28: 2 | BJ28: 4 | BK28: 2 | BL28: 0 | BM28: 2 | BN28: 1 | BO28: 0 | BP28: 2 | BQ28: 1 | BR28: 0 | BS28: 0 | BT28: 0 | BU28: 0 | BV28: 17 | BW28: 0 | BX28: 0 | BY28: 0 | BZ28: 0 | CA28: 0 | CB28: 0 | CC28: 0 | CD28: 0 | CE28: 0 | CF28: 0 | CG28: 0 | CH28: 1 | CI28: 0 | CJ28: 0 | CK28: 0 | CL28: 1 | CM28: 0 | CN28: 0 | CO28: 0 | CP28: 0 | CQ28: 0 | CR28: 0 | CS28: 0 | CT28: 0 | CU28: 0 | CV28: 0 | CX28: 40.9450001 | CY28: 32.75600008 | CZ28: 57.32300014 | DA28: 24.56700006 | DB28: 49.13400012 | DC28: 40.9450001 | DD28: 24.56700006 | DE28: 24.56700006 | DF28: 32.75600008 | DG28: 24.56700006 | DH28: 16.37800004 | DI28: 40.9450001 | DJ28: 57.32300014 | DK28: 49.13400012 | DL28: 73.70100018 | DM28: 597.7970015 | DN28: 311.1820008 | DO28: 1310.240003 | DP28: 1097.326003 | DQ28: 2915.284007 | DR28: 6158.128015 | DS28: 10039.71403 | DT28: 8975.144022 | DU28: 6362.853016 | DV28: 8262.701021 | DW28: 9531.996024 | DX28: 12692.95003 | DY28: 9016.089023 | DZ28: 7877.81802 | EA28: 9114.357023 | EB28: 4823.321012 | EC28: 1654.178004 | ED28: 884.4120022 | EE28: 1474.020004 | EF28: 3095.442008 | EG28: 114.6460003 | EH28: 3766.940009 | EI28: 4184.57901 | EJ28: 1506.776004 | EK28: 892.6010022 | EL28: 131.0240003 | EM28: 4078.12201 | EN28: 2211.030006 | EO28: 81.89000021 | EP28: 24.56700006 | EQ28: 24.56700006 | ER28: 16.37800004 | ES28: 16.37800004 | ET28: 8.189000021 | EU28: 0 | EV28: 40.9450001 | EW28: 16.37800004 | EX28: 32.75600008 | EY28: 16.37800004 | EZ28: 0 | FA28: 16.37800004 | FB28: 8.189000021 | FC28: 0 | FD28: 16.37800004 | FE28: 8.189000021 | FF28: 0 | FG28: 0 | FH28: 0 | FI28: 0 | FJ28: 139.2130003 | FK28: 0 | FL28: 0 | FM28: 0 | FN28: 0 | FO28: 0 | FP28: 0 | FQ28: 0 | FR28: 0 | FS28: 0 | FT28: 0 | FU28: 0 | FV28: 8.189000021 | FW28: 0 | FX28: 0 | FY28: 0 | FZ28: 8.189000021 | GA28: 0 | GB28: 0 | GC28: 0 | GD28: 0 | GE28: 0 | GF28: 0 | GG28: 0 | GH28: 0 | GI28: 0 | GJ28: 0
A29: 1 | D29: POLES | E29: > 1 KV & < = 11 KV; CONCRETE | F29: 12.23133165 | G29: 71.33970411 | H29: 8.44628345 | I29: 2 | J29: 1 | K29: 0 | L29: 0 | M29: 0 | N29: 0 | O29: 0 | P29: 0 | Q29: 0 | R29: 0 | S29: 0 | T29: 0 | U29: 0 | V29: 1 | W29: 0 | X29: 1 | Y29: 4 | Z29: 26 | AA29: 10 | AB29: 11 | AC29: 23 | AD29: 34 | AE29: 31 | AF29: 21 | AG29: 16 | AH29: 42 | AI29: 26 | AJ29: 82 | AK29: 39 | AL29: 33 | AM29: 42 | AN29: 35 | AO29: 22 | AP29: 18 | AQ29: 31 | AR29: 40 | AS29: 2 | AT29: 34 | AU29: 10 | AV29: 1 | AW29: 0 | AX29: 0 | AY29: 1 | AZ29: 0 | BA29: 0 | BB29: 0 | BC29: 0 | BD29: 0 | BE29: 0 | BF29: 0 | BG29: 0 | BH29: 0 | BI29: 0 | BJ29: 0 | BK29: 0 | BL29: 0 | BM29: 0 | BN29: 0 | BO29: 0 | BP29: 0 | BQ29: 0 | BR29: 0 | BS29: 0 | BT29: 0 | BU29: 0 | BV29: 6 | BW29: 0 | BX29: 0 | BY29: 0 | BZ29: 0 | CA29: 0 | CB29: 0 | CC29: 0 | CD29: 0 | CE29: 0 | CF29: 0 | CG29: 0 | CH29: 0 | CI29: 0 | CJ29: 0 | CK29: 0 | CL29: 0 | CM29: 0 | CN29: 0 | CO29: 0 | CP29: 0 | CQ29: 0 | CR29: 0 | CS29: 0 | CT29: 0 | CU29: 0 | CV29: 0 | CX29: 12.23133165 | CY29: 0 | CZ29: 0 | DA29: 0 | DB29: 0 | DC29: 0 | DD29: 0 | DE29: 0 | DF29: 0 | DG29: 0 | DH29: 0 | DI29: 0 | DJ29: 12.23133165 | DK29: 0 | DL29: 12.23133165 | DM29: 48.92532661 | DN29: 318.014623 | DO29: 122.3133165 | DP29: 134.5446482 | DQ29: 281.320628 | DR29: 415.8652762 | DS29: 379.1712812 | DT29: 256.8579647 | DU29: 195.7013064 | DV29: 513.7159294 | DW29: 318.014623 | DX29: 1002.969195 | DY29: 477.0219344 | DZ29: 403.6339445 | EA29: 513.7159294 | EB29: 428.0966078 | EC29: 269.0892963 | ED29: 220.1639697 | EE29: 379.1712812 | EF29: 489.2532661 | EG29: 24.4626633 | EH29: 415.8652762 | EI29: 122.3133165 | EJ29: 12.23133165 | EK29: 0 | EL29: 0 | EM29: 12.23133165 | EN29: 0 | EO29: 0 | EP29: 0 | EQ29: 0 | ER29: 0 | ES29: 0 | ET29: 0 | EU29: 0 | EV29: 0 | EW29: 0 | EX29: 0 | EY29: 0 | EZ29: 0 | FA29: 0 | FB29: 0 | FC29: 0 | FD29: 0 | FE29: 0 | FF29: 0 | FG29: 0 | FH29: 0 | FI29: 0 | FJ29: 73.38798991 | FK29: 0 | FL29: 0 | FM29: 0 | FN29: 0 | FO29: 0 | FP29: 0 | FQ29: 0 | FR29: 0 | FS29: 0 | FT29: 0 | FU29: 0 | FV29: 0 | FW29: 0 | FX29: 0 | FY29: 0 | FZ29: 0 | GA29: 0 | GB29: 0 | GC29: 0 | GD29: 0 | GE29: 0 | GF29: 0 | GG29: 0 | GH29: 0 | GI29: 0 | GJ29: 0
A30: 1 | D30: POLES | E30: ˃ 11 KV & < = 22 KV; CONCRETE | F30: 15.36887348 | G30: 71.33970411 | H30: 8.44628345 | I30: 2 | J30: 0 | K30: 0 | L30: 0 | M30: 2 | N30: 4 | O30: 1 | P30: 3 | Q30: 0 | R30: 1 | S30: 4 | T30: 1 | U30: 5 | V30: 2 | W30: 3 | X30: 0 | Y30: 29 | Z30: 35 | AA30: 71 | AB30: 76 | AC30: 243 | AD30: 309 | AE30: 408 | AF30: 588 | AG30: 363 | AH30: 728 | AI30: 911 | AJ30: 900 | AK30: 798 | AL30: 582 | AM30: 832 | AN30: 441 | AO30: 116 | AP30: 119 | AQ30: 239 | AR30: 202 | AS30: 7 | AT30: 322 | AU30: 292 | AV30: 83 | AW30: 34 | AX30: 3 | AY30: 7 | AZ30: 20 | BA30: 2 | BB30: 2 | BC30: 1 | BD30: 1 | BE30: 1 | BF30: 2 | BG30: 0 | BH30: 1 | BI30: 1 | BJ30: 0 | BK30: 1 | BL30: 0 | BM30: 0 | BN30: 1 | BO30: 0 | BP30: 0 | BQ30: 0 | BR30: 0 | BS30: 0 | BT30: 0 | BU30: 0 | BV30: 35 | BW30: 0 | BX30: 0 | BY30: 0 | BZ30: 0 | CA30: 0 | CB30: 0 | CC30: 0 | CD30: 0 | CE30: 1 | CF30: 0 | CG30: 0 | CH30: 0 | CI30: 0 | CJ30: 0 | CK30: 0 | CL30: 0 | CM30: 0 | CN30: 0 | CO30: 0 | CP30: 0 | CQ30: 0 | CR30: 0 | CS30: 0 | CT30: 0 | CU30: 0 | CV30: 0 | CX30: 0 | CY30: 0 | CZ30: 0 | DA30: 30.73774697 | DB30: 61.47549393 | DC30: 15.36887348 | DD30: 46.10662045 | DE30: 0 | DF30: 15.36887348 | DG30: 61.47549393 | DH30: 15.36887348 | DI30: 76.84436742 | DJ30: 30.73774697 | DK30: 46.10662045 | DL30: 0 | DM30: 445.697331 | DN30: 537.9105719 | DO30: 1091.190017 | DP30: 1168.034385 | DQ30: 3734.636256 | DR30: 4748.981906 | DS30: 6270.500381 | DT30: 9036.897608 | DU30: 5578.901074 | DV30: 11188.5399 | DW30: 14001.04374 | DX30: 13831.98613 | DY30: 12264.36104 | DZ30: 8944.684367 | EA30: 12786.90274 | EB30: 6777.673206 | EC30: 1782.789324 | ED30: 1828.895945 | EE30: 3673.160762 | EF30: 3104.512444 | EG30: 107.5821144 | EH30: 4948.777262 | EI30: 4487.711057 | EJ30: 1275.616499 | EK30: 522.5416984 | EL30: 46.10662045 | EM30: 107.5821144 | EN30: 307.3774697 | EO30: 30.73774697 | EP30: 30.73774697 | EQ30: 15.36887348 | ER30: 15.36887348 | ES30: 15.36887348 | ET30: 30.73774697 | EU30: 0 | EV30: 15.36887348 | EW30: 15.36887348 | EX30: 0 | EY30: 15.36887348 | EZ30: 0 | FA30: 0 | FB30: 15.36887348 | FC30: 0 | FD30: 0 | FE30: 0 | FF30: 0 | FG30: 0 | FH30: 0 | FI30: 0 | FJ30: 537.9105719 | FK30: 0 | FL30: 0 | FM30: 0 | FN30: 0 | FO30: 0 | FP30: 0 | FQ30: 0 | FR30: 0 | FS30: 15.36887348 | FT30: 0 | FU30: 0 | FV30: 0 | FW30: 0 | FX30: 0 | FY30: 0 | FZ30: 0 | GA30: 0 | GB30: 0 | GC30: 0 | GD30: 0 | GE30: 0 | GF30: 0 | GG30: 0 | GH30: 0 | GI30: 0 | GJ30: 0
A31: 1 | D31: POLES | E31: > 22 KV & < = 66 KV; CONCRETE | F31: 18.49680874 | G31: 71.33970411 | H31: 8.44628345 | I31: 2 | J31: 0 | K31: 0 | L31: 3 | M31: 0 | N31: 15 | O31: 5 | P31: 0 | Q31: 0 | R31: 0 | S31: 1 | T31: 0 | U31: 0 | V31: 1 | W31: 1 | X31: 1 | Y31: 0 | Z31: 3 | AA31: 10 | AB31: 11 | AC31: 68 | AD31: 72 | AE31: 83 | AF31: 55 | AG31: 46 | AH31: 55 | AI31: 66 | AJ31: 53 | AK31: 30 | AL31: 20 | AM31: 59 | AN31: 211 | AO31: 52 | AP31: 30 | AQ31: 81 | AR31: 17 | AS31: 0 | AT31: 26 | AU31: 12 | AV31: 1 | AW31: 0 | AX31: 0 | AY31: 0 | AZ31: 1 | BA31: 0 | BB31: 3 | BC31: 1 | BD31: 0 | BE31: 0 | BF31: 0 | BG31: 0 | BH31: 0 | BI31: 0 | BJ31: 0 | BK31: 0 | BL31: 0 | BM31: 0 | BN31: 0 | BO31: 0 | BP31: 0 | BQ31: 0 | BR31: 0 | BS31: 0 | BT31: 0 | BU31: 0 | BV31: 0 | BW31: 0 | BX31: 0 | BY31: 0 | BZ31: 0 | CA31: 0 | CB31: 0 | CC31: 0 | CD31: 0 | CE31: 0 | CF31: 0 | CG31: 0 | CH31: 0 | CI31: 0 | CJ31: 0 | CK31: 0 | CL31: 0 | CM31: 0 | CN31: 0 | CO31: 0 | CP31: 0 | CQ31: 0 | CR31: 0 | CS31: 0 | CT31: 0 | CU31: 0 | CV31: 0 | CX31: 0 | CY31: 0 | CZ31: 55.49042623 | DA31: 0 | DB31: 277.4521312 | DC31: 92.48404372 | DD31: 0 | DE31: 0 | DF31: 0 | DG31: 18.49680874 | DH31: 0 | DI31: 0 | DJ31: 18.49680874 | DK31: 18.49680874 | DL31: 18.49680874 | DM31: 0 | DN31: 55.49042623 | DO31: 184.9680874 | DP31: 203.4648962 | DQ31: 1257.782995 | DR31: 1331.77023 | DS31: 1535.235126 | DT31: 1017.324481 | DU31: 850.8532023 | DV31: 1017.324481 | DW31: 1220.789377 | DX31: 980.3308635 | DY31: 554.9042623 | DZ31: 369.9361749 | EA31: 1091.311716 | EB31: 3902.826645 | EC31: 961.8340547 | ED31: 554.9042623 | EE31: 1498.241508 | EF31: 314.4457487 | EG31: 0 | EH31: 480.9170274 | EI31: 221.9617049 | EJ31: 18.49680874 | EK31: 0 | EL31: 0 | EM31: 0 | EN31: 18.49680874 | EO31: 0 | EP31: 55.49042623 | EQ31: 18.49680874 | ER31: 0 | ES31: 0 | ET31: 0 | EU31: 0 | EV31: 0 | EW31: 0 | EX31: 0 | EY31: 0 | EZ31: 0 | FA31: 0 | FB31: 0 | FC31: 0 | FD31: 0 | FE31: 0 | FF31: 0 | FG31: 0 | FH31: 0 | FI31: 0 | FJ31: 0 | FK31: 0 | FL31: 0 | FM31: 0 | FN31: 0 | FO31: 0 | FP31: 0 | FQ31: 0 | FR31: 0 | FS31: 0 | FT31: 0 | FU31: 0 | FV31: 0 | FW31: 0 | FX31: 0 | FY31: 0 | FZ31: 0 | GA31: 0 | GB31: 0 | GC31: 0 | GD31: 0 | GE31: 0 | GF31: 0 | GG31: 0 | GH31: 0 | GI31: 0 | GJ31: 0
E32: > 66 KV & < = 132 KV; CONCRETE | F32: 21.21201926 | G32: 0 | H32: 0 | I32: 2
E33: > 132 KV; CONCRETE | F33: 1151.461797 | G33: 0 | H33: 0 | I33: 2
A34: 1 | D34: POLES | E34: ˂ = 1 KV; STEEL | F34: 8.88391411 | G34: 71.33970411 | H34: 8.44628345 | I34: 2 | J34: 11 | K34: 20 | L34: 104 | M34: 13 | N34: 11 | O34: 10 | P34: 3 | Q34: 69 | R34: 3 | S34: 6 | T34: 7 | U34: 2 | V34: 19 | W34: 5 | X34: 6 | Y34: 11 | Z34: 8 | AA34: 6 | AB34: 19 | AC34: 8 | AD34: 4 | AE34: 5 | AF34: 5 | AG34: 2 | AH34: 12 | AI34: 5 | AJ34: 14 | AK34: 5 | AL34: 20 | AM34: 8 | AN34: 15 | AO34: 8 | AP34: 8 | AQ34: 12 | AR34: 21 | AS34: 7 | AT34: 12 | AU34: 10 | AV34: 3 | AW34: 13 | AX34: 5 | AY34: 6 | AZ34: 15 | BA34: 4 | BB34: 9 | BC34: 0 | BD34: 5 | BE34: 2 | BF34: 5 | BG34: 3 | BH34: 1 | BI34: 1 | BJ34: 0 | BK34: 0 | BL34: 0 | BM34: 0 | BN34: 0 | BO34: 1 | BP34: 0 | BQ34: 0 | BR34: 0 | BS34: 0 | BT34: 0 | BU34: 0 | BV34: 19 | BW34: 0 | BX34: 0 | BY34: 0 | BZ34: 0 | CA34: 0 | CB34: 0 | CC34: 0 | CD34: 1 | CE34: 0 | CF34: 1 | CG34: 0 | CH34: 0 | CI34: 0 | CJ34: 0 | CK34: 0 | CL34: 0 | CM34: 0 | CN34: 0 | CO34: 0 | CP34: 0 | CQ34: 0 | CR34: 0 | CS34: 0 | CT34: 0 | CU34: 0 | CV34: 1 | CX34: 97.72305521 | CY34: 177.6782822 | CZ34: 923.9270674 | DA34: 115.4908834 | DB34: 97.72305521 | DC34: 88.8391411 | DD34: 26.65174233 | DE34: 612.9900736 | DF34: 26.65174233 | DG34: 53.30348466 | DH34: 62.18739877 | DI34: 17.76782822 | DJ34: 168.7943681 | DK34: 44.41957055 | DL34: 53.30348466 | DM34: 97.72305521 | DN34: 71.07131288 | DO34: 53.30348466 | DP34: 168.7943681 | DQ34: 71.07131288 | DR34: 35.53565644 | DS34: 44.41957055 | DT34: 44.41957055 | DU34: 17.76782822 | DV34: 106.6069693 | DW34: 44.41957055 | DX34: 124.3747975 | DY34: 44.41957055 | DZ34: 177.6782822 | EA34: 71.07131288 | EB34: 133.2587116 | EC34: 71.07131288 | ED34: 71.07131288 | EE34: 106.6069693 | EF34: 186.5621963 | EG34: 62.18739877 | EH34: 106.6069693 | EI34: 88.8391411 | EJ34: 26.65174233 | EK34: 115.4908834 | EL34: 44.41957055 | EM34: 53.30348466 | EN34: 133.2587116 | EO34: 35.53565644 | EP34: 79.95522699 | EQ34: 0 | ER34: 44.41957055 | ES34: 17.76782822 | ET34: 44.41957055 | EU34: 26.65174233 | EV34: 8.88391411 | EW34: 8.88391411 | EX34: 0 | EY34: 0 | EZ34: 0 | FA34: 0 | FB34: 0 | FC34: 8.88391411 | FD34: 0 | FE34: 0 | FF34: 0 | FG34: 0 | FH34: 0 | FI34: 0 | FJ34: 168.7943681 | FK34: 0 | FL34: 0 | FM34: 0 | FN34: 0 | FO34: 0 | FP34: 0 | FQ34: 0 | FR34: 8.88391411 | FS34: 0 | FT34: 8.88391411 | FU34: 0 | FV34: 0 | FW34: 0 | FX34: 0 | FY34: 0 | FZ34: 0 | GA34: 0 | GB34: 0 | GC34: 0 | GD34: 0 | GE34: 0 | GF34: 0 | GG34: 0 | GH34: 0 | GI34: 0 | GJ34: 8.88391411
A35: 1 | D35: POLES | E35: > 1 KV & < = 11 KV; STEEL | F35: 9.221057903 | G35: 71.33970411 | H35: 8.44628345 | I35: 2 | J35: 0 | K35: 0 | L35: 0 | M35: 1 | N35: 1 | O35: 0 | P35: 1 | Q35: 0 | R35: 0 | S35: 0 | T35: 0 | U35: 0 | V35: 0 | W35: 0 | X35: 0 | Y35: 1 | Z35: 0 | AA35: 0 | AB35: 0 | AC35: 0 | AD35: 0 | AE35: 0 | AF35: 0 | AG35: 0 | AH35: 0 | AI35: 0 | AJ35: 0 | AK35: 0 | AL35: 0 | AM35: 0 | AN35: 0 | AO35: 0 | AP35: 0 | AQ35: 0 | AR35: 0 | AS35: 0 | AT35: 0 | AU35: 0 | AV35: 0 | AW35: 0 | AX35: 0 | AY35: 0 | AZ35: 0 | BA35: 0 | BB35: 1 | BC35: 1 | BD35: 0 | BE35: 0 | BF35: 0 | BG35: 0 | BH35: 0 | BI35: 0 | BJ35: 0 | BK35: 0 | BL35: 0 | BM35: 0 | BN35: 0 | BO35: 0 | BP35: 0 | BQ35: 0 | BR35: 0 | BS35: 0 | BT35: 0 | BU35: 0 | BV35: 0 | BW35: 0 | BX35: 0 | BY35: 0 | BZ35: 0 | CA35: 0 | CB35: 0 | CC35: 0 | CD35: 0 | CE35: 0 | CF35: 0 | CG35: 0 | CH35: 0 | CI35: 0 | CJ35: 0 | CK35: 0 | CL35: 0 | CM35: 0 | CN35: 0 | CO35: 0 | CP35: 0 | CQ35: 0 | CR35: 0 | CS35: 0 | CT35: 0 | CU35: 0 | CV35: 0 | CX35: 0 | CY35: 0 | CZ35: 0 | DA35: 9.221057903 | DB35: 9.221057903 | DC35: 0 | DD35: 9.221057903 | DE35: 0 | DF35: 0 | DG35: 0 | DH35: 0 | DI35: 0 | DJ35: 0 | DK35: 0 | DL35: 0 | DM35: 9.221057903 | DN35: 0 | DO35: 0 | DP35: 0 | DQ35: 0 | DR35: 0 | DS35: 0 | DT35: 0 | DU35: 0 | DV35: 0 | DW35: 0 | DX35: 0 | DY35: 0 | DZ35: 0 | EA35: 0 | EB35: 0 | EC35: 0 | ED35: 0 | EE35: 0 | EF35: 0 | EG35: 0 | EH35: 0 | EI35: 0 | EJ35: 0 | EK35: 0 | EL35: 0 | EM35: 0 | EN35: 0 | EO35: 0 | EP35: 9.221057903 | EQ35: 9.221057903 | ER35: 0 | ES35: 0 | ET35: 0 | EU35: 0 | EV35: 0 | EW35: 0 | EX35: 0 | EY35: 0 | EZ35: 0 | FA35: 0 | FB35: 0 | FC35: 0 | FD35: 0 | FE35: 0 | FF35: 0 | FG35: 0 | FH35: 0 | FI35: 0 | FJ35: 0 | FK35: 0 | FL35: 0 | FM35: 0 | FN35: 0 | FO35: 0 | FP35: 0 | FQ35: 0 | FR35: 0 | FS35: 0 | FT35: 0 | FU35: 0 | FV35: 0 | FW35: 0 | FX35: 0 | FY35: 0 | FZ35: 0 | GA35: 0 | GB35: 0 | GC35: 0 | GD35: 0 | GE35: 0 | GF35: 0 | GG35: 0 | GH35: 0 | GI35: 0 | GJ35: 0
A36: 1 | D36: POLES | E36: ˃ 11 KV & < = 22 KV; STEEL | F36: 10.15017952 | G36: 71.33970411 | H36: 8.44628345 | I36: 2 | J36: 0 | K36: 0 | L36: 2 | M36: 1 | N36: 0 | O36: 0 | P36: 1 | Q36: 3 | R36: 0 | S36: 0 | T36: 1 | U36: 0 | V36: 1 | W36: 0 | X36: 0 | Y36: 0 | Z36: 1 | AA36: 0 | AB36: 0 | AC36: 0 | AD36: 0 | AE36: 0 | AF36: 0 | AG36: 0 | AH36: 0 | AI36: 0 | AJ36: 0 | AK36: 0 | AL36: 0 | AM36: 0 | AN36: 0 | AO36: 1 | AP36: 0 | AQ36: 0 | AR36: 0 | AS36: 0 | AT36: 1 | AU36: 0 | AV36: 0 | AW36: 0 | AX36: 0 | AY36: 0 | AZ36: 1 | BA36: 0 | BB36: 0 | BC36: 0 | BD36: 0 | BE36: 0 | BF36: 0 | BG36: 0 | BH36: 0 | BI36: 0 | BJ36: 1 | BK36: 0 | BL36: 0 | BM36: 0 | BN36: 0 | BO36: 0 | BP36: 0 | BQ36: 0 | BR36: 0 | BS36: 0 | BT36: 0 | BU36: 0 | BV36: 0 | BW36: 0 | BX36: 0 | BY36: 0 | BZ36: 0 | CA36: 0 | CB36: 0 | CC36: 0 | CD36: 0 | CE36: 0 | CF36: 0 | CG36: 0 | CH36: 0 | CI36: 0 | CJ36: 0 | CK36: 0 | CL36: 0 | CM36: 0 | CN36: 0 | CO36: 0 | CP36: 0 | CQ36: 0 | CR36: 0 | CS36: 0 | CT36: 0 | CU36: 0 | CV36: 0 | CX36: 0 | CY36: 0 | CZ36: 20.30035904 | DA36: 10.15017952 | DB36: 0 | DC36: 0 | DD36: 10.15017952 | DE36: 30.45053856 | DF36: 0 | DG36: 0 | DH36: 10.15017952 | DI36: 0 | DJ36: 10.15017952 | DK36: 0 | DL36: 0 | DM36: 0 | DN36: 10.15017952 | DO36: 0 | DP36: 0 | DQ36: 0 | DR36: 0 | DS36: 0 | DT36: 0 | DU36: 0 | DV36: 0 | DW36: 0 | DX36: 0 | DY36: 0 | DZ36: 0 | EA36: 0 | EB36: 0 | EC36: 10.15017952 | ED36: 0 | EE36: 0 | EF36: 0 | EG36: 0 | EH36: 10.15017952 | EI36: 0 | EJ36: 0 | EK36: 0 | EL36: 0 | EM36: 0 | EN36: 10.15017952 | EO36: 0 | EP36: 0 | EQ36: 0 | ER36: 0 | ES36: 0 | ET36: 0 | EU36: 0 | EV36: 0 | EW36: 0 | EX36: 10.15017952 | EY36: 0 | EZ36: 0 | FA36: 0 | FB36: 0 | FC36: 0 | FD36: 0 | FE36: 0 | FF36: 0 | FG36: 0 | FH36: 0 | FI36: 0 | FJ36: 0 | FK36: 0 | FL36: 0 | FM36: 0 | FN36: 0 | FO36: 0 | FP36: 0 | FQ36: 0 | FR36: 0 | FS36: 0 | FT36: 0 | FU36: 0 | FV36: 0 | FW36: 0 | FX36: 0 | FY36: 0 | FZ36: 0 | GA36: 0 | GB36: 0 | GC36: 0 | GD36: 0 | GE36: 0 | GF36: 0 | GG36: 0 | GH36: 0 | GI36: 0 | GJ36: 0
A37: 1 | D37: POLES | E37: > 22 KV & < = 66 KV; STEEL | F37: 20.83372953 | G37: 71.33970411 | H37: 8.44628345 | I37: 2 | J37: 0 | K37: 0 | L37: 0 | M37: 0 | N37: 0 | O37: 1 | P37: 1 | Q37: 0 | R37: 0 | S37: 0 | T37: 0 | U37: 0 | V37: 1 | W37: 0 | X37: 3 | Y37: 0 | Z37: 6 | AA37: 0 | AB37: 0 | AC37: 0 | AD37: 0 | AE37: 0 | AF37: 0 | AG37: 0 | AH37: 0 | AI37: 0 | AJ37: 0 | AK37: 3 | AL37: 0 | AM37: 1 | AN37: 2 | AO37: 1 | AP37: 0 | AQ37: 0 | AR37: 0 | AS37: 2 | AT37: 0 | AU37: 0 | AV37: 0 | AW37: 2 | AX37: 0 | AY37: 2 | AZ37: 0 | BA37: 0 | BB37: 0 | BC37: 0 | BD37: 0 | BE37: 0 | BF37: 0 | BG37: 1 | BH37: 0 | BI37: 0 | BJ37: 0 | BK37: 0 | BL37: 0 | BM37: 0 | BN37: 0 | BO37: 0 | BP37: 0 | BQ37: 0 | BR37: 0 | BS37: 0 | BT37: 0 | BU37: 0 | BV37: 0 | BW37: 0 | BX37: 0 | BY37: 0 | BZ37: 0 | CA37: 0 | CB37: 0 | CC37: 0 | CD37: 0 | CE37: 0 | CF37: 0 | CG37: 0 | CH37: 0 | CI37: 0 | CJ37: 0 | CK37: 0 | CL37: 0 | CM37: 0 | CN37: 0 | CO37: 0 | CP37: 0 | CQ37: 0 | CR37: 0 | CS37: 0 | CT37: 0 | CU37: 0 | CV37: 0 | CX37: 0 | CY37: 0 | CZ37: 0 | DA37: 0 | DB37: 0 | DC37: 20.83372953 | DD37: 20.83372953 | DE37: 0 | DF37: 0 | DG37: 0 | DH37: 0 | DI37: 0 | DJ37: 20.83372953 | DK37: 0 | DL37: 62.5011886 | DM37: 0 | DN37: 125.0023772 | DO37: 0 | DP37: 0 | DQ37: 0 | DR37: 0 | DS37: 0 | DT37: 0 | DU37: 0 | DV37: 0 | DW37: 0 | DX37: 0 | DY37: 62.5011886 | DZ37: 0 | EA37: 20.83372953 | EB37: 41.66745907 | EC37: 20.83372953 | ED37: 0 | EE37: 0 | EF37: 0 | EG37: 41.66745907 | EH37: 0 | EI37: 0 | EJ37: 0 | EK37: 41.66745907 | EL37: 0 | EM37: 41.66745907 | EN37: 0 | EO37: 0 | EP37: 0 | EQ37: 0 | ER37: 0 | ES37: 0 | ET37: 0 | EU37: 20.83372953 | EV37: 0 | EW37: 0 | EX37: 0 | EY37: 0 | EZ37: 0 | FA37: 0 | FB37: 0 | FC37: 0 | FD37: 0 | FE37: 0 | FF37: 0 | FG37: 0 | FH37: 0 | FI37: 0 | FJ37: 0 | FK37: 0 | FL37: 0 | FM37: 0 | FN37: 0 | FO37: 0 | FP37: 0 | FQ37: 0 | FR37: 0 | FS37: 0 | FT37: 0 | FU37: 0 | FV37: 0 | FW37: 0 | FX37: 0 | FY37: 0 | FZ37: 0 | GA37: 0 | GB37: 0 | GC37: 0 | GD37: 0 | GE37: 0 | GF37: 0 | GG37: 0 | GH37: 0 | GI37: 0 | GJ37: 0
E38: > 66 KV & < = 132 KV; STEEL | F38: 17.14329826 | G38: 0 | H38: 0 | I38: 2
E39: > 132 KV; STEEL | F39: 0.0001 | G39: 0 | H39: 0 | I39: 2
E40: STAKED ˂ = 1 KV; WOOD | F40: 6.760082735 | G40: 35.24772066 | H40: 5.936979085 | I40: 2
E41: STAKED > 1 KV & < = 11 KV; WOOD | F41: 11.56850997 | G41: 35.69368953 | H41: 5.974419598 | I41: 2
E42: STAKED ˃ 11 KV & < = 22 KV; WOOD | F42: 13.30278893 | G42: 31.58003879 | H42: 5.619611979 | I42: 2
E43: STAKED > 22 KV & < = 66 KV; WOOD | F43: 19.70172318 | G43: 29.58491405 | H43: 5.4392016 | I43: 2
E44: OTHER | F44: 0.0001 | G44: 0 | H44: 0 | I44: 2
A45: 2 | D45: OVERHEAD CONDUCTORS | E45: ˂ = 1 KV | F45: 165.4435008 | G45: 94.0082969 | H45: 9.695787585 | I45: 2 | J45: 21.06521129 | K45: 25.93637154 | L45: 29.71694451 | M45: 16.83112089 | N45: 23.15058325 | O45: 33.49010639 | P45: 24.53251159 | Q45: 31.93693624 | R45: 38.43990946 | S45: 21.88857332 | T45: 12.74355536 | U45: 17.17882601 | V45: 21.73128864 | W45: 19.19820695 | X45: 34.20295457 | Y45: 21.78388264 | Z45: 24.20127517 | AA45: 54.96777646 | AB45: 9.331207799 | AC45: 12.81614672 | AD45: 19.72302567 | AE45: 34.78225581 | AF45: 39.32498373 | AG45: 29.86840797 | AH45: 62.29181708 | AI45: 78.7977498 | AJ45: 97.93372255 | AK45: 86.10547162 | AL45: 109.9658035 | AM45: 127.423411 | AN45: 106.73955 | AO45: 91.86248402 | AP45: 93.71930801 | AQ45: 105.2681867 | AR45: 132.4499643 | AS45: 69.17165721 | AT45: 96.02043039 | AU45: 100.0983936 | AV45: 118.3050126 | AW45: 33.31553525 | AX45: 133.1425003 | AY45: 164.3264458 | AZ45: 154.9020936 | BA45: 143.3189101 | BB45: 162.5240548 | BC45: 196.5425579 | BD45: 183.7076027 | BE45: 188.3953556 | BF45: 160.7991386 | BG45: 225.5236779 | BH45: 174.1833283 | BI45: 128.3402338 | BJ45: 128.2069015 | BK45: 136.8315179 | BL45: 135.6511671 | BM45: 128.1662263 | BN45: 119.8240694 | BO45: 67.40452918 | BP45: 37.04261117 | BQ45: 28.80292627 | BR45: 38.23885388 | BS45: 27.06409063 | BT45: 30.76035121 | BU45: 17.85342109 | BV45: 94.68944492 | BW45: 23.99957982 | BX45: 22.88750896 | BY45: 18.38692377 | BZ45: 17.08002433 | CA45: 6.604579131 | CB45: 3.415331843 | CC45: 6.184708989 | CD45: 21.58864667 | CE45: 31.77313793 | CF45: 48.61553223 | CG45: 44.96456926 | CH45: 70.8695388 | CI45: 60.41874277 | CJ45: 35.47333509 | CK45: 61.31037432 | CL45: 58.55063694 | CM45: 40.23445383 | CN45: 16.73446258 | CO45: 3.782208459 | CP45: 7.18417028 | CQ45: 9.099549823 | CR45: 6.719969946 | CS45: 8.881183194 | CT45: 1.032106445 | CU45: 0.2319955841 | CV45: 5.597161073 | CX45: 3485.102301 | CY45: 4291.004106 | CZ45: 4916.475334 | DA45: 2784.599563 | DB45: 3830.113539 | DC45: 5540.720444 | DD45: 4058.744601 | DE45: 5283.758537 | DF45: 6359.633192 | DG45: 3621.322199 | DH45: 2108.338411 | DI45: 2842.125115 | DJ45: 3595.30047 | DK45: 3176.218568 | DL45: 5658.656543 | DM45: 3604.001805 | DN45: 4003.943688 | DO45: 9094.061369 | DP45: 1543.787685 | DQ45: 2120.348181 | DR45: 3263.046414 | DS45: 5754.498167 | DT45: 6506.062978 | DU45: 4941.533978 | DV45: 10305.77629 | DW45: 13036.57558 | DX45: 16202.49791 | DY45: 14245.59066 | DZ45: 18193.1275 | EA45: 21081.37521 | EB45: 17659.36482 | EC45: 15198.05095 | ED45: 15505.25041 | EE45: 17415.93732 | EF45: 21912.98577 | EG45: 11444.00113 | EH45: 15885.95615 | EI45: 16560.62866 | EJ45: 19572.79544 | EK45: 5511.838783 | EL45: 22027.56136 | EM45: 27186.74247 | EN45: 25627.54466 | EO45: 23711.18222 | EP45: 26888.5486 | EQ45: 32516.68884 | ER45: 30393.22891 | ES45: 31168.78716 | ET45: 26603.17242 | EU45: 37311.4268 | EV45: 28817.49962 | EW45: 21233.05757 | EX45: 21210.99862 | EY45: 22637.88535 | EZ45: 22442.60397 | FA45: 21204.26917 | FB45: 19824.11352 | FC45: 11151.64128 | FD45: 6128.459271 | FE45: 4765.256956 | FF45: 6326.369853 | FG45: 4477.577901 | FH45: 5089.10019 | FI45: 2953.732486 | FJ45: 15665.75326 | FK45: 3970.574504 | FL45: 3786.589608 | FM45: 3041.997038 | FN45: 2825.779019 | FO45: 1092.684693 | FP45: 565.0444566 | FQ45: 1023.219907 | FR45: 3571.701283 | FS45: 5256.659171 | FT45: 8043.123846 | FU45: 7439.095751 | FV45: 11724.9046 | FW45: 9995.888318 | FX45: 5868.832743 | FY45: 10143.40296 | FZ45: 9686.82235 | GA45: 6656.528895 | GB45: 2768.608074 | GC45: 625.7418083 | GD45: 1188.574281 | GE45: 1505.461379 | GF45: 1111.775353 | GG45: 1469.334039 | GH45: 170.7553034 | GI45: 38.38216161 | GJ45: 926.0139225
A46: 2 | D46: OVERHEAD CONDUCTORS | E46: > 1 KV & < = 11 KV | F46: 565.6242155 | G46: 111.7823363 | H46: 10.5727166 | I46: 2 | J46: 4.0441294 | K46: 7.771679099 | L46: 22.80350641 | M46: 11.21654915 | N46: 13.49644141 | O46: 9.456130142 | P46: 9.316315528 | Q46: 4.368033754 | R46: 2.32069767 | S46: 3.774485348 | T46: 4.397033113 | U46: 3.297072857 | V46: 3.749082253 | W46: 6.483965324 | X46: 4.874270166 | Y46: 13.56849227 | Z46: 9.639258769 | AA46: 4.36802249 | AB46: 1.976219988 | AC46: 1.332949394 | AD46: 4.470679985 | AE46: 4.700150954 | AF46: 3.28970817 | AG46: 5.049714326 | AH46: 8.27884041 | AI46: 6.148256128 | AJ46: 6.322449306 | AK46: 7.440465378 | AL46: 13.90197094 | AM46: 19.32436509 | AN46: 8.335677313 | AO46: 10.07699693 | AP46: 19.65442564 | AQ46: 17.33234678 | AR46: 15.11996171 | AS46: 12.09585286 | AT46: 12.01267344 | AU46: 6.022112331 | AV46: 10.50368807 | AW46: 10.23989594 | AX46: 19.03271562 | AY46: 23.88537727 | AZ46: 7.369598258 | BA46: 4.349347966 | BB46: 6.662203611 | BC46: 4.339644815 | BD46: 6.145280783 | BE46: 7.249865248 | BF46: 3.261269191 | BG46: 8.726802047 | BH46: 5.282551386 | BI46: 8.68188168 | BJ46: 14.34837894 | BK46: 22.03459543 | BL46: 15.06282119 | BM46: 14.85967733 | BN46: 21.62487002 | BO46: 0.7427268001 | BP46: 1.229177162 | BQ46: 1.253262284 | BR46: 3.488126062 | BS46: 3.640327524 | BT46: 0.5626148293 | BU46: 3.083417869 | BV46: 4.338734034 | BW46: 1.287895319 | BX46: 1.396542579 | BY46: 0.8835718674 | BZ46: 1.424318112 | CA46: 0.5112287308 | CB46: 0.1764297118 | CC46: 1.115052905 | CD46: 4.675254031 | CE46: 5.337045943 | CF46: 7.234714015 | CG46: 7.319380803 | CH46: 13.59819607 | CI46: 10.41711834 | CJ46: 5.391591966 | CK46: 13.30197703 | CL46: 12.99934354 | CM46: 6.98203617 | CN46: 3.883482306 | CO46: 0.3879788445 | CP46: 1.821617311 | CQ46: 2.996304412 | CR46: 0.9956881322 | CS46: 1.298474809 | CT46: 0.3443137014 | CU46: 0 | CV46: 1.832759998 | CX46: 2287.457519 | CY46: 4395.849894 | CZ46: 12898.21542 | DA46: 6344.351811 | DB46: 7633.914086 | DC46: 5348.616193 | DD46: 5269.533662 | DE46: 2470.665665 | DF46: 1312.642799 | DG46: 2134.940314 | DH46: 2487.068405 | DI46: 1864.904248 | DJ46: 2120.571708 | DK46: 3667.4878 | DL46: 2757.005239 | DM46: 7674.667798 | DN46: 5452.198179 | DO46: 2470.659294 | DP46: 1117.79788 | DQ46: 753.9484552 | DR46: 2528.724859 | DS46: 2658.519196 | DT46: 1860.738603 | DU46: 2856.240704 | DV46: 4682.712612 | DW46: 3477.602549 | DX46: 3576.130429 | DY46: 4208.507392 | DZ46: 7863.291407 | EA46: 10930.32884 | EB46: 4714.860941 | EC46: 5699.793486 | ED46: 11117.01908 | EE46: 9803.59505 | EF46: 8552.216478 | EG46: 6841.707286 | EH46: 6794.658988 | EI46: 3406.252563 | EJ46: 5941.140327 | EK46: 5791.933108 | EL46: 10765.36484 | EM46: 13510.14778 | EN46: 4168.423233 | EO46: 2460.096531 | EP46: 3768.303691 | EQ46: 2454.608194 | ER46: 3475.919622 | ES46: 4100.699343 | ET46: 1844.652827 | EU46: 4936.090561 | EV46: 2987.938984 | EW46: 4910.682514 | EX46: 8115.790582 | EY46: 12463.30075 | EZ46: 8519.896419 | FA46: 8404.993334 | FB46: 12231.55014 | FC46: 420.1042636 | FD46: 695.2523681 | FE46: 708.8754961 | FF46: 1972.968567 | FG46: 2059.0574 | FH46: 318.2285715 | FI46: 1744.055813 | FJ46: 2454.093034 | FK46: 728.4647794 | FL46: 789.9183007 | FM46: 499.7696443 | FN46: 805.6288148 | FO46: 289.1633498 | FP46: 99.79291732 | FQ46: 630.7009248 | FR46: 2644.436893 | FS46: 3018.762425 | FT46: 4092.129439 | FU46: 4140.019025 | FV46: 7691.468983 | FW46: 5892.17439 | FX46: 3049.614976 | FY46: 7523.920321 | FZ46: 7352.743494 | GA46: 3949.208731 | GB46: 2196.591633 | GC46: 219.4502296 | GD46: 1030.350863 | GE46: 1694.782332 | GF46: 563.1853186 | GG46: 734.4487952 | GH46: 194.7521672 | GI46: 0 | GJ46: 1036.653436
A47: 2 | D47: OVERHEAD CONDUCTORS | E47: ˃ 11 KV & < = 22 KV ; SWER | F47: 89.50992128 | G47: 57.5148321 | H47: 7.583853381 | I47: 2 | J47: 0 | K47: 0 | L47: 0 | M47: 0 | N47: 0 | O47: 0 | P47: 0 | Q47: 0 | R47: 0 | S47: 0 | T47: 0 | U47: 0 | V47: 0 | W47: 0 | X47: 0 | Y47: 0 | Z47: 0 | AA47: 0 | AB47: 0 | AC47: 0 | AD47: 0 | AE47: 0 | AF47: 0 | AG47: 0 | AH47: 0 | AI47: 0 | AJ47: 0 | AK47: 0 | AL47: 0 | AM47: 0 | AN47: 0 | AO47: 0 | AP47: 0 | AQ47: 0 | AR47: 0 | AS47: 0 | AT47: 0 | AU47: 0.637501297 | AV47: 1.864500694 | AW47: 1.515924699 | AX47: 3.557712245 | AY47: 0.4997387035 | AZ47: 0 | BA47: 0.2890491189 | BB47: 0 | BC47: 0 | BD47: 0.7675432215 | BE47: 3.598209878 | BF47: 0.6859664757 | BG47: 6.253915636 | BH47: 3.169963249 | BI47: 2.261672816 | BJ47: 2.966007315 | BK47: 3.931148006 | BL47: 0 | BM47: 0.3856166818 | BN47: 8.382099911 | BO47: 0.08046386135 | BP47: 0 | BQ47: 0 | BR47: 0 | BS47: 0 | BT47: 0 | BU47: 0 | BV47: 0 | BW47: 0 | BX47: 0 | BY47: 0 | BZ47: 0 | CA47: 0 | CB47: 0 | CC47: 0 | CD47: 0 | CE47: 0 | CF47: 0 | CG47: 0 | CH47: 0 | CI47: 0 | CJ47: 0 | CK47: 0 | CL47: 0 | CM47: 0 | CN47: 0 | CO47: 0 | CP47: 0 | CQ47: 0 | CR47: 0 | CS47: 0 | CT47: 0 | CU47: 0 | CV47: 0 | CX47: 0 | CY47: 0 | CZ47: 0 | DA47: 0 | DB47: 0 | DC47: 0 | DD47: 0 | DE47: 0 | DF47: 0 | DG47: 0 | DH47: 0 | DI47: 0 | DJ47: 0 | DK47: 0 | DL47: 0 | DM47: 0 | DN47: 0 | DO47: 0 | DP47: 0 | DQ47: 0 | DR47: 0 | DS47: 0 | DT47: 0 | DU47: 0 | DV47: 0 | DW47: 0 | DX47: 0 | DY47: 0 | DZ47: 0 | EA47: 0 | EB47: 0 | EC47: 0 | ED47: 0 | EE47: 0 | EF47: 0 | EG47: 0 | EH47: 0 | EI47: 57.06269091 | EJ47: 166.8913104 | EK47: 135.6903004 | EL47: 318.450543 | EM47: 44.73157202 | EN47: 0 | EO47: 25.87276388 | EP47: 0 | EQ47: 0 | ER47: 68.70273333 | ES47: 322.075483 | ET47: 61.40080524 | EU47: 559.7874963 | EV47: 283.7431609 | EW47: 202.4421558 | EX47: 265.4870813 | EY47: 351.8767485 | EZ47: 0 | FA47: 34.51651883 | FB47: 750.2811032 | FC47: 7.202313895 | FD47: 0 | FE47: 0 | FF47: 0 | FG47: 0 | FH47: 0 | FI47: 0 | FJ47: 0 | FK47: 0 | FL47: 0 | FM47: 0 | FN47: 0 | FO47: 0 | FP47: 0 | FQ47: 0 | FR47: 0 | FS47: 0 | FT47: 0 | FU47: 0 | FV47: 0 | FW47: 0 | FX47: 0 | FY47: 0 | FZ47: 0 | GA47: 0 | GB47: 0 | GC47: 0 | GD47: 0 | GE47: 0 | GF47: 0 | GG47: 0 | GH47: 0 | GI47: 0 | GJ47: 0
A48: 2 | D48: OVERHEAD CONDUCTORS | E48: ˃ 11 KV & < = 22 KV ; SINGLE-PHASE | F48: 30.55047338 | G48: 66.96981386 | H48: 8.183508652 | I48: 2 | J48: 0 | K48: 0 | L48: 0.05066686772 | M48: 1.446548095 | N48: 0 | O48: 0.1687462725 | P48: 0.04116683098 | Q48: 0.06494898127 | R48: 0 | S48: 0.7540481178 | T48: 0 | U48: 0.0666874066 | V48: 0 | W48: 0.5687276933 | X48: 0.5776738262 | Y48: 0 | Z48: 1.47230603 | AA48: 0.5403627512 | AB48: 0 | AC48: 0 | AD48: 0.8092941393 | AE48: 0 | AF48: 0 | AG48: 0 | AH48: 0.612897601 | AI48: 4.007708099 | AJ48: 1.852345875 | AK48: 1.803454655 | AL48: 2.523395561 | AM48: 10.09799286 | AN48: 5.517086271 | AO48: 1.385679285 | AP48: 1.956929819 | AQ48: 1.308764234 | AR48: 2.083745303 | AS48: 0.09671282763 | AT48: 0.2946844413 | AU48: 26.83726128 | AV48: 21.06238485 | AW48: 8.533205076 | AX48: 17.59185608 | AY48: 4.458230148 | AZ48: 2.149196376 | BA48: 6.376433872 | BB48: 21.5922788 | BC48: 17.89620922 | BD48: 14.35373621 | BE48: 10.3338624 | BF48: 5.493882959 | BG48: 12.94187061 | BH48: 8.113660638 | BI48: 6.259548323 | BJ48: 11.30172168 | BK48: 2.652859027 | BL48: 5.172075937 | BM48: 5.27721191 | BN48: 7.7464392 | BO48: 0 | BP48: 1.157372818 | BQ48: 2.820333078 | BR48: 0 | BS48: 0 | BT48: 0 | BU48: 0 | BV48: 1.411254721 | BW48: 0 | BX48: 0 | BY48: 0 | BZ48: 0 | CA48: 0 | CB48: 0 | CC48: 0 | CD48: 0.6083237015 | CE48: 0 | CF48: 0 | CG48: 0 | CH48: 0.03225237787 | CI48: 0.09031380816 | CJ48: 0 | CK48: 0 | CL48: 0 | CM48: 0 | CN48: 0 | CO48: 0 | CP48: 0 | CQ48: 0 | CR48: 0 | CS48: 0 | CT48: 0 | CU48: 0 | CV48: 0 | CX48: 0 | CY48: 0 | CZ48: 1.547896794 | DA48: 44.19272907 | DB48: 0 | DC48: 5.155278507 | DD48: 1.257666174 | DE48: 1.984222123 | DF48: 0 | DG48: 23.03652695 | DH48: 0 | DI48: 2.03733184 | DJ48: 0 | DK48: 17.37490026 | DL48: 17.64820885 | DM48: 0 | DN48: 44.97964618 | DO48: 16.50833785 | DP48: 0 | DQ48: 0 | DR48: 24.72431906 | DS48: 0 | DT48: 0 | DU48: 0 | DV48: 18.72431184 | DW48: 122.4373796 | DX48: 56.59004336 | DY48: 55.09639344 | DZ48: 77.09092891 | EA48: 308.498462 | EB48: 168.5495973 | EC48: 42.33315813 | ED48: 59.78513233 | EE48: 39.98336691 | EF48: 63.65940541 | EG48: 2.954622666 | EH48: 9.002749179 | EI48: 819.8910363 | EJ48: 643.4658276 | EK48: 260.6934546 | EL48: 537.4395308 | EM48: 136.2010415 | EN48: 65.65896669 | EO48: 194.8030733 | EP48: 659.6543387 | EQ48: 546.7376633 | ER48: 438.5134361 | ES48: 315.7043881 | ET48: 167.8407251 | EU48: 395.3802737 | EV48: 247.8761733 | EW48: 191.2321644 | EX48: 345.2729472 | EY48: 81.0460991 | EZ48: 158.0093683 | FA48: 161.221322 | FB48: 236.6573846 | FC48: 0 | FD48: 35.35828746 | FE48: 86.16251064 | FF48: 0 | FG48: 0 | FH48: 0 | FI48: 0 | FJ48: 43.11449979 | FK48: 0 | FL48: 0 | FM48: 0 | FN48: 0 | FO48: 0 | FP48: 0 | FQ48: 0 | FR48: 18.58457705 | FS48: 0 | FT48: 0 | FU48: 0 | FV48: 0.9853254116 | FW48: 2.759129592 | FX48: 0 | FY48: 0 | FZ48: 0 | GA48: 0 | GB48: 0 | GC48: 0 | GD48: 0 | GE48: 0 | GF48: 0 | GG48: 0 | GH48: 0 | GI48: 0 | GJ48: 0
A49: 2 | D49: OVERHEAD CONDUCTORS | E49: ˃ 11 KV & < = 22 KV ; MULTIPLE-PHASE | F49: 72.08292786 | G49: 70.02427271 | H49: 8.368050711 | I49: 2 | J49: 10.05677616 | K49: 25.03876405 | L49: 21.08063332 | M49: 46.08877586 | N49: 29.65885571 | O49: 50.55545718 | P49: 34.32236578 | Q49: 7.970358069 | R49: 5.169210943 | S49: 10.94381393 | T49: 5.957645931 | U49: 10.18289309 | V49: 12.69217137 | W49: 17.17543309 | X49: 39.35436494 | Y49: 21.1465249 | Z49: 59.0363201 | AA49: 17.02406442 | AB49: 4.72238032 | AC49: 6.677773457 | AD49: 6.597894617 | AE49: 8.555207982 | AF49: 14.36636426 | AG49: 8.030912606 | AH49: 28.98680474 | AI49: 43.42899971 | AJ49: 54.04052935 | AK49: 46.53696795 | AL49: 51.80821849 | AM49: 65.66098083 | AN49: 54.62045716 | AO49: 46.87951806 | AP49: 36.65134371 | AQ49: 56.15441868 | AR49: 47.51817035 | AS49: 19.44977175 | AT49: 38.64733668 | AU49: 85.6668081 | AV49: 106.6388708 | AW49: 67.23700993 | AX49: 83.75968097 | AY49: 88.11795948 | AZ49: 47.71686382 | BA49: 56.68542771 | BB49: 57.6519351 | BC49: 84.92874334 | BD49: 62.0233075 | BE49: 77.31352472 | BF49: 86.90467533 | BG49: 131.6941566 | BH49: 75.12000768 | BI49: 70.04376434 | BJ49: 48.8142826 | BK49: 76.28193009 | BL49: 47.2072684 | BM49: 51.70395464 | BN49: 54.09965818 | BO49: 2.492448731 | BP49: 18.43535875 | BQ49: 6.23285816 | BR49: 5.345079743 | BS49: 3.270892729 | BT49: 9.171340053 | BU49: 3.1854739 | BV49: 19.02735101 | BW49: 4.101298023 | BX49: 7.97420969 | BY49: 3.784194789 | BZ49: 3.06452428 | CA49: 0.3608300479 | CB49: 0.2213657223 | CC49: 0.7303395653 | CD49: 0.63951322 | CE49: 0 | CF49: 4.213684689 | CG49: 1.692301029 | CH49: 4.937719929 | CI49: 4.361184409 | CJ49: 2.225818764 | CK49: 14.64398517 | CL49: 8.955903986 | CM49: 2.189688518 | CN49: 1.975351556 | CO49: 0.4365794224 | CP49: 1.671600117 | CQ49: 1.890245187 | CR49: 0 | CS49: 2.057785404 | CT49: 0 | CU49: 0 | CV49: 0 | CX49: 724.9218704 | CY49: 1804.867423 | CZ49: 1519.553771 | DA49: 3322.213905 | DB49: 2137.897157 | DC49: 3644.185373 | DD49: 2474.056617 | DE49: 574.5267457 | DF49: 372.6118595 | DG49: 788.86215 | DH49: 429.4445619 | DI49: 734.0127482 | DJ49: 914.888873 | DK49: 1238.055504 | DL49: 2836.777849 | DM49: 1524.303429 | DN49: 4255.510803 | DO49: 1227.144407 | DP49: 340.4029999 | DQ49: 481.3534624 | DR49: 475.5955617 | DS49: 616.6844398 | DT49: 1035.569599 | DU49: 578.891694 | DV49: 2089.453755 | DW49: 3130.489453 | DX49: 3895.399579 | DY49: 3354.520903 | DZ49: 3734.488076 | EA49: 4733.035744 | EB49: 3937.202473 | EC49: 3379.212919 | ED49: 2641.936164 | EE49: 4047.774911 | EF49: 3425.248846 | EG49: 1401.996494 | EH49: 2785.813182 | EI49: 6175.114349 | EJ49: 7686.842033 | EK49: 4846.640536 | EL49: 6037.643041 | EM49: 6351.800517 | EN49: 3439.571253 | EO49: 4086.051596 | EP49: 4155.720279 | EQ49: 6121.91248 | ER49: 4470.8216 | ES49: 5572.985225 | ET49: 6264.343443 | EU49: 9492.900391 | EV49: 5414.870095 | EW49: 5048.959612 | EX49: 3518.676411 | EY49: 5498.624864 | EZ49: 3402.838123 | FA49: 3726.972432 | FB49: 3899.661758 | FC49: 179.663002 | FD49: 1328.874635 | FE49: 449.2826651 | FF49: 385.2889975 | FG49: 235.7755246 | FH49: 661.0970434 | FI49: 229.6182853 | FJ49: 1371.54717 | FK49: 295.6335695 | FL49: 574.8043818 | FM49: 272.77584 | FN49: 220.8998826 | FO49: 26.00968632 | FP49: 15.95668939 | FQ49: 52.6450142 | FR49: 46.0979853 | FS49: 0 | FT49: 303.7347294 | FU49: 121.986013 | FV49: 355.9253094 | FW49: 314.3669411 | FX49: 160.4435334 | FY49: 1055.581326 | FZ49: 645.5677809 | GA49: 157.8391595 | GB49: 142.3891237 | GC49: 31.46992301 | GD49: 120.4938306 | GE49: 136.2544074 | GF49: 0 | GG49: 148.3311968 | GH49: 0 | GI49: 0 | GJ49: 0
A50: 2 | D50: OVERHEAD CONDUCTORS | E50: > 22 KV & < = 66 KV | F50: 28.36966362 | G50: 78.49642493 | H50: 8.859820818 | I50: 2 | J50: 110.6342508 | K50: 0 | L50: 13.93502614 | M50: 0 | N50: 10.17676619 | O50: 30.24361595 | P50: 0 | Q50: 105.7379526 | R50: 1.291961041 | S50: 8.39780643 | T50: 2.876569316 | U50: 0 | V50: 5.205287611 | W50: 0.1132635419 | X50: 6.564687554 | Y50: 1.311353153 | Z50: 12.46502093 | AA50: 1.043778415 | AB50: 4.09434889 | AC50: 21.52194285 | AD50: 18.41350195 | AE50: 8.783761311 | AF50: 9.977722879 | AG50: 0.7119959231 | AH50: 3.416743772 | AI50: 0.3878848624 | AJ50: 10.61506696 | AK50: 2.613005698 | AL50: 10.98021451 | AM50: 34.18425699 | AN50: 10.02353809 | AO50: 50.84184057 | AP50: 14.67994531 | AQ50: 30.36342675 | AR50: 15.51235155 | AS50: 12.13242849 | AT50: 3.661925353 | AU50: 8.826129893 | AV50: 29.56269548 | AW50: 10.52452949 | AX50: 2.175668377 | AY50: 3.910654041 | AZ50: 0 | BA50: 0 | BB50: 0 | BC50: 0 | BD50: 0 | BE50: 0 | BF50: 0 | BG50: 0 | BH50: 0 | BI50: 0 | BJ50: 47.1646651 | BK50: 0 | BL50: 0 | BM50: 0.5461935174 | BN50: 0 | BO50: 9.969855327 | BP50: 0 | BQ50: 0 | BR50: 0 | BS50: 0 | BT50: 0 | BU50: 1.508655414 | BV50: 0 | BW50: 3.213388498 | BX50: 0 | BY50: 0 | BZ50: 0 | CA50: 0 | CB50: 0 | CC50: 0 | CD50: 0 | CE50: 0 | CF50: 0 | CG50: 0 | CH50: 0 | CI50: 0 | CJ50: 0 | CK50: 0 | CL50: 0 | CM50: 0 | CN50: 0 | CO50: 0 | CP50: 0 | CQ50: 0 | CR50: 0 | CS50: 0 | CT50: 0 | CU50: 0 | CV50: 0 | CX50: 3138.656479 | CY50: 0 | CZ50: 395.3320042 | DA50: 0 | DB50: 288.7114337 | DC50: 858.0012111 | DD50: 0 | DE50: 2999.750146 | DF50: 36.65250015 | DG50: 238.2429435 | DH50: 81.60730387 | DI50: 0 | DJ50: 147.6722586 | DK50: 3.213248584 | DL50: 186.2379777 | DM50: 37.20264784 | DN50: 353.6284509 | DO50: 29.61164252 | DP50: 116.1553008 | DQ50: 610.5702791 | DR50: 522.3848564 | DS50: 249.1923537 | DT50: 283.0646418 | DU50: 20.19908484 | DV50: 96.93187147 | DW50: 11.00416307 | DX50: 301.145879 | DY50: 74.13009267 | DZ50: 311.5049922 | EA50: 969.7958719 | EB50: 284.364404 | EC50: 1442.365915 | ED50: 416.4651104 | EE50: 861.4002031 | EF50: 440.0801954 | EG50: 344.1929151 | EH50: 103.8875904 | EI50: 250.3943361 | EJ50: 838.6837263 | EK50: 298.5773614 | EL50: 61.72297999 | EM50: 110.9439397 | EN50: 0 | EO50: 0 | EP50: 0 | EQ50: 0 | ER50: 0 | ES50: 0 | ET50: 0 | EU50: 0 | EV50: 0 | EW50: 0 | EX50: 1338.045684 | EY50: 0 | EZ50: 0 | FA50: 15.49532636 | FB50: 0 | FC50: 282.8414419 | FD50: 0 | FE50: 0 | FF50: 0 | FG50: 0 | FH50: 0 | FI50: 42.80004661 | FJ50: 0 | FK50: 91.16275076 | FL50: 0 | FM50: 0 | FN50: 0 | FO50: 0 | FP50: 0 | FQ50: 0 | FR50: 0 | FS50: 0 | FT50: 0 | FU50: 0 | FV50: 0 | FW50: 0 | FX50: 0 | FY50: 0 | FZ50: 0 | GA50: 0 | GB50: 0 | GC50: 0 | GD50: 0 | GE50: 0 | GF50: 0 | GG50: 0 | GH50: 0 | GI50: 0 | GJ50: 0
E51: > 66 KV & < = 132 KV | F51: 292.3861714 | G51: 0 | H51: 0 | I51: 2
E52: > 132 KV | F52: 911.106186 | G52: 0 | H52: 0 | I52: 2
E53: OTHER | F53: 0.0001 | G53: 0 | H53: 0 | I53: 2
A54: 3 | D54: UNDERGROUND CABLES | E54: ˂ = 1 KV | F54: 644.304876 | G54: 54.21077991 | H54: 7.362797017 | I54: 2 | J54: 22.81649786 | K54: 42.00775681 | L54: 51.19402817 | M54: 70.54597869 | N54: 50.98980531 | O54: 56.40181883 | P54: 74.26620298 | Q54: 76.40882383 | R54: 68.71212414 | S54: 71.1706102 | T54: 72.37513261 | U54: 77.37158201 | V54: 88.28901347 | W54: 61.55637318 | X54: 104.0622622 | Y54: 110.5716331 | Z54: 135.2613613 | AA54: 60.42794321 | AB54: 38.62890548 | AC54: 70.24969544 | AD54: 68.51339265 | AE54: 40.29877632 | AF54: 31.55176031 | AG54: 40.7256592 | AH54: 73.08631091 | AI54: 67.45745527 | AJ54: 55.58096056 | AK54: 72.45584042 | AL54: 69.21733409 | AM54: 53.96509843 | AN54: 68.17912115 | AO54: 65.27034513 | AP54: 42.83350185 | AQ54: 31.15312395 | AR54: 36.64729044 | AS54: 27.85617041 | AT54: 42.62974235 | AU54: 59.60288145 | AV54: 57.04623738 | AW54: 32.09686384 | AX54: 44.12904222 | AY54: 20.92710264 | AZ54: 14.50551133 | BA54: 13.0641841 | BB54: 3.314926339 | BC54: 0.8466438 | BD54: 0.5927633321 | BE54: 1.874165017 | BF54: 0.5914821878 | BG54: 0.429372 | BH54: 0.4313812921 | BI54: 0.1286786 | BJ54: 0.3851578117 | BK54: 0.2503965237 | BL54: 0.6078631678 | BM54: 0.08947167709 | BN54: 0.09996 | BO54: 0 | BP54: 0 | BQ54: 0.1102897134 | BR54: 0.2046787748 | BS54: 0.0283845 | BT54: 0 | BU54: 0 | BV54: 0.3103592135 | BW54: 0.137234 | BX54: 0.0488672 | BY54: 0.221913 | BZ54: 0 | CA54: 0 | CB54: 0 | CC54: 0 | CD54: 0 | CE54: 0 | CF54: 0.288245 | CG54: 0 | CH54: 0 | CI54: 0 | CJ54: 0 | CK54: 0 | CL54: 0 | CM54: 0 | CN54: 0 | CO54: 0 | CP54: 0 | CQ54: 0 | CR54: 0 | CS54: 0 | CT54: 0 | CU54: 0 | CV54: 0.026323 | CX54: 14700.78082 | CY54: 27065.80254 | CZ54: 32984.56197 | DA54: 45453.11806 | DB54: 32852.98019 | DC54: 36339.96689 | DD54: 47850.0767 | DE54: 49230.57777 | DF54: 44271.55662 | DG54: 45855.57118 | DH54: 46631.65084 | DI54: 49850.88756 | DJ54: 56885.04188 | DK54: 39661.07139 | DL54: 67047.82294 | DM54: 71241.84239 | DN54: 87149.55462 | DO54: 38934.01846 | DP54: 24888.79216 | DQ54: 45262.22131 | DR54: 44143.51296 | DS54: 25964.69808 | DT54: 20328.95302 | DU54: 26239.7408 | DV54: 47089.86649 | DW54: 43463.16735 | DX54: 35811.0839 | DY54: 46683.65128 | DZ54: 44597.06586 | EA54: 34769.97605 | EB54: 43928.1402 | EC54: 42054.00163 | ED54: 27597.8341 | EE54: 20072.10966 | EF54: 23612.02793 | EG54: 17947.86642 | EH54: 27466.55086 | EI54: 38402.42714 | EJ54: 36755.1689 | EK54: 20680.16587 | EL54: 28432.55708 | EM54: 13483.43427 | EN54: 9345.971682 | EO54: 8417.317516 | EP54: 2135.823204 | EQ54: 545.4967286 | ER54: 381.9203052 | ES54: 1207.533659 | ET54: 381.0948577 | EU54: 276.6464732 | EV54: 277.9410699 | EW54: 82.90824942 | EX54: 248.1590561 | EY54: 161.3317012 | EZ54: 391.6492029 | FA54: 57.64703781 | FB54: 64.40471541 | FC54: 0 | FD54: 0 | FE54: 71.06020013 | FF54: 131.8755326 | FG54: 18.28827175 | FH54: 0 | FI54: 0 | FJ54: 199.9659546 | FK54: 88.42053535 | FL54: 31.48537524 | FM54: 142.979628 | FN54: 0 | FO54: 0 | FP54: 0 | FQ54: 0 | FR54: 0 | FS54: 0 | FT54: 185.717659 | FU54: 0 | FV54: 0 | FW54: 0 | FX54: 0 | FY54: 0 | FZ54: 0 | GA54: 0 | GB54: 0 | GC54: 0 | GD54: 0 | GE54: 0 | GF54: 0 | GG54: 0 | GH54: 0 | GI54: 0 | GJ54: 16.96003725
A55: 3 | D55: UNDERGROUND CABLES | E55: > 1 KV & < = 11 KV | F55: 418.1299263 | G55: 64.78594496 | H55: 8.048971671 | I55: 2 | J55: 3.4959152 | K55: 4.2476999 | L55: 8.3843438 | M55: 5.6103243 | N55: 7.1692607 | O55: 7.01797194 | P55: 3.5472943 | Q55: 3.7875026 | R55: 9.094265 | S55: 21.1701878 | T55: 4.0895906 | U55: 3.0869749 | V55: 1.368345 | W55: 2.3975523 | X55: 1.36741543 | Y55: 2.5286385 | Z55: 1.6202745 | AA55: 1.21766 | AB55: 1.4074666 | AC55: 0.10412 | AD55: 0.728679 | AE55: 0.189844 | AF55: 0.934053 | AG55: 0.69276 | AH55: 0.6261549 | AI55: 1.861839 | AJ55: 1.931827 | AK55: 0.963298 | AL55: 0.3488132 | AM55: 4.7869224 | AN55: 3.2643079 | AO55: 1.3249724 | AP55: 1.6089921 | AQ55: 2.797366 | AR55: 0.9909158 | AS55: 0.98618 | AT55: 0.9702999 | AU55: 0.44254 | AV55: 0.4679875 | AW55: 1.0563574 | AX55: 0.7789223 | AY55: 1.869148 | AZ55: 0.940747 | BA55: 1.594334 | BB55: 0.4882103 | BC55: 4.1504433 | BD55: 4.2442287 | BE55: 3.2558438 | BF55: 1.926563 | BG55: 2.6594991 | BH55: 2.48095 | BI55: 1.824456 | BJ55: 6.3735466 | BK55: 4.1950136 | BL55: 3.3150606 | BM55: 4.7940223 | BN55: 5.9750224 | BO55: 0 | BP55: 0.162421 | BQ55: 0.4844139 | BR55: 0 | BS55: 0 | BT55: 0 | BU55: 0.708454 | BV55: 0.390041 | BW55: 0.310468 | BX55: 0 | BY55: 0 | BZ55: 0 | CA55: 0 | CB55: 0.12595 | CC55: 0 | CD55: 0 | CE55: 0.330871 | CF55: 1.274632 | CG55: 0.029738 | CH55: 0 | CI55: 0 | CJ55: 0.051925 | CK55: 0 | CL55: 0.85023 | CM55: 1.63067 | CN55: 0.201729 | CO55: 0 | CP55: 0 | CQ55: 0 | CR55: 0 | CS55: 0 | CT55: 0 | CU55: 0 | CV55: 0 | CX55: 1461.746765 | CY55: 1776.090446 | CZ55: 3505.745056 | DA55: 2345.844486 | DB55: 2997.682448 | DC55: 2934.42409 | DD55: 1483.229904 | DE55: 1583.668183 | DF55: 3802.584355 | DG55: 8851.889066 | DH55: 1709.980216 | DI55: 1290.756588 | DJ55: 572.1459941 | DK55: 1002.488367 | DL55: 571.757313 | DM55: 1057.29943 | DN55: 677.4852573 | DO55: 509.1400861 | DP55: 588.5039058 | DQ55: 43.53568793 | DR55: 304.6824966 | DS55: 79.37945774 | DT55: 390.5555121 | DU55: 289.6636878 | DV55: 261.8141022 | DW55: 778.4906039 | DX55: 807.7546812 | DY55: 402.7837218 | DZ55: 145.8492376 | EA55: 2001.555511 | EB55: 1364.904822 | EC55: 554.010612 | ED55: 672.7677483 | EE55: 1169.66244 | EF55: 414.3315505 | EG55: 412.3513708 | EH55: 405.7114257 | EI55: 185.0392176 | EJ55: 195.6795789 | EK55: 441.6946419 | EL55: 325.6907239 | EM55: 781.5467156 | EN55: 393.3544738 | EO55: 666.638758 | EP55: 204.1353368 | EQ55: 1735.424551 | ER55: 1774.639034 | ES55: 1361.365728 | ET55: 805.5536453 | EU55: 1112.016163 | EV55: 1037.359441 | EW55: 762.8596529 | EX55: 2664.97057 | EY55: 1754.060728 | EZ55: 1386.126045 | FA55: 2004.524191 | FB55: 2498.335676 | FC55: 0 | FD55: 67.91308077 | FE55: 202.5479483 | FF55: 0 | FG55: 0 | FH55: 0 | FI55: 296.2258188 | FJ55: 163.0878146 | FK55: 129.815962 | FL55: 0 | FM55: 0 | FN55: 0 | FO55: 0 | FP55: 52.66346422 | FQ55: 0 | FR55: 0 | FS55: 138.3470669 | FT55: 532.9617843 | FU55: 12.43434775 | FV55: 0 | FW55: 0 | FX55: 21.71139643 | FY55: 0 | FZ55: 355.5066073 | GA55: 681.831927 | GB55: 84.34893191 | GC55: 0 | GD55: 0 | GE55: 0 | GF55: 0 | GG55: 0 | GH55: 0 | GI55: 0 | GJ55: 0
A56: 3 | D56: UNDERGROUND CABLES | E56: > 11 KV & < = 22 KV | F56: 716.8420897 | G56: 65.18377617 | H56: 8.073647018 | I56: 2 | J56: 24.0414068 | K56: 24.1599741 | L56: 19.3228613 | M56: 27.3003197 | N56: 23.6654112 | O56: 27.28786333 | P56: 30.3105019 | Q56: 30.0617564 | R56: 37.96916024 | S56: 49.2396359 | T56: 35.8525516 | U56: 24.2647423 | V56: 23.595152 | W56: 14.2906657 | X56: 15.5736931 | Y56: 19.964809 | Z56: 17.594309 | AA56: 12.056421 | AB56: 7.0123641 | AC56: 5.113332 | AD56: 3.3486093 | AE56: 1.433185 | AF56: 2.618511 | AG56: 3.2505452 | AH56: 5.8620205 | AI56: 10.459089 | AJ56: 11.6773498 | AK56: 10.485462 | AL56: 10.5444169 | AM56: 4.9010234 | AN56: 4.710966 | AO56: 19.4741408 | AP56: 2.763773 | AQ56: 3.596053 | AR56: 7.2049259 | AS56: 6.1235871 | AT56: 16.7175548 | AU56: 14.4876107 | AV56: 28.1990162 | AW56: 19.9183387 | AX56: 4.622472 | AY56: 12.4816509 | AZ56: 10.9283735 | BA56: 12.1030842 | BB56: 8.103161 | BC56: 5.413355 | BD56: 4.015408 | BE56: 3.748422 | BF56: 9.40014697 | BG56: 7.2126562 | BH56: 4.888572 | BI56: 5.3920914 | BJ56: 3.007796 | BK56: 3.471577 | BL56: 7.5035069 | BM56: 5.925066 | BN56: 0.53136 | BO56: 3.151684 | BP56: 3.218784 | BQ56: 1.180066 | BR56: 0 | BS56: 0 | BT56: 0.402178 | BU56: 0.152234 | BV56: 2.558787 | BW56: 3.973732 | BX56: 2.872527 | BY56: 1.946084 | BZ56: 0.291634 | CA56: 2.8898971 | CB56: 0 | CC56: 0 | CD56: 0 | CE56: 0.780902 | CF56: 0.40382 | CG56: 0.30765 | CH56: 0 | CI56: 0.22315 | CJ56: 0 | CK56: 0 | CL56: 0 | CM56: 0 | CN56: 0 | CO56: 0 | CP56: 0 | CQ56: 0 | CR56: 0 | CS56: 0 | CT56: 0 | CU56: 0 | CV56: 0 | CX56: 17233.89229 | CY56: 17318.88632 | CZ56: 13851.44027 | DA56: 19570.01822 | DB56: 16964.36282 | DC56: 19561.08897 | DD56: 21727.84352 | DE56: 21549.53228 | DF56: 27217.89217 | DG56: 35297.04349 | DH56: 25700.61801 | DI56: 17393.98858 | DJ56: 16913.99807 | DK56: 10244.15066 | DL56: 11163.87871 | DM56: 14311.6154 | DN56: 12612.34123 | DO56: 8642.550023 | DP56: 5026.757735 | DQ56: 3665.451596 | DR56: 2400.424088 | DS56: 1027.36733 | DT56: 1877.058897 | DU56: 2330.127614 | DV56: 4202.143025 | DW56: 7497.515215 | DX56: 8370.815832 | DY56: 7516.420491 | DZ56: 7558.681845 | EA56: 3513.259855 | EB56: 3377.018712 | EC56: 13959.88379 | ED56: 1981.188813 | EE56: 2577.802147 | EF56: 5164.794138 | EG56: 4389.644973 | EH56: 11983.84692 | EI56: 10385.32913 | EJ56: 20214.2417 | EK56: 14278.30354 | EL56: 3313.582488 | EM56: 8947.372713 | EN56: 7833.918096 | EO56: 8676.000169 | EP56: 5808.686864 | EQ56: 3880.52071 | ER56: 2878.413462 | ES56: 2687.026659 | ET56: 6738.420997 | EU56: 5170.335542 | EV56: 3504.334168 | EW56: 3865.278067 | EX56: 2156.11477 | EY56: 2488.572511 | EZ56: 5378.829566 | FA56: 4247.336693 | FB56: 380.9012128 | FC56: 2259.259744 | FD56: 2307.359849 | FE56: 845.9209774 | FF56: 0 | FG56: 0 | FH56: 288.2981179 | FI56: 109.1277387 | FJ56: 1834.24622 | FK56: 2848.538351 | FL56: 2059.148257 | FM56: 1395.034921 | FN56: 209.055526 | FO56: 2071.599876 | FP56: 0 | FQ56: 0 | FR56: 0 | FS56: 559.7834215 | FT56: 289.4751726 | FU56: 220.5364689 | FV56: 0 | FW56: 159.9633123 | FX56: 0 | FY56: 0 | FZ56: 0 | GA56: 0 | GB56: 0 | GC56: 0 | GD56: 0 | GE56: 0 | GF56: 0 | GG56: 0 | GH56: 0 | GI56: 0 | GJ56: 0
E57: > 22 KV & < = 33 KV | F57: 1082.58162 | G57: 0 | H57: 0 | I57: 2
A58: 3 | D58: UNDERGROUND CABLES | E58: > 33 KV & < = 66 KV | F58: 156.9692204 | G58: 59.64740564 | H58: 7.723173288 | I58: 2 | J58: 0 | K58: 0 | L58: 0 | M58: 0.36166 | N58: 0.34516 | O58: 0.748542 | P58: 0.2626 | Q58: 0.15793 | R58: 0 | S58: 0 | T58: 0 | U58: 1.34755 | V58: 0 | W58: 0.34276 | X58: 0 | Y58: 0.033316 | Z58: 0.10156 | AA58: 0 | AB58: 0 | AC58: 0 | AD58: 0 | AE58: 0 | AF58: 0 | AG58: 0 | AH58: 0 | AI58: 0 | AJ58: 0 | AK58: 0 | AL58: 0 | AM58: 0 | AN58: 0 | AO58: 0 | AP58: 0 | AQ58: 0 | AR58: 0 | AS58: 0 | AT58: 0 | AU58: 0 | AV58: 0 | AW58: 0 | AX58: 0 | AY58: 0 | AZ58: 0 | BA58: 0 | BB58: 0 | BC58: 0 | BD58: 0 | BE58: 0 | BF58: 0 | BG58: 0 | BH58: 0 | BI58: 0 | BJ58: 0 | BK58: 0 | BL58: 0 | BM58: 0 | BN58: 0 | BO58: 0 | BP58: 0 | BQ58: 0 | BR58: 0 | BS58: 0 | BT58: 0 | BU58: 0 | BV58: 0 | BW58: 0 | BX58: 0 | BY58: 0 | BZ58: 0 | CA58: 0 | CB58: 0 | CC58: 0 | CD58: 0 | CE58: 0 | CF58: 0 | CG58: 0 | CH58: 0 | CI58: 0 | CJ58: 0 | CK58: 0 | CL58: 0 | CM58: 0 | CN58: 0 | CO58: 0 | CP58: 0 | CQ58: 0 | CR58: 0 | CS58: 0 | CT58: 0 | CU58: 0 | CV58: 0 | CX58: 0 | CY58: 0 | CZ58: 0 | DA58: 56.76948824 | DB58: 54.1794961 | DC58: 117.4980541 | DD58: 41.22011727 | DE58: 24.79014897 | DF58: 0 | DG58: 0 | DH58: 0 | DI58: 211.5238729 | DJ58: 0 | DK58: 53.80276997 | DL58: 0 | DM58: 5.229586546 | DN58: 15.94179402 | DO58: 0 | DP58: 0 | DQ58: 0 | DR58: 0 | DS58: 0 | DT58: 0 | DU58: 0 | DV58: 0 | DW58: 0 | DX58: 0 | DY58: 0 | DZ58: 0 | EA58: 0 | EB58: 0 | EC58: 0 | ED58: 0 | EE58: 0 | EF58: 0 | EG58: 0 | EH58: 0 | EI58: 0 | EJ58: 0 | EK58: 0 | EL58: 0 | EM58: 0 | EN58: 0 | EO58: 0 | EP58: 0 | EQ58: 0 | ER58: 0 | ES58: 0 | ET58: 0 | EU58: 0 | EV58: 0 | EW58: 0 | EX58: 0 | EY58: 0 | EZ58: 0 | FA58: 0 | FB58: 0 | FC58: 0 | FD58: 0 | FE58: 0 | FF58: 0 | FG58: 0 | FH58: 0 | FI58: 0 | FJ58: 0 | FK58: 0 | FL58: 0 | FM58: 0 | FN58: 0 | FO58: 0 | FP58: 0 | FQ58: 0 | FR58: 0 | FS58: 0 | FT58: 0 | FU58: 0 | FV58: 0 | FW58: 0 | FX58: 0 | FY58: 0 | FZ58: 0 | GA58: 0 | GB58: 0 | GC58: 0 | GD58: 0 | GE58: 0 | GF58: 0 | GG58: 0 | GH58: 0 | GI58: 0 | GJ58: 0
E59: > 66 KV & < = 132 KV | F59: 3019.570588 | G59: 0 | H59: 0 | I59: 2
E60: > 132 KV | F60: 0.0001 | G60: 0 | H60: 0 | I60: 2
A61: 3 | D61: UNDERGROUND CABLES | E61: LV SERVICE PILLARS | F61: 1.68966496 | G61: 59.64740564 | H61: 7.723173288 | I61: 2 | J61: 0.088 | K61: 0.124 | L61: 0.133 | M61: 0.144 | N61: 0.131 | O61: 0.108 | P61: 0.162 | Q61: 0.201 | R61: 0.184 | S61: 0.179 | T61: 0.149 | U61: 0.139 | V61: 0.159 | W61: 0.168 | X61: 0.249 | Y61: 0.212 | Z61: 0.217 | AA61: 0.141 | AB61: 0.115 | AC61: 0.129 | AD61: 0.287 | AE61: 0.147 | AF61: 0.136 | AG61: 0.123 | AH61: 0.15 | AI61: 0.167 | AJ61: 0.313 | AK61: 0.124 | AL61: 0.195 | AM61: 0.121 | AN61: 0.344 | AO61: 0.517 | AP61: 0.195 | AQ61: 0.113 | AR61: 0.091 | AS61: 0.054 | AT61: 0.218 | AU61: 0.289 | AV61: 0.298 | AW61: 0.377 | AX61: 0.596 | AY61: 0.318 | AZ61: 0.169 | BA61: 0.191 | BB61: 0.01 | BC61: 0 | BD61: 0 | BE61: 0 | BF61: 0.006 | BG61: 0.001 | BH61: 0.001 | BI61: 0.001 | BJ61: 0 | BK61: 0 | BL61: 0.001 | BM61: 0 | BN61: 0 | BO61: 0 | BP61: 0 | BQ61: 0 | BR61: 0 | BS61: 0 | BT61: 0 | BU61: 0 | BV61: 0 | BW61: 0 | BX61: 0 | BY61: 0 | BZ61: 0 | CA61: 0 | CB61: 0 | CC61: 0 | CD61: 0 | CE61: 0 | CF61: 0.001 | CG61: 0 | CH61: 0 | CI61: 0 | CJ61: 0 | CK61: 0 | CL61: 0 | CM61: 0 | CN61: 0 | CO61: 0 | CP61: 0 | CQ61: 0 | CR61: 0 | CS61: 0 | CT61: 0 | CU61: 0 | CV61: 0 | CX61: 0.1486905165 | CY61: 0.209518455 | CZ61: 0.2247254396 | DA61: 0.2433117542 | DB61: 0.2213461097 | DC61: 0.1824838156 | DD61: 0.2737257235 | DE61: 0.3396226569 | DF61: 0.3108983526 | DG61: 0.3024500278 | DH61: 0.251760079 | DI61: 0.2348634294 | DJ61: 0.2686567286 | DK61: 0.2838637132 | DL61: 0.420726575 | DM61: 0.3582089715 | DN61: 0.3666572963 | DO61: 0.2382427593 | DP61: 0.1943114704 | DQ61: 0.2179667798 | DR61: 0.4849338434 | DS61: 0.2483807491 | DT61: 0.2297944345 | DU61: 0.20782879 | DV61: 0.253449744 | DW61: 0.2821740483 | DX61: 0.5288651324 | DY61: 0.209518455 | DZ61: 0.3294846671 | EA61: 0.2044494601 | EB61: 0.5812447461 | EC61: 0.8735567842 | ED61: 0.3294846671 | EE61: 0.1909321404 | EF61: 0.1537595113 | EG61: 0.09124190782 | EH61: 0.3683469612 | EI61: 0.4883131734 | EJ61: 0.503520158 | EK61: 0.6370036898 | EL61: 1.007040316 | EM61: 0.5373134572 | EN61: 0.2855533782 | EO61: 0.3227260073 | EP61: 0.0168966496 | EQ61: 0 | ER61: 0 | ES61: 0 | ET61: 0.01013798976 | EU61: 0.00168966496 | EV61: 0.00168966496 | EW61: 0.00168966496 | EX61: 0 | EY61: 0 | EZ61: 0.00168966496 | FA61: 0 | FB61: 0 | FC61: 0 | FD61: 0 | FE61: 0 | FF61: 0 | FG61: 0 | FH61: 0 | FI61: 0 | FJ61: 0 | FK61: 0 | FL61: 0 | FM61: 0 | FN61: 0 | FO61: 0 | FP61: 0 | FQ61: 0 | FR61: 0 | FS61: 0 | FT61: 0.00168966496 | FU61: 0 | FV61: 0 | FW61: 0 | FX61: 0 | FY61: 0 | FZ61: 0 | GA61: 0 | GB61: 0 | GC61: 0 | GD61: 0 | GE61: 0 | GF61: 0 | GG61: 0 | GH61: 0 | GI61: 0 | GJ61: 0
A62: 3 | D62: UNDERGROUND CABLES | E62: LV PARALLELING PILLARS | F62: 1.68966496 | G62: 59.64740564 | H62: 7.723173288 | I62: 2 | J62: 0.003 | K62: 0.004 | L62: 0.016 | M62: 0.013 | N62: 0.018 | O62: 0.01 | P62: 0.009 | Q62: 0.016 | R62: 0.098 | S62: 0.106 | T62: 0.116 | U62: 0.119 | V62: 0.129 | W62: 0.108 | X62: 0.089 | Y62: 0.077 | Z62: 0.029 | AA62: 0.029 | AB62: 0.01 | AC62: 0.017 | AD62: 0.024 | AE62: 0.009 | AF62: 0.009 | AG62: 0.011 | AH62: 0.055 | AI62: 0.047 | AJ62: 0.038 | AK62: 0.061 | AL62: 0.061 | AM62: 0.05 | AN62: 0.059 | AO62: 0.054 | AP62: 0.025 | AQ62: 0.025 | AR62: 0.019 | AS62: 0.029 | AT62: 0.043 | AU62: 0.057 | AV62: 0.068 | AW62: 0.04 | AX62: 0.047 | AY62: 0.016 | AZ62: 0.004 | BA62: 0.008 | BB62: 0.023 | BC62: 0 | BD62: 0 | BE62: 0 | BF62: 0 | BG62: 0 | BH62: 0 | BI62: 0 | BJ62: 0 | BK62: 0 | BL62: 0 | BM62: 0 | BN62: 0 | BO62: 0 | BP62: 0 | BQ62: 0 | BR62: 0 | BS62: 0 | BT62: 0 | BU62: 0 | BV62: 0 | BW62: 0 | BX62: 0 | BY62: 0 | BZ62: 0 | CA62: 0 | CB62: 0 | CC62: 0 | CD62: 0 | CE62: 0 | CF62: 0 | CG62: 0 | CH62: 0 | CI62: 0 | CJ62: 0 | CK62: 0 | CL62: 0 | CM62: 0 | CN62: 0 | CO62: 0 | CP62: 0 | CQ62: 0 | CR62: 0 | CS62: 0 | CT62: 0 | CU62: 0 | CV62: 0 | CX62: 0.005068994879 | CY62: 0.006758659839 | CZ62: 0.02703463936 | DA62: 0.02196564448 | DB62: 0.03041396927 | DC62: 0.0168966496 | DD62: 0.01520698464 | DE62: 0.02703463936 | DF62: 0.1655871661 | DG62: 0.1791044857 | DH62: 0.1960011353 | DI62: 0.2010701302 | DJ62: 0.2179667798 | DK62: 0.1824838156 | DL62: 0.1503801814 | DM62: 0.1301042019 | DN62: 0.04900028383 | DO62: 0.04900028383 | DP62: 0.0168966496 | DQ62: 0.02872430431 | DR62: 0.04055195903 | DS62: 0.01520698464 | DT62: 0.01520698464 | DU62: 0.01858631456 | DV62: 0.09293157278 | DW62: 0.07941425311 | DX62: 0.06420726847 | DY62: 0.1030695625 | DZ62: 0.1030695625 | EA62: 0.08448324799 | EB62: 0.09969023262 | EC62: 0.09124190782 | ED62: 0.04224162399 | EE62: 0.04224162399 | EF62: 0.03210363423 | EG62: 0.04900028383 | EH62: 0.07265559327 | EI62: 0.0963109027 | EJ62: 0.1148972173 | EK62: 0.06758659839 | EL62: 0.07941425311 | EM62: 0.02703463936 | EN62: 0.006758659839 | EO62: 0.01351731968 | EP62: 0.03886229407 | EQ62: 0 | ER62: 0 | ES62: 0 | ET62: 0 | EU62: 0 | EV62: 0 | EW62: 0 | EX62: 0 | EY62: 0 | EZ62: 0 | FA62: 0 | FB62: 0 | FC62: 0 | FD62: 0 | FE62: 0 | FF62: 0 | FG62: 0 | FH62: 0 | FI62: 0 | FJ62: 0 | FK62: 0 | FL62: 0 | FM62: 0 | FN62: 0 | FO62: 0 | FP62: 0 | FQ62: 0 | FR62: 0 | FS62: 0 | FT62: 0 | FU62: 0 | FV62: 0 | FW62: 0 | FX62: 0 | FY62: 0 | FZ62: 0 | GA62: 0 | GB62: 0 | GC62: 0 | GD62: 0 | GE62: 0 | GF62: 0 | GG62: 0 | GH62: 0 | GI62: 0 | GJ62: 0
A63: 3 | D63: UNDERGROUND CABLES | E63: LV CABINETS | F63: 1.68966496 | G63: 59.64740564 | H63: 7.723173288 | I63: 2 | J63: 0.007 | K63: 0.025 | L63: 0.016 | M63: 0.035 | N63: 0.028 | O63: 0.026 | P63: 0.035 | Q63: 0.041 | R63: 0.035 | S63: 0.065 | T63: 0.043 | U63: 0.033 | V63: 0.034 | W63: 0.045 | X63: 0.045 | Y63: 0.043 | Z63: 0.058 | AA63: 0.03 | AB63: 0.047 | AC63: 0.042 | AD63: 0.036 | AE63: 0.01 | AF63: 0.02 | AG63: 0.011 | AH63: 0.026 | AI63: 0.015 | AJ63: 0.01 | AK63: 0.011 | AL63: 0.02 | AM63: 0.014 | AN63: 0.005 | AO63: 0.004 | AP63: 0.006 | AQ63: 0.003 | AR63: 0.007 | AS63: 0.005 | AT63: 0.007 | AU63: 0.002 | AV63: 0.005 | AW63: 0.003 | AX63: 0.003 | AY63: 0.002 | AZ63: 0.009 | BA63: 0 | BB63: 0.002 | BC63: 0 | BD63: 0 | BE63: 0 | BF63: 0.001 | BG63: 0 | BH63: 0 | BI63: 0 | BJ63: 0 | BK63: 0 | BL63: 0 | BM63: 0 | BN63: 0 | BO63: 0 | BP63: 0 | BQ63: 0 | BR63: 0 | BS63: 0 | BT63: 0 | BU63: 0 | BV63: 0 | BW63: 0 | BX63: 0 | BY63: 0 | BZ63: 0 | CA63: 0 | CB63: 0 | CC63: 0 | CD63: 0 | CE63: 0 | CF63: 0 | CG63: 0 | CH63: 0 | CI63: 0 | CJ63: 0 | CK63: 0 | CL63: 0 | CM63: 0 | CN63: 0 | CO63: 0 | CP63: 0 | CQ63: 0 | CR63: 0 | CS63: 0 | CT63: 0 | CU63: 0 | CV63: 0 | CX63: 0.01182765472 | CY63: 0.04224162399 | CZ63: 0.02703463936 | DA63: 0.05913827359 | DB63: 0.04731061887 | DC63: 0.04393128895 | DD63: 0.05913827359 | DE63: 0.06927626335 | DF63: 0.05913827359 | DG63: 0.1098282224 | DH63: 0.07265559327 | DI63: 0.05575894367 | DJ63: 0.05744860863 | DK63: 0.07603492319 | DL63: 0.07603492319 | DM63: 0.07265559327 | DN63: 0.09800056766 | DO63: 0.05068994879 | DP63: 0.07941425311 | DQ63: 0.07096592831 | DR63: 0.06082793855 | DS63: 0.0168966496 | DT63: 0.03379329919 | DU63: 0.01858631456 | DV63: 0.04393128895 | DW63: 0.0253449744 | DX63: 0.0168966496 | DY63: 0.01858631456 | DZ63: 0.03379329919 | EA63: 0.02365530944 | EB63: 0.008448324799 | EC63: 0.006758659839 | ED63: 0.01013798976 | EE63: 0.005068994879 | EF63: 0.01182765472 | EG63: 0.008448324799 | EH63: 0.01182765472 | EI63: 0.003379329919 | EJ63: 0.008448324799 | EK63: 0.005068994879 | EL63: 0.005068994879 | EM63: 0.003379329919 | EN63: 0.01520698464 | EO63: 0 | EP63: 0.003379329919 | EQ63: 0 | ER63: 0 | ES63: 0 | ET63: 0.00168966496 | EU63: 0 | EV63: 0 | EW63: 0 | EX63: 0 | EY63: 0 | EZ63: 0 | FA63: 0 | FB63: 0 | FC63: 0 | FD63: 0 | FE63: 0 | FF63: 0 | FG63: 0 | FH63: 0 | FI63: 0 | FJ63: 0 | FK63: 0 | FL63: 0 | FM63: 0 | FN63: 0 | FO63: 0 | FP63: 0 | FQ63: 0 | FR63: 0 | FS63: 0 | FT63: 0 | FU63: 0 | FV63: 0 | FW63: 0 | FX63: 0 | FY63: 0 | FZ63: 0 | GA63: 0 | GB63: 0 | GC63: 0 | GD63: 0 | GE63: 0 | GF63: 0 | GG63: 0 | GH63: 0 | GI63: 0 | GJ63: 0
A64: 3 | D64: UNDERGROUND CABLES | E64: LV PITS | F64: 1.68966496 | G64: 59.64740564 | H64: 7.723173288 | I64: 2 | J64: 3.64 | K64: 3.554 | L64: 3.687 | M64: 4.199 | N64: 4.01 | O64: 3.629 | P64: 3.92 | Q64: 3.649 | R64: 3.379 | S64: 3.428 | T64: 3.783 | U64: 3.46 | V64: 3.891 | W64: 3.226 | X64: 4.463 | Y64: 4.564 | Z64: 4.795 | AA64: 2.878 | AB64: 2.274 | AC64: 3.123 | AD64: 2.553 | AE64: 1.989 | AF64: 1.599 | AG64: 1.34 | AH64: 2.367 | AI64: 2.168 | AJ64: 1.93 | AK64: 1.689 | AL64: 1.854 | AM64: 1.183 | AN64: 1.135 | AO64: 1.119 | AP64: 0.503 | AQ64: 0.487 | AR64: 0.543 | AS64: 0.518 | AT64: 0.83 | AU64: 0.818 | AV64: 1.029 | AW64: 0.333 | AX64: 0.421 | AY64: 0.166 | AZ64: 0.093 | BA64: 0.059 | BB64: 0.031 | BC64: 0 | BD64: 0 | BE64: 0.002 | BF64: 0.003 | BG64: 0.001 | BH64: 0 | BI64: 0 | BJ64: 0 | BK64: 0 | BL64: 0.001 | BM64: 0 | BN64: 0 | BO64: 0 | BP64: 0 | BQ64: 0 | BR64: 0 | BS64: 0 | BT64: 0 | BU64: 0 | BV64: 0 | BW64: 0 | BX64: 0.001 | BY64: 0 | BZ64: 0 | CA64: 0 | CB64: 0 | CC64: 0 | CD64: 0 | CE64: 0 | CF64: 0 | CG64: 0 | CH64: 0 | CI64: 0 | CJ64: 0 | CK64: 0 | CL64: 0 | CM64: 0 | CN64: 0 | CO64: 0 | CP64: 0 | CQ64: 0 | CR64: 0 | CS64: 0 | CT64: 0 | CU64: 0 | CV64: 0.001 | CX64: 6.150380453 | CY64: 6.005069267 | CZ64: 6.229794706 | DA64: 7.094903166 | DB64: 6.775556488 | DC64: 6.131794139 | DD64: 6.623486642 | DE64: 6.165587438 | DF64: 5.709377899 | DG64: 5.792171482 | DH64: 6.392002543 | DI64: 5.846240761 | DJ64: 6.574486358 | DK64: 5.45085916 | DL64: 7.540974715 | DM64: 7.711630876 | DN64: 8.101943482 | DO64: 4.862855754 | DP64: 3.842298118 | DQ64: 5.276823669 | DR64: 4.313714642 | DS64: 3.360743605 | DT64: 2.701774271 | DU64: 2.264151046 | DV64: 3.99943696 | DW64: 3.663193633 | DX64: 3.261053372 | DY64: 2.853844117 | DZ64: 3.132638835 | EA64: 1.998873647 | EB64: 1.917769729 | EC64: 1.89073509 | ED64: 0.8499014747 | EE64: 0.8228668354 | EF64: 0.9174880731 | EG64: 0.8752464491 | EH64: 1.402421917 | EI64: 1.382145937 | EJ64: 1.738665244 | EK64: 0.5626584316 | EL64: 0.711348948 | EM64: 0.2804843833 | EN64: 0.1571388413 | EO64: 0.09969023262 | EP64: 0.05237961375 | EQ64: 0 | ER64: 0 | ES64: 0.003379329919 | ET64: 0.005068994879 | EU64: 0.00168966496 | EV64: 0 | EW64: 0 | EX64: 0 | EY64: 0 | EZ64: 0.00168966496 | FA64: 0 | FB64: 0 | FC64: 0 | FD64: 0 | FE64: 0 | FF64: 0 | FG64: 0 | FH64: 0 | FI64: 0 | FJ64: 0 | FK64: 0 | FL64: 0.00168966496 | FM64: 0 | FN64: 0 | FO64: 0 | FP64: 0 | FQ64: 0 | FR64: 0 | FS64: 0 | FT64: 0 | FU64: 0 | FV64: 0 | FW64: 0 | FX64: 0 | FY64: 0 | FZ64: 0 | GA64: 0 | GB64: 0 | GC64: 0 | GD64: 0 | GE64: 0 | GF64: 0 | GG64: 0 | GH64: 0 | GI64: 0 | GJ64: 0.00168966496
A65: 3 | D65: UNDERGROUND CABLES | E65: SURGE ARRESTOR - HV | F65: 1.68966496 | G65: 59.64740564 | H65: 7.723173288 | I65: 2 | J65: 0.297 | K65: 0.533 | L65: 0.511 | M65: 0.407 | N65: 0.422 | O65: 0.799 | P65: 0.479 | Q65: 0.377 | R65: 0.541 | S65: 0.392 | T65: 0.385 | U65: 0.318 | V65: 0.327 | W65: 0.351 | X65: 0.248 | Y65: 0.24 | Z65: 0.169 | AA65: 0.147 | AB65: 0.151 | AC65: 0.129 | AD65: 0.14 | AE65: 0.132 | AF65: 0.126 | AG65: 0.128 | AH65: 0.304 | AI65: 0.333 | AJ65: 0.36 | AK65: 0.338 | AL65: 0.334 | AM65: 0.312 | AN65: 0.231 | AO65: 0.184 | AP65: 0.2 | AQ65: 0.179 | AR65: 0.169 | AS65: 0.2 | AT65: 0.22 | AU65: 0.244 | AV65: 0.274 | AW65: 0.149 | AX65: 0.088 | AY65: 0.168 | AZ65: 0.115 | BA65: 0.143 | BB65: 0.159 | BC65: 0.09 | BD65: 0.14 | BE65: 0.111 | BF65: 0.125 | BG65: 0.115 | BH65: 0.089 | BI65: 0.091 | BJ65: 0.088 | BK65: 0.07 | BL65: 0.101 | BM65: 0.086 | BN65: 0.04 | BO65: 0.01 | BP65: 0.018 | BQ65: 0.018 | BR65: 0.003 | BS65: 0.002 | BT65: 0.003 | BU65: 0.003 | BV65: 0.019 | BW65: 0.01 | BX65: 0.001 | BY65: 0.002 | BZ65: 0.002 | CA65: 0.005 | CB65: 0.003 | CC65: 0 | CD65: 0 | CE65: 0.01 | CF65: 0.009 | CG65: 0.002 | CH65: 0.001 | CI65: 0.002 | CJ65: 0.001 | CK65: 0 | CL65: 0.005 | CM65: 0 | CN65: 0 | CO65: 0 | CP65: 0 | CQ65: 0 | CR65: 0 | CS65: 0 | CT65: 0 | CU65: 0 | CV65: 0 | CX65: 0.501830493 | CY65: 0.9005914235 | CZ65: 0.8634187944 | DA65: 0.6876936386 | DB65: 0.713038613 | DC65: 1.350042303 | DD65: 0.8093495157 | DE65: 0.6370036898 | DF65: 0.9141087432 | DG65: 0.6623486642 | DH65: 0.6505210095 | DI65: 0.5373134572 | DJ65: 0.5525204418 | DK65: 0.5930724009 | DL65: 0.41903691 | DM65: 0.4055195903 | DN65: 0.2855533782 | DO65: 0.2483807491 | DP65: 0.2551394089 | DQ65: 0.2179667798 | DR65: 0.2365530944 | DS65: 0.2230357747 | DT65: 0.2128977849 | DU65: 0.2162771148 | DV65: 0.5136581477 | DW65: 0.5626584316 | DX65: 0.6082793855 | DY65: 0.5711067564 | DZ65: 0.5643480965 | EA65: 0.5271754674 | EB65: 0.3903126057 | EC65: 0.3108983526 | ED65: 0.3379329919 | EE65: 0.3024500278 | EF65: 0.2855533782 | EG65: 0.3379329919 | EH65: 0.3717262911 | EI65: 0.4122782502 | EJ65: 0.462968199 | EK65: 0.251760079 | EL65: 0.1486905165 | EM65: 0.2838637132 | EN65: 0.1943114704 | EO65: 0.2416220892 | EP65: 0.2686567286 | EQ65: 0.1520698464 | ER65: 0.2365530944 | ES65: 0.1875528105 | ET65: 0.21120812 | EU65: 0.1943114704 | EV65: 0.1503801814 | EW65: 0.1537595113 | EX65: 0.1486905165 | EY65: 0.1182765472 | EZ65: 0.1706561609 | FA65: 0.1453111865 | FB65: 0.06758659839 | FC65: 0.0168966496 | FD65: 0.03041396927 | FE65: 0.03041396927 | FF65: 0.005068994879 | FG65: 0.003379329919 | FH65: 0.005068994879 | FI65: 0.005068994879 | FJ65: 0.03210363423 | FK65: 0.0168966496 | FL65: 0.00168966496 | FM65: 0.003379329919 | FN65: 0.003379329919 | FO65: 0.008448324799 | FP65: 0.005068994879 | FQ65: 0 | FR65: 0 | FS65: 0.0168966496 | FT65: 0.01520698464 | FU65: 0.003379329919 | FV65: 0.00168966496 | FW65: 0.003379329919 | FX65: 0.00168966496 | FY65: 0 | FZ65: 0.008448324799 | GA65: 0 | GB65: 0 | GC65: 0 | GD65: 0 | GE65: 0 | GF65: 0 | GG65: 0 | GH65: 0 | GI65: 0 | GJ65: 0
A66: 3 | D66: UNDERGROUND CABLES | E66: OTHER | F66: 2.553015313 | G66: 59.64740564 | H66: 7.723173288 | I66: 2 | J66: 4.035 | K66: 4.24 | L66: 4.363 | M66: 4.798 | N66: 4.609 | O66: 4.572 | P66: 4.605 | Q66: 4.284 | R66: 4.237 | S66: 4.17 | T66: 4.476 | U66: 4.069 | V66: 4.54 | W66: 3.898 | X66: 5.094 | Y66: 5.136 | Z66: 5.268 | AA66: 3.225 | AB66: 2.597 | AC66: 3.44 | AD66: 3.04 | AE66: 2.287 | AF66: 1.89 | AG66: 1.613 | AH66: 2.902 | AI66: 2.73 | AJ66: 2.651 | AK66: 2.223 | AL66: 2.464 | AM66: 1.68 | AN66: 1.774 | AO66: 1.878 | AP66: 0.929 | AQ66: 0.807 | AR66: 0.829 | AS66: 0.806 | AT66: 1.318 | AU66: 1.41 | AV66: 1.674 | AW66: 0.902 | AX66: 1.155 | AY66: 0.67 | AZ66: 0.39 | BA66: 0.401 | BB66: 0.225 | BC66: 0.09 | BD66: 0.14 | BE66: 0.113 | BF66: 0.135 | BG66: 0.117 | BH66: 0.09 | BI66: 0.092 | BJ66: 0.088 | BK66: 0.07 | BL66: 0.103 | BM66: 0.086 | BN66: 0.04 | BO66: 0.01 | BP66: 0.018 | BQ66: 0.018 | BR66: 0.003 | BS66: 0.002 | BT66: 0.003 | BU66: 0.003 | BV66: 0.019 | BW66: 0.01 | BX66: 0.002 | BY66: 0.002 | BZ66: 0.002 | CA66: 0.005 | CB66: 0.003 | CC66: 0 | CD66: 0 | CE66: 0.01 | CF66: 0.01 | CG66: 0.002 | CH66: 0.001 | CI66: 0.002 | CJ66: 0.001 | CK66: 0 | CL66: 0.005 | CM66: 0 | CN66: 0 | CO66: 0 | CP66: 0 | CQ66: 0 | CR66: 0 | CS66: 0 | CT66: 0 | CU66: 0 | CV66: 0.001 | CX66: 10.30141679 | CY66: 10.82478493 | CZ66: 11.13880581 | DA66: 12.24936747 | DB66: 11.76684758 | DC66: 11.67238601 | DD66: 11.75663552 | DE66: 10.9371176 | DF66: 10.81712588 | DG66: 10.64607386 | DH66: 11.42729654 | DI66: 10.38821931 | DJ66: 11.59068952 | DK66: 9.951653691 | DL66: 13.00506001 | DM66: 13.11228665 | DN66: 13.44928467 | DO66: 8.233474385 | DP66: 6.630180769 | DQ66: 8.782372678 | DR66: 7.761166552 | DS66: 5.838746021 | DT66: 4.825198942 | DU66: 4.1180137 | DV66: 7.408850439 | DW66: 6.969731805 | DX66: 6.768043595 | DY66: 5.675353041 | DZ66: 6.290629732 | EA66: 4.289065726 | EB66: 4.529049166 | EC66: 4.794562758 | ED66: 2.371751226 | EE66: 2.060283358 | EF66: 2.116449695 | EG66: 2.057730342 | EH66: 3.364874183 | EI66: 3.599751592 | EJ66: 4.273747634 | EK66: 2.302819813 | EL66: 2.948732687 | EM66: 1.71052026 | EN66: 0.9956759722 | EO66: 1.023759141 | EP66: 0.5744284455 | EQ66: 0.2297713782 | ER66: 0.3574221439 | ES66: 0.2884907304 | ET66: 0.3446570673 | EU66: 0.2987027917 | EV66: 0.2297713782 | EW66: 0.2348774088 | EX66: 0.2246653476 | EY66: 0.1787110719 | EZ66: 0.2629605773 | FA66: 0.2195593169 | FB66: 0.1021206125 | FC66: 0.02553015313 | FD66: 0.04595427564 | FE66: 0.04595427564 | FF66: 0.00765904594 | FG66: 0.005106030627 | FH66: 0.00765904594 | FI66: 0.00765904594 | FJ66: 0.04850729095 | FK66: 0.02553015313 | FL66: 0.005106030627 | FM66: 0.005106030627 | FN66: 0.005106030627 | FO66: 0.01276507657 | FP66: 0.00765904594 | FQ66: 0 | FR66: 0 | FS66: 0.02553015313 | FT66: 0.02553015313 | FU66: 0.005106030627 | FV66: 0.002553015313 | FW66: 0.005106030627 | FX66: 0.002553015313 | FY66: 0 | FZ66: 0.01276507657 | GA66: 0 | GB66: 0 | GC66: 0 | GD66: 0 | GE66: 0 | GF66: 0 | GG66: 0 | GH66: 0 | GI66: 0 | GJ66: 0.002553015313
A67: 4 | D67: SERVICE LINES | E67: ˂ = 11 KV ; RESIDENTIAL ; SIMPLE TYPE | F67: 0.4789500308 | G67: 39.10736378 | H67: 6.253588072 | I67: 2 | J67: 38631 | K67: 45005 | L67: 46356 | M67: 26183 | N67: 20906 | O67: 9857 | P67: 10550 | Q67: 8819 | R67: 7989 | S67: 5218 | T67: 6418 | U67: 5902 | V67: 2797 | W67: 2420 | X67: 2165 | Y67: 2263 | Z67: 2040 | AA67: 2186 | AB67: 1381 | AC67: 1641 | AD67: 1864 | AE67: 2937 | AF67: 2257 | AG67: 1987 | AH67: 2773 | AI67: 2695 | AJ67: 2942 | AK67: 2323 | AL67: 3116 | AM67: 2587 | AN67: 1748 | AO67: 1540 | AP67: 1415 | AQ67: 1405 | AR67: 1447 | AS67: 956 | AT67: 1355 | AU67: 1274 | AV67: 990 | AW67: 1019 | AX67: 890 | AY67: 1201 | AZ67: 1126 | BA67: 822 | BB67: 891 | BC67: 949 | BD67: 821 | BE67: 756 | BF67: 512 | BG67: 673 | BH67: 521 | BI67: 326 | BJ67: 277 | BK67: 225 | BL67: 185 | BM67: 129 | BN67: 93 | BO67: 57 | BP67: 34 | BQ67: 24 | BR67: 22 | BS67: 15 | BT67: 12 | BU67: 8 | BV67: 23 | BW67: 6 | BX67: 4 | BY67: 3 | BZ67: 3 | CA67: 1 | CB67: 0 | CC67: 1 | CD67: 2 | CE67: 2 | CF67: 3 | CG67: 2 | CH67: 2 | CI67: 1 | CJ67: 1 | CK67: 1 | CL67: 1 | CM67: 0 | CN67: 0 | CO67: 0 | CP67: 0 | CQ67: 0 | CR67: 0 | CS67: 0 | CT67: 0 | CU67: 0 | CV67: 0 | CX67: 18502.31864 | CY67: 21555.14614 | CZ67: 22202.20763 | DA67: 12540.34866 | DB67: 10012.92934 | DC67: 4721.010454 | DD67: 5052.922825 | DE67: 4223.860322 | DF67: 3826.331796 | DG67: 2499.161261 | DH67: 3073.901298 | DI67: 2826.763082 | DJ67: 1339.623236 | DK67: 1159.059075 | DL67: 1036.926817 | DM67: 1083.86392 | DN67: 977.0580629 | DO67: 1046.984767 | DP67: 661.4299926 | DQ67: 785.9570006 | DR67: 892.7628575 | DS67: 1406.676241 | DT67: 1080.99022 | DU67: 951.6737112 | DV67: 1328.128435 | DW67: 1290.770333 | DX67: 1409.070991 | DY67: 1112.600922 | DZ67: 1492.408296 | EA67: 1239.04373 | EB67: 837.2046539 | EC67: 737.5830475 | ED67: 677.7142936 | EE67: 672.9247933 | EF67: 693.0406946 | EG67: 457.8762295 | EH67: 648.9772918 | EI67: 610.1823393 | EJ67: 474.1605305 | EK67: 488.0500814 | EL67: 426.2655274 | EM67: 575.218987 | EN67: 539.2977347 | EO67: 393.6969253 | EP67: 426.7444775 | EQ67: 454.5235793 | ER67: 393.2179753 | ES67: 362.0862233 | ET67: 245.2224158 | EU67: 322.3333707 | EV67: 249.5329661 | EW67: 156.13771 | EX67: 132.6691585 | EY67: 107.7637569 | EZ67: 88.6057557 | FA67: 61.78455398 | FB67: 44.54235287 | FC67: 27.30015176 | FD67: 16.28430105 | FE67: 11.49480074 | FF67: 10.53690068 | FG67: 7.184250462 | FH67: 5.74740037 | FI67: 3.831600247 | FJ67: 11.01585071 | FK67: 2.873700185 | FL67: 1.915800123 | FM67: 1.436850092 | FN67: 1.436850092 | FO67: 0.4789500308 | FP67: 0 | FQ67: 0.4789500308 | FR67: 0.9579000617 | FS67: 0.9579000617 | FT67: 1.436850092 | FU67: 0.9579000617 | FV67: 0.9579000617 | FW67: 0.4789500308 | FX67: 0.4789500308 | FY67: 0.4789500308 | FZ67: 0.4789500308 | GA67: 0 | GB67: 0 | GC67: 0 | GD67: 0 | GE67: 0 | GF67: 0 | GG67: 0 | GH67: 0 | GI67: 0 | GJ67: 0
A68: 4 | D68: SERVICE LINES | E68: ˂ = 11 KV ; COMMERCIAL & INDUSTRIAL ; SIMPLE TYPE | F68: 0.5565754645 | G68: 39.03529994 | H68: 6.247823616 | I68: 2 | J68: 1893 | K68: 2435 | L68: 1862 | M68: 1174 | N68: 1038 | O68: 757 | P68: 739 | Q68: 683 | R68: 599 | S68: 493 | T68: 521 | U68: 478 | V68: 308 | W68: 332 | X68: 330 | Y68: 312 | Z68: 272 | AA68: 313 | AB68: 204 | AC68: 233 | AD68: 261 | AE68: 402 | AF68: 266 | AG68: 268 | AH68: 413 | AI68: 509 | AJ68: 540 | AK68: 367 | AL68: 427 | AM68: 335 | AN68: 245 | AO68: 203 | AP68: 256 | AQ68: 231 | AR68: 227 | AS68: 133 | AT68: 190 | AU68: 230 | AV68: 177 | AW68: 105 | AX68: 143 | AY68: 120 | AZ68: 132 | BA68: 110 | BB68: 125 | BC68: 114 | BD68: 82 | BE68: 90 | BF68: 78 | BG68: 71 | BH68: 51 | BI68: 29 | BJ68: 24 | BK68: 29 | BL68: 19 | BM68: 11 | BN68: 10 | BO68: 6 | BP68: 2 | BQ68: 3 | BR68: 2 | BS68: 2 | BT68: 1 | BU68: 1 | BV68: 3 | BW68: 1 | BX68: 0 | BY68: 0 | BZ68: 0 | CA68: 0 | CB68: 0 | CC68: 0 | CD68: 0 | CE68: 0 | CF68: 0 | CG68: 0 | CH68: 0 | CI68: 0 | CJ68: 0 | CK68: 0 | CL68: 0 | CM68: 0 | CN68: 0 | CO68: 0 | CP68: 0 | CQ68: 0 | CR68: 0 | CS68: 0 | CT68: 0 | CU68: 0 | CV68: 0 | CX68: 1053.597354 | CY68: 1355.261256 | CZ68: 1036.343515 | DA68: 653.4195953 | DB68: 577.7253321 | DC68: 421.3276266 | DD68: 411.3092683 | DE68: 380.1410422 | DF68: 333.3887032 | DG68: 274.391704 | DH68: 289.975817 | DI68: 266.043072 | DJ68: 171.4252431 | DK68: 184.7830542 | DL68: 183.6699033 | DM68: 173.6515449 | DN68: 151.3885263 | DO68: 174.2081204 | DP68: 113.5413948 | DQ68: 129.6820832 | DR68: 145.2661962 | DS68: 223.7433367 | DT68: 148.0490736 | DU68: 149.1622245 | DV68: 229.8656668 | DW68: 283.2969114 | DX68: 300.5507508 | DY68: 204.2631955 | DZ68: 237.6577233 | EA68: 186.4527806 | EB68: 136.3609888 | EC68: 112.9848193 | ED68: 142.4833189 | EE68: 128.5689323 | EF68: 126.3426304 | EG68: 74.02453678 | EH68: 105.7493383 | EI68: 128.0123568 | EJ68: 98.51385721 | EK68: 58.44042377 | EL68: 79.59029142 | EM68: 66.78905574 | EN68: 73.46796131 | EO68: 61.22330109 | EP68: 69.57193306 | EQ68: 63.44960295 | ER68: 45.63918809 | ES68: 50.0917918 | ET68: 43.41288623 | EU68: 39.51685798 | EV68: 28.38534869 | EW68: 16.14068847 | EX68: 13.35781115 | EY68: 16.14068847 | EZ68: 10.57493383 | FA68: 6.122330109 | FB68: 5.565754645 | FC68: 3.339452787 | FD68: 1.113150929 | FE68: 1.669726393 | FF68: 1.113150929 | FG68: 1.113150929 | FH68: 0.5565754645 | FI68: 0.5565754645 | FJ68: 1.669726393 | FK68: 0.5565754645 | FL68: 0 | FM68: 0 | FN68: 0 | FO68: 0 | FP68: 0 | FQ68: 0 | FR68: 0 | FS68: 0 | FT68: 0 | FU68: 0 | FV68: 0 | FW68: 0 | FX68: 0 | FY68: 0 | FZ68: 0 | GA68: 0 | GB68: 0 | GC68: 0 | GD68: 0 | GE68: 0 | GF68: 0 | GG68: 0 | GH68: 0 | GI68: 0 | GJ68: 0
A69: 4 | D69: SERVICE LINES | E69: ˂ = 11 KV ; RESIDENTIAL ; COMPLEX TYPE | F69: 0.4769346398 | G69: 37.22015627 | H69: 6.100832424 | I69: 2 | J69: 3542 | K69: 3782 | L69: 5354 | M69: 2426 | N69: 1952 | O69: 1193 | P69: 1192 | Q69: 1232 | R69: 1159 | S69: 844 | T69: 1135 | U69: 1226 | V69: 662 | W69: 581 | X69: 489 | Y69: 488 | Z69: 425 | AA69: 529 | AB69: 295 | AC69: 353 | AD69: 463 | AE69: 513 | AF69: 568 | AG69: 472 | AH69: 511 | AI69: 556 | AJ69: 608 | AK69: 544 | AL69: 595 | AM69: 565 | AN69: 512 | AO69: 433 | AP69: 462 | AQ69: 376 | AR69: 475 | AS69: 246 | AT69: 312 | AU69: 222 | AV69: 226 | AW69: 224 | AX69: 195 | AY69: 205 | AZ69: 182 | BA69: 146 | BB69: 146 | BC69: 152 | BD69: 138 | BE69: 149 | BF69: 114 | BG69: 135 | BH69: 127 | BI69: 76 | BJ69: 80 | BK69: 53 | BL69: 40 | BM69: 42 | BN69: 18 | BO69: 13 | BP69: 9 | BQ69: 5 | BR69: 5 | BS69: 3 | BT69: 3 | BU69: 1 | BV69: 7 | BW69: 1 | BX69: 1 | BY69: 0 | BZ69: 1 | CA69: 0 | CB69: 0 | CC69: 0 | CD69: 0 | CE69: 1 | CF69: 0 | CG69: 0 | CH69: 0 | CI69: 0 | CJ69: 0 | CK69: 0 | CL69: 0 | CM69: 0 | CN69: 0 | CO69: 0 | CP69: 0 | CQ69: 0 | CR69: 0 | CS69: 0 | CT69: 0 | CU69: 0 | CV69: 0 | CX69: 1689.302494 | CY69: 1803.766808 | CZ69: 2553.508061 | DA69: 1157.043436 | DB69: 930.9764168 | DC69: 568.9830253 | DD69: 568.5060906 | DE69: 587.5834762 | DF69: 552.7672475 | DG69: 402.532836 | DH69: 541.3208161 | DI69: 584.7218684 | DJ69: 315.7307315 | DK69: 277.0990257 | DL69: 233.2210389 | DM69: 232.7441042 | DN69: 202.6972219 | DO69: 252.2984244 | DP69: 140.6957187 | DQ69: 168.3579278 | DR69: 220.8207382 | DS69: 244.6674702 | DT69: 270.8988754 | DU69: 225.11315 | DV69: 243.7136009 | DW69: 265.1756597 | DX69: 289.976261 | DY69: 259.452444 | DZ69: 283.7761107 | EA69: 269.4680715 | EB69: 244.1905356 | EC69: 206.512699 | ED69: 220.3438036 | EE69: 179.3274246 | EF69: 226.5439539 | EG69: 117.3259214 | EH69: 148.8036076 | EI69: 105.87949 | EJ69: 107.7872286 | EK69: 106.8333593 | EL69: 93.00225476 | EM69: 97.77160115 | EN69: 86.80210444 | EO69: 69.63245741 | EP69: 69.63245741 | EQ69: 72.49406525 | ER69: 65.81698029 | ES69: 71.06326133 | ET69: 54.37054893 | EU69: 64.38617637 | EV69: 60.57069925 | EW69: 36.24703262 | EX69: 38.15477118 | EY69: 25.27753591 | EZ69: 19.07738559 | FA69: 20.03125487 | FB69: 8.584823516 | FC69: 6.200150317 | FD69: 4.292411758 | FE69: 2.384673199 | FF69: 2.384673199 | FG69: 1.430803919 | FH69: 1.430803919 | FI69: 0.4769346398 | FJ69: 3.338542478 | FK69: 0.4769346398 | FL69: 0.4769346398 | FM69: 0 | FN69: 0.4769346398 | FO69: 0 | FP69: 0 | FQ69: 0 | FR69: 0 | FS69: 0.4769346398 | FT69: 0 | FU69: 0 | FV69: 0 | FW69: 0 | FX69: 0 | FY69: 0 | FZ69: 0 | GA69: 0 | GB69: 0 | GC69: 0 | GD69: 0 | GE69: 0 | GF69: 0 | GG69: 0 | GH69: 0 | GI69: 0 | GJ69: 0
A70: 4 | D70: SERVICE LINES | E70: ˂ = 11 KV ; COMMERCIAL & INDUSTRIAL ; COMPLEX TYPE | F70: 0.4519415542 | G70: 39.91980486 | H70: 6.318212157 | I70: 2 | J70: 512 | K70: 604 | L70: 475 | M70: 407 | N70: 345 | O70: 250 | P70: 265 | Q70: 275 | R70: 188 | S70: 205 | T70: 180 | U70: 238 | V70: 145 | W70: 176 | X70: 143 | Y70: 223 | Z70: 181 | AA70: 148 | AB70: 91 | AC70: 92 | AD70: 101 | AE70: 140 | AF70: 124 | AG70: 123 | AH70: 201 | AI70: 174 | AJ70: 207 | AK70: 152 | AL70: 217 | AM70: 166 | AN70: 149 | AO70: 95 | AP70: 101 | AQ70: 135 | AR70: 104 | AS70: 61 | AT70: 85 | AU70: 66 | AV70: 129 | AW70: 52 | AX70: 57 | AY70: 54 | AZ70: 65 | BA70: 45 | BB70: 59 | BC70: 16 | BD70: 41 | BE70: 30 | BF70: 21 | BG70: 30 | BH70: 24 | BI70: 13 | BJ70: 15 | BK70: 23 | BL70: 11 | BM70: 6 | BN70: 4 | BO70: 2 | BP70: 2 | BQ70: 1 | BR70: 1 | BS70: 0 | BT70: 0 | BU70: 0 | BV70: 1 | BW70: 0 | BX70: 0 | BY70: 0 | BZ70: 0 | CA70: 0 | CB70: 0 | CC70: 0 | CD70: 0 | CE70: 0 | CF70: 0 | CG70: 0 | CH70: 0 | CI70: 0 | CJ70: 0 | CK70: 0 | CL70: 0 | CM70: 0 | CN70: 0 | CO70: 0 | CP70: 0 | CQ70: 0 | CR70: 0 | CS70: 0 | CT70: 0 | CU70: 0 | CV70: 0 | CX70: 231.3940758 | CY70: 272.9726987 | CZ70: 214.6722382 | DA70: 183.9402126 | DB70: 155.9198362 | DC70: 112.9853886 | DD70: 119.7645119 | DE70: 124.2839274 | DF70: 84.96501219 | DG70: 92.64801861 | DH70: 81.34947976 | DI70: 107.5620899 | DJ70: 65.53152536 | DK70: 79.54171354 | DL70: 64.62764225 | DM70: 100.7829666 | DN70: 81.80142131 | DO70: 66.88735002 | DP70: 41.12668143 | DQ70: 41.57862299 | DR70: 45.64609697 | DS70: 63.27181759 | DT70: 56.04075272 | DU70: 55.58881117 | DV70: 90.8402524 | DW70: 78.63783043 | DX70: 93.55190172 | DY70: 68.69511624 | DZ70: 98.07131726 | EA70: 75.022298 | EB70: 67.33929158 | EC70: 42.93444765 | ED70: 45.64609697 | EE70: 61.01210982 | EF70: 47.00192164 | EG70: 27.56843481 | EH70: 38.41503211 | EI70: 29.82814258 | EJ70: 58.30046049 | EK70: 23.50096082 | EL70: 25.76066859 | EM70: 24.40484393 | EN70: 29.37620102 | EO70: 20.33736994 | EP70: 26.6645517 | EQ70: 7.231064867 | ER70: 18.52960372 | ES70: 13.55824663 | ET70: 9.490772638 | EU70: 13.55824663 | EV70: 10.8465973 | EW70: 5.875240205 | EX70: 6.779123313 | EY70: 10.39465575 | EZ70: 4.971357096 | FA70: 2.711649325 | FB70: 1.807766217 | FC70: 0.9038831084 | FD70: 0.9038831084 | FE70: 0.4519415542 | FF70: 0.4519415542 | FG70: 0 | FH70: 0 | FI70: 0 | FJ70: 0.4519415542 | FK70: 0 | FL70: 0 | FM70: 0 | FN70: 0 | FO70: 0 | FP70: 0 | FQ70: 0 | FR70: 0 | FS70: 0 | FT70: 0 | FU70: 0 | FV70: 0 | FW70: 0 | FX70: 0 | FY70: 0 | FZ70: 0 | GA70: 0 | GB70: 0 | GC70: 0 | GD70: 0 | GE70: 0 | GF70: 0 | GG70: 0 | GH70: 0 | GI70: 0 | GJ70: 0
E71: ˂ = 11 KV ; SUBDIVISION ; COMPLEX TYPE | F71: 0.0001 | G71: 0 | H71: 0 | I71: 2
E72: > 11 KV & < = 22 KV ; COMMERCIAL & INDUSTRIAL | F72: 0.0001 | G72: 0 | H72: 0 | I72: 2
E73: > 11 KV & < = 22 KV ; SUBDIVISION | F73: 0.0001 | G73: 0 | H73: 0 | I73: 2
E74: > 22 KV & < = 33 KV ; COMMERCIAL & INDUSTRIAL | F74: 0.0001 | G74: 0 | H74: 0 | I74: 2
E75: > 22 KV & < = 33 KV ; SUBDIVISION | F75: 0.0001 | G75: 0 | H75: 0 | I75: 2
E76: > 33 KV & < = 66 KV ; COMMERCIAL & INDUSTRIAL | F76: 0.0001 | G76: 0 | H76: 0 | I76: 2
E77: > 33 KV & < = 66 KV ; SUBDIVISION | F77: 0.0001 | G77: 0 | H77: 0 | I77: 2
E78: > 66 KV & < = 132 KV ; COMMERCIAL & INDUSTRIAL | F78: 0.0001 | G78: 0 | H78: 0 | I78: 2
E79: > 66 KV & < = 132 KV ; SUBDIVISION | F79: 0.0001 | G79: 0 | H79: 0 | I79: 2
E80: > 132 KV ; COMMERCIAL & INDUSTRIAL | F80: 0.0001 | G80: 0 | H80: 0 | I80: 2
E81: > 132 KV ; SUBDIVISION | F81: 0.0001 | G81: 0 | H81: 0 | I81: 2
E82: OTHER | F82: 0.0001 | G82: 0 | H82: 0 | I82: 2
A83: 5 | D83: TRANSFORMERS | E83: POLE MOUNTED ; < = 22KV ; < = 60 KVA ; SINGLE PHASE | F83: 6.267732106 | G83: 44.34438882 | H83: 6.659158267 | I83: 2 | J83: 17 | K83: 24 | L83: 26 | M83: 29 | N83: 30 | O83: 27 | P83: 19 | Q83: 3 | R83: 31 | S83: 25 | T83: 17 | U83: 15 | V83: 23 | W83: 29 | X83: 31 | Y83: 26 | Z83: 18 | AA83: 17 | AB83: 20 | AC83: 32 | AD83: 16 | AE83: 20 | AF83: 13 | AG83: 20 | AH83: 60 | AI83: 63 | AJ83: 65 | AK83: 72 | AL83: 75 | AM83: 100 | AN83: 65 | AO83: 33 | AP83: 35 | AQ83: 38 | AR83: 28 | AS83: 33 | AT83: 25 | AU83: 22 | AV83: 23 | AW83: 8 | AX83: 2 | AY83: 6 | AZ83: 12 | BA83: 11 | BB83: 8 | BC83: 7 | BD83: 10 | BE83: 2 | BF83: 2 | BG83: 4 | BH83: 3 | BI83: 3 | BJ83: 3 | BK83: 7 | BL83: 2 | BM83: 3 | BN83: 1 | BO83: 0 | BP83: 2 | BQ83: 0 | BR83: 1 | BS83: 0 | BT83: 0 | BU83: 0 | BV83: 0 | BW83: 0 | BX83: 0 | BY83: 0 | BZ83: 0 | CA83: 0 | CB83: 0 | CC83: 0 | CD83: 0 | CE83: 0 | CF83: 0 | CG83: 0 | CH83: 0 | CI83: 0 | CJ83: 0 | CK83: 0 | CL83: 0 | CM83: 0 | CN83: 0 | CO83: 0 | CP83: 0 | CQ83: 0 | CR83: 0 | CS83: 0 | CT83: 0 | CU83: 0 | CV83: 0 | CX83: 106.5514458 | CY83: 150.4255705 | CZ83: 162.9610348 | DA83: 181.7642311 | DB83: 188.0319632 | DC83: 169.2287669 | DD83: 119.08691 | DE83: 18.80319632 | DF83: 194.2996953 | DG83: 156.6933027 | DH83: 106.5514458 | DI83: 94.01598159 | DJ83: 144.1578384 | DK83: 181.7642311 | DL83: 194.2996953 | DM83: 162.9610348 | DN83: 112.8191779 | DO83: 106.5514458 | DP83: 125.3546421 | DQ83: 200.5674274 | DR83: 100.2837137 | DS83: 125.3546421 | DT83: 81.48051738 | DU83: 125.3546421 | DV83: 376.0639264 | DW83: 394.8671227 | DX83: 407.4025869 | DY83: 451.2767116 | DZ83: 470.079908 | EA83: 626.7732106 | EB83: 407.4025869 | EC83: 206.8351595 | ED83: 219.3706237 | EE83: 238.17382 | EF83: 175.496499 | EG83: 206.8351595 | EH83: 156.6933027 | EI83: 137.8901063 | EJ83: 144.1578384 | EK83: 50.14185685 | EL83: 12.53546421 | EM83: 37.60639264 | EN83: 75.21278527 | EO83: 68.94505317 | EP83: 50.14185685 | EQ83: 43.87412474 | ER83: 62.67732106 | ES83: 12.53546421 | ET83: 12.53546421 | EU83: 25.07092842 | EV83: 18.80319632 | EW83: 18.80319632 | EX83: 18.80319632 | EY83: 43.87412474 | EZ83: 12.53546421 | FA83: 18.80319632 | FB83: 6.267732106 | FC83: 0 | FD83: 12.53546421 | FE83: 0 | FF83: 6.267732106 | FG83: 0 | FH83: 0 | FI83: 0 | FJ83: 0 | FK83: 0 | FL83: 0 | FM83: 0 | FN83: 0 | FO83: 0 | FP83: 0 | FQ83: 0 | FR83: 0 | FS83: 0 | FT83: 0 | FU83: 0 | FV83: 0 | FW83: 0 | FX83: 0 | FY83: 0 | FZ83: 0 | GA83: 0 | GB83: 0 | GC83: 0 | GD83: 0 | GE83: 0 | GF83: 0 | GG83: 0 | GH83: 0 | GI83: 0 | GJ83: 0
A84: 5 | D84: TRANSFORMERS | E84: POLE MOUNTED ; < = 22KV ; > 60 KVA AND < = 600 KVA ; SINGLE PHASE | F84: 5.562309359 | G84: 32.69898997 | H84: 5.718303067 | I84: 2 | J84: 0 | K84: 4 | L84: 6 | M84: 4 | N84: 0 | O84: 5 | P84: 5 | Q84: 1 | R84: 3 | S84: 3 | T84: 4 | U84: 1 | V84: 11 | W84: 4 | X84: 5 | Y84: 3 | Z84: 5 | AA84: 5 | AB84: 0 | AC84: 3 | AD84: 1 | AE84: 1 | AF84: 1 | AG84: 1 | AH84: 3 | AI84: 2 | AJ84: 1 | AK84: 6 | AL84: 2 | AM84: 0 | AN84: 2 | AO84: 2 | AP84: 0 | AQ84: 1 | AR84: 0 | AS84: 1 | AT84: 1 | AU84: 0 | AV84: 1 | AW84: 0 | AX84: 0 | AY84: 0 | AZ84: 0 | BA84: 0 | BB84: 0 | BC84: 0 | BD84: 0 | BE84: 0 | BF84: 0 | BG84: 0 | BH84: 0 | BI84: 0 | BJ84: 0 | BK84: 0 | BL84: 0 | BM84: 0 | BN84: 0 | BO84: 0 | BP84: 0 | BQ84: 0 | BR84: 0 | BS84: 0 | BT84: 0 | BU84: 0 | BV84: 0 | BW84: 0 | BX84: 0 | BY84: 0 | BZ84: 0 | CA84: 0 | CB84: 0 | CC84: 0 | CD84: 0 | CE84: 0 | CF84: 0 | CG84: 0 | CH84: 0 | CI84: 0 | CJ84: 0 | CK84: 0 | CL84: 0 | CM84: 0 | CN84: 0 | CO84: 0 | CP84: 0 | CQ84: 0 | CR84: 0 | CS84: 0 | CT84: 0 | CU84: 0 | CV84: 0 | CX84: 0 | CY84: 22.24923743 | CZ84: 33.37385615 | DA84: 22.24923743 | DB84: 0 | DC84: 27.81154679 | DD84: 27.81154679 | DE84: 5.562309359 | DF84: 16.68692808 | DG84: 16.68692808 | DH84: 22.24923743 | DI84: 5.562309359 | DJ84: 61.18540294 | DK84: 22.24923743 | DL84: 27.81154679 | DM84: 16.68692808 | DN84: 27.81154679 | DO84: 27.81154679 | DP84: 0 | DQ84: 16.68692808 | DR84: 5.562309359 | DS84: 5.562309359 | DT84: 5.562309359 | DU84: 5.562309359 | DV84: 16.68692808 | DW84: 11.12461872 | DX84: 5.562309359 | DY84: 33.37385615 | DZ84: 11.12461872 | EA84: 0 | EB84: 11.12461872 | EC84: 11.12461872 | ED84: 0 | EE84: 5.562309359 | EF84: 0 | EG84: 5.562309359 | EH84: 5.562309359 | EI84: 0 | EJ84: 5.562309359 | EK84: 0 | EL84: 0 | EM84: 0 | EN84: 0 | EO84: 0 | EP84: 0 | EQ84: 0 | ER84: 0 | ES84: 0 | ET84: 0 | EU84: 0 | EV84: 0 | EW84: 0 | EX84: 0 | EY84: 0 | EZ84: 0 | FA84: 0 | FB84: 0 | FC84: 0 | FD84: 0 | FE84: 0 | FF84: 0 | FG84: 0 | FH84: 0 | FI84: 0 | FJ84: 0 | FK84: 0 | FL84: 0 | FM84: 0 | FN84: 0 | FO84: 0 | FP84: 0 | FQ84: 0 | FR84: 0 | FS84: 0 | FT84: 0 | FU84: 0 | FV84: 0 | FW84: 0 | FX84: 0 | FY84: 0 | FZ84: 0 | GA84: 0 | GB84: 0 | GC84: 0 | GD84: 0 | GE84: 0 | GF84: 0 | GG84: 0 | GH84: 0 | GI84: 0 | GJ84: 0
E85: POLE MOUNTED ; < = 22KV ; > 600 KVA ; SINGLE PHASE | F85: 0.0001 | G85: 0 | H85: 0 | I85: 2
A86: 5 | D86: TRANSFORMERS | E86: POLE MOUNTED ; < = 22KV ; < = 60 KVA ; MULTIPLE PHASE | F86: 8.41713362 | G86: 48.8810485 | H86: 6.991498301 | I86: 2 | J86: 2 | K86: 7 | L86: 5 | M86: 7 | N86: 5 | O86: 11 | P86: 6 | Q86: 0 | R86: 17 | S86: 15 | T86: 11 | U86: 12 | V86: 11 | W86: 17 | X86: 28 | Y86: 26 | Z86: 13 | AA86: 13 | AB86: 15 | AC86: 14 | AD86: 24 | AE86: 9 | AF86: 13 | AG86: 16 | AH86: 43 | AI86: 39 | AJ86: 26 | AK86: 24 | AL86: 37 | AM86: 23 | AN86: 23 | AO86: 11 | AP86: 8 | AQ86: 17 | AR86: 11 | AS86: 13 | AT86: 9 | AU86: 10 | AV86: 16 | AW86: 5 | AX86: 4 | AY86: 10 | AZ86: 5 | BA86: 7 | BB86: 11 | BC86: 3 | BD86: 10 | BE86: 3 | BF86: 4 | BG86: 5 | BH86: 2 | BI86: 2 | BJ86: 1 | BK86: 1 | BL86: 1 | BM86: 0 | BN86: 0 | BO86: 1 | BP86: 1 | BQ86: 0 | BR86: 0 | BS86: 0 | BT86: 0 | BU86: 0 | BV86: 0 | BW86: 0 | BX86: 0 | BY86: 0 | BZ86: 0 | CA86: 0 | CB86: 0 | CC86: 0 | CD86: 0 | CE86: 0 | CF86: 0 | CG86: 0 | CH86: 0 | CI86: 1 | CJ86: 0 | CK86: 0 | CL86: 0 | CM86: 0 | CN86: 0 | CO86: 0 | CP86: 0 | CQ86: 0 | CR86: 0 | CS86: 0 | CT86: 0 | CU86: 0 | CV86: 0 | CX86: =$F86*J86 -> 16.83426724 | CY86: =$F86*K86 -> 58.91993534 | CZ86: =$F86*L86 -> 42.0856681 | DA86: =$F86*M86 -> 58.91993534 | DB86: =$F86*N86 -> 42.0856681 | DC86: =$F86*O86 -> 92.58846982 | DD86: =$F86*P86 -> 50.50280172 | DE86: =$F86*Q86 -> 0 | DF86: =$F86*R86 -> 143.0912715 | DG86: =$F86*S86 -> 126.2570043 | DH86: =$F86*T86 -> 92.58846982 | DI86: =$F86*U86 -> 101.0056034 | DJ86: =$F86*V86 -> 92.58846982 | DK86: =$F86*W86 -> 143.0912715 | DL86: =$F86*X86 -> 235.6797414 | DM86: =$F86*Y86 -> 218.8454741 | DN86: =$F86*Z86 -> 109.4227371 | DO86: =$F86*AA86 -> 109.4227371 | DP86: =$F86*AB86 -> 126.2570043 | DQ86: =$F86*AC86 -> 117.8398707 | DR86: =$F86*AD86 -> 202.0112069 | DS86: =$F86*AE86 -> 75.75420258 | DT86: =$F86*AF86 -> 109.4227371 | DU86: =$F86*AG86 -> 134.6741379 | DV86: =$F86*AH86 -> 361.9367456 | DW86: =$F86*AI86 -> 328.2682112 | DX86: =$F86*AJ86 -> 218.8454741 | DY86: =$F86*AK86 -> 202.0112069 | DZ86: =$F86*AL86 -> 311.4339439 | EA86: =$F86*AM86 -> 193.5940733 | EB86: =$F86*AN86 -> 193.5940733 | EC86: =$F86*AO86 -> 92.58846982 | ED86: =$F86*AP86 -> 67.33706896 | EE86: =$F86*AQ86 -> 143.0912715 | EF86: =$F86*AR86 -> 92.58846982 | EG86: =$F86*AS86 -> 109.4227371 | EH86: =$F86*AT86 -> 75.75420258 | EI86: =$F86*AU86 -> 84.1713362 | EJ86: =$F86*AV86 -> 134.6741379 | EK86: =$F86*AW86 -> 42.0856681 | EL86: =$F86*AX86 -> 33.66853448 | EM86: =$F86*AY86 -> 84.1713362 | EN86: =$F86*AZ86 -> 42.0856681 | EO86: =$F86*BA86 -> 58.91993534 | EP86: =$F86*BB86 -> 92.58846982 | EQ86: =$F86*BC86 -> 25.25140086 | ER86: =$F86*BD86 -> 84.1713362 | ES86: =$F86*BE86 -> 25.25140086 | ET86: =$F86*BF86 -> 33.66853448 | EU86: =$F86*BG86 -> 42.0856681 | EV86: =$F86*BH86 -> 16.83426724 | EW86: =$F86*BI86 -> 16.83426724 | EX86: =$F86*BJ86 -> 8.41713362 | EY86: =$F86*BK86 -> 8.41713362 | EZ86: =$F86*BL86 -> 8.41713362 | FA86: =$F86*BM86 -> 0 | FB86: =$F86*BN86 -> 0 | FC86: =$F86*BO86 -> 8.41713362 | FD86: =$F86*BP86 -> 8.41713362 | FE86: =$F86*BQ86 -> 0 | FF86: =$F86*BR86 -> 0 | FG86: =$F86*BS86 -> 0 | FH86: =$F86*BT86 -> 0 | FI86: =$F86*BU86 -> 0 | FJ86: =$F86*BV86 -> 0 | FK86: =$F86*BW86 -> 0 | FL86: =$F86*BX86 -> 0 | FM86: =$F86*BY86 -> 0 | FN86: =$F86*BZ86 -> 0 | FO86: =$F86*CA86 -> 0 | FP86: =$F86*CB86 -> 0 | FQ86: =$F86*CC86 -> 0 | FR86: =$F86*CD86 -> 0 | FS86: =$F86*CE86 -> 0 | FT86: =$F86*CF86 -> 0 | FU86: =$F86*CG86 -> 0 | FV86: =$F86*CH86 -> 0 | FW86: =$F86*CI86 -> 8.41713362 | FX86: =$F86*CJ86 -> 0 | FY86: =$F86*CK86 -> 0 | FZ86: =$F86*CL86 -> 0 | GA86: =$F86*CM86 -> 0 | GB86: =$F86*CN86 -> 0 | GC86: =$F86*CO86 -> 0 | GD86: =$F86*CP86 -> 0 | GE86: =$F86*CQ86 -> 0 | GF86: =$F86*CR86 -> 0 | GG86: =$F86*CS86 -> 0 | GH86: =$F86*CT86 -> 0 | GI86: =$F86*CU86 -> 0 | GJ86: =$F86*CV86 -> 0
A87: 5 | D87: TRANSFORMERS | E87: POLE MOUNTED ; < = 22KV ; > 60 KVA AND < = 600 KVA ; MULTIPLE PHASE | F87: 12.24567959 | G87: 48.74079052 | H87: 6.981460486 | I87: 2 | J87: 215 | K87: 300 | L87: 300 | M87: 208 | N87: 232 | O87: 617 | P87: 298 | Q87: 272 | R87: 270 | S87: 107 | T87: 212 | U87: 204 | V87: 203 | W87: 218 | X87: 122 | Y87: 104 | Z87: 80 | AA87: 60 | AB87: 36 | AC87: 51 | AD87: 67 | AE87: 82 | AF87: 64 | AG87: 75 | AH87: 161 | AI87: 156 | AJ87: 172 | AK87: 143 | AL87: 165 | AM87: 125 | AN87: 89 | AO87: 84 | AP87: 96 | AQ87: 85 | AR87: 88 | AS87: 100 | AT87: 119 | AU87: 153 | AV87: 151 | AW87: 75 | AX87: 56 | AY87: 82 | AZ87: 62 | BA87: 64 | BB87: 89 | BC87: 26 | BD87: 45 | BE87: 63 | BF87: 56 | BG87: 36 | BH87: 31 | BI87: 35 | BJ87: 24 | BK87: 17 | BL87: 33 | BM87: 12 | BN87: 7 | BO87: 3 | BP87: 4 | BQ87: 4 | BR87: 2 | BS87: 2 | BT87: 0 | BU87: 0 | BV87: 1 | BW87: 0 | BX87: 0 | BY87: 0 | BZ87: 0 | CA87: 0 | CB87: 0 | CC87: 0 | CD87: 0 | CE87: 0 | CF87: 0 | CG87: 0 | CH87: 1 | CI87: 0 | CJ87: 0 | CK87: 0 | CL87: 0 | CM87: 0 | CN87: 0 | CO87: 0 | CP87: 0 | CQ87: 0 | CR87: 0 | CS87: 0 | CT87: 0 | CU87: 0 | CV87: 0 | CX87: 2632.821111 | CY87: 3673.703876 | CZ87: 3673.703876 | DA87: 2547.101354 | DB87: 2840.997664 | DC87: 7555.584306 | DD87: 3649.212517 | DE87: 3330.824848 | DF87: 3306.333489 | DG87: 1310.287716 | DH87: 2596.084073 | DI87: 2498.118636 | DJ87: 2485.872956 | DK87: 2669.55815 | DL87: 1493.97291 | DM87: 1273.550677 | DN87: 979.654367 | DO87: 734.7407753 | DP87: 440.8444652 | DQ87: 624.529659 | DR87: 820.4605324 | DS87: 1004.145726 | DT87: 783.7234936 | DU87: 918.4259691 | DV87: 1971.554414 | DW87: 1910.326016 | DX87: 2106.256889 | DY87: 1751.132181 | DZ87: 2020.537132 | EA87: 1530.709948 | EB87: 1089.865483 | EC87: 1028.637085 | ED87: 1175.58524 | EE87: 1040.882765 | EF87: 1077.619804 | EG87: 1224.567959 | EH87: 1457.235871 | EI87: 1873.588977 | EJ87: 1849.097618 | EK87: 918.4259691 | EL87: 685.7580569 | EM87: 1004.145726 | EN87: 759.2321344 | EO87: 783.7234936 | EP87: 1089.865483 | EQ87: 318.3876693 | ER87: 551.0555814 | ES87: 771.477814 | ET87: 685.7580569 | EU87: 440.8444652 | EV87: 379.6160672 | EW87: 428.5987856 | EX87: 293.8963101 | EY87: 208.176553 | EZ87: 404.1074264 | FA87: 146.9481551 | FB87: 85.71975711 | FC87: 36.73703876 | FD87: 48.98271835 | FE87: 48.98271835 | FF87: 24.49135918 | FG87: 24.49135918 | FH87: 0 | FI87: 0 | FJ87: 12.24567959 | FK87: 0 | FL87: 0 | FM87: 0 | FN87: 0 | FO87: 0 | FP87: 0 | FQ87: 0 | FR87: 0 | FS87: 0 | FT87: 0 | FU87: 0 | FV87: 12.24567959 | FW87: 0 | FX87: 0 | FY87: 0 | FZ87: 0 | GA87: 0 | GB87: 0 | GC87: 0 | GD87: 0 | GE87: 0 | GF87: 0 | GG87: 0 | GH87: 0 | GI87: 0 | GJ87: 0
A88: 5 | D88: TRANSFORMERS | E88: POLE MOUNTED ; < = 22KV ; > 600 KVA ; MULTIPLE PHASE | F88: 46.04419824 | G88: 42.42280992 | H88: 6.513279506 | I88: 2 | J88: 0 | K88: 0 | L88: 0 | M88: 0 | N88: 0 | O88: 0 | P88: 0 | Q88: 0 | R88: 0 | S88: 0 | T88: 0 | U88: 0 | V88: 0 | W88: 1 | X88: 0 | Y88: 0 | Z88: 0 | AA88: 0 | AB88: 0 | AC88: 0 | AD88: 0 | AE88: 0 | AF88: 0 | AG88: 0 | AH88: 0 | AI88: 0 | AJ88: 0 | AK88: 0 | AL88: 0 | AM88: 0 | AN88: 0 | AO88: 0 | AP88: 0 | AQ88: 0 | AR88: 0 | AS88: 0 | AT88: 0 | AU88: 0 | AV88: 0 | AW88: 1 | AX88: 0 | AY88: 1 | AZ88: 0 | BA88: 0 | BB88: 1 | BC88: 0 | BD88: 0 | BE88: 0 | BF88: 0 | BG88: 0 | BH88: 0 | BI88: 0 | BJ88: 0 | BK88: 0 | BL88: 0 | BM88: 0 | BN88: 0 | BO88: 0 | BP88: 0 | BQ88: 0 | BR88: 0 | BS88: 0 | BT88: 0 | BU88: 0 | BV88: 0 | BW88: 0 | BX88: 0 | BY88: 0 | BZ88: 0 | CA88: 0 | CB88: 0 | CC88: 0 | CD88: 0 | CE88: 0 | CF88: 0 | CG88: 0 | CH88: 0 | CI88: 0 | CJ88: 0 | CK88: 0 | CL88: 0 | CM88: 0 | CN88: 0 | CO88: 0 | CP88: 0 | CQ88: 0 | CR88: 0 | CS88: 0 | CT88: 0 | CU88: 0 | CV88: 0 | CX88: 0 | CY88: 0 | CZ88: 0 | DA88: 0 | DB88: 0 | DC88: 0 | DD88: 0 | DE88: 0 | DF88: 0 | DG88: 0 | DH88: 0 | DI88: 0 | DJ88: 0 | DK88: 46.04419824 | DL88: 0 | DM88: 0 | DN88: 0 | DO88: 0 | DP88: 0 | DQ88: 0 | DR88: 0 | DS88: 0 | DT88: 0 | DU88: 0 | DV88: 0 | DW88: 0 | DX88: 0 | DY88: 0 | DZ88: 0 | EA88: 0 | EB88: 0 | EC88: 0 | ED88: 0 | EE88: 0 | EF88: 0 | EG88: 0 | EH88: 0 | EI88: 0 | EJ88: 0 | EK88: 46.04419824 | EL88: 0 | EM88: 46.04419824 | EN88: 0 | EO88: 0 | EP88: 46.04419824 | EQ88: 0 | ER88: 0 | ES88: 0 | ET88: 0 | EU88: 0 | EV88: 0 | EW88: 0 | EX88: 0 | EY88: 0 | EZ88: 0 | FA88: 0 | FB88: 0 | FC88: 0 | FD88: 0 | FE88: 0 | FF88: 0 | FG88: 0 | FH88: 0 | FI88: 0 | FJ88: 0 | FK88: 0 | FL88: 0 | FM88: 0 | FN88: 0 | FO88: 0 | FP88: 0 | FQ88: 0 | FR88: 0 | FS88: 0 | FT88: 0 | FU88: 0 | FV88: 0 | FW88: 0 | FX88: 0 | FY88: 0 | FZ88: 0 | GA88: 0 | GB88: 0 | GC88: 0 | GD88: 0 | GE88: 0 | GF88: 0 | GG88: 0 | GH88: 0 | GI88: 0 | GJ88: 0
A89: 5 | D89: TRANSFORMERS | E89: KIOSK MOUNTED ; < = 22KV ; < = 60 KVA ; SINGLE PHASE | F89: 30.08150727 | G89: 54.71187854 | H89: 7.396747835 | I89: 2 | J89: 0 | K89: 0 | L89: 0 | M89: 0 | N89: 0 | O89: 0 | P89: 0 | Q89: 0 | R89: 0 | S89: 0 | T89: 0 | U89: 0 | V89: 0 | W89: 0 | X89: 1 | Y89: 0 | Z89: 0 | AA89: 0 | AB89: 0 | AC89: 0 | AD89: 0 | AE89: 0 | AF89: 0 | AG89: 0 | AH89: 0 | AI89: 0 | AJ89: 0 | AK89: 0 | AL89: 0 | AM89: 0 | AN89: 0 | AO89: 0 | AP89: 0 | AQ89: 0 | AR89: 0 | AS89: 0 | AT89: 0 | AU89: 0 | AV89: 0 | AW89: 0 | AX89: 0 | AY89: 0 | AZ89: 0 | BA89: 0 | BB89: 0 | BC89: 0 | BD89: 0 | BE89: 0 | BF89: 0 | BG89: 0 | BH89: 0 | BI89: 0 | BJ89: 0 | BK89: 0 | BL89: 0 | BM89: 0 | BN89: 0 | BO89: 0 | BP89: 0 | BQ89: 0 | BR89: 0 | BS89: 0 | BT89: 0 | BU89: 0 | BV89: 0 | BW89: 0 | BX89: 0 | BY89: 0 | BZ89: 0 | CA89: 0 | CB89: 0 | CC89: 0 | CD89: 0 | CE89: 0 | CF89: 0 | CG89: 0 | CH89: 0 | CI89: 0 | CJ89: 0 | CK89: 0 | CL89: 0 | CM89: 0 | CN89: 0 | CO89: 0 | CP89: 0 | CQ89: 0 | CR89: 0 | CS89: 0 | CT89: 0 | CU89: 0 | CV89: 0 | CX89: 0 | CY89: 0 | CZ89: 0 | DA89: 0 | DB89: 0 | DC89: 0 | DD89: 0 | DE89: 0 | DF89: 0 | DG89: 0 | DH89: 0 | DI89: 0 | DJ89: 0 | DK89: 0 | DL89: 30.08150727 | DM89: 0 | DN89: 0 | DO89: 0 | DP89: 0 | DQ89: 0 | DR89: 0 | DS89: 0 | DT89: 0 | DU89: 0 | DV89: 0 | DW89: 0 | DX89: 0 | DY89: 0 | DZ89: 0 | EA89: 0 | EB89: 0 | EC89: 0 | ED89: 0 | EE89: 0 | EF89: 0 | EG89: 0 | EH89: 0 | EI89: 0 | EJ89: 0 | EK89: 0 | EL89: 0 | EM89: 0 | EN89: 0 | EO89: 0 | EP89: 0 | EQ89: 0 | ER89: 0 | ES89: 0 | ET89: 0 | EU89: 0 | EV89: 0 | EW89: 0 | EX89: 0 | EY89: 0 | EZ89: 0 | FA89: 0 | FB89: 0 | FC89: 0 | FD89: 0 | FE89: 0 | FF89: 0 | FG89: 0 | FH89: 0 | FI89: 0 | FJ89: 0 | FK89: 0 | FL89: 0 | FM89: 0 | FN89: 0 | FO89: 0 | FP89: 0 | FQ89: 0 | FR89: 0 | FS89: 0 | FT89: 0 | FU89: 0 | FV89: 0 | FW89: 0 | FX89: 0 | FY89: 0 | FZ89: 0 | GA89: 0 | GB89: 0 | GC89: 0 | GD89: 0 | GE89: 0 | GF89: 0 | GG89: 0 | GH89: 0 | GI89: 0 | GJ89: 0
A90: 5 | D90: TRANSFORMERS | E90: KIOSK MOUNTED ; < = 22KV ; > 60 KVA AND < = 600 KVA ; SINGLE PHASE | F90: 65.99544495 | G90: 54.71187854 | H90: 7.396747835 | I90: 2 | J90: 0 | K90: 0 | L90: 0 | M90: 0 | N90: 0 | O90: 0 | P90: 0 | Q90: 0 | R90: 0 | S90: 1 | T90: 0 | U90: 0 | V90: 0 | W90: 1 | X90: 2 | Y90: 0 | Z90: 0 | AA90: 0 | AB90: 0 | AC90: 0 | AD90: 0 | AE90: 0 | AF90: 0 | AG90: 0 | AH90: 1 | AI90: 0 | AJ90: 0 | AK90: 0 | AL90: 0 | AM90: 0 | AN90: 0 | AO90: 0 | AP90: 0 | AQ90: 0 | AR90: 0 | AS90: 0 | AT90: 0 | AU90: 0 | AV90: 0 | AW90: 0 | AX90: 0 | AY90: 0 | AZ90: 0 | BA90: 0 | BB90: 0 | BC90: 0 | BD90: 0 | BE90: 0 | BF90: 0 | BG90: 0 | BH90: 0 | BI90: 0 | BJ90: 0 | BK90: 0 | BL90: 0 | BM90: 0 | BN90: 0 | BO90: 0 | BP90: 0 | BQ90: 0 | BR90: 0 | BS90: 0 | BT90: 0 | BU90: 0 | BV90: 0 | BW90: 0 | BX90: 0 | BY90: 0 | BZ90: 0 | CA90: 0 | CB90: 0 | CC90: 0 | CD90: 0 | CE90: 0 | CF90: 0 | CG90: 0 | CH90: 0 | CI90: 0 | CJ90: 0 | CK90: 0 | CL90: 0 | CM90: 0 | CN90: 0 | CO90: 0 | CP90: 0 | CQ90: 0 | CR90: 0 | CS90: 0 | CT90: 0 | CU90: 0 | CV90: 0 | CX90: 0 | CY90: 0 | CZ90: 0 | DA90: 0 | DB90: 0 | DC90: 0 | DD90: 0 | DE90: 0 | DF90: 0 | DG90: 65.99544495 | DH90: 0 | DI90: 0 | DJ90: 0 | DK90: 65.99544495 | DL90: 131.9908899 | DM90: 0 | DN90: 0 | DO90: 0 | DP90: 0 | DQ90: 0 | DR90: 0 | DS90: 0 | DT90: 0 | DU90: 0 | DV90: 65.99544495 | DW90: 0 | DX90: 0 | DY90: 0 | DZ90: 0 | EA90: 0 | EB90: 0 | EC90: 0 | ED90: 0 | EE90: 0 | EF90: 0 | EG90: 0 | EH90: 0 | EI90: 0 | EJ90: 0 | EK90: 0 | EL90: 0 | EM90: 0 | EN90: 0 | EO90: 0 | EP90: 0 | EQ90: 0 | ER90: 0 | ES90: 0 | ET90: 0 | EU90: 0 | EV90: 0 | EW90: 0 | EX90: 0 | EY90: 0 | EZ90: 0 | FA90: 0 | FB90: 0 | FC90: 0 | FD90: 0 | FE90: 0 | FF90: 0 | FG90: 0 | FH90: 0 | FI90: 0 | FJ90: 0 | FK90: 0 | FL90: 0 | FM90: 0 | FN90: 0 | FO90: 0 | FP90: 0 | FQ90: 0 | FR90: 0 | FS90: 0 | FT90: 0 | FU90: 0 | FV90: 0 | FW90: 0 | FX90: 0 | FY90: 0 | FZ90: 0 | GA90: 0 | GB90: 0 | GC90: 0 | GD90: 0 | GE90: 0 | GF90: 0 | GG90: 0 | GH90: 0 | GI90: 0 | GJ90: 0
E91: KIOSK MOUNTED ; < = 22KV ; > 600 KVA ; SINGLE PHASE | F91: 0.0001 | G91: 0 | H91: 0 | I91: 2
A92: 5 | D92: TRANSFORMERS | E92: KIOSK MOUNTED ; < = 22KV ; < = 60 KVA ; MULTIPLE PHASE | F92: 61.27796189 | G92: 54.71187854 | H92: 7.396747835 | I92: 2 | J92: 0 | K92: 0 | L92: 0 | M92: 0 | N92: 0 | O92: 0 | P92: 0 | Q92: 0 | R92: 0 | S92: 0 | T92: 0 | U92: 1 | V92: 0 | W92: 0 | X92: 0 | Y92: 0 | Z92: 1 | AA92: 0 | AB92: 0 | AC92: 0 | AD92: 0 | AE92: 1 | AF92: 0 | AG92: 0 | AH92: 0 | AI92: 0 | AJ92: 0 | AK92: 0 | AL92: 0 | AM92: 0 | AN92: 0 | AO92: 0 | AP92: 0 | AQ92: 0 | AR92: 0 | AS92: 0 | AT92: 0 | AU92: 0 | AV92: 0 | AW92: 0 | AX92: 0 | AY92: 0 | AZ92: 0 | BA92: 0 | BB92: 0 | BC92: 0 | BD92: 0 | BE92: 0 | BF92: 0 | BG92: 0 | BH92: 0 | BI92: 0 | BJ92: 0 | BK92: 0 | BL92: 0 | BM92: 0 | BN92: 0 | BO92: 0 | BP92: 0 | BQ92: 0 | BR92: 0 | BS92: 0 | BT92: 0 | BU92: 0 | BV92: 0 | BW92: 0 | BX92: 0 | BY92: 0 | BZ92: 0 | CA92: 0 | CB92: 0 | CC92: 0 | CD92: 0 | CE92: 0 | CF92: 0 | CG92: 0 | CH92: 0 | CI92: 0 | CJ92: 0 | CK92: 0 | CL92: 0 | CM92: 0 | CN92: 0 | CO92: 0 | CP92: 0 | CQ92: 0 | CR92: 0 | CS92: 0 | CT92: 0 | CU92: 0 | CV92: 0 | CX92: 0 | CY92: 0 | CZ92: 0 | DA92: 0 | DB92: 0 | DC92: 0 | DD92: 0 | DE92: 0 | DF92: 0 | DG92: 0 | DH92: 0 | DI92: 61.27796189 | DJ92: 0 | DK92: 0 | DL92: 0 | DM92: 0 | DN92: 61.27796189 | DO92: 0 | DP92: 0 | DQ92: 0 | DR92: 0 | DS92: 61.27796189 | DT92: 0 | DU92: 0 | DV92: 0 | DW92: 0 | DX92: 0 | DY92: 0 | DZ92: 0 | EA92: 0 | EB92: 0 | EC92: 0 | ED92: 0 | EE92: 0 | EF92: 0 | EG92: 0 | EH92: 0 | EI92: 0 | EJ92: 0 | EK92: 0 | EL92: 0 | EM92: 0 | EN92: 0 | EO92: 0 | EP92: 0 | EQ92: 0 | ER92: 0 | ES92: 0 | ET92: 0 | EU92: 0 | EV92: 0 | EW92: 0 | EX92: 0 | EY92: 0 | EZ92: 0 | FA92: 0 | FB92: 0 | FC92: 0 | FD92: 0 | FE92: 0 | FF92: 0 | FG92: 0 | FH92: 0 | FI92: 0 | FJ92: 0 | FK92: 0 | FL92: 0 | FM92: 0 | FN92: 0 | FO92: 0 | FP92: 0 | FQ92: 0 | FR92: 0 | FS92: 0 | FT92: 0 | FU92: 0 | FV92: 0 | FW92: 0 | FX92: 0 | FY92: 0 | FZ92: 0 | GA92: 0 | GB92: 0 | GC92: 0 | GD92: 0 | GE92: 0 | GF92: 0 | GG92: 0 | GH92: 0 | GI92: 0 | GJ92: 0
A93: 5 | D93: TRANSFORMERS | E93: KIOSK MOUNTED ; < = 22KV ; > 60 KVA AND < = 600 KVA ; MULTIPLE PHASE | F93: 27.29548835 | G93: 37.55928921 | H93: 6.128563389 | I93: 2 | J93: 50 | K93: 64 | L93: 58 | M93: 57 | N93: 53 | O93: 98 | P93: 62 | Q93: 59 | R93: 63 | S93: 59 | T93: 53 | U93: 69 | V93: 82 | W93: 46 | X93: 49 | Y93: 38 | Z93: 33 | AA93: 34 | AB93: 19 | AC93: 27 | AD93: 27 | AE93: 21 | AF93: 24 | AG93: 27 | AH93: 42 | AI93: 39 | AJ93: 38 | AK93: 30 | AL93: 36 | AM93: 23 | AN93: 24 | AO93: 16 | AP93: 17 | AQ93: 16 | AR93: 13 | AS93: 22 | AT93: 37 | AU93: 19 | AV93: 16 | AW93: 8 | AX93: 6 | AY93: 5 | AZ93: 1 | BA93: 0 | BB93: 5 | BC93: 0 | BD93: 0 | BE93: 0 | BF93: 0 | BG93: 0 | BH93: 0 | BI93: 0 | BJ93: 0 | BK93: 0 | BL93: 0 | BM93: 0 | BN93: 0 | BO93: 0 | BP93: 0 | BQ93: 0 | BR93: 0 | BS93: 0 | BT93: 0 | BU93: 0 | BV93: 0 | BW93: 0 | BX93: 0 | BY93: 0 | BZ93: 0 | CA93: 0 | CB93: 0 | CC93: 0 | CD93: 0 | CE93: 0 | CF93: 0 | CG93: 0 | CH93: 0 | CI93: 0 | CJ93: 0 | CK93: 0 | CL93: 0 | CM93: 0 | CN93: 0 | CO93: 0 | CP93: 0 | CQ93: 0 | CR93: 0 | CS93: 0 | CT93: 0 | CU93: 0 | CV93: 0 | CX93: 1364.774418 | CY93: 1746.911255 | CZ93: 1583.138324 | DA93: 1555.842836 | DB93: 1446.660883 | DC93: 2674.957859 | DD93: 1692.320278 | DE93: 1610.433813 | DF93: 1719.615766 | DG93: 1610.433813 | DH93: 1446.660883 | DI93: 1883.388696 | DJ93: 2238.230045 | DK93: 1255.592464 | DL93: 1337.478929 | DM93: 1037.228557 | DN93: 900.7511156 | DO93: 928.046604 | DP93: 518.6142787 | DQ93: 736.9781855 | DR93: 736.9781855 | DS93: 573.2052554 | DT93: 655.0917205 | DU93: 736.9781855 | DV93: 1146.410511 | DW93: 1064.524046 | DX93: 1037.228557 | DY93: 818.8646506 | DZ93: 982.6375807 | EA93: 627.7962321 | EB93: 655.0917205 | EC93: 436.7278136 | ED93: 464.023302 | EE93: 436.7278136 | EF93: 354.8413486 | EG93: 600.5007438 | EH93: 1009.933069 | EI93: 518.6142787 | EJ93: 436.7278136 | EK93: 218.3639068 | EL93: 163.7729301 | EM93: 136.4774418 | EN93: 27.29548835 | EO93: 0 | EP93: 136.4774418 | EQ93: 0 | ER93: 0 | ES93: 0 | ET93: 0 | EU93: 0 | EV93: 0 | EW93: 0 | EX93: 0 | EY93: 0 | EZ93: 0 | FA93: 0 | FB93: 0 | FC93: 0 | FD93: 0 | FE93: 0 | FF93: 0 | FG93: 0 | FH93: 0 | FI93: 0 | FJ93: 0 | FK93: 0 | FL93: 0 | FM93: 0 | FN93: 0 | FO93: 0 | FP93: 0 | FQ93: 0 | FR93: 0 | FS93: 0 | FT93: 0 | FU93: 0 | FV93: 0 | FW93: 0 | FX93: 0 | FY93: 0 | FZ93: 0 | GA93: 0 | GB93: 0 | GC93: 0 | GD93: 0 | GE93: 0 | GF93: 0 | GG93: 0 | GH93: 0 | GI93: 0 | GJ93: 0
A94: 5 | D94: TRANSFORMERS | E94: KIOSK MOUNTED ; < = 22KV ; > 600 KVA ; MULTIPLE PHASE | F94: 21.50071424 | G94: 35.15272099 | H94: 5.928973013 | I94: 2 | J94: 16 | K94: 36 | L94: 38 | M94: 34 | N94: 30 | O94: 28 | P94: 42 | Q94: 37 | R94: 37 | S94: 28 | T94: 29 | U94: 17 | V94: 17 | W94: 19 | X94: 10 | Y94: 2 | Z94: 7 | AA94: 4 | AB94: 7 | AC94: 6 | AD94: 9 | AE94: 3 | AF94: 2 | AG94: 4 | AH94: 2 | AI94: 4 | AJ94: 2 | AK94: 5 | AL94: 0 | AM94: 2 | AN94: 3 | AO94: 1 | AP94: 1 | AQ94: 0 | AR94: 0 | AS94: 1 | AT94: 1 | AU94: 0 | AV94: 1 | AW94: 0 | AX94: 1 | AY94: 0 | AZ94: 0 | BA94: 0 | BB94: 1 | BC94: 0 | BD94: 0 | BE94: 0 | BF94: 0 | BG94: 0 | BH94: 0 | BI94: 0 | BJ94: 0 | BK94: 0 | BL94: 0 | BM94: 0 | BN94: 0 | BO94: 0 | BP94: 0 | BQ94: 0 | BR94: 0 | BS94: 0 | BT94: 0 | BU94: 0 | BV94: 0 | BW94: 0 | BX94: 0 | BY94: 0 | BZ94: 0 | CA94: 0 | CB94: 0 | CC94: 0 | CD94: 0 | CE94: 0 | CF94: 0 | CG94: 0 | CH94: 0 | CI94: 0 | CJ94: 0 | CK94: 0 | CL94: 0 | CM94: 0 | CN94: 0 | CO94: 0 | CP94: 0 | CQ94: 0 | CR94: 0 | CS94: 0 | CT94: 0 | CU94: 0 | CV94: 0 | CX94: 344.0114279 | CY94: 774.0257127 | CZ94: 817.0271412 | DA94: 731.0242842 | DB94: 645.0214273 | DC94: 602.0199988 | DD94: 903.0299982 | DE94: 795.5264269 | DF94: 795.5264269 | DG94: 602.0199988 | DH94: 623.520713 | DI94: 365.5121421 | DJ94: 365.5121421 | DK94: 408.5135706 | DL94: 215.0071424 | DM94: 43.00142848 | DN94: 150.5049997 | DO94: 86.00285697 | DP94: 150.5049997 | DQ94: 129.0042855 | DR94: 193.5064282 | DS94: 64.50214273 | DT94: 43.00142848 | DU94: 86.00285697 | DV94: 43.00142848 | DW94: 86.00285697 | DX94: 43.00142848 | DY94: 107.5035712 | DZ94: 0 | EA94: 43.00142848 | EB94: 64.50214273 | EC94: 21.50071424 | ED94: 21.50071424 | EE94: 0 | EF94: 0 | EG94: 21.50071424 | EH94: 21.50071424 | EI94: 0 | EJ94: 21.50071424 | EK94: 0 | EL94: 21.50071424 | EM94: 0 | EN94: 0 | EO94: 0 | EP94: 21.50071424 | EQ94: 0 | ER94: 0 | ES94: 0 | ET94: 0 | EU94: 0 | EV94: 0 | EW94: 0 | EX94: 0 | EY94: 0 | EZ94: 0 | FA94: 0 | FB94: 0 | FC94: 0 | FD94: 0 | FE94: 0 | FF94: 0 | FG94: 0 | FH94: 0 | FI94: 0 | FJ94: 0 | FK94: 0 | FL94: 0 | FM94: 0 | FN94: 0 | FO94: 0 | FP94: 0 | FQ94: 0 | FR94: 0 | FS94: 0 | FT94: 0 | FU94: 0 | FV94: 0 | FW94: 0 | FX94: 0 | FY94: 0 | FZ94: 0 | GA94: 0 | GB94: 0 | GC94: 0 | GD94: 0 | GE94: 0 | GF94: 0 | GG94: 0 | GH94: 0 | GI94: 0 | GJ94: 0
E95: GROUND OUTDOOR / INDOOR CHAMBER MOUNTED; ˂ 22 KV ; < = 60 KVA ; SINGLE PHASE | F95: 16.94501973 | G95: 0 | H95: 0 | I95: 2
E96: GROUND OUTDOOR / INDOOR CHAMBER MOUNTED; ˂ 22 KV ; > 60 KVA AND < = 600 KVA ; SINGLE PHASE | F96: 147.2963158 | G96: 0 | H96: 0 | I96: 2
A97: 5 | D97: TRANSFORMERS | E97: GROUND OUTDOOR / INDOOR CHAMBER MOUNTED; ˂ 22 KV ; > 600 KVA ; SINGLE PHASE | F97: 147.2963158 | G97: 54.71187854 | H97: 7.396747835 | I97: 2 | J97: 0 | K97: 0 | L97: 1 | M97: 0 | N97: 0 | O97: 0 | P97: 0 | Q97: 0 | R97: 0 | S97: 0 | T97: 0 | U97: 0 | V97: 0 | W97: 0 | X97: 0 | Y97: 0 | Z97: 0 | AA97: 0 | AB97: 0 | AC97: 0 | AD97: 0 | AE97: 0 | AF97: 0 | AG97: 0 | AH97: 0 | AI97: 0 | AJ97: 0 | AK97: 0 | AL97: 0 | AM97: 0 | AN97: 0 | AO97: 0 | AP97: 0 | AQ97: 0 | AR97: 0 | AS97: 0 | AT97: 0 | AU97: 0 | AV97: 0 | AW97: 0 | AX97: 0 | AY97: 0 | AZ97: 0 | BA97: 0 | BB97: 0 | BC97: 0 | BD97: 0 | BE97: 0 | BF97: 0 | BG97: 0 | BH97: 0 | BI97: 0 | BJ97: 0 | BK97: 0 | BL97: 0 | BM97: 0 | BN97: 0 | BO97: 0 | BP97: 0 | BQ97: 0 | BR97: 0 | BS97: 0 | BT97: 0 | BU97: 0 | BV97: 0 | BW97: 0 | BX97: 0 | BY97: 0 | BZ97: 0 | CA97: 0 | CB97: 0 | CC97: 0 | CD97: 0 | CE97: 0 | CF97: 0 | CG97: 0 | CH97: 0 | CI97: 0 | CJ97: 0 | CK97: 0 | CL97: 0 | CM97: 0 | CN97: 0 | CO97: 0 | CP97: 0 | CQ97: 0 | CR97: 0 | CS97: 0 | CT97: 0 | CU97: 0 | CV97: 0 | CX97: 0 | CY97: 0 | CZ97: 147.2963158 | DA97: 0 | DB97: 0 | DC97: 0 | DD97: 0 | DE97: 0 | DF97: 0 | DG97: 0 | DH97: 0 | DI97: 0 | DJ97: 0 | DK97: 0 | DL97: 0 | DM97: 0 | DN97: 0 | DO97: 0 | DP97: 0 | DQ97: 0 | DR97: 0 | DS97: 0 | DT97: 0 | DU97: 0 | DV97: 0 | DW97: 0 | DX97: 0 | DY97: 0 | DZ97: 0 | EA97: 0 | EB97: 0 | EC97: 0 | ED97: 0 | EE97: 0 | EF97: 0 | EG97: 0 | EH97: 0 | EI97: 0 | EJ97: 0 | EK97: 0 | EL97: 0 | EM97: 0 | EN97: 0 | EO97: 0 | EP97: 0 | EQ97: 0 | ER97: 0 | ES97: 0 | ET97: 0 | EU97: 0 | EV97: 0 | EW97: 0 | EX97: 0 | EY97: 0 | EZ97: 0 | FA97: 0 | FB97: 0 | FC97: 0 | FD97: 0 | FE97: 0 | FF97: 0 | FG97: 0 | FH97: 0 | FI97: 0 | FJ97: 0 | FK97: 0 | FL97: 0 | FM97: 0 | FN97: 0 | FO97: 0 | FP97: 0 | FQ97: 0 | FR97: 0 | FS97: 0 | FT97: 0 | FU97: 0 | FV97: 0 | FW97: 0 | FX97: 0 | FY97: 0 | FZ97: 0 | GA97: 0 | GB97: 0 | GC97: 0 | GD97: 0 | GE97: 0 | GF97: 0 | GG97: 0 | GH97: 0 | GI97: 0 | GJ97: 0
A98: 5 | D98: TRANSFORMERS | E98: GROUND OUTDOOR / INDOOR CHAMBER MOUNTED; ˂ 22 KV ; < = 60 KVA ; MULTIPLE PHASE | F98: 108.9735123 | G98: 54.71187854 | H98: 7.396747835 | I98: 2 | J98: 0 | K98: 0 | L98: 0 | M98: 0 | N98: 0 | O98: 0 | P98: 0 | Q98: 0 | R98: 0 | S98: 0 | T98: 0 | U98: 0 | V98: 0 | W98: 0 | X98: 0 | Y98: 0 | Z98: 0 | AA98: 0 | AB98: 0 | AC98: 0 | AD98: 0 | AE98: 0 | AF98: 0 | AG98: 0 | AH98: 0 | AI98: 0 | AJ98: 0 | AK98: 0 | AL98: 0 | AM98: 0 | AN98: 0 | AO98: 0 | AP98: 1 | AQ98: 0 | AR98: 0 | AS98: 0 | AT98: 0 | AU98: 0 | AV98: 0 | AW98: 0 | AX98: 0 | AY98: 0 | AZ98: 0 | BA98: 0 | BB98: 0 | BC98: 0 | BD98: 0 | BE98: 0 | BF98: 0 | BG98: 0 | BH98: 0 | BI98: 0 | BJ98: 0 | BK98: 0 | BL98: 0 | BM98: 0 | BN98: 0 | BO98: 0 | BP98: 0 | BQ98: 0 | BR98: 0 | BS98: 0 | BT98: 0 | BU98: 0 | BV98: 0 | BW98: 0 | BX98: 0 | BY98: 0 | BZ98: 0 | CA98: 0 | CB98: 0 | CC98: 0 | CD98: 0 | CE98: 0 | CF98: 0 | CG98: 0 | CH98: 0 | CI98: 0 | CJ98: 0 | CK98: 0 | CL98: 0 | CM98: 0 | CN98: 0 | CO98: 0 | CP98: 0 | CQ98: 0 | CR98: 0 | CS98: 0 | CT98: 0 | CU98: 0 | CV98: 0 | CX98: 0 | CY98: 0 | CZ98: 0 | DA98: 0 | DB98: 0 | DC98: 0 | DD98: 0 | DE98: 0 | DF98: 0 | DG98: 0 | DH98: 0 | DI98: 0 | DJ98: 0 | DK98: 0 | DL98: 0 | DM98: 0 | DN98: 0 | DO98: 0 | DP98: 0 | DQ98: 0 | DR98: 0 | DS98: 0 | DT98: 0 | DU98: 0 | DV98: 0 | DW98: 0 | DX98: 0 | DY98: 0 | DZ98: 0 | EA98: 0 | EB98: 0 | EC98: 0 | ED98: 108.9735123 | EE98: 0 | EF98: 0 | EG98: 0 | EH98: 0 | EI98: 0 | EJ98: 0 | EK98: 0 | EL98: 0 | EM98: 0 | EN98: 0 | EO98: 0 | EP98: 0 | EQ98: 0 | ER98: 0 | ES98: 0 | ET98: 0 | EU98: 0 | EV98: 0 | EW98: 0 | EX98: 0 | EY98: 0 | EZ98: 0 | FA98: 0 | FB98: 0 | FC98: 0 | FD98: 0 | FE98: 0 | FF98: 0 | FG98: 0 | FH98: 0 | FI98: 0 | FJ98: 0 | FK98: 0 | FL98: 0 | FM98: 0 | FN98: 0 | FO98: 0 | FP98: 0 | FQ98: 0 | FR98: 0 | FS98: 0 | FT98: 0 | FU98: 0 | FV98: 0 | FW98: 0 | FX98: 0 | FY98: 0 | FZ98: 0 | GA98: 0 | GB98: 0 | GC98: 0 | GD98: 0 | GE98: 0 | GF98: 0 | GG98: 0 | GH98: 0 | GI98: 0 | GJ98: 0
A99: 5 | D99: TRANSFORMERS | E99: GROUND OUTDOOR / INDOOR CHAMBER MOUNTED; ˂ 22 KV ; > 60 KVA AND < = 600 KVA ; MULTIPLE PHASE | F99: 21.65765738 | G99: 54.85025921 | H99: 7.406096084 | I99: 2 | J99: 12 | K99: 14 | L99: 17 | M99: 8 | N99: 15 | O99: 9 | P99: 3 | Q99: 6 | R99: 1 | S99: 3 | T99: 6 | U99: 6 | V99: 3 | W99: 12 | X99: 9 | Y99: 11 | Z99: 12 | AA99: 12 | AB99: 6 | AC99: 12 | AD99: 24 | AE99: 13 | AF99: 20 | AG99: 9 | AH99: 44 | AI99: 42 | AJ99: 51 | AK99: 43 | AL99: 23 | AM99: 21 | AN99: 26 | AO99: 22 | AP99: 23 | AQ99: 26 | AR99: 19 | AS99: 35 | AT99: 19 | AU99: 30 | AV99: 20 | AW99: 24 | AX99: 13 | AY99: 19 | AZ99: 26 | BA99: 16 | BB99: 15 | BC99: 12 | BD99: 11 | BE99: 9 | BF99: 3 | BG99: 6 | BH99: 3 | BI99: 1 | BJ99: 4 | BK99: 1 | BL99: 0 | BM99: 2 | BN99: 0 | BO99: 0 | BP99: 3 | BQ99: 4 | BR99: 3 | BS99: 0 | BT99: 0 | BU99: 2 | BV99: 2 | BW99: 1 | BX99: 0 | BY99: 0 | BZ99: 1 | CA99: 0 | CB99: 0 | CC99: 0 | CD99: 0 | CE99: 0 | CF99: 0 | CG99: 0 | CH99: 0 | CI99: 0 | CJ99: 0 | CK99: 0 | CL99: 0 | CM99: 0 | CN99: 0 | CO99: 0 | CP99: 0 | CQ99: 0 | CR99: 0 | CS99: 0 | CT99: 0 | CU99: 0 | CV99: 0 | CX99: 259.8918886 | CY99: 303.2072034 | CZ99: 368.1801755 | DA99: 173.2612591 | DB99: 324.8648608 | DC99: 194.9189165 | DD99: 64.97297215 | DE99: 129.9459443 | DF99: 21.65765738 | DG99: 64.97297215 | DH99: 129.9459443 | DI99: 129.9459443 | DJ99: 64.97297215 | DK99: 259.8918886 | DL99: 194.9189165 | DM99: 238.2342312 | DN99: 259.8918886 | DO99: 259.8918886 | DP99: 129.9459443 | DQ99: 259.8918886 | DR99: 519.7837772 | DS99: 281.549546 | DT99: 433.1531477 | DU99: 194.9189165 | DV99: 952.9369249 | DW99: 909.6216102 | DX99: 1104.540527 | DY99: 931.2792675 | DZ99: 498.1261199 | EA99: 454.8108051 | EB99: 563.099092 | EC99: 476.4684625 | ED99: 498.1261199 | EE99: 563.099092 | EF99: 411.4954903 | EG99: 758.0180085 | EH99: 411.4954903 | EI99: 649.7297215 | EJ99: 433.1531477 | EK99: 519.7837772 | EL99: 281.549546 | EM99: 411.4954903 | EN99: 563.099092 | EO99: 346.5225182 | EP99: 324.8648608 | EQ99: 259.8918886 | ER99: 238.2342312 | ES99: 194.9189165 | ET99: 64.97297215 | EU99: 129.9459443 | EV99: 64.97297215 | EW99: 21.65765738 | EX99: 86.63062954 | EY99: 21.65765738 | EZ99: 0 | FA99: 43.31531477 | FB99: 0 | FC99: 0 | FD99: 64.97297215 | FE99: 86.63062954 | FF99: 64.97297215 | FG99: 0 | FH99: 0 | FI99: 43.31531477 | FJ99: 43.31531477 | FK99: 21.65765738 | FL99: 0 | FM99: 0 | FN99: 21.65765738 | FO99: 0 | FP99: 0 | FQ99: 0 | FR99: 0 | FS99: 0 | FT99: 0 | FU99: 0 | FV99: 0 | FW99: 0 | FX99: 0 | FY99: 0 | FZ99: 0 | GA99: 0 | GB99: 0 | GC99: 0 | GD99: 0 | GE99: 0 | GF99: 0 | GG99: 0 | GH99: 0 | GI99: 0 | GJ99: 0
A100: 5 | D100: TRANSFORMERS | E100: GROUND OUTDOOR / INDOOR CHAMBER MOUNTED; ˂ 22 KV ; > 600 KVA ; MULTIPLE PHASE | F100: 24.78023683 | G100: 59.61174565 | H100: 7.720864307 | I100: 2 | J100: 13 | K100: 22 | L100: 38 | M100: 15 | N100: 22 | O100: 32 | P100: 33 | Q100: 25 | R100: 34 | S100: 23 | T100: 19 | U100: 28 | V100: 28 | W100: 25 | X100: 28 | Y100: 20 | Z100: 40 | AA100: 14 | AB100: 11 | AC100: 27 | AD100: 45 | AE100: 24 | AF100: 26 | AG100: 30 | AH100: 47 | AI100: 52 | AJ100: 43 | AK100: 52 | AL100: 36 | AM100: 34 | AN100: 30 | AO100: 21 | AP100: 24 | AQ100: 14 | AR100: 24 | AS100: 15 | AT100: 15 | AU100: 8 | AV100: 15 | AW100: 12 | AX100: 9 | AY100: 12 | AZ100: 7 | BA100: 3 | BB100: 14 | BC100: 0 | BD100: 3 | BE100: 2 | BF100: 5 | BG100: 3 | BH100: 5 | BI100: 1 | BJ100: 0 | BK100: 1 | BL100: 2 | BM100: 0 | BN100: 0 | BO100: 0 | BP100: 1 | BQ100: 0 | BR100: 0 | BS100: 0 | BT100: 6 | BU100: 0 | BV100: 0 | BW100: 1 | BX100: 0 | BY100: 0 | BZ100: 0 | CA100: 0 | CB100: 0 | CC100: 0 | CD100: 0 | CE100: 0 | CF100: 0 | CG100: 0 | CH100: 0 | CI100: 0 | CJ100: 0 | CK100: 0 | CL100: 0 | CM100: 0 | CN100: 0 | CO100: 0 | CP100: 0 | CQ100: 0 | CR100: 0 | CS100: 0 | CT100: 0 | CU100: 0 | CV100: 0 | CX100: 322.1430787 | CY100: 545.1652102 | CZ100: 941.6489994 | DA100: 371.7035524 | DB100: 545.1652102 | DC100: 792.9675784 | DD100: 817.7478153 | DE100: 619.5059207 | DF100: 842.5280521 | DG100: 569.945447 | DH100: 470.8244997 | DI100: 693.8466311 | DJ100: 693.8466311 | DK100: 619.5059207 | DL100: 693.8466311 | DM100: 495.6047365 | DN100: 991.2094731 | DO100: 346.9233156 | DP100: 272.5826051 | DQ100: 669.0663943 | DR100: 1115.110657 | DS100: 594.7256838 | DT100: 644.2861575 | DU100: 743.4071048 | DV100: 1164.671131 | DW100: 1288.572315 | DX100: 1065.550184 | DY100: 1288.572315 | DZ100: 892.0885257 | EA100: 842.5280521 | EB100: 743.4071048 | EC100: 520.3849734 | ED100: 594.7256838 | EE100: 346.9233156 | EF100: 594.7256838 | EG100: 371.7035524 | EH100: 371.7035524 | EI100: 198.2418946 | EJ100: 371.7035524 | EK100: 297.3628419 | EL100: 223.0221314 | EM100: 297.3628419 | EN100: 173.4616578 | EO100: 74.34071048 | EP100: 346.9233156 | EQ100: 0 | ER100: 74.34071048 | ES100: 49.56047365 | ET100: 123.9011841 | EU100: 74.34071048 | EV100: 123.9011841 | EW100: 24.78023683 | EX100: 0 | EY100: 24.78023683 | EZ100: 49.56047365 | FA100: 0 | FB100: 0 | FC100: 0 | FD100: 24.78023683 | FE100: 0 | FF100: 0 | FG100: 0 | FH100: 148.681421 | FI100: 0 | FJ100: 0 | FK100: 24.78023683 | FL100: 0 | FM100: 0 | FN100: 0 | FO100: 0 | FP100: 0 | FQ100: 0 | FR100: 0 | FS100: 0 | FT100: 0 | FU100: 0 | FV100: 0 | FW100: 0 | FX100: 0 | FY100: 0 | FZ100: 0 | GA100: 0 | GB100: 0 | GC100: 0 | GD100: 0 | GE100: 0 | GF100: 0 | GG100: 0 | GH100: 0 | GI100: 0 | GJ100: 0
